Workbook

Sheet EMP
A1: day # | B1: Date | C1: wkday# | D1: weekday | E1: 0 | F1: =E1+1 -> 1 | G1: =F1+1 -> 2 | H1: 3 | I1: 4 | J1: 5 | K1: 6 | L1: 7 | M1: 8 | N1: 9 | O1: 10 | P1: 11 | Q1: 12 | R1: 13 | S1: 14 | T1: 15 | U1: 16 | V1: 17 | W1: 18 | X1: 19 | Y1: 20 | Z1: 21 | AA1: 22 | AB1: 23 | AC1: sum(row) | AD1: Moving average | AE1: Season | AF1: day type | AG1: Group | AH1: 0.1 | AR1: =0.00000001 -> 1e-08 | BZ1: up | CA1: 1 | CB1: Blck index
A2: 1 | B2: 2009-01-01 | C2: =WEEKDAY(B2,2) -> 4 | D2: =VLOOKUP(C2,weekdays,2,FALSE) -> Thursday | E2: 1076 | F2: 1091 | G2: 1076 | H2: 1071 | I2: 1060 | J2: 1062 | K2: 972 | L2: 970 | M2: 951 | N2: 972 | O2: 975 | P2: 1016 | Q2: 1021 | R2: 1004 | S2: 992 | T2: 980 | U2: 965 | V2: 1056 | W2: 1225 | X2: 1270 | Y2: 1251 | Z2: 1226 | AA2: 1176 | AB2: 1101 | AC2: =SUM(E2:AB2) -> 25559 | AE2: =IF(AND(A2>$AJ$6,A2<$AJ$7),"s2",IF(A2<=$AJ$6,"s1","s3")) -> s1 | AF2: d1 | AG2: =AE2&AF2 -> s1d1 | AT2: Average working day calculation | BX2: day | BY2: hr | BZ2: Vector index | CA2: Load vector | CC2: Sorted load duration curve | CD2: Sorted Agg load
A3: =A2+1 -> 2 | B3: 2009-01-02 | C3: =WEEKDAY(B3,2) -> 5 | D3: Friday | E3: 1075 | F3: 1040 | G3: 1006 | H3: 998 | I3: 1011 | J3: 1022 | K3: 999 | L3: 1061 | M3: 1093 | N3: 1136 | O3: 1155 | P3: 1157 | Q3: 1128 | R3: 1122 | S3: 1146 | T3: 1137 | U3: 1146 | V3: 1200 | W3: 1287 | X3: 1304 | Y3: 1306 | Z3: 1268 | AA3: 1225 | AB3: 1156 | AC3: 27178 | AE3: =IF(AND(A3>$AJ$6,A3<$AJ$7),"s2",IF(A3<=$AJ$6,"s1","s3")) -> s1 | AF3: d1 | AG3: =AE3&AF3 -> s1d1 | AI3: Start Day | AJ3: End Day | AK3: Days | AL3: Days frac | AM3: Energy | AN3: Energy frac | AO3: Max Power | AP3: Row (Max) | AQ3: Column (Max) | BX3: =ROUNDDOWN((BZ3-1)/24,0)+1 -> 1 | BY3: 1 | BZ3: 1 | CA3: =OFFSET(EMP!$D$1,IF($CA$1,BX3,366-BX3),BY3) -> 1076 | CB3: 1 | CC3: 1475 | CD3: =SUMIF(EMP!$AQ$51:$AQ$90,CB3,EMP!$BJ$51:$BJ$90) -> 1475
A4: =A3+1 -> 3 | B4: 2009-01-03 | C4: 6 | D4: Saturday | E4: 1134 | F4: 1099 | G4: 1094 | H4: 1067 | I4: 1073 | J4: 1078 | K4: 1001 | L4: 982 | M4: 988 | N4: 1033 | O4: 972 | P4: 999 | Q4: 996 | R4: 999 | S4: 1000 | T4: 993 | U4: 885 | V4: 1033 | W4: 1131 | X4: 1195 | Y4: 1212 | Z4: 1163 | AA4: 1130 | AB4: 1051 | AC4: 25308 | AE4: s1 | AF4: d1 | AG4: s1d1 | AO4: MW | BX4: 1 | BY4: =BZ4 -> 2 | BZ4: =BZ3+1 -> 2 | CA4: =OFFSET(EMP!$D$1,IF($CA$1,BX4,366-BX4),BY4) -> 1091 | CB4: =IF(BZ4=SUMIF(EMP!$AQ$51:$AQ$90,CB3,EMP!$BK$51:$BK$90),CB3+1,CB3) -> 1 | CC4: 1474 | CD4: =SUMIF(EMP!$AQ$51:$AQ$90,CB4,EMP!$BJ$51:$BJ$90) -> 1475
A5: 4 | B5: 2009-01-04 | C5: 7 | D5: Sunday | E5: 1019 | F5: 1012 | G5: 963 | H5: 950 | I5: 953 | J5: 987 | K5: 918 | L5: 924 | M5: 924 | N5: 889 | O5: 881 | P5: 878 | Q5: 900 | R5: 922 | S5: 946 | T5: 935 | U5: 933 | V5: 984 | W5: 1200 | X5: 1191 | Y5: 1167 | Z5: 1146 | AA5: 1052 | AB5: 1043 | AC5: 23717 | AE5: s1 | AF5: d1 | AG5: s1d1 | AH5: Annual | AI5: 1 | AJ5: 365 | AK5: =AJ5-AI5+1 -> 365 | AM5: =AM19 -> 9478.8998 | AO5: =findmax(OFFSET($E$2,$AI5-1,0,$AK5,24),AI5) -> 1475 | AP5: 350 | AQ5: 19 | BX5: 1 | BY5: 3 | BZ5: 3 | CA5: =OFFSET(EMP!$D$1,IF($CA$1,BX5,366-BX5),BY5) -> 1076 | CB5: =IF(BZ5=SUMIF(EMP!$AQ$51:$AQ$90,CB4,EMP!$BK$51:$BK$90),CB4+1,CB4) -> 1 | CC5: 1439 | CD5: =SUMIF(EMP!$AQ$51:$AQ$90,CB5,EMP!$BJ$51:$BJ$90) -> 1475
A6: 5 | B6: 2009-01-05 | C6: 1 | D6: Monday | E6: 961 | F6: 950 | G6: 927 | H6: 930 | I6: 931 | J6: 957 | K6: 948 | L6: 1021 | M6: 1073 | N6: 1085 | O6: 1108 | P6: 1131 | Q6: 1112 | R6: 1125 | S6: 1145 | T6: 1133 | U6: 1114 | V6: 1143 | W6: 1264 | X6: 1269 | Y6: 1245 | Z6: 1216 | AA6: 1136 | AB6: 1076 | AC6: 26000 | AE6: s1 | AF6: d1 | AG6: s1d1 | AH6: s1 | AI6: 1 | AJ6: 126 | AK6: =AJ6-AI6+1 -> 126 | AL6: =AK6/AK$5 -> 0.3452054795 | AM6: =SUMIF($AP$13:$AP$18,AH6,$AM$13:$AM$18) -> 3286.9733 | AN6: =AM6/$AM$5 -> 0.3467673854 | AO6: =findmax(OFFSET($E$2,$AI6-1,0,$AK6,24),AI6) -> 1359 | AP6: 118 | AQ6: 20 | BX6: 1 | BY6: 4 | BZ6: 4 | CA6: =OFFSET(EMP!$D$1,IF($CA$1,BX6,366-BX6),BY6) -> 1071 | CB6: =IF(BZ6=SUMIF(EMP!$AQ$51:$AQ$90,CB5,EMP!$BK$51:$BK$90),CB5+1,CB5) -> 1 | CC6: 1424 | CD6: =SUMIF(EMP!$AQ$51:$AQ$90,CB6,EMP!$BJ$51:$BJ$90) -> 1475
A7: 6 | B7: 2009-01-06 | C7: 2 | D7: Tuesday | E7: 1148 | F7: 1127 | G7: 1118 | H7: 1096 | I7: 1111 | J7: 1039 | K7: 994 | L7: 1046 | M7: 1106 | N7: 1109 | O7: 1109 | P7: 1102 | Q7: 1073 | R7: 1123 | S7: 1132 | T7: 1115 | U7: 1078 | V7: 1096 | W7: 1224 | X7: 1251 | Y7: 1229 | Z7: 1214 | AA7: 1156 | AB7: 1080 | AC7: 26876 | AE7: s1 | AF7: d1 | AG7: s1d1 | AH7: s2 | AI7: =AJ6+1 -> 127 | AJ7: 249 | AK7: =AJ7-AI7+1 -> 123 | AL7: =AK7/AK$5 -> 0.3369863014 | AM7: =SUMIF($AP$13:$AP$18,AH7,$AM$13:$AM$18) -> 3025.0529 | AN7: =AM7/$AM$5 -> 0.3191354444 | AO7: =findmax(OFFSET($E$2,$AI7-1,0,$AK7,24),AI7) -> 1337 | AP7: 138 | AQ7: 20 | BX7: 1 | BY7: 5 | BZ7: 5 | CA7: =OFFSET(EMP!$D$1,IF($CA$1,BX7,366-BX7),BY7) -> 1060 | CB7: =IF(BZ7=SUMIF(EMP!$AQ$51:$AQ$90,CB6,EMP!$BK$51:$BK$90),CB6+1,CB6) -> 1 | CC7: 1417 | CD7: =SUMIF(EMP!$AQ$51:$AQ$90,CB7,EMP!$BJ$51:$BJ$90) -> 1475
A8: 7 | B8: 2009-01-07 | C8: 3 | D8: Wednesday | E8: 1050 | F8: 1057 | G8: 1023 | H8: 922 | I8: 1037 | J8: 1079 | K8: 1007 | L8: 1047 | M8: 1109 | N8: 1143 | O8: 1149 | P8: 1161 | Q8: 1161 | R8: 1178 | S8: 1186 | T8: 1135 | U8: 1091 | V8: 1100 | W8: 1258 | X8: 1283 | Y8: 1262 | Z8: 1205 | AA8: 1133 | AB8: 1094 | AC8: 26870 | AE8: s1 | AF8: d1 | AG8: s1d1 | AH8: s3 | AI8: =AJ7+1 -> 250 | AJ8: 365 | AK8: =AJ8-AI8+1 -> 116 | AL8: =AK8/AK$5 -> 0.3178082192 | AM8: =SUMIF($AP$13:$AP$18,AH8,$AM$13:$AM$18) -> 3166.8736 | AN8: =AM8/$AM$5 -> 0.3340971702 | AO8: =findmax(OFFSET($E$2,$AI8-1,0,$AK8,24),AI8) -> 1475 | AP8: 350 | AQ8: 19 | BX8: 1 | BY8: 6 | BZ8: 6 | CA8: =OFFSET(EMP!$D$1,IF($CA$1,BX8,366-BX8),BY8) -> 1062 | CB8: =IF(BZ8=SUMIF(EMP!$AQ$51:$AQ$90,CB7,EMP!$BK$51:$BK$90),CB7+1,CB7) -> 1 | CC8: 1415 | CD8: =SUMIF(EMP!$AQ$51:$AQ$90,CB8,EMP!$BJ$51:$BJ$90) -> 1475
A9: 8 | B9: 2009-01-08 | C9: 4 | D9: Thursday | E9: 1048 | F9: 1048 | G9: 1022 | H9: 998 | I9: 1012 | J9: 1062 | K9: 985 | L9: 1055.5 | M9: 1106.5 | N9: 1115.5 | O9: 1153.5 | P9: 1159.5 | Q9: 1151.5 | R9: 1146.5 | S9: 1159.5 | T9: 1154 | U9: 1125 | V9: 1133 | W9: 1305 | X9: 1309 | Y9: 1319 | Z9: 1256 | AA9: 1179 | AB9: 1088 | AC9: 27091 | AE9: s1 | AF9: d1 | AG9: s1d1 | AO9: Load factor | AP9: =AM19/(AO5*8.67) -> 0.7412194632 | BX9: 1 | BY9: 7 | BZ9: 7 | CA9: =OFFSET(EMP!$D$1,IF($CA$1,BX9,366-BX9),BY9) -> 972 | CB9: =IF(BZ9=SUMIF(EMP!$AQ$51:$AQ$90,CB8,EMP!$BK$51:$BK$90),CB8+1,CB8) -> 1 | CC9: 1411 | CD9: =SUMIF(EMP!$AQ$51:$AQ$90,CB9,EMP!$BJ$51:$BJ$90) -> 1475
A10: 9 | B10: 2009-01-09 | C10: 5 | D10: Friday | E10: 1073 | F10: 1042 | G10: 1000 | H10: 1013 | I10: 1041 | J10: 1145 | K10: 1008 | L10: 1048 | M10: 1069 | N10: 1054 | O10: 1008 | P10: 1101 | Q10: 1101 | R10: 1097 | S10: 1100 | T10: 1110 | U10: 1099 | V10: 1111 | W10: 1265 | X10: 1279 | Y10: 1291 | Z10: 1223 | AA10: 1166 | AB10: 1085 | AC10: 26529 | AE10: s1 | AF10: d1 | AG10: s1d1 | BX10: 1 | BY10: 8 | BZ10: 8 | CA10: =OFFSET(EMP!$D$1,IF($CA$1,BX10,366-BX10),BY10) -> 970 | CB10: =IF(BZ10=SUMIF(EMP!$AQ$51:$AQ$90,CB9,EMP!$BK$51:$BK$90),CB9+1,CB9) -> 1 | CC10: 1409.7 | CD10: =SUMIF(EMP!$AQ$51:$AQ$90,CB10,EMP!$BJ$51:$BJ$90) -> 1475
A11: 10 | B11: 2009-01-10 | C11: 6 | D11: Saturday | E11: 1053 | F11: 1025 | G11: 1000 | H11: 990 | I11: 1003 | J11: 1039 | K11: 947 | L11: 923 | M11: 941 | N11: 949 | O11: 973 | P11: 981 | Q11: 1001 | R11: 986 | S11: 1002 | T11: 995 | U11: 980 | V11: 1018 | W11: 1230 | X11: 1284 | Y11: 1274 | Z11: 1240 | AA11: 1111 | AB11: 1068 | AC11: 25013 | AE11: s1 | AF11: d1 | AG11: s1d1 | AT11: Energy (GWh) | BX11: 1 | BY11: 9 | BZ11: 9 | CA11: =OFFSET(EMP!$D$1,IF($CA$1,BX11,366-BX11),BY11) -> 951 | CB11: =IF(BZ11=SUMIF(EMP!$AQ$51:$AQ$90,CB10,EMP!$BK$51:$BK$90),CB10+1,CB10) -> 1 | CC11: 1409.2 | CD11: =SUMIF(EMP!$AQ$51:$AQ$90,CB11,EMP!$BJ$51:$BJ$90) -> 1475
A12: 11 | B12: 2009-01-11 | C12: 7 | D12: Sunday | E12: 1029 | F12: 1011 | G12: 966 | H12: 994 | I12: 1008 | J12: 1016 | K12: 936 | L12: 941 | M12: 912 | N12: 907 | O12: 897 | P12: 901 | Q12: 918 | R12: 932 | S12: 951 | T12: 943 | U12: 975 | V12: 991 | W12: 1218 | X12: 1242 | Y12: 1229 | Z12: 1214 | AA12: 1121 | AB12: 1046 | AC12: 24298 | AD12: =W14 -> 1304 | AE12: s1 | AF12: d1 | AG12: s1d1 | AJ12: Days | AK12: Duration | AL12: Duration(N) | AM12: Energy (GWh) | AN12: Energy share | AO12: Share (N) | AT12: 0 | AU12: =AT12+1 -> 1 | AV12: =AU12+1 -> 2 | AW12: 3 | AX12: 4 | AY12: 5 | AZ12: 6 | BA12: 7 | BB12: 8 | BC12: 9 | BD12: 10 | BE12: 11 | BF12: 12 | BG12: 13 | BH12: 14 | BI12: 15 | BJ12: 16 | BK12: 17 | BL12: 18 | BM12: 19 | BN12: 20 | BO12: 21 | BP12: 22 | BQ12: 23 | BX12: 1 | BY12: 10 | BZ12: 10 | CA12: =OFFSET(EMP!$D$1,IF($CA$1,BX12,366-BX12),BY12) -> 972 | CB12: =IF(BZ12=SUMIF(EMP!$AQ$51:$AQ$90,CB11,EMP!$BK$51:$BK$90),CB11+1,CB11) -> 1 | CC12: 1407.4 | CD12: =SUMIF(EMP!$AQ$51:$AQ$90,CB12,EMP!$BJ$51:$BJ$90) -> 1475
A13: 12 | B13: 2009-01-12 | C13: 1 | D13: Monday | E13: 1018 | F13: 979 | G13: 965 | H13: 979 | I13: 979 | J13: 1050 | K13: 957 | L13: 1019 | M13: 1106 | N13: 1125 | O13: 1142 | P13: 1066 | Q13: 1112 | R13: 1130 | S13: 1144 | T13: 1117 | U13: 1111 | V13: 1128 | W13: 1294 | X13: 1310 | Y13: 1308 | Z13: 1252 | AA13: 1178 | AB13: 1081 | AC13: 26550 | AD13: =AD12*(1-$AH$1)+W13*$AH$1 -> 1303 | AE13: s1 | AF13: d1 | AG13: s1d1 | AJ13: =COUNTIF($AG$2:$AG$366,$AR13) -> 126 | AK13: =AJ13/AJ$19 -> 0.3452054795 | AL13: =AJ13/(AJ13+AJ14) -> 1 | AM13: =SUMIF($AG$2:$AG$366,AR13,$AC$2:$AC$366)/1000 -> 3286.9733 | AN13: =AM13/$AM$19 -> 0.3467673854 | AO13: =AM13/(AM13+AM14) -> 1 | AP13: s1 | AQ13: d1 | AR13: =AP13&AQ13 -> s1d1 | AS13: Season1 weekday | AT13: =SUMIF($AG$2:$AG$367,$AP13&$AQ13,E$2:E$367)/1000 -> 133.555 | AU13: 131.2062 | AV13: 128.528 | AW13: 127.5662 | AX13: 129.354 | AY13: 132.823 | AZ13: 124.417 | BA13: 127.519 | BB13: 131.8125 | BC13: 132.94 | BD13: 132.6247 | BE13: 133.5333 | BF13: 133.771 | BG13: 135.0595 | BH13: 136.5021 | BI13: 136.8341 | BJ13: =SUMIF($AG$2:$AG$367,$AP13&$AQ13,U$2:U$367)/1000 -> 135.511 | BK13: 135.9331 | BL13: 154.8548 | BM13: 157.6749 | BN13: 157.1679 | BO13: 153.9772 | BP13: 145.2349 | BQ13: 138.5739 | BX13: 1 | BY13: 11 | BZ13: 11 | CA13: =OFFSET(EMP!$D$1,IF($CA$1,BX13,366-BX13),BY13) -> 975 | CB13: =IF(BZ13=SUMIF(EMP!$AQ$51:$AQ$90,CB12,EMP!$BK$51:$BK$90),CB12+1,CB12) -> 1 | CC13: 1407 | CD13: =SUMIF(EMP!$AQ$51:$AQ$90,CB13,EMP!$BJ$51:$BJ$90) -> 1475
A14: 13 | B14: 2009-01-13 | C14: 2 | D14: Tuesday | E14: 1089 | F14: 1071 | G14: 1029 | H14: 1027 | I14: 1066 | J14: 1092 | K14: 1045 | L14: 1042 | M14: 1092 | N14: 1045 | O14: 1080 | P14: 1102 | Q14: 1085 | R14: 943 | S14: 1068 | T14: 1090 | U14: 1055 | V14: 1085 | W14: 1304 | X14: 1315 | Y14: 1308 | Z14: 1283 | AA14: 1215 | AB14: 1129 | AC14: 26660 | AD14: 1303.1 | AE14: s1 | AF14: d1 | AG14: s1d1 | AJ14: 0 | AK14: 0 | AL14: =1-AL13 -> 0 | AM14: 0 | AN14: 0 | AO14: =1-AO13 -> 0 | AP14: s1 | AQ14: d2 | AR14: s1d2 | AS14: Season1 weekend | AT14: 0 | AU14: 0 | AV14: 0 | AW14: 0 | AX14: 0 | AY14: 0 | AZ14: 0 | BA14: 0 | BB14: 0 | BC14: 0 | BD14: 0 | BE14: 0 | BF14: 0 | BG14: 0 | BH14: 0 | BI14: 0 | BJ14: 0 | BK14: 0 | BL14: 0 | BM14: 0 | BN14: 0 | BO14: 0 | BP14: 0 | BQ14: 0 | BX14: 1 | BY14: 12 | BZ14: 12 | CA14: =OFFSET(EMP!$D$1,IF($CA$1,BX14,366-BX14),BY14) -> 1016 | CB14: =IF(BZ14=SUMIF(EMP!$AQ$51:$AQ$90,CB13,EMP!$BK$51:$BK$90),CB13+1,CB13) -> 1 | CC14: 1405 | CD14: =SUMIF(EMP!$AQ$51:$AQ$90,CB14,EMP!$BJ$51:$BJ$90) -> 1475
A15: 14 | B15: 2009-01-14 | C15: 3 | D15: Wednesday | E15: 1093 | F15: 1055 | G15: 1068 | H15: 1032 | I15: 1049 | J15: 1083 | K15: 1051 | L15: 1056 | M15: 1112 | N15: 1136 | O15: 1111 | P15: 1053 | Q15: 1085 | R15: 1135 | S15: 1130 | T15: 1151 | U15: 1171 | V15: 1142 | W15: 1302 | X15: 1309 | Y15: 1316 | Z15: 1284 | AA15: 1228 | AB15: 1135 | AC15: 27287 | AD15: 1302.99 | AE15: s1 | AF15: d1 | AG15: s1d1 | AJ15: 122 | AK15: 0.3342465753 | AL15: =AJ15/(AJ15+AJ16) -> 1 | AM15: 3025.0529 | AN15: 0.3191354444 | AO15: =AM15/(AM15+AM16) -> 1 | AP15: s2 | AQ15: d1 | AR15: s2d1 | AS15: Season2 weekday | AT15: 120.56 | AU15: 117.952 | AV15: 116.379 | AW15: 116.016 | AX15: 118.514 | AY15: 120.452 | AZ15: 116.416 | BA15: 119.625 | BB15: 123.058 | BC15: 123.3864 | BD15: 122.3972 | BE15: 122.1446 | BF15: 120.3432 | BG15: 122.671 | BH15: 123.8519 | BI15: 125.6769 | BJ15: 125.089 | BK15: 125.6129 | BL15: 147.1089 | BM15: 150.0119 | BN15: 147.4623 | BO15: 141.5889 | BP15: 132.7678 | BQ15: 125.968 | BX15: 1 | BY15: 13 | BZ15: 13 | CA15: =OFFSET(EMP!$D$1,IF($CA$1,BX15,366-BX15),BY15) -> 1021 | CB15: =IF(BZ15=SUMIF(EMP!$AQ$51:$AQ$90,CB14,EMP!$BK$51:$BK$90),CB14+1,CB14) -> 1 | CC15: 1404.7 | CD15: =SUMIF(EMP!$AQ$51:$AQ$90,CB15,EMP!$BJ$51:$BJ$90) -> 1475
A16: 15 | B16: 2009-01-15 | C16: 4 | D16: Thursday | E16: 1096 | F16: 1045 | G16: 1032 | H16: 1050 | I16: 1048 | J16: 1104 | K16: 1058 | L16: 1100 | M16: 1110 | N16: 1013 | O16: 1021 | P16: 1028 | Q16: 1040 | R16: 1075 | S16: 1091 | T16: 1125 | U16: 1095 | V16: 1132 | W16: 1306 | X16: 1327 | Y16: 1327 | Z16: 1292 | AA16: 1200 | AB16: 1152 | AC16: 26867 | AD16: 1303.291 | AE16: s1 | AF16: d1 | AG16: s1d1 | AJ16: 0 | AK16: 0 | AL16: =1-AL15 -> 0 | AM16: 0 | AN16: 0 | AO16: =1-AO15 -> 0 | AP16: s2 | AQ16: d2 | AR16: s2d2 | AS16: Season2 weekend | AT16: 0 | AU16: 0 | AV16: 0 | AW16: 0 | AX16: 0 | AY16: 0 | AZ16: 0 | BA16: 0 | BB16: 0 | BC16: 0 | BD16: 0 | BE16: 0 | BF16: 0 | BG16: 0 | BH16: 0 | BI16: 0 | BJ16: 0 | BK16: 0 | BL16: 0 | BM16: 0 | BN16: 0 | BO16: 0 | BP16: 0 | BQ16: 0 | BX16: 1 | BY16: 14 | BZ16: 14 | CA16: =OFFSET(EMP!$D$1,IF($CA$1,BX16,366-BX16),BY16) -> 1004 | CB16: =IF(BZ16=SUMIF(EMP!$AQ$51:$AQ$90,CB15,EMP!$BK$51:$BK$90),CB15+1,CB15) -> 1 | CC16: 1404.1 | CD16: =SUMIF(EMP!$AQ$51:$AQ$90,CB16,EMP!$BJ$51:$BJ$90) -> 1475
A17: 16 | B17: 2009-01-16 | C17: 5 | D17: Friday | E17: 1075 | F17: 1042 | G17: 1021 | H17: 1037 | I17: 1059 | J17: 1142 | K17: 1056 | L17: 1111 | M17: 1109 | N17: 1131 | O17: 1147 | P17: 1143 | Q17: 1135 | R17: 1156 | S17: 1159 | T17: 1174 | U17: 1099 | V17: 1150 | W17: 1323 | X17: 1332 | Y17: 1307 | Z17: 1278 | AA17: 1213 | AB17: 1156 | AC17: 27555 | AD17: 1305.2619 | AE17: s1 | AF17: d1 | AG17: s1d1 | AJ17: 117 | AK17: 0.3205479452 | AL17: =AJ17/(AJ17+AJ18) -> 1 | AM17: 3166.8736 | AN17: 0.3340971702 | AO17: =AM17/(AM17+AM18) -> 1 | AP17: s3 | AQ17: d1 | AR17: s3d1 | AS17: Season3 weekday | AT17: 126.8875 | AU17: 124.4785 | AV17: 122.7485 | AW17: 122.3601 | AX17: 125.4136 | AY17: 127.044 | AZ17: 119.9138 | BA17: 122.7688 | BB17: 126.8685 | BC17: 127.9789 | BD17: 128.1204 | BE17: 127.979 | BF17: 127.8628 | BG17: 128.575 | BH17: 129.9354 | BI17: 130.6659 | BJ17: 129.7221 | BK17: 138.1041 | BL17: 153.377 | BM17: 154.7305 | BN17: 152.8706 | BO17: 148.0401 | BP17: 139.0375 | BQ17: 131.391 | BX17: 1 | BY17: 15 | BZ17: 15 | CA17: =OFFSET(EMP!$D$1,IF($CA$1,BX17,366-BX17),BY17) -> 992 | CB17: =IF(BZ17=SUMIF(EMP!$AQ$51:$AQ$90,CB16,EMP!$BK$51:$BK$90),CB16+1,CB16) -> 1 | CC17: 1403.5 | CD17: =SUMIF(EMP!$AQ$51:$AQ$90,CB17,EMP!$BJ$51:$BJ$90) -> 1475
A18: 17 | B18: 2009-01-17 | C18: 6 | D18: Saturday | E18: 1117 | F18: 1084 | G18: 1053 | H18: 1055 | I18: 1070 | J18: 1175 | K18: 1036 | L18: 995 | M18: 1032 | N18: 1060 | O18: 1060 | P18: 1044 | Q18: 1050 | R18: 1049 | S18: 1072 | T18: 1069 | U18: 1070 | V18: 1102 | W18: 1297 | X18: 1321 | Y18: 1321 | Z18: 1284 | AA18: 1198 | AB18: 1175 | AC18: 26789 | AD18: 1304.43571 | AE18: s1 | AF18: d1 | AG18: s1d1 | AJ18: 0 | AK18: 0 | AL18: =1-AL17 -> 0 | AM18: 0 | AN18: 0 | AO18: =1-AO17 -> 0 | AP18: s3 | AQ18: d2 | AR18: s3d2 | AS18: Season3 weekend | AT18: 0 | AU18: 0 | AV18: 0 | AW18: 0 | AX18: 0 | AY18: 0 | AZ18: 0 | BA18: 0 | BB18: 0 | BC18: 0 | BD18: 0 | BE18: 0 | BF18: 0 | BG18: 0 | BH18: 0 | BI18: 0 | BJ18: 0 | BK18: 0 | BL18: 0 | BM18: 0 | BN18: 0 | BO18: 0 | BP18: 0 | BQ18: 0 | BX18: 1 | BY18: 16 | BZ18: 16 | CA18: =OFFSET(EMP!$D$1,IF($CA$1,BX18,366-BX18),BY18) -> 980 | CB18: =IF(BZ18=SUMIF(EMP!$AQ$51:$AQ$90,CB17,EMP!$BK$51:$BK$90),CB17+1,CB17) -> 1 | CC18: 1403.3 | CD18: =SUMIF(EMP!$AQ$51:$AQ$90,CB18,EMP!$BJ$51:$BJ$90) -> 1475
A19: 18 | B19: 2009-01-18 | C19: 7 | D19: Sunday | E19: 1103 | F19: 1072 | G19: 1066 | H19: 1042 | I19: 1065 | J19: 1085 | K19: 981 | L19: 979 | M19: 963 | N19: 932 | O19: 919 | P19: 953 | Q19: 957 | R19: 985 | S19: 992 | T19: 993 | U19: 991 | V19: 1046 | W19: 1214 | X19: 1246 | Y19: 1239 | Z19: 1209 | AA19: 1125 | AB19: 1061 | AC19: 25218 | AD19: 1295.392139 | AE19: s1 | AF19: d1 | AG19: s1d1 | AI19: Total | AJ19: =SUM(AJ13:AJ18) -> 365 | AK19: =SUM(AK13:AK18) -> 1 | AM19: =SUM(AM13:AM18) -> 9478.8998 | AN19: =SUM(AN13:AN18) -> 1 | BX19: 1 | BY19: 17 | BZ19: 17 | CA19: =OFFSET(EMP!$D$1,IF($CA$1,BX19,366-BX19),BY19) -> 965 | CB19: =IF(BZ19=SUMIF(EMP!$AQ$51:$AQ$90,CB18,EMP!$BK$51:$BK$90),CB18+1,CB18) -> 1 | CC19: 1403 | CD19: =SUMIF(EMP!$AQ$51:$AQ$90,CB19,EMP!$BJ$51:$BJ$90) -> 1475
A20: 19 | B20: 2009-01-19 | C20: 1 | D20: Monday | E20: 1001 | F20: 977 | G20: 959 | H20: 962 | I20: 1025 | J20: 1110 | K20: 1001 | L20: 1013 | M20: 1053 | N20: 1068 | O20: 1065 | P20: 1065 | Q20: 1055 | R20: 1056 | S20: 1124 | T20: 1085 | U20: 1070 | V20: 1053 | W20: 1257 | X20: 1228 | Y20: 1228 | Z20: 1206 | AA20: 1105 | AB20: 1088 | AC20: 25854 | AD20: 1291.552925 | AE20: s1 | AF20: d1 | AG20: s1d1 | BX20: 1 | BY20: 18 | BZ20: 18 | CA20: =OFFSET(EMP!$D$1,IF($CA$1,BX20,366-BX20),BY20) -> 1056 | CB20: =IF(BZ20=SUMIF(EMP!$AQ$51:$AQ$90,CB19,EMP!$BK$51:$BK$90),CB19+1,CB19) -> 1 | CC20: 1402.2 | CD20: =SUMIF(EMP!$AQ$51:$AQ$90,CB20,EMP!$BJ$51:$BJ$90) -> 1475
A21: 20 | B21: 2009-01-20 | C21: 2 | D21: Tuesday | E21: 1018 | F21: 1009 | G21: 1008 | H21: 1009 | I21: 1030 | J21: 1140 | K21: 992 | L21: 990 | M21: 1120 | N21: 1009 | O21: 1010 | P21: 1028 | Q21: 970 | R21: 1004 | S21: 1038 | T21: 1062 | U21: 1062 | V21: 1094 | W21: 1260 | X21: 1171 | Y21: 1230 | Z21: 1143 | AA21: 1074 | AB21: 1008 | AC21: 25479 | AD21: 1288.397633 | AE21: s1 | AF21: d1 | AG21: s1d1 | AQ21: max blocks | AR21: Characterization | AT21: 0 | AU21: =AT21+1 -> 1 | AV21: =AU21+1 -> 2 | AW21: 3 | AX21: 4 | AY21: 5 | AZ21: 6 | BA21: 7 | BB21: 8 | BC21: 9 | BD21: 10 | BE21: 11 | BF21: 12 | BG21: 13 | BH21: 14 | BI21: 15 | BJ21: 16 | BK21: 17 | BL21: 18 | BM21: 19 | BN21: 20 | BO21: 21 | BP21: 22 | BQ21: 23 | BX21: 1 | BY21: 19 | BZ21: 19 | CA21: =OFFSET(EMP!$D$1,IF($CA$1,BX21,366-BX21),BY21) -> 1225 | CB21: =IF(BZ21=SUMIF(EMP!$AQ$51:$AQ$90,CB20,EMP!$BK$51:$BK$90),CB20+1,CB20) -> 1 | CC21: 1400.7 | CD21: =SUMIF(EMP!$AQ$51:$AQ$90,CB21,EMP!$BJ$51:$BJ$90) -> 1475
A22: 21 | B22: 2009-01-21 | C22: 3 | D22: Wednesday | E22: 1005 | F22: 969 | G22: 942 | H22: 942 | I22: 972 | J22: 1040 | K22: 960 | L22: 902 | M22: 977 | N22: 991 | O22: 1010 | P22: 868 | Q22: 1014 | R22: 1020 | S22: 1038 | T22: 1060 | U22: 1031 | V22: 1025 | W22: 1224 | X22: 1260 | Y22: 1253 | Z22: 1180 | AA22: 1080 | AB22: 982 | AC22: 24745 | AD22: 1281.957869 | AE22: s1 | AF22: d1 | AG22: s1d1 | AP22: 1 | AQ22: =MAX(AT22:BQ22) -> 3 | AR22: =AR13 -> s1d1 | AS22: =AP22 -> 1 | AT22: 1 | AU22: 1 | AV22: 1 | AW22: 1 | AX22: 1 | AY22: 1 | AZ22: 2 | BA22: 2 | BB22: 2 | BC22: 2 | BD22: 2 | BE22: 2 | BF22: 2 | BG22: 2 | BH22: 2 | BI22: 2 | BJ22: 2 | BK22: 2 | BL22: 3 | BM22: 3 | BN22: 3 | BO22: 3 | BP22: 3 | BQ22: 1 | BX22: 1 | BY22: 20 | BZ22: 20 | CA22: =OFFSET(EMP!$D$1,IF($CA$1,BX22,366-BX22),BY22) -> 1270 | CB22: =IF(BZ22=SUMIF(EMP!$AQ$51:$AQ$90,CB21,EMP!$BK$51:$BK$90),CB21+1,CB21) -> 1 | CC22: 1400 | CD22: =SUMIF(EMP!$AQ$51:$AQ$90,CB22,EMP!$BJ$51:$BJ$90) -> 1475
A23: 22 | B23: 2009-01-22 | C23: 4 | D23: Thursday | E23: 979 | F23: 891 | G23: 956 | H23: 941 | I23: 994 | J23: 1067 | K23: 1002 | L23: 938 | M23: 984 | N23: 970 | O23: 874 | P23: 983 | Q23: 989 | R23: 990 | S23: 1024 | T23: 1054 | U23: 1039 | V23: 1068 | W23: 1242 | X23: 1265 | Y23: 1257 | Z23: 1206 | AA23: 1082 | AB23: 1010 | AC23: 24805 | AD23: 1277.962082 | AE23: s1 | AF23: d1 | AG23: s1d1 | AP23: =AP22+1 -> 2 | AQ23: 3 | AR23: s1d2 | AS23: 2 | AT23: 1 | AU23: 1 | AV23: 1 | AW23: 1 | AX23: 1 | AY23: 1 | AZ23: 2 | BA23: 2 | BB23: 2 | BC23: 2 | BD23: 2 | BE23: 2 | BF23: 2 | BG23: 2 | BH23: 2 | BI23: 2 | BJ23: 2 | BK23: 2 | BL23: 3 | BM23: 3 | BN23: 3 | BO23: 3 | BP23: 3 | BQ23: 1 | BX23: 1 | BY23: 21 | BZ23: 21 | CA23: =OFFSET(EMP!$D$1,IF($CA$1,BX23,366-BX23),BY23) -> 1251 | CB23: =IF(BZ23=SUMIF(EMP!$AQ$51:$AQ$90,CB22,EMP!$BK$51:$BK$90),CB22+1,CB22) -> 1 | CC23: 1399 | CD23: =SUMIF(EMP!$AQ$51:$AQ$90,CB23,EMP!$BJ$51:$BJ$90) -> 1475
A24: 23 | B24: 2009-01-23 | C24: 5 | D24: Friday | E24: 982 | F24: 967 | G24: 990 | H24: 951 | I24: 988 | J24: 1062 | K24: 996 | L24: 957 | M24: 897 | N24: 958 | O24: 951 | P24: 958 | Q24: 966 | R24: 983 | S24: 998 | T24: 1018 | U24: 1112 | V24: 1044.4 | W24: 1224.9 | X24: 1243 | Y24: 1236 | Z24: 1143 | AA24: 1074 | AB24: 1012 | AC24: 24711.3 | AD24: 1272.655874 | AE24: s1 | AF24: d1 | AG24: s1d1 | AP24: =AP23+1 -> 3 | AQ24: 3 | AR24: s2d1 | AS24: 3 | AT24: 1 | AU24: 1 | AV24: 1 | AW24: 1 | AX24: 1 | AY24: 1 | AZ24: 2 | BA24: 2 | BB24: 2 | BC24: 2 | BD24: 2 | BE24: 2 | BF24: 2 | BG24: 2 | BH24: 2 | BI24: 2 | BJ24: 2 | BK24: 2 | BL24: 3 | BM24: 3 | BN24: 3 | BO24: 3 | BP24: 3 | BQ24: 1 | BX24: 1 | BY24: 22 | BZ24: 22 | CA24: =OFFSET(EMP!$D$1,IF($CA$1,BX24,366-BX24),BY24) -> 1226 | CB24: =IF(BZ24=SUMIF(EMP!$AQ$51:$AQ$90,CB23,EMP!$BK$51:$BK$90),CB23+1,CB23) -> 1 | CC24: 1398 | CD24: =SUMIF(EMP!$AQ$51:$AQ$90,CB24,EMP!$BJ$51:$BJ$90) -> 1475
A25: 24 | B25: 2009-01-24 | C25: 6 | D25: Saturday | E25: 1028 | F25: 946.2 | G25: 916 | H25: 921.2 | I25: 933 | J25: 978 | K25: 920 | L25: 938 | M25: 889 | N25: 863 | O25: 884 | P25: 876 | Q25: 891 | R25: 900 | S25: 903 | T25: 908 | U25: 931 | V25: 968 | W25: 118 | X25: 1195 | Y25: 1189 | Z25: 1120 | AA25: 1051 | AB25: 994 | AC25: 22260.4 | AD25: 1157.190287 | AE25: s1 | AF25: d1 | AG25: s1d1 | AP25: =AP24+1 -> 4 | AQ25: 3 | AR25: s2d2 | AS25: 4 | AT25: 1 | AU25: 1 | AV25: 1 | AW25: 1 | AX25: 1 | AY25: 1 | AZ25: 2 | BA25: 2 | BB25: 2 | BC25: 2 | BD25: 2 | BE25: 2 | BF25: 2 | BG25: 2 | BH25: 2 | BI25: 2 | BJ25: 2 | BK25: 2 | BL25: 3 | BM25: 3 | BN25: 3 | BO25: 3 | BP25: 3 | BQ25: 1 | BX25: 1 | BY25: 23 | BZ25: 23 | CA25: =OFFSET(EMP!$D$1,IF($CA$1,BX25,366-BX25),BY25) -> 1176 | CB25: =IF(BZ25=SUMIF(EMP!$AQ$51:$AQ$90,CB24,EMP!$BK$51:$BK$90),CB24+1,CB24) -> 1 | CC25: 1398 | CD25: =SUMIF(EMP!$AQ$51:$AQ$90,CB25,EMP!$BJ$51:$BJ$90) -> 1475
A26: 25 | B26: 2009-01-25 | C26: 7 | D26: Sunday | E26: 941 | F26: 917 | G26: 873 | H26: 862 | I26: 920 | J26: 939 | K26: 906 | L26: 901 | M26: 861 | N26: 830 | O26: 810 | P26: 808 | Q26: 826 | R26: 827 | S26: 854 | T26: 895 | U26: 912 | V26: 987 | W26: 1219 | X26: 1206 | Y26: 1212 | Z26: 1158 | AA26: 1066 | AB26: 988 | AC26: 22718 | AD26: 1163.371258 | AE26: s1 | AF26: d1 | AG26: s1d1 | AP26: =AP25+1 -> 5 | AQ26: 4 | AR26: s3d1 | AS26: 5 | AT26: 1 | AU26: 1 | AV26: 1 | AW26: 1 | AX26: 1 | AY26: 1 | AZ26: 2 | BA26: 2 | BB26: 2 | BC26: 2 | BD26: 2 | BE26: 2 | BF26: 2 | BG26: 2 | BH26: 2 | BI26: 2 | BJ26: 2 | BK26: 2 | BL26: 3 | BM26: 4 | BN26: 3 | BO26: 3 | BP26: 3 | BQ26: 1 | BX26: 1 | BY26: 24 | BZ26: 24 | CA26: =OFFSET(EMP!$D$1,IF($CA$1,BX26,366-BX26),BY26) -> 1101 | CB26: =IF(BZ26=SUMIF(EMP!$AQ$51:$AQ$90,CB25,EMP!$BK$51:$BK$90),CB25+1,CB25) -> 1 | CC26: 1397.8 | CD26: =SUMIF(EMP!$AQ$51:$AQ$90,CB26,EMP!$BJ$51:$BJ$90) -> 1475
A27: 26 | B27: 2009-01-26 | C27: 1 | D27: Monday | E27: 941 | F27: 900 | G27: 878 | H27: 888 | I27: 935 | J27: 1060 | K27: 982 | L27: 969 | M27: 1011 | N27: 989 | O27: 1035 | P27: 1012 | Q27: 1029 | R27: 1045 | S27: 1084 | T27: 1067 | U27: 1093 | V27: 1080 | W27: 1264 | X27: 1297 | Y27: 1298 | Z27: 1238 | AA27: 1111 | AB27: 1071 | AC27: 25277 | AD27: 1173.434132 | AE27: s1 | AF27: d1 | AG27: s1d1 | AP27: =AP26+1 -> 6 | AQ27: 4 | AR27: s3d2 | AS27: 6 | AT27: 1 | AU27: 1 | AV27: 1 | AW27: 1 | AX27: 1 | AY27: 1 | AZ27: 2 | BA27: 2 | BB27: 2 | BC27: 2 | BD27: 2 | BE27: 2 | BF27: 2 | BG27: 2 | BH27: 2 | BI27: 2 | BJ27: 2 | BK27: 2 | BL27: 3 | BM27: 4 | BN27: 3 | BO27: 3 | BP27: 3 | BQ27: 1 | BX27: 2 | BY27: =BY3 -> 1 | BZ27: 25 | CA27: =OFFSET(EMP!$D$1,IF($CA$1,BX27,366-BX27),BY27) -> 1075 | CB27: =IF(BZ27=SUMIF(EMP!$AQ$51:$AQ$90,CB26,EMP!$BK$51:$BK$90),CB26+1,CB26) -> 1 | CC27: 1397.3 | CD27: =SUMIF(EMP!$AQ$51:$AQ$90,CB27,EMP!$BJ$51:$BJ$90) -> 1475
A28: 27 | B28: 2009-01-27 | C28: 2 | D28: Tuesday | E28: 1054 | F28: 1043 | G28: 1005 | H28: 1014 | I28: 1045 | J28: 1121 | K28: 1065 | L28: 1008 | M28: 1051 | N28: 1059 | O28: 1068 | P28: 1035 | Q28: 1055 | R28: 1064 | S28: 1078 | T28: 1104 | U28: 1078 | V28: 1075 | W28: 1258 | X28: 1287 | Y28: 1286 | Z28: 1243 | AA28: 1164 | AB28: 1025 | AC28: 26285 | AD28: 1181.890719 | AE28: s1 | AF28: d1 | AG28: s1d1 | AP28: Total blcks | AQ28: =AQ26+AQ24+AQ22 -> 10 | BX28: 2 | BY28: 2 | BZ28: 26 | CA28: =OFFSET(EMP!$D$1,IF($CA$1,BX28,366-BX28),BY28) -> 1040 | CB28: =IF(BZ28=SUMIF(EMP!$AQ$51:$AQ$90,CB27,EMP!$BK$51:$BK$90),CB27+1,CB27) -> 1 | CC28: 1395 | CD28: =SUMIF(EMP!$AQ$51:$AQ$90,CB28,EMP!$BJ$51:$BJ$90) -> 1475
A29: 28 | B29: 2009-01-28 | C29: 3 | D29: Wednesday | E29: 1082 | F29: 1029 | G29: 1019 | H29: 1016 | I29: 1045 | J29: 1103 | K29: 1042 | L29: 1033 | M29: 1072 | N29: 1103 | O29: 1117 | P29: 1130 | Q29: 1131 | R29: 1118 | S29: 1131 | T29: 1133 | U29: 1147 | V29: 1118 | W29: 1272 | X29: 1302 | Y29: 1301 | Z29: 1270 | AA29: 1180 | AB29: 1119 | AC29: 27013 | AD29: 1190.901647 | AE29: s1 | AF29: d1 | AG29: s1d1 | BX29: 2 | BY29: 3 | BZ29: 27 | CA29: =OFFSET(EMP!$D$1,IF($CA$1,BX29,366-BX29),BY29) -> 1006 | CB29: =IF(BZ29=SUMIF(EMP!$AQ$51:$AQ$90,CB28,EMP!$BK$51:$BK$90),CB28+1,CB28) -> 1 | CC29: 1394.2 | CD29: =SUMIF(EMP!$AQ$51:$AQ$90,CB29,EMP!$BJ$51:$BJ$90) -> 1475
A30: 29 | B30: 2009-01-29 | C30: 4 | D30: Thursday | E30: 1073 | F30: 1060 | G30: 1081 | H30: 1062 | I30: 1058 | J30: 1122 | K30: 1034 | L30: 1009 | M30: 1077 | N30: 1085 | O30: 1092 | P30: 1081 | Q30: 1077 | R30: 1090 | S30: 1052 | T30: 1054 | U30: 1034 | V30: 1081 | W30: 1249 | X30: 1288 | Y30: 1301 | Z30: 1272 | AA30: 1178 | AB30: 1110 | AC30: 26620 | AD30: 1196.711482 | AE30: s1 | AF30: d1 | AG30: s1d1 | AP30: select day | AQ30: 5 | AR30: =VLOOKUP(AQ30,$AP$22:$AR$27,3,FALSE) -> s3d1 | AS30: avg pwr | AT30: =SUMIF($AR$13:$AR$18,$AR30,AT$13:AT$18)/SUMIF($AR$13:$AR$18,$AR30,$AK$13:$AK$18)/8.76*24 -> 1084.508547 | AU30: 1063.918803 | AV30: 1049.132479 | AW30: 1045.812821 | AX30: 1071.911111 | AY30: 1085.846154 | AZ30: 1024.904274 | BA30: 1049.305983 | BB30: 1084.346154 | BC30: 1093.836752 | BD30: 1095.046154 | BE30: 1093.837607 | BF30: 1092.844444 | BG30: 1098.931624 | BH30: 1110.558974 | BI30: 1116.802564 | BJ30: 1108.735897 | BK30: 1180.376923 | BL30: 1310.91453 | BM30: 1322.482906 | BN30: 1306.586325 | BO30: 1265.3 | BP30: 1188.354701 | BQ30: 1123 | BX30: 2 | BY30: 4 | BZ30: 28 | CA30: =OFFSET(EMP!$D$1,IF($CA$1,BX30,366-BX30),BY30) -> 998 | CB30: =IF(BZ30=SUMIF(EMP!$AQ$51:$AQ$90,CB29,EMP!$BK$51:$BK$90),CB29+1,CB29) -> 1 | CC30: 1393.8 | CD30: =SUMIF(EMP!$AQ$51:$AQ$90,CB30,EMP!$BJ$51:$BJ$90) -> 1475
A31: 30 | B31: 2009-01-30 | C31: 5 | D31: Friday | E31: 1063 | F31: 1058 | G31: 1048 | H31: 1016 | I31: 1051 | J31: 1103 | K31: 1030 | L31: 1028 | M31: 1062 | N31: 1118 | O31: 1080 | P31: 1055 | Q31: 1047 | R31: 1077 | S31: 1090 | T31: 1098 | U31: 1092 | V31: 1084 | W31: 1260 | X31: 1242 | Y31: 1205 | Z31: 1182 | AA31: 1097 | AB31: 1030 | AC31: 26216 | AD31: 1203.040334 | AE31: s1 | AF31: d1 | AG31: s1d1 | AR31: =VLOOKUP(AR30,AR13:AS18,2,FALSE) -> Season3 weekday | AS31: day with peak | AT31: =OFFSET($E$1,$AP$5,AT$12) -> 1196 | AU31: =OFFSET($E$1,$AP$5,AU$12) -> 1184 | AV31: 1164 | AW31: 1161 | AX31: 1196 | AY31: 1244 | AZ31: 1142 | BA31: 1201 | BB31: 1224 | BC31: 1256 | BD31: 1257.1 | BE31: 1262.1 | BF31: 1242.9 | BG31: 1276.6 | BH31: 1242.3 | BI31: 1251.8 | BJ31: 1265.4 | BK31: 1303.6 | BL31: 1475 | BM31: 1474 | BN31: 1424 | BO31: 1411 | BP31: 1307 | BQ31: 1240 | BX31: 2 | BY31: 5 | BZ31: 29 | CA31: =OFFSET(EMP!$D$1,IF($CA$1,BX31,366-BX31),BY31) -> 1011 | CB31: =IF(BZ31=SUMIF(EMP!$AQ$51:$AQ$90,CB30,EMP!$BK$51:$BK$90),CB30+1,CB30) -> 1 | CC31: 1393.2 | CD31: =SUMIF(EMP!$AQ$51:$AQ$90,CB31,EMP!$BJ$51:$BJ$90) -> 1475
A32: 31 | B32: 2009-01-31 | C32: 6 | D32: Saturday | E32: 1032 | F32: 989 | G32: 995 | H32: 986 | I32: 969 | J32: 1009 | K32: 925 | L32: 939 | M32: 926 | N32: 875 | O32: 885 | P32: 898 | Q32: 943 | R32: 989 | S32: 998 | T32: 980 | U32: 880 | V32: 953 | W32: 1148 | X32: 1221 | Y32: 1195 | Z32: 1167 | AA32: 1118 | AB32: 1051 | AC32: 24071 | AD32: 1197.536301 | AE32: s1 | AF32: d1 | AG32: s1d1 | AS32: blck avg w/o corr | AT32: =SUMIF($AR$51:$AR$90,$AR30&"b"&SUMIF($AR$22:$AR$27,$AR30,AT$22:AT$27),$BB$51:$BB$90) -> 1074.875702 | AU32: 1074.875702 | AV32: 1074.875702 | AW32: 1074.875702 | AX32: 1074.875702 | AY32: 1074.875702 | AZ32: 1095.793946 | BA32: 1095.793946 | BB32: 1095.793946 | BC32: 1095.793946 | BD32: 1095.793946 | BE32: 1095.793946 | BF32: 1095.793946 | BG32: 1095.793946 | BH32: 1095.793946 | BI32: 1095.793946 | BJ32: 1095.793946 | BK32: 1095.793946 | BL32: 1267.788889 | BM32: 1322.482906 | BN32: 1267.788889 | BO32: 1267.788889 | BP32: 1267.788889 | BQ32: 1074.875702 | BX32: 2 | BY32: 6 | BZ32: 30 | CA32: =OFFSET(EMP!$D$1,IF($CA$1,BX32,366-BX32),BY32) -> 1022 | CB32: =IF(BZ32=SUMIF(EMP!$AQ$51:$AQ$90,CB31,EMP!$BK$51:$BK$90),CB31+1,CB31) -> 1 | CC32: 1391.3 | CD32: =SUMIF(EMP!$AQ$51:$AQ$90,CB32,EMP!$BJ$51:$BJ$90) -> 1475
A33: 32 | B33: 2009-02-01 | C33: 7 | D33: Sunday | E33: 912 | F33: 873 | G33: 861 | H33: 864 | I33: 982 | J33: 983 | K33: 921 | L33: 910 | M33: 917 | N33: 934 | O33: 938 | P33: 944 | Q33: 966 | R33: 977 | S33: 953 | T33: 956 | U33: 958 | V33: 969 | W33: 1220 | X33: 1223 | Y33: 1251 | Z33: 1201 | AA33: 1131 | AB33: 1072 | AC33: 23916 | AD33: 1199.782671 | AE33: s1 | AF33: d1 | AG33: s1d1 | AS33: blck avg w corr | AT33: =SUMIF($AR$51:$AR$90,$AR30&"b"&SUMIF($AR$22:$AR$27,$AR30,AT$22:AT$27),$BH$51:$BH$90) -> 1072.818616 | AU33: 1072.818616 | AV33: 1072.818616 | AW33: 1072.818616 | AX33: 1072.818616 | AY33: 1072.818616 | AZ33: 1093.696827 | BA33: 1093.696827 | BB33: 1093.696827 | BC33: 1093.696827 | BD33: 1093.696827 | BE33: 1093.696827 | BF33: 1093.696827 | BG33: 1093.696827 | BH33: 1093.696827 | BI33: 1093.696827 | BJ33: 1093.696827 | BK33: 1093.696827 | BL33: 1265.362607 | BM33: 1475 | BN33: 1265.362607 | BO33: 1265.362607 | BP33: 1265.362607 | BQ33: 1072.818616 | BX33: 2 | BY33: 7 | BZ33: 31 | CA33: =OFFSET(EMP!$D$1,IF($CA$1,BX33,366-BX33),BY33) -> 999 | CB33: =IF(BZ33=SUMIF(EMP!$AQ$51:$AQ$90,CB32,EMP!$BK$51:$BK$90),CB32+1,CB32) -> 1 | CC33: 1391 | CD33: =SUMIF(EMP!$AQ$51:$AQ$90,CB33,EMP!$BJ$51:$BJ$90) -> 1475
A34: 33 | B34: 2009-02-02 | C34: 1 | D34: Monday | E34: 1032 | F34: 989 | G34: 995 | H34: 986 | I34: 969 | J34: 1009 | K34: 925 | L34: 939 | M34: 926 | N34: 875 | O34: 885 | P34: 898 | Q34: 943 | R34: 989 | S34: 998 | T34: 980 | U34: 880 | V34: 953 | W34: 1148 | X34: 1221 | Y34: 1195 | Z34: 1167 | AA34: 1118 | AB34: 1051 | AC34: 24071 | AD34: 1194.604404 | AE34: s1 | AF34: d1 | AG34: s1d1 | BX34: 2 | BY34: 8 | BZ34: 32 | CA34: =OFFSET(EMP!$D$1,IF($CA$1,BX34,366-BX34),BY34) -> 1061 | CB34: =IF(BZ34=SUMIF(EMP!$AQ$51:$AQ$90,CB33,EMP!$BK$51:$BK$90),CB33+1,CB33) -> 1 | CC34: 1390 | CD34: =SUMIF(EMP!$AQ$51:$AQ$90,CB34,EMP!$BJ$51:$BJ$90) -> 1475
A35: 34 | B35: 2009-02-03 | C35: 2 | D35: Tuesday | E35: 1035 | F35: 1038 | G35: 1004 | H35: 999 | I35: 1029 | J35: 1077 | K35: 1018 | L35: 1030 | M35: 1078 | N35: 1063 | O35: 1081 | P35: 1072 | Q35: 1075 | R35: 1089 | S35: 1093 | T35: 1111 | U35: 1093 | V35: 1087 | W35: 1257 | X35: 1296 | Y35: 1277 | Z35: 1241 | AA35: 1166 | AB35: 1105 | AC35: 26414 | AD35: 1200.843963 | AE35: s1 | AF35: d1 | AG35: s1d1 | BX35: 2 | BY35: 9 | BZ35: 33 | CA35: =OFFSET(EMP!$D$1,IF($CA$1,BX35,366-BX35),BY35) -> 1093 | CB35: =IF(BZ35=SUMIF(EMP!$AQ$51:$AQ$90,CB34,EMP!$BK$51:$BK$90),CB34+1,CB34) -> 1 | CC35: 1390 | CD35: =SUMIF(EMP!$AQ$51:$AQ$90,CB35,EMP!$BJ$51:$BJ$90) -> 1475
A36: 35 | B36: 2009-02-04 | C36: 3 | D36: Wednesday | E36: 1111 | F36: 1097 | G36: 1004 | H36: 1032 | I36: 1046 | J36: 1100 | K36: 1012 | L36: 1038 | M36: 1065 | N36: 1097 | O36: 1121 | P36: 1114 | Q36: 1138 | R36: 1118 | S36: 1133 | T36: 1110 | U36: 1155 | V36: 1101 | W36: 1282 | X36: 1277 | Y36: 1272 | Z36: 1198 | AA36: 1156 | AB36: 1093 | AC36: 26870 | AD36: 1208.959567 | AE36: s1 | AF36: d1 | AG36: s1d1 | BX36: 2 | BY36: 10 | BZ36: 34 | CA36: =OFFSET(EMP!$D$1,IF($CA$1,BX36,366-BX36),BY36) -> 1136 | CB36: =IF(BZ36=SUMIF(EMP!$AQ$51:$AQ$90,CB35,EMP!$BK$51:$BK$90),CB35+1,CB35) -> 1 | CC36: 1389 | CD36: =SUMIF(EMP!$AQ$51:$AQ$90,CB36,EMP!$BJ$51:$BJ$90) -> 1475
A37: 36 | B37: 2009-02-05 | C37: 4 | D37: Thursday | E37: 1050 | F37: 1058 | G37: 1020 | H37: 1030 | I37: 1043 | J37: 1080 | K37: 994 | L37: 994 | M37: 1090 | N37: 1101 | O37: 1152 | P37: 1151.1 | Q37: 1128.9 | R37: 1139 | S37: 1129 | T37: 1137 | U37: 1099 | V37: 1080 | W37: 1254 | X37: 763 | Y37: 1009 | Z37: 1164 | AA37: 1150 | AB37: 1094 | AC37: 25910 | AD37: 1213.46361 | AE37: s1 | AF37: d1 | AG37: s1d1 | BX37: 2 | BY37: 11 | BZ37: 35 | CA37: =OFFSET(EMP!$D$1,IF($CA$1,BX37,366-BX37),BY37) -> 1155 | CB37: =IF(BZ37=SUMIF(EMP!$AQ$51:$AQ$90,CB36,EMP!$BK$51:$BK$90),CB36+1,CB36) -> 1 | CC37: 1389 | CD37: =SUMIF(EMP!$AQ$51:$AQ$90,CB37,EMP!$BJ$51:$BJ$90) -> 1475
A38: 37 | B38: 2009-02-06 | C38: 5 | D38: Friday | E38: 1071 | F38: 1033 | G38: 1045 | H38: 1050 | I38: 1045 | J38: 935 | K38: 838 | L38: 880 | M38: 925 | N38: 939 | O38: 962 | P38: 1016 | Q38: 1160 | R38: 1124 | S38: 1164 | T38: 1129 | U38: 1100 | V38: 1115 | W38: 1295 | X38: 1322 | Y38: 1312 | Z38: 1266 | AA38: 1210 | AB38: 1158 | AC38: 26094 | AD38: 1221.617249 | AE38: s1 | AF38: d1 | AG38: s1d1 | BX38: 2 | BY38: 12 | BZ38: 36 | CA38: =OFFSET(EMP!$D$1,IF($CA$1,BX38,366-BX38),BY38) -> 1157 | CB38: =IF(BZ38=SUMIF(EMP!$AQ$51:$AQ$90,CB37,EMP!$BK$51:$BK$90),CB37+1,CB37) -> 1 | CC38: 1388.4 | CD38: =SUMIF(EMP!$AQ$51:$AQ$90,CB38,EMP!$BJ$51:$BJ$90) -> 1475
A39: 38 | B39: 2009-02-07 | C39: 6 | D39: Saturday | E39: 1112 | F39: 1086 | G39: 1054 | H39: 1063 | I39: 1084 | J39: 1070 | K39: 995 | L39: 983 | M39: 989 | N39: 1066 | O39: 1087 | P39: 1091 | Q39: 1048 | R39: 1039 | S39: 1040 | T39: 919 | U39: 1023 | V39: 1050 | W39: 1261.3 | X39: 1276.3 | Y39: 1278.8 | Z39: 1260.9 | AA39: 1200.3 | AB39: 1145 | AC39: 26221.6 | AD39: 1225.585524 | AE39: s1 | AF39: d1 | AG39: s1d1 | BX39: 2 | BY39: 13 | BZ39: 37 | CA39: =OFFSET(EMP!$D$1,IF($CA$1,BX39,366-BX39),BY39) -> 1128 | CB39: =IF(BZ39=SUMIF(EMP!$AQ$51:$AQ$90,CB38,EMP!$BK$51:$BK$90),CB38+1,CB38) -> 1 | CC39: 1387 | CD39: =SUMIF(EMP!$AQ$51:$AQ$90,CB39,EMP!$BJ$51:$BJ$90) -> 1475
A40: 39 | B40: 2009-02-08 | C40: 7 | D40: Sunday | E40: 1087 | F40: 1066 | G40: 1066 | H40: 1039 | I40: 1040 | J40: 1040 | K40: 967 | L40: 977 | M40: 938 | N40: 898 | O40: 920 | P40: 930 | Q40: 941 | R40: 993 | S40: 991 | T40: 986 | U40: 990 | V40: 1015 | W40: 1236.2 | X40: 1257.1 | Y40: 1205 | Z40: 1161 | AA40: 1117 | AB40: 1062 | AC40: 24922.3 | AD40: 1226.646972 | AE40: s1 | AF40: d1 | AG40: s1d1 | BX40: 2 | BY40: 14 | BZ40: 38 | CA40: =OFFSET(EMP!$D$1,IF($CA$1,BX40,366-BX40),BY40) -> 1122 | CB40: =IF(BZ40=SUMIF(EMP!$AQ$51:$AQ$90,CB39,EMP!$BK$51:$BK$90),CB39+1,CB39) -> 1 | CC40: 1387 | CD40: =SUMIF(EMP!$AQ$51:$AQ$90,CB40,EMP!$BJ$51:$BJ$90) -> 1475
A41: 40 | B41: 2009-02-09 | C41: 1 | D41: Monday | E41: 1025 | F41: 979 | G41: 957 | H41: 934 | I41: 960 | J41: 1053 | K41: 989 | L41: 1009 | M41: 1070 | N41: 1094 | O41: 1118 | P41: 1142 | Q41: 1108 | R41: 1125 | S41: 1123 | T41: 1156.1 | U41: 1131 | V41: 1084.9 | W41: 1230.3 | X41: 1286.2 | Y41: 1267.7 | Z41: 1243.6 | AA41: 1191.6 | AB41: 1120 | AC41: 26397.4 | AD41: 1227.012275 | AE41: s1 | AF41: d1 | AG41: s1d1 | BX41: 2 | BY41: 15 | BZ41: 39 | CA41: =OFFSET(EMP!$D$1,IF($CA$1,BX41,366-BX41),BY41) -> 1146 | CB41: =IF(BZ41=SUMIF(EMP!$AQ$51:$AQ$90,CB40,EMP!$BK$51:$BK$90),CB40+1,CB40) -> 1 | CC41: 1387 | CD41: =SUMIF(EMP!$AQ$51:$AQ$90,CB41,EMP!$BJ$51:$BJ$90) -> 1475
A42: 41 | B42: 2009-02-10 | C42: 2 | D42: Tuesday | E42: 1091 | F42: 1077 | G42: 1066 | H42: 1070 | I42: 1076 | J42: 1125 | K42: 1045 | L42: 1044 | M42: 1110 | N42: 1119 | O42: 1133 | P42: 1160 | Q42: 1165 | R42: 1082 | S42: 1043 | T42: 1125 | U42: 1110 | V42: 1094.7 | W42: 1228.7 | X42: 1286.9 | Y42: 1291.7 | Z42: 1242 | AA42: 1221.1 | AB42: 1128 | AC42: 27134.1 | AD42: 1227.181047 | AE42: s1 | AF42: d1 | AG42: s1d1 | BX42: 2 | BY42: 16 | BZ42: 40 | CA42: =OFFSET(EMP!$D$1,IF($CA$1,BX42,366-BX42),BY42) -> 1137 | CB42: =IF(BZ42=SUMIF(EMP!$AQ$51:$AQ$90,CB41,EMP!$BK$51:$BK$90),CB41+1,CB41) -> 1 | CC42: 1386.9 | CD42: =SUMIF(EMP!$AQ$51:$AQ$90,CB42,EMP!$BJ$51:$BJ$90) -> 1475
A43: 42 | B43: 2009-02-11 | C43: 3 | D43: Wednesday | E43: 1080 | F43: 1060 | G43: 1053 | H43: 1045 | I43: 1073 | J43: 1119 | K43: 1028 | L43: 1048 | M43: 1112 | N43: 1115 | O43: 1091 | P43: 1149 | Q43: 1137 | R43: 1107 | S43: 1120 | T43: 1102 | U43: 1159 | V43: 1159.7 | W43: 1277.5 | X43: 1272.1 | Y43: 1250.8 | Z43: 1228.1 | AA43: 1166 | AB43: 1109 | AC43: 27061.2 | AD43: 1232.212942 | AE43: s1 | AF43: d1 | AG43: s1d1 | BX43: 2 | BY43: 17 | BZ43: 41 | CA43: =OFFSET(EMP!$D$1,IF($CA$1,BX43,366-BX43),BY43) -> 1146 | CB43: =IF(BZ43=SUMIF(EMP!$AQ$51:$AQ$90,CB42,EMP!$BK$51:$BK$90),CB42+1,CB42) -> 1 | CC43: 1386 | CD43: =SUMIF(EMP!$AQ$51:$AQ$90,CB43,EMP!$BJ$51:$BJ$90) -> 1475
A44: 43 | B44: 2009-02-12 | C44: 4 | D44: Thursday | E44: 1098 | F44: 1043 | G44: 1033 | H44: 1040 | I44: 1079 | J44: 1118 | K44: 1033 | L44: 1044 | M44: 1102 | N44: 1137 | O44: 1151 | P44: 1148 | Q44: 1166 | R44: 1094 | S44: 1111 | T44: 1166 | U44: 1137 | V44: 1032.4 | W44: 1258.7 | X44: 1185.1 | Y44: 1300.4 | Z44: 1279.2 | AA44: 1216 | AB44: 1148 | AC44: 27119.8 | AD44: 1234.861648 | AE44: s1 | AF44: d1 | AG44: s1d1 | BX44: 2 | BY44: 18 | BZ44: 42 | CA44: =OFFSET(EMP!$D$1,IF($CA$1,BX44,366-BX44),BY44) -> 1200 | CB44: =IF(BZ44=SUMIF(EMP!$AQ$51:$AQ$90,CB43,EMP!$BK$51:$BK$90),CB43+1,CB43) -> 1 | CC44: 1385.2 | CD44: =SUMIF(EMP!$AQ$51:$AQ$90,CB44,EMP!$BJ$51:$BJ$90) -> 1475
A45: 44 | B45: 2009-02-13 | C45: 5 | D45: Friday | E45: 1088 | F45: 1099 | G45: 1070 | H45: 1072 | I45: 1073 | J45: 1133 | K45: 1046 | L45: 1075 | M45: 1133 | N45: 1140 | O45: 1143 | P45: 1173 | Q45: 1137 | R45: 1117 | S45: 1117 | T45: 1156 | U45: 1134 | V45: 1136 | W45: 1314 | X45: 1323 | Y45: 1324 | Z45: 1289 | AA45: 1218 | AB45: 1178 | AC45: 27688 | AD45: 1242.775483 | AE45: s1 | AF45: d1 | AG45: s1d1 | BX45: 2 | BY45: 19 | BZ45: 43 | CA45: =OFFSET(EMP!$D$1,IF($CA$1,BX45,366-BX45),BY45) -> 1287 | CB45: =IF(BZ45=SUMIF(EMP!$AQ$51:$AQ$90,CB44,EMP!$BK$51:$BK$90),CB44+1,CB44) -> 1 | CC45: 1385 | CD45: =SUMIF(EMP!$AQ$51:$AQ$90,CB45,EMP!$BJ$51:$BJ$90) -> 1475
A46: 45 | B46: 2009-02-14 | C46: 6 | D46: Saturday | E46: 1145 | F46: 1129 | G46: 1117 | H46: 1123 | I46: 1082 | J46: 1103 | K46: 1002 | L46: 1010 | M46: 1030 | N46: 1041 | O46: 1046 | P46: 1051 | Q46: 1070 | R46: 1057 | S46: 1062 | T46: 1060 | U46: 1036 | V46: 1060 | W46: 1217 | X46: 1167 | Y46: 1101 | Z46: 933 | AA46: 896 | AB46: 840 | AC46: 25378 | AD46: 1240.197935 | AE46: s1 | AF46: d1 | AG46: s1d1 | BX46: 2 | BY46: 20 | BZ46: 44 | CA46: =OFFSET(EMP!$D$1,IF($CA$1,BX46,366-BX46),BY46) -> 1304 | CB46: =IF(BZ46=SUMIF(EMP!$AQ$51:$AQ$90,CB45,EMP!$BK$51:$BK$90),CB45+1,CB45) -> 1 | CC46: 1383.4 | CD46: =SUMIF(EMP!$AQ$51:$AQ$90,CB46,EMP!$BJ$51:$BJ$90) -> 1475
A47: 46 | B47: 2009-02-15 | C47: 7 | D47: Sunday | E47: 868 | F47: 854 | G47: 843 | H47: 829 | I47: 825 | J47: 857 | K47: 779 | L47: 857 | M47: 866 | N47: 782 | O47: 781 | P47: 794 | Q47: 757 | R47: 869 | S47: 859 | T47: 885 | U47: 926 | V47: 976 | W47: 1154 | X47: 1179 | Y47: 1161 | Z47: 1145 | AA47: 1105 | AB47: 1004 | AC47: 21955 | AD47: 1231.578142 | AE47: s1 | AF47: d1 | AG47: s1d1 | BX47: 2 | BY47: 21 | BZ47: 45 | CA47: =OFFSET(EMP!$D$1,IF($CA$1,BX47,366-BX47),BY47) -> 1306 | CB47: =IF(BZ47=SUMIF(EMP!$AQ$51:$AQ$90,CB46,EMP!$BK$51:$BK$90),CB46+1,CB46) -> 1 | CC47: 1383 | CD47: =SUMIF(EMP!$AQ$51:$AQ$90,CB47,EMP!$BJ$51:$BJ$90) -> 1475
A48: 47 | B48: 2009-02-16 | C48: 1 | D48: Monday | E48: 995 | F48: 958 | G48: 954 | H48: 948 | I48: 968 | J48: 1041 | K48: 988 | L48: 1001 | M48: 1059 | N48: 1081 | O48: 1103 | P48: 1081 | Q48: 1073 | R48: 1098 | S48: 1072 | T48: 1074 | U48: 1067 | V48: 1057 | W48: 1234 | X48: 1224 | Y48: 1233 | Z48: 1180 | AA48: 1094 | AB48: 1049 | AC48: 25632 | AD48: 1231.820327 | AE48: s1 | AF48: d1 | AG48: s1d1 | BX48: 2 | BY48: 22 | BZ48: 46 | CA48: =OFFSET(EMP!$D$1,IF($CA$1,BX48,366-BX48),BY48) -> 1268 | CB48: =IF(BZ48=SUMIF(EMP!$AQ$51:$AQ$90,CB47,EMP!$BK$51:$BK$90),CB47+1,CB47) -> 1 | CC48: 1382.2 | CD48: =SUMIF(EMP!$AQ$51:$AQ$90,CB48,EMP!$BJ$51:$BJ$90) -> 1475
A49: 48 | B49: 2009-02-17 | C49: 2 | D49: Tuesday | E49: 1012 | F49: 988 | G49: 971 | H49: 974 | I49: 1011 | J49: 1069 | K49: 994 | L49: 997 | M49: 1075 | N49: 1100 | O49: 633 | P49: 812 | Q49: 925 | R49: 973 | S49: 1060 | T49: 1036 | U49: 1046 | V49: 1032 | W49: 1177 | X49: 1217 | Y49: 1240 | Z49: 1226 | AA49: 1130 | AB49: 1066 | AC49: 24764 | AD49: 1226.338295 | AE49: s1 | AF49: d1 | AG49: s1d1 | AS49: week | AT49: season | AU49: day | AV49: block | AW49: Peak | AX49: Duration | AY49: Duration (%) | AZ49: Duration (N) | BA49: Energy | BB49: Avg Pwr | BC49: Engy sh w p | BD49: Engy err | BE49: Engy w Cor | BF49: share w corr | BG49: share (N) | BH49: Pwr w Cor | BI49: Rank | BJ49: Ordered Pwr | BK49: Cum duration | BX49: 2 | BY49: 23 | BZ49: 47 | CA49: =OFFSET(EMP!$D$1,IF($CA$1,BX49,366-BX49),BY49) -> 1225 | CB49: =IF(BZ49=SUMIF(EMP!$AQ$51:$AQ$90,CB48,EMP!$BK$51:$BK$90),CB48+1,CB48) -> 1 | CC49: 1382 | CD49: =SUMIF(EMP!$AQ$51:$AQ$90,CB49,EMP!$BJ$51:$BJ$90) -> 1475
A50: 49 | B50: 2009-02-18 | C50: 3 | D50: Wednesday | E50: 1048 | F50: 1030 | G50: 1017 | H50: 1028 | I50: 1025 | J50: 1084 | K50: 976 | L50: 993 | M50: 1024 | N50: 1064 | O50: 1053 | P50: 1027 | Q50: 1043 | R50: 1069 | S50: 1046 | T50: 1078 | U50: 1001 | V50: 1074 | W50: 1212 | X50: 1278 | Y50: 1262 | Z50: 1227 | AA50: 1178 | AB50: 1077 | AC50: 25914 | AD50: 1224.904465 | AE50: s1 | AF50: d1 | AG50: s1d1 | AX50: hrs | AY50: % | BA50: GWh | BB50: MW | BC50: % | BE50: GWh | BF50: % | BH50: MW | BJ50: MW | BX50: 2 | BY50: 24 | BZ50: 48 | CA50: =OFFSET(EMP!$D$1,IF($CA$1,BX50,366-BX50),BY50) -> 1156 | CB50: =IF(BZ50=SUMIF(EMP!$AQ$51:$AQ$90,CB49,EMP!$BK$51:$BK$90),CB49+1,CB49) -> 1 | CC50: 1382 | CD50: =SUMIF(EMP!$AQ$51:$AQ$90,CB50,EMP!$BJ$51:$BJ$90) -> 1475
A51: 50 | B51: 2009-02-19 | C51: 4 | D51: Thursday | E51: 1063 | F51: 1072 | G51: 1038 | H51: 1034 | I51: 1029 | J51: 1100 | K51: 1019 | L51: 1018 | M51: 1102 | N51: 1096 | O51: 1002 | P51: 1113 | Q51: 1077 | R51: 1058 | S51: 1087 | T51: 1084 | U51: 1073 | V51: 1087 | W51: 1282 | X51: 1286 | Y51: 1274 | Z51: 1260 | AA51: 1178 | AB51: 1120 | AC51: 26552 | AD51: 1230.614019 | AE51: s1 | AF51: d1 | AG51: s1d1 | AQ51: 1 | AR51: =IF(AQ51>$AQ$28,"","s"&AT51&"d"&AU51&"b"&AV51) -> s1d1b1 | AS51: =SUMIF($AR$22:$AR$27,LEFT(AR51,4),$AP$22:$AP$27) -> 1 | AT51: 1 | AU51: 1 | AV51: 1 | AX51: =IF(AQ51>$AQ$28,"",COUNTIF(OFFSET($AS$21,$AS51,1,1,24),AV51)) -> 7 | AY51: =IF(AQ51>$AQ$28,"",AX51/24*SUMIF($AR$13:$AR$18,LEFT($AR51,4),$AK$13:$AK$18)) -> 0.1006849315 | AZ51: =IF(AQ51>$AQ$28,"",AY51/SUMIF($AR$51:$AR$90,LEFT(AR51,4)&"*",$AY$51:$AY$90)) -> 0.2916666667 | BA51: =IF(AQ51>$AQ$28,"",SUMIF(OFFSET($AS$21,$AS51,1,1,24),$AV51,OFFSET($AS$12,$AS51,1,1,24))) -> 921.6063 | BB51: =IF(AQ51>$AQ$28,"",BA51/AY51/8.76) -> 1044.905102 | BC51: =IF(AQ51>$AQ$28,"",BA51/SUMIF($AW$51:$AW$90,"",$BA$51:$BA$90)) -> 0.09884057983 | BD51: =IF(AQ51>$AQ$28,"",IF(AW51,$AO$5*AY51*8.76-BA51,0)) -> 0 | BE51: =IF(AQ51>$AQ$28,"",IF(AW51,BD51+BA51,BA51-BC51*SUM($BD$51:$BD$90))) -> 919.8425393 | BF51: =IF(AQ51>$AQ$28,"",BE51/$AM$19) -> 0.09704106581 | BG51: =IF(AQ51>$AQ$28,"",BF51/SUMIF($AR$51:$AR$90,LEFT(AR51,4)&"*",$BF$51:$BF$90)) -> 0.2803814378 | BH51: =IF(AQ51>$AQ$28,"",BE51/AY51/8.76) -> 1042.905373 | BI51: =IF(AQ51>$AQ$28,"",RANK(BH51,$BH$51:$BH$90)) -> 8 | BJ51: =SUMIF($BI$51:$BI$90,AQ51,$BH$51:$BH$90) -> 1475 | BK51: =SUMIF($BI$51:$BI$90,AQ51,$AY$51:$AY$90)*8760 -> 117 | BX51: 3 | BY51: 1 | BZ51: 49 | CA51: =OFFSET(EMP!$D$1,IF($CA$1,BX51,366-BX51),BY51) -> 1134 | CB51: =IF(BZ51=SUMIF(EMP!$AQ$51:$AQ$90,CB50,EMP!$BK$51:$BK$90),CB50+1,CB50) -> 1 | CC51: 1381.6 | CD51: =SUMIF(EMP!$AQ$51:$AQ$90,CB51,EMP!$BJ$51:$BJ$90) -> 1475
A52: 51 | B52: 2009-02-20 | C52: 5 | D52: Friday | E52: 1067 | F52: 1067 | G52: 1062 | H52: 1061 | I52: 1072 | J52: 1102 | K52: 1027 | L52: 1058 | M52: 1103 | N52: 1112 | O52: 1110 | P52: 1105 | Q52: 1088 | R52: 1109 | S52: 1110 | T52: 1155 | U52: 1101 | V52: 1081 | W52: 1280.6 | X52: 1287 | Y52: 1280.2 | Z52: 1244.9 | AA52: 1160.7 | AB52: 1138 | AC52: 26981.4 | AD52: 1235.612617 | AE52: s1 | AF52: d1 | AG52: s1d1 | AQ52: =AQ51+1 -> 2 | AR52: s1d1b2 | AS52: 1 | AT52: =IF(AQ52>$AQ$28,"",IF(AU52+AV52=2,AT51+1,AT51)) -> 1 | AU52: =IF(AQ52>$AQ$28,"",IF(AND(AU51=2,AV52=1),1,IF(AV52=1,AU51+1,AU51))) -> 1 | AV52: =IF(AQ52>$AQ$28,"",IF(SUMIF($AR$22:$AR$27,"s"&AT51&"d"&AU51,$AQ$22:$AQ$27)=AV51,1,AV51+1)) -> 2 | AX52: =IF(AQ52>$AQ$28,"",COUNTIF(OFFSET($AS$21,$AS52,1,1,24),AV52)) -> 12 | AY52: 0.1726027397 | AZ52: =IF(AQ52>$AQ$28,"",AY52/SUMIF($AR$51:$AR$90,LEFT(AR52,4)&"*",$AY$51:$AY$90)) -> 0.5 | BA52: 1596.4573 | BB52: 1055.858003 | BC52: 0.1712171078 | BD52: 0 | BE52: 1593.402016 | BF52: 0.1680998903 | BG52: =IF(AQ52>$AQ$28,"",BF52/SUMIF($AR$51:$AR$90,LEFT(AR52,4)&"*",$BF$51:$BF$90)) -> 0.485692202 | BH52: 1053.837312 | BI52: 7 | BJ52: 1265.362607 | BK52: =SUMIF($BI$51:$BI$90,AQ52,$AY$51:$AY$90)*8760+BK51 -> 585 | BX52: 3 | BY52: 2 | BZ52: 50 | CA52: =OFFSET(EMP!$D$1,IF($CA$1,BX52,366-BX52),BY52) -> 1099 | CB52: =IF(BZ52=SUMIF(EMP!$AQ$51:$AQ$90,CB51,EMP!$BK$51:$BK$90),CB51+1,CB51) -> 1 | CC52: 1380 | CD52: =SUMIF(EMP!$AQ$51:$AQ$90,CB52,EMP!$BJ$51:$BJ$90) -> 1475
A53: 52 | B53: 2009-02-21 | C53: 6 | D53: Saturday | E53: 1093 | F53: 1100 | G53: 1057 | H53: 1031 | I53: 1066 | J53: 1063 | K53: 985 | L53: 964 | M53: 975 | N53: 967 | O53: 985 | P53: 944 | Q53: 956 | R53: 969 | S53: 987 | T53: 1022 | U53: 1036 | V53: 1040.5 | W53: 1256.9 | X53: 1312.3 | Y53: 1292 | Z53: 1290.1 | AA53: 1226.1 | AB53: 1145 | AC53: 25762.9 | AD53: 1237.741355 | AE53: s1 | AF53: d1 | AG53: s1d1 | AQ53: =AQ52+1 -> 3 | AR53: s1d1b3 | AS53: 1 | AT53: 1 | AU53: 1 | AV53: 3 | AX53: 5 | AY53: 0.07191780822 | AZ53: 0.2083333333 | BA53: 768.9097 | BB53: 1220.491587 | BC53: 0.08246415045 | BD53: 0 | BE53: 767.4381685 | BF53: 0.08096278942 | BG53: 0.2339263602 | BH53: 1218.155823 | BI53: 3 | BJ53: 1218.155823 | BK53: 1215 | BX53: 3 | BY53: 3 | BZ53: 51 | CA53: =OFFSET(EMP!$D$1,IF($CA$1,BX53,366-BX53),BY53) -> 1094 | CB53: =IF(BZ53=SUMIF(EMP!$AQ$51:$AQ$90,CB52,EMP!$BK$51:$BK$90),CB52+1,CB52) -> 1 | CC53: 1379 | CD53: =SUMIF(EMP!$AQ$51:$AQ$90,CB53,EMP!$BJ$51:$BJ$90) -> 1475
A54: 53 | B54: 2009-02-22 | C54: 7 | D54: Sunday | E54: 1106 | F54: 1105 | G54: 1024 | H54: 1015 | I54: 1019 | J54: 1079 | K54: 958 | L54: 940 | M54: 900 | N54: 869 | O54: 909 | P54: 915 | Q54: 933 | R54: 967 | S54: 975 | T54: 971 | U54: 963 | V54: 983 | W54: 1170 | X54: 1256 | Y54: 1247 | Z54: 1229 | AA54: 1165 | AB54: 1087 | AC54: 24785 | AD54: 1230.96722 | AE54: s1 | AF54: d1 | AG54: s1d1 | AQ54: 4 | AR54: s2d1b1 | AS54: 3 | AT54: 2 | AU54: 1 | AV54: 1 | AX54: 7 | AY54: 0.09748858447 | AZ54: 0.2916666667 | BA54: 835.841 | BB54: 978.736534 | BC54: 0.08964240922 | BD54: 0 | BE54: 834.241376 | BF54: 0.08801035918 | BG54: 0.2763062424 | BH54: 976.863438 | BI54: 10 | BJ54: 1176.334263 | BK54: 1825 | BX54: 3 | BY54: 4 | BZ54: 52 | CA54: =OFFSET(EMP!$D$1,IF($CA$1,BX54,366-BX54),BY54) -> 1067 | CB54: =IF(BZ54=SUMIF(EMP!$AQ$51:$AQ$90,CB53,EMP!$BK$51:$BK$90),CB53+1,CB53) -> 1 | CC54: 1379 | CD54: =SUMIF(EMP!$AQ$51:$AQ$90,CB54,EMP!$BJ$51:$BJ$90) -> 1475
A55: 54 | B55: 2009-02-23 | C55: 1 | D55: Monday | E55: 1069 | F55: 1045 | G55: 1034 | H55: 1008 | I55: 1039 | J55: 1100 | K55: 1015 | L55: 1049 | M55: 1093 | N55: 1141 | O55: 1151 | P55: 1137 | Q55: 1108 | R55: 1148 | S55: 1169 | T55: 1185 | U55: 1173 | V55: 1118.9 | W55: 1248.3 | X55: 1281.6 | Y55: 1280.1 | Z55: 1247 | AA55: 1158 | AB55: 1140 | AC55: 27137.9 | AD55: 1232.700498 | AE55: s1 | AF55: d1 | AG55: s1d1 | AQ55: 5 | AR55: s2d1b2 | AS55: 3 | AT55: 2 | AU55: 1 | AV55: 2 | AX55: 12 | AY55: 0.1671232877 | AZ55: 0.5 | BA55: 1470.2721 | BB55: 1004.284221 | BC55: 0.1576839773 | BD55: 0 | BE55: 1467.458308 | BF55: 0.154813147 | BG55: 0.4860318641 | BH55: 1002.362232 | BI55: 9 | BJ55: 1093.696827 | BK55: 3229 | BX55: 3 | BY55: 5 | BZ55: 53 | CA55: =OFFSET(EMP!$D$1,IF($CA$1,BX55,366-BX55),BY55) -> 1073 | CB55: =IF(BZ55=SUMIF(EMP!$AQ$51:$AQ$90,CB54,EMP!$BK$51:$BK$90),CB54+1,CB54) -> 1 | CC55: 1378 | CD55: =SUMIF(EMP!$AQ$51:$AQ$90,CB55,EMP!$BJ$51:$BJ$90) -> 1475
A56: 55 | B56: 2009-02-24 | C56: 2 | D56: Tuesday | E56: 1117 | F56: 1109 | G56: 1079 | H56: 1073 | I56: 1084 | J56: 1131 | K56: 1072 | L56: 1089 | M56: 1163 | N56: 1170 | O56: 1187 | P56: 1126 | Q56: 1156 | R56: 1154 | S56: 1182 | T56: 1152 | U56: 1195 | V56: 1172 | W56: 1161 | X56: 1243.8 | Y56: 1239.3 | Z56: 1249 | AA56: 1186 | AB56: 1120 | AC56: 27610.1 | AD56: 1225.530448 | AE56: s1 | AF56: d1 | AG56: s1d1 | AQ56: 6 | AR56: s2d1b3 | AS56: 3 | AT56: 2 | AU56: 1 | AV56: 3 | AX56: 5 | AY56: 0.0696347032 | AZ56: 0.2083333333 | BA56: 718.9398 | BB56: 1178.589836 | BC56: 0.07710497063 | BD56: 0 | BE56: 717.5639004 | BF56: 0.07570118004 | BG56: 0.2376618934 | BH56: 1176.334263 | BI56: 4 | BJ56: 1072.818616 | BK56: 4048 | BX56: 3 | BY56: 6 | BZ56: 54 | CA56: =OFFSET(EMP!$D$1,IF($CA$1,BX56,366-BX56),BY56) -> 1078 | CB56: =IF(BZ56=SUMIF(EMP!$AQ$51:$AQ$90,CB55,EMP!$BK$51:$BK$90),CB55+1,CB55) -> 1 | CC56: 1377 | CD56: =SUMIF(EMP!$AQ$51:$AQ$90,CB56,EMP!$BJ$51:$BJ$90) -> 1475
A57: 56 | B57: 2009-02-25 | C57: 3 | D57: Wednesday | E57: 1113 | F57: 1109 | G57: 1099 | H57: 1093 | I57: 1088 | J57: 1155 | K57: 1074 | L57: 1095 | M57: 1177 | N57: 1186 | O57: 1164 | P57: 1178 | Q57: 1191 | R57: 1129 | S57: 1210 | T57: 1123 | U57: 1163 | V57: 1122.1 | W57: 1252.9 | X57: 1268.8 | Y57: 1295.8 | Z57: 1255.6 | AA57: 1190 | AB57: 1127 | AC57: 27859.2 | AD57: 1228.267403 | AE57: s1 | AF57: d1 | AG57: s1d1 | AQ57: 7 | AR57: s3d1b1 | AS57: 5 | AT57: 3 | AU57: 1 | AV57: 1 | AX57: 7 | AY57: 0.09349315068 | AZ57: 0.2916666667 | BA57: 880.3232 | BB57: 1074.875702 | BC57: 0.09441304332 | BD57: 0 | BE57: 878.6384464 | BF57: 0.09269413803 | BG57: 0.2763923564 | BH57: 1072.818616 | BI57: 6 | BJ57: 1053.837312 | BK57: 5560 | BX57: 3 | BY57: 7 | BZ57: 55 | CA57: =OFFSET(EMP!$D$1,IF($CA$1,BX57,366-BX57),BY57) -> 1001 | CB57: =IF(BZ57=SUMIF(EMP!$AQ$51:$AQ$90,CB56,EMP!$BK$51:$BK$90),CB56+1,CB56) -> 1 | CC57: 1376.9 | CD57: =SUMIF(EMP!$AQ$51:$AQ$90,CB57,EMP!$BJ$51:$BJ$90) -> 1475
A58: 57 | B58: 2009-02-26 | C58: 4 | D58: Thursday | E58: 1093 | F58: 1086 | G58: 1062 | H58: 1056 | I58: 1031 | J58: 1096 | K58: 1022 | L58: 1050 | M58: 1091 | N58: 1081 | O58: 1121 | P58: 1134 | Q58: 1106 | R58: 1158 | S58: 1148 | T58: 1153 | U58: 1106 | V58: 1110 | W58: 1275 | X58: 1331 | Y58: 1311 | Z58: 1300 | AA58: 1236 | AB58: 1181 | AC58: 27338 | AD58: 1232.940663 | AE58: s1 | AF58: d1 | AG58: s1d1 | AQ58: 8 | AR58: s3d1b2 | AS58: 5 | AT58: 3 | AU58: 1 | AV58: 2 | AX58: 12 | AY58: 0.1602739726 | AZ58: 0.5 | BA58: 1538.4947 | BB58: 1095.793946 | BC58: 0.1650007256 | BD58: 0 | BE58: 1535.550345 | BF58: 0.1619966849 | BG58: 0.4830364297 | BH58: 1093.696827 | BI58: 5 | BJ58: 1042.905373 | BK58: 6442 | BX58: 3 | BY58: 8 | BZ58: 56 | CA58: =OFFSET(EMP!$D$1,IF($CA$1,BX58,366-BX58),BY58) -> 982 | CB58: =IF(BZ58=SUMIF(EMP!$AQ$51:$AQ$90,CB57,EMP!$BK$51:$BK$90),CB57+1,CB57) -> 1 | CC58: 1376.7 | CD58: =SUMIF(EMP!$AQ$51:$AQ$90,CB58,EMP!$BJ$51:$BJ$90) -> 1475
A59: 58 | B59: 2009-02-27 | C59: 5 | D59: Friday | E59: 1045 | F59: 1071 | G59: 1062 | H59: 1064 | I59: 1078 | J59: 1098 | K59: 1041 | L59: 1077 | M59: 1128 | N59: 1143 | O59: 1136 | P59: 1146 | Q59: 1127 | R59: 1182 | S59: 1150 | T59: 1067 | U59: 1107 | V59: 1065 | W59: 1280 | X59: 1307 | Y59: 1301 | Z59: 1258 | AA59: 1226 | AB59: 1152 | AC59: 27311 | AD59: 1237.646597 | AE59: s1 | AF59: d1 | AG59: s1d1 | AQ59: 9 | AR59: s3d1b3 | AS59: 5 | AT59: 3 | AU59: 1 | AV59: 3 | AX59: 4 | AY59: 0.05342465753 | AZ59: 0.1666666667 | BA59: 593.3252 | BB59: 1267.788889 | BC59: 0.06363303592 | BD59: 0 | BE59: 592.1897003 | BF59: 0.06247451843 | BG59: 0.1862844807 | BH59: 1265.362607 | BI59: 2 | BJ59: 1002.362232 | BK59: 7906 | BX59: 3 | BY59: 9 | BZ59: 57 | CA59: =OFFSET(EMP!$D$1,IF($CA$1,BX59,366-BX59),BY59) -> 988 | CB59: =IF(BZ59=SUMIF(EMP!$AQ$51:$AQ$90,CB58,EMP!$BK$51:$BK$90),CB58+1,CB58) -> 1 | CC59: 1376.2 | CD59: =SUMIF(EMP!$AQ$51:$AQ$90,CB59,EMP!$BJ$51:$BJ$90) -> 1475
A60: 59 | B60: 2009-02-28 | C60: 6 | D60: Saturday | E60: 1099 | F60: 1051 | G60: 1057 | H60: 1061 | I60: 1040 | J60: 1049 | K60: 989 | L60: 994 | M60: 1018 | N60: 990 | O60: 980 | P60: 1002 | Q60: 1007 | R60: 1003 | S60: 1005 | T60: 1021 | U60: 1029 | V60: 1037 | W60: 1244 | X60: 1260 | Y60: 1255 | Z60: 1232 | AA60: 1180 | AB60: 1128 | AC60: 25731 | AD60: 1238.281937 | AE60: s1 | AF60: d1 | AG60: s1d1 | AQ60: 10 | AR60: s3d1b4 | AS60: 5 | AT60: 3 | AU60: 1 | AV60: 4 | AW60: 1 | AX60: 1 | AY60: 0.01335616438 | AZ60: 0.04166666667 | BA60: 154.7305 | BB60: 1322.482906 | BC60: 0.01659456141 | BD60: 17.8445 | BE60: 172.575 | BF60: 0.01820622685 | BG60: 0.05428673319 | BH60: 1475 | BI60: 1 | BJ60: 976.863438 | BK60: 8760 | BX60: 3 | BY60: 10 | BZ60: 58 | CA60: =OFFSET(EMP!$D$1,IF($CA$1,BX60,366-BX60),BY60) -> 1033 | CB60: =IF(BZ60=SUMIF(EMP!$AQ$51:$AQ$90,CB59,EMP!$BK$51:$BK$90),CB59+1,CB59) -> 1 | CC60: 1376.2 | CD60: =SUMIF(EMP!$AQ$51:$AQ$90,CB60,EMP!$BJ$51:$BJ$90) -> 1475
A61: 60 | B61: 2009-03-01 | C61: 7 | D61: Sunday | E61: 1050 | F61: 1046 | G61: 1011 | H61: 1017 | I61: 1033 | J61: 1075 | K61: 1030 | L61: 1065 | M61: 1120 | N61: 1167 | O61: 925 | P61: 911 | Q61: 1001 | R61: 1022 | S61: 1090 | T61: 1191 | U61: 1097 | V61: 1086 | W61: 1244 | X61: 1279 | Y61: 1180 | Z61: 1247 | AA61: 1167 | AB61: 1123 | AC61: 26177 | AD61: 1238.853743 | AE61: s1 | AF61: d1 | AG61: s1d1 | AQ61: 11 | AS61: 0 | BJ61: 0 | BK61: 8760 | BX61: 3 | BY61: 11 | BZ61: 59 | CA61: =OFFSET(EMP!$D$1,IF($CA$1,BX61,366-BX61),BY61) -> 972 | CB61: =IF(BZ61=SUMIF(EMP!$AQ$51:$AQ$90,CB60,EMP!$BK$51:$BK$90),CB60+1,CB60) -> 1 | CC61: 1376 | CD61: =SUMIF(EMP!$AQ$51:$AQ$90,CB61,EMP!$BJ$51:$BJ$90) -> 1475
A62: 61 | B62: 2009-03-02 | C62: 1 | D62: Monday | E62: 1050 | F62: 1046 | G62: 1011 | H62: 1017 | I62: 1033 | J62: 1075 | K62: 1030 | L62: 1065 | M62: 1120 | N62: 1167 | O62: 925 | P62: 911 | Q62: 1001 | R62: 1022 | S62: 1090 | T62: 1191 | U62: 1097 | V62: 1086 | W62: 1244 | X62: 1279 | Y62: 1180 | Z62: 1247 | AA62: 1167 | AB62: 1123 | AC62: 26177 | AD62: 1239.368369 | AE62: s1 | AF62: d1 | AG62: s1d1 | AQ62: 12 | AS62: 0 | BJ62: 0 | BK62: 8760 | BX62: 3 | BY62: 12 | BZ62: 60 | CA62: =OFFSET(EMP!$D$1,IF($CA$1,BX62,366-BX62),BY62) -> 999 | CB62: =IF(BZ62=SUMIF(EMP!$AQ$51:$AQ$90,CB61,EMP!$BK$51:$BK$90),CB61+1,CB61) -> 1 | CC62: 1375.6 | CD62: =SUMIF(EMP!$AQ$51:$AQ$90,CB62,EMP!$BJ$51:$BJ$90) -> 1475
A63: 62 | B63: 2009-03-03 | C63: 2 | D63: Tuesday | E63: 1089 | F63: 1058 | G63: 1042 | H63: 1036 | I63: 1049 | J63: 1116 | K63: 1025 | L63: 1050 | M63: 1093 | N63: 1140 | O63: 1166 | P63: 1125 | Q63: 1081 | R63: 1134 | S63: 1153 | T63: 1161 | U63: 1172 | V63: 1139 | W63: 1318 | X63: 1277 | Y63: 1307 | Z63: 1292 | AA63: 1241 | AB63: 1155 | AC63: 27419 | AD63: 1247.231532 | AE63: s1 | AF63: d1 | AG63: s1d1 | AQ63: 13 | AS63: 0 | BJ63: 0 | BK63: 8760 | BX63: 3 | BY63: 13 | BZ63: 61 | CA63: =OFFSET(EMP!$D$1,IF($CA$1,BX63,366-BX63),BY63) -> 996 | CB63: =IF(BZ63=SUMIF(EMP!$AQ$51:$AQ$90,CB62,EMP!$BK$51:$BK$90),CB62+1,CB62) -> 1 | CC63: 1375.3 | CD63: =SUMIF(EMP!$AQ$51:$AQ$90,CB63,EMP!$BJ$51:$BJ$90) -> 1475
A64: 63 | B64: 2009-03-04 | C64: 3 | D64: Wednesday | E64: 1108 | F64: 1095 | G64: 1074 | H64: 1052 | I64: 1084 | J64: 1115 | K64: 1019 | L64: 1046 | M64: 1089 | N64: 1137 | O64: 1133.6 | P64: 1081 | Q64: 1094 | R64: 1095 | S64: 1118 | T64: 1166 | U64: 1164 | V64: 1148 | W64: 1230 | X64: 1302 | Y64: 1281 | Z64: 1266 | AA64: 1201 | AB64: 1107 | AC64: 27205.6 | AD64: 1245.508379 | AE64: s1 | AF64: d1 | AG64: s1d1 | AQ64: 14 | AS64: 0 | BJ64: 0 | BK64: 8760 | BX64: 3 | BY64: 14 | BZ64: 62 | CA64: =OFFSET(EMP!$D$1,IF($CA$1,BX64,366-BX64),BY64) -> 999 | CB64: =IF(BZ64=SUMIF(EMP!$AQ$51:$AQ$90,CB63,EMP!$BK$51:$BK$90),CB63+1,CB63) -> 1 | CC64: 1374.9 | CD64: =SUMIF(EMP!$AQ$51:$AQ$90,CB64,EMP!$BJ$51:$BJ$90) -> 1475
A65: 64 | B65: 2009-03-05 | C65: 4 | D65: Thursday | E65: 1072 | F65: 1062 | G65: 1048 | H65: 1030 | I65: 1053 | J65: 1084 | K65: 1041 | L65: 1032 | M65: 1075 | N65: 1105 | O65: 1108 | P65: 1113 | Q65: 1123 | R65: 1120.8 | S65: 1118 | T65: 1108 | U65: 1095 | V65: 1091 | W65: 1266 | X65: 1289 | Y65: 1280 | Z65: 1258 | AA65: 1221 | AB65: 1142 | AC65: 26934.8 | AD65: 1247.557541 | AE65: s1 | AF65: d1 | AG65: s1d1 | AQ65: 15 | AS65: 0 | BJ65: 0 | BK65: 8760 | BX65: 3 | BY65: 15 | BZ65: 63 | CA65: =OFFSET(EMP!$D$1,IF($CA$1,BX65,366-BX65),BY65) -> 1000 | CB65: =IF(BZ65=SUMIF(EMP!$AQ$51:$AQ$90,CB64,EMP!$BK$51:$BK$90),CB64+1,CB64) -> 1 | CC65: 1374.3 | CD65: =SUMIF(EMP!$AQ$51:$AQ$90,CB65,EMP!$BJ$51:$BJ$90) -> 1475
A66: 65 | B66: 2009-03-06 | C66: 5 | D66: =VLOOKUP(C66,weekdays,2,FALSE) -> Friday | E66: 1068 | F66: 1041 | G66: 1037 | H66: 1015 | I66: 1033 | J66: 1059 | K66: 952 | L66: 954 | M66: 988 | N66: 1006 | O66: 1031 | P66: 1023 | Q66: 999 | R66: 1020 | S66: 1022 | T66: 983 | U66: 999 | V66: 1074 | W66: 1198 | X66: 1252 | Y66: 1207 | Z66: 1202 | AA66: 1150 | AB66: 1109 | AC66: =SUM(E66:AB66) -> 25422 | AD66: 1242.601787 | AE66: s1 | AF66: d1 | AG66: s1d1 | AQ66: 16 | AS66: 0 | BJ66: 0 | BK66: 8760 | BX66: 3 | BY66: 16 | BZ66: 64 | CA66: =OFFSET(EMP!$D$1,IF($CA$1,BX66,366-BX66),BY66) -> 993 | CB66: =IF(BZ66=SUMIF(EMP!$AQ$51:$AQ$90,CB65,EMP!$BK$51:$BK$90),CB65+1,CB65) -> 1 | CC66: 1373.9 | CD66: =SUMIF(EMP!$AQ$51:$AQ$90,CB66,EMP!$BJ$51:$BJ$90) -> 1475
A67: 66 | B67: 2009-03-07 | C67: =WEEKDAY(B67,2) -> 6 | D67: Saturday | E67: 1066 | F67: 1066 | G67: 1048 | H67: 1020 | I67: 1027 | J67: 1043 | K67: 956 | L67: 937 | M67: 959 | N67: 957 | O67: 1002 | P67: 1013 | Q67: 1032 | R67: 1028 | S67: 1039 | T67: 1023 | U67: 1018 | V67: 1016 | W67: 1260 | X67: 1184 | Y67: 1183 | Z67: 1317 | AA67: 1267 | AB67: 1179 | AC67: 25640 | AD67: 1244.341608 | AE67: =IF(AND(A67>$AJ$6,A67<$AJ$7),"s2",IF(A67<=$AJ$6,"s1","s3")) -> s1 | AF67: d1 | AG67: =AE67&AF67 -> s1d1 | AQ67: 17 | AS67: 0 | BJ67: 0 | BK67: 8760 | BX67: =ROUNDDOWN((BZ67-1)/24,0)+1 -> 3 | BY67: 17 | BZ67: 65 | CA67: =OFFSET(EMP!$D$1,IF($CA$1,BX67,366-BX67),BY67) -> 885 | CB67: =IF(BZ67=SUMIF(EMP!$AQ$51:$AQ$90,CB66,EMP!$BK$51:$BK$90),CB66+1,CB66) -> 1 | CC67: 1372.8 | CD67: =SUMIF(EMP!$AQ$51:$AQ$90,CB67,EMP!$BJ$51:$BJ$90) -> 1475
A68: =A67+1 -> 67 | B68: 2009-03-08 | C68: 7 | D68: Sunday | E68: 1141 | F68: 1118 | G68: 1064 | H68: 1054 | I68: 1070 | J68: 1065 | K68: 1009 | L68: 988 | M68: 887 | N68: 873 | O68: 930 | P68: 960 | Q68: 964 | R68: 991 | S68: 966 | T68: 978 | U68: 1056 | V68: 1074 | W68: 928 | X68: 1066 | Y68: 1069 | Z68: 993 | AA68: 960 | AB68: 907 | AC68: 24111 | AD68: 1212.707447 | AE68: s1 | AF68: d1 | AG68: s1d1 | AQ68: 18 | AS68: 0 | BJ68: 0 | BK68: 8760 | BX68: 3 | BY68: 18 | BZ68: =BZ67+1 -> 66 | CA68: =OFFSET(EMP!$D$1,IF($CA$1,BX68,366-BX68),BY68) -> 1033 | CB68: =IF(BZ68=SUMIF(EMP!$AQ$51:$AQ$90,CB67,EMP!$BK$51:$BK$90),CB67+1,CB67) -> 1 | CC68: 1371.9 | CD68: =SUMIF(EMP!$AQ$51:$AQ$90,CB68,EMP!$BJ$51:$BJ$90) -> 1475
A69: 68 | B69: 2009-03-09 | C69: 1 | D69: Monday | E69: 869 | F69: 839 | G69: 826 | H69: 818 | I69: 837 | J69: 881 | K69: 857 | L69: 887 | M69: 970 | N69: 1066 | O69: 1148 | P69: 1045 | Q69: 1092 | R69: 1122 | S69: 1129 | T69: 1127 | U69: 1100 | V69: 1105 | W69: 1277 | X69: 1303 | Y69: 1231 | Z69: 1267 | AA69: 1217 | AB69: 1168 | AC69: 25181 | AD69: 1219.136703 | AE69: s1 | AF69: d1 | AG69: s1d1 | AQ69: 19 | AS69: 0 | BJ69: 0 | BK69: 8760 | BX69: 3 | BY69: 19 | BZ69: 67 | CA69: =OFFSET(EMP!$D$1,IF($CA$1,BX69,366-BX69),BY69) -> 1131 | CB69: =IF(BZ69=SUMIF(EMP!$AQ$51:$AQ$90,CB68,EMP!$BK$51:$BK$90),CB68+1,CB68) -> 1 | CC69: 1371 | CD69: =SUMIF(EMP!$AQ$51:$AQ$90,CB69,EMP!$BJ$51:$BJ$90) -> 1475
A70: 69 | B70: 2009-03-10 | C70: 2 | D70: Tuesday | E70: 1119 | F70: 1083 | G70: 1066 | H70: 1055 | I70: 1082 | J70: 1114 | K70: 1049 | L70: 1076 | M70: 1144 | N70: 1141 | O70: 1164 | P70: 1176 | Q70: 1169 | R70: 1094 | S70: 1135 | T70: 1159 | U70: 1147 | V70: 1113 | W70: 1334 | X70: 1283 | Y70: 1250 | Z70: 1263 | AA70: 1194 | AB70: 1146 | AC70: 27556 | AD70: 1230.623032 | AE70: s1 | AF70: d1 | AG70: s1d1 | AQ70: 20 | AS70: 0 | BJ70: 0 | BK70: 8760 | BX70: 3 | BY70: 20 | BZ70: 68 | CA70: =OFFSET(EMP!$D$1,IF($CA$1,BX70,366-BX70),BY70) -> 1195 | CB70: =IF(BZ70=SUMIF(EMP!$AQ$51:$AQ$90,CB69,EMP!$BK$51:$BK$90),CB69+1,CB69) -> 1 | CC70: 1371 | CD70: =SUMIF(EMP!$AQ$51:$AQ$90,CB70,EMP!$BJ$51:$BJ$90) -> 1475
A71: 70 | B71: 2009-03-11 | C71: 3 | D71: Wednesday | E71: 1118 | F71: 1081 | G71: 1087 | H71: 1050 | I71: 1064 | J71: 1130 | K71: 1047 | L71: 1091 | M71: 1127 | N71: 1169 | O71: 1160 | P71: 1154 | Q71: 1149 | R71: 1130 | S71: 1124 | T71: 1055 | U71: 1088 | V71: 1052.5 | W71: 1231.5 | X71: 1245.5 | Y71: 1256 | Z71: 1216 | AA71: 1143 | AB71: 1098 | AC71: 27066.5 | AD71: 1230.710729 | AE71: s1 | AF71: d1 | AG71: s1d1 | AQ71: 21 | AS71: 0 | BJ71: 0 | BK71: 8760 | BX71: 3 | BY71: 21 | BZ71: 69 | CA71: =OFFSET(EMP!$D$1,IF($CA$1,BX71,366-BX71),BY71) -> 1212 | CB71: =IF(BZ71=SUMIF(EMP!$AQ$51:$AQ$90,CB70,EMP!$BK$51:$BK$90),CB70+1,CB70) -> 1 | CC71: 1370 | CD71: =SUMIF(EMP!$AQ$51:$AQ$90,CB71,EMP!$BJ$51:$BJ$90) -> 1475
A72: 71 | B72: 2009-03-12 | C72: 4 | D72: Thursday | E72: 1009 | F72: 1013 | G72: 1000 | H72: 1012 | I72: 1026 | J72: 1016 | K72: 1006 | L72: 1025 | M72: 1106 | N72: 1157 | O72: 1103 | P72: 1085 | Q72: 1140 | R72: 1142 | S72: 1154 | T72: 1159 | U72: 1153 | V72: 1117 | W72: 1272 | X72: 1295 | Y72: 1285 | Z72: 1220 | AA72: 1169 | AB72: 1131 | AC72: 26795 | AD72: 1234.839656 | AE72: s1 | AF72: d1 | AG72: s1d1 | AQ72: 22 | AS72: 0 | BJ72: 0 | BK72: 8760 | BX72: 3 | BY72: 22 | BZ72: 70 | CA72: =OFFSET(EMP!$D$1,IF($CA$1,BX72,366-BX72),BY72) -> 1163 | CB72: =IF(BZ72=SUMIF(EMP!$AQ$51:$AQ$90,CB71,EMP!$BK$51:$BK$90),CB71+1,CB71) -> 1 | CC72: 1370 | CD72: =SUMIF(EMP!$AQ$51:$AQ$90,CB72,EMP!$BJ$51:$BJ$90) -> 1475
A73: 72 | B73: 2009-03-13 | C73: 5 | D73: Friday | E73: 1084 | F73: 1060 | G73: 1052 | H73: 1027 | I73: 1048 | J73: 1092 | K73: 1031 | L73: 1054 | M73: 1101 | N73: 1154 | O73: 1123 | P73: 1148 | Q73: 1128 | R73: 1140 | S73: 1099 | T73: 1138 | U73: 1142 | V73: 1155 | W73: 1225 | X73: 1249 | Y73: 1237 | Z73: 1171 | AA73: 1128 | AB73: 1122 | AC73: 26908 | AD73: 1233.855691 | AE73: s1 | AF73: d1 | AG73: s1d1 | AQ73: 23 | AS73: 0 | BJ73: 0 | BK73: 8760 | BX73: 3 | BY73: 23 | BZ73: 71 | CA73: =OFFSET(EMP!$D$1,IF($CA$1,BX73,366-BX73),BY73) -> 1130 | CB73: =IF(BZ73=SUMIF(EMP!$AQ$51:$AQ$90,CB72,EMP!$BK$51:$BK$90),CB72+1,CB72) -> 1 | CC73: 1369 | CD73: =SUMIF(EMP!$AQ$51:$AQ$90,CB73,EMP!$BJ$51:$BJ$90) -> 1475
A74: 73 | B74: 2009-03-14 | C74: 6 | D74: Saturday | E74: 1081 | F74: 1050 | G74: 1036 | H74: 1035 | I74: 1046 | J74: 1033 | K74: 917 | L74: 958 | M74: 1000 | N74: 1008 | O74: 1032 | P74: 1038 | Q74: 1047 | R74: 1014 | S74: 1010 | T74: 1007 | U74: 992 | V74: 983 | W74: 1191 | X74: 1196 | Y74: 1221 | Z74: 1171 | AA74: 1149 | AB74: 1106 | AC74: 25321 | AD74: 1229.570122 | AE74: s1 | AF74: d1 | AG74: s1d1 | AQ74: 24 | AS74: 0 | BJ74: 0 | BK74: 8760 | BX74: 3 | BY74: 24 | BZ74: 72 | CA74: =OFFSET(EMP!$D$1,IF($CA$1,BX74,366-BX74),BY74) -> 1051 | CB74: =IF(BZ74=SUMIF(EMP!$AQ$51:$AQ$90,CB73,EMP!$BK$51:$BK$90),CB73+1,CB73) -> 1 | CC74: 1369 | CD74: =SUMIF(EMP!$AQ$51:$AQ$90,CB74,EMP!$BJ$51:$BJ$90) -> 1475
A75: 74 | B75: 2009-03-15 | C75: 7 | D75: Sunday | E75: 1068 | F75: 1030 | G75: 1028 | H75: 989 | I75: 1034 | J75: 1044 | K75: 970 | L75: 948 | M75: 921 | N75: 899 | O75: 856 | P75: 881 | Q75: 887 | R75: 945 | S75: 999 | T75: 998 | U75: 991 | V75: 1024 | W75: 1210 | X75: 1248 | Y75: 1241 | Z75: 1218 | AA75: 1102 | AB75: 1046 | AC75: 24577 | AD75: 1227.613109 | AE75: s1 | AF75: d1 | AG75: s1d1 | AQ75: 25 | AS75: 0 | BJ75: 0 | BK75: 8760 | BX75: 4 | BY75: 1 | BZ75: 73 | CA75: =OFFSET(EMP!$D$1,IF($CA$1,BX75,366-BX75),BY75) -> 1019 | CB75: =IF(BZ75=SUMIF(EMP!$AQ$51:$AQ$90,CB74,EMP!$BK$51:$BK$90),CB74+1,CB74) -> 1 | CC75: 1368.8 | CD75: =SUMIF(EMP!$AQ$51:$AQ$90,CB75,EMP!$BJ$51:$BJ$90) -> 1475
A76: 75 | B76: 2009-03-16 | C76: 1 | D76: Monday | E76: 1000 | F76: 997 | G76: 977 | H76: 970 | I76: 1016 | J76: 1052 | K76: 1011 | L76: 1048 | M76: 1096 | N76: 1141.5 | O76: 1146.2 | P76: 1131 | Q76: 1110 | R76: 1129 | S76: 1189 | T76: 1166 | U76: 1150 | V76: 1112 | W76: 1219 | X76: 1210 | Y76: 1276 | Z76: 1254 | AA76: 1213 | AB76: 1140 | AC76: 26753.7 | AD76: 1226.751798 | AE76: s1 | AF76: d1 | AG76: s1d1 | AQ76: =AQ75+1 -> 26 | AS76: 0 | BJ76: 0 | BK76: 8760 | BX76: 4 | BY76: 2 | BZ76: 74 | CA76: =OFFSET(EMP!$D$1,IF($CA$1,BX76,366-BX76),BY76) -> 1012 | CB76: =IF(BZ76=SUMIF(EMP!$AQ$51:$AQ$90,CB75,EMP!$BK$51:$BK$90),CB75+1,CB75) -> 1 | CC76: 1368.7 | CD76: =SUMIF(EMP!$AQ$51:$AQ$90,CB76,EMP!$BJ$51:$BJ$90) -> 1475
A77: 76 | B77: 2009-03-17 | C77: 2 | D77: Tuesday | E77: 1107 | F77: 1091 | G77: 1053 | H77: 1054 | I77: 1082 | J77: 1152 | K77: 1041 | L77: 1107 | M77: 1153 | N77: 1161 | O77: 1161 | P77: 1172 | Q77: 1165 | R77: 1181 | S77: 1178 | T77: 1187 | U77: 1173 | V77: 1112 | W77: 1293 | X77: 1318 | Y77: 1313 | Z77: 1266 | AA77: 1219 | AB77: 1160 | AC77: 27899 | AD77: =AD76*(1-$AH$1)+W77*$AH$1 -> 1233.376619 | AE77: s1 | AF77: d1 | AG77: s1d1 | AQ77: 27 | AS77: 0 | BJ77: 0 | BK77: 8760 | BX77: 4 | BY77: 3 | BZ77: 75 | CA77: =OFFSET(EMP!$D$1,IF($CA$1,BX77,366-BX77),BY77) -> 963 | CB77: =IF(BZ77=SUMIF(EMP!$AQ$51:$AQ$90,CB76,EMP!$BK$51:$BK$90),CB76+1,CB76) -> 1 | CC77: 1368 | CD77: =SUMIF(EMP!$AQ$51:$AQ$90,CB77,EMP!$BJ$51:$BJ$90) -> 1475
A78: 77 | B78: 2009-03-18 | C78: 3 | D78: Wednesday | E78: 1127 | F78: 1109 | G78: 1054 | H78: 1056 | I78: 1103 | J78: 1110 | K78: 1044 | L78: 1081 | M78: 1139 | N78: 1148 | O78: 1148 | P78: 1152 | Q78: 1119 | R78: 1135 | S78: 1126 | T78: 1129 | U78: 1131 | V78: 1108 | W78: 1278 | X78: 1297 | Y78: 1304 | Z78: 1271 | AA78: 1215 | AB78: 1148 | AC78: 27532 | AD78: 1237.838957 | AE78: s1 | AF78: d1 | AG78: s1d1 | AQ78: 28 | AS78: 0 | BJ78: 0 | BK78: 8760 | BX78: 4 | BY78: 4 | BZ78: 76 | CA78: =OFFSET(EMP!$D$1,IF($CA$1,BX78,366-BX78),BY78) -> 950 | CB78: =IF(BZ78=SUMIF(EMP!$AQ$51:$AQ$90,CB77,EMP!$BK$51:$BK$90),CB77+1,CB77) -> 1 | CC78: 1368 | CD78: =SUMIF(EMP!$AQ$51:$AQ$90,CB78,EMP!$BJ$51:$BJ$90) -> 1475
A79: 78 | B79: 2009-03-19 | C79: 4 | D79: Thursday | E79: 1082 | F79: 1067 | G79: 1071 | H79: 1047 | I79: 1078 | J79: 1112 | K79: 1048 | L79: 1079 | M79: 1135 | N79: 1155 | O79: 1173 | P79: 1197 | Q79: 1160 | R79: 1158 | S79: 1157 | T79: 1167 | U79: 1148 | V79: 1110 | W79: 1298 | X79: 1299 | Y79: 1299 | Z79: 1288 | AA79: 1201 | AB79: 1145 | AC79: 27674 | AD79: 1243.855061 | AE79: s1 | AF79: d1 | AG79: s1d1 | AQ79: 29 | AS79: 0 | BJ79: 0 | BK79: 8760 | BX79: 4 | BY79: 5 | BZ79: 77 | CA79: =OFFSET(EMP!$D$1,IF($CA$1,BX79,366-BX79),BY79) -> 953 | CB79: =IF(BZ79=SUMIF(EMP!$AQ$51:$AQ$90,CB78,EMP!$BK$51:$BK$90),CB78+1,CB78) -> 1 | CC79: 1368 | CD79: =SUMIF(EMP!$AQ$51:$AQ$90,CB79,EMP!$BJ$51:$BJ$90) -> 1475
A80: 79 | B80: 2009-03-20 | C80: 5 | D80: Friday | E80: 1125 | F80: 1072 | G80: 1049 | H80: 1035 | I80: 1064 | J80: 1093 | K80: 1023 | L80: 1050 | M80: 1108 | N80: 1151 | O80: 1150 | P80: 1170 | Q80: 1162 | R80: 1148 | S80: 1191 | T80: 1186 | U80: 1169 | V80: 1141 | W80: 1275 | X80: 1293 | Y80: 1286 | Z80: 1267 | AA80: 123 | AB80: 1175 | AC80: 26506 | AD80: 1246.969555 | AE80: s1 | AF80: d1 | AG80: s1d1 | AQ80: 30 | AS80: 0 | BJ80: 0 | BK80: 8760 | BX80: 4 | BY80: 6 | BZ80: 78 | CA80: =OFFSET(EMP!$D$1,IF($CA$1,BX80,366-BX80),BY80) -> 987 | CB80: =IF(BZ80=SUMIF(EMP!$AQ$51:$AQ$90,CB79,EMP!$BK$51:$BK$90),CB79+1,CB79) -> 1 | CC80: 1366.9 | CD80: =SUMIF(EMP!$AQ$51:$AQ$90,CB80,EMP!$BJ$51:$BJ$90) -> 1475
A81: 80 | B81: 2009-03-21 | C81: 6 | D81: Saturday | E81: 1141 | F81: 1116 | G81: 1087 | H81: 1082 | I81: 1068 | J81: 1032 | K81: 953 | L81: 992 | M81: 956 | N81: 963 | O81: 965 | P81: 960 | Q81: 971 | R81: 984 | S81: 982 | T81: 1012 | U81: 1051 | V81: 1082 | W81: 1271 | X81: 1306 | Y81: 1318 | Z81: 1285 | AA81: 1235 | AB81: 1177 | AC81: 25989 | AD81: 1249.372599 | AE81: s1 | AF81: d1 | AG81: s1d1 | AQ81: 31 | AS81: 0 | BJ81: 0 | BK81: 8760 | BX81: 4 | BY81: 7 | BZ81: 79 | CA81: =OFFSET(EMP!$D$1,IF($CA$1,BX81,366-BX81),BY81) -> 918 | CB81: =IF(BZ81=SUMIF(EMP!$AQ$51:$AQ$90,CB80,EMP!$BK$51:$BK$90),CB80+1,CB80) -> 1 | CC81: 1365.8 | CD81: =SUMIF(EMP!$AQ$51:$AQ$90,CB81,EMP!$BJ$51:$BJ$90) -> 1475
A82: 81 | B82: 2009-03-22 | C82: 7 | D82: Sunday | E82: 1125 | F82: 1123 | G82: 1109 | H82: 1070 | I82: 1069 | J82: 1077 | K82: 913 | L82: 970 | M82: 959 | N82: 930 | O82: 946 | P82: 972 | Q82: 987 | R82: 1016 | S82: 993 | T82: 1018 | U82: 1019 | V82: 1023 | W82: 1225 | X82: 1274 | Y82: 1281 | Z82: 1238 | AA82: 1199 | AB82: 1127 | AC82: 25663 | AD82: 1246.93534 | AE82: s1 | AF82: d1 | AG82: s1d1 | AQ82: =AQ81+1 -> 32 | AS82: 0 | BJ82: 0 | BK82: 8760 | BX82: 4 | BY82: 8 | BZ82: 80 | CA82: =OFFSET(EMP!$D$1,IF($CA$1,BX82,366-BX82),BY82) -> 924 | CB82: =IF(BZ82=SUMIF(EMP!$AQ$51:$AQ$90,CB81,EMP!$BK$51:$BK$90),CB81+1,CB81) -> 1 | CC82: 1365 | CD82: =SUMIF(EMP!$AQ$51:$AQ$90,CB82,EMP!$BJ$51:$BJ$90) -> 1475
A83: 82 | B83: 2009-03-23 | C83: 1 | D83: Monday | E83: 1095 | F83: 1067 | G83: 1033 | H83: 1037 | I83: 1076 | J83: 1101 | K83: 1047 | L83: 1069 | M83: 1166 | N83: 1193 | O83: 1190 | P83: 1199 | Q83: 1181 | R83: 1211 | S83: 1187 | T83: 1190 | U83: 1170 | V83: 1121 | W83: 1305 | X83: 1312 | Y83: 1300 | Z83: 1243 | AA83: 1216 | AB83: 1152 | AC83: 27861 | AD83: 1252.741806 | AE83: s1 | AF83: d1 | AG83: s1d1 | AQ83: 33 | AS83: 0 | BJ83: 0 | BK83: 8760 | BX83: 4 | BY83: 9 | BZ83: 81 | CA83: =OFFSET(EMP!$D$1,IF($CA$1,BX83,366-BX83),BY83) -> 924 | CB83: =IF(BZ83=SUMIF(EMP!$AQ$51:$AQ$90,CB82,EMP!$BK$51:$BK$90),CB82+1,CB82) -> 1 | CC83: 1364 | CD83: =SUMIF(EMP!$AQ$51:$AQ$90,CB83,EMP!$BJ$51:$BJ$90) -> 1475
A84: 83 | B84: 2009-03-24 | C84: 2 | D84: Tuesday | E84: 1136 | F84: 1100 | G84: 1068 | H84: 1078 | I84: 1084 | J84: 1106 | K84: 1061 | L84: 1097 | M84: 1164 | N84: 1168 | O84: 1189 | P84: 1157 | Q84: 1075 | R84: 1167 | S84: 1192 | T84: 1190 | U84: 1148 | V84: 1111 | W84: 1315 | X84: 1317 | Y84: 1306 | Z84: 1279 | AA84: 1224 | AB84: 1171 | AC84: 27903 | AD84: 1258.967625 | AE84: s1 | AF84: d1 | AG84: s1d1 | AQ84: 34 | AS84: 0 | BJ84: 0 | BK84: 8760 | BX84: 4 | BY84: 10 | BZ84: 82 | CA84: =OFFSET(EMP!$D$1,IF($CA$1,BX84,366-BX84),BY84) -> 889 | CB84: =IF(BZ84=SUMIF(EMP!$AQ$51:$AQ$90,CB83,EMP!$BK$51:$BK$90),CB83+1,CB83) -> 1 | CC84: 1364 | CD84: =SUMIF(EMP!$AQ$51:$AQ$90,CB84,EMP!$BJ$51:$BJ$90) -> 1475
A85: 84 | B85: 2009-03-25 | C85: 3 | D85: Wednesday | E85: 1120 | F85: 1096 | G85: 1096 | H85: 1143 | I85: 1040 | J85: 1117 | K85: 991 | L85: 1019 | M85: 1088 | N85: 1098 | O85: 1100 | P85: 1119 | Q85: 1134 | R85: 1152 | S85: 1171 | T85: 1107 | U85: 1120 | V85: 1146 | W85: 1271 | X85: 1291 | Y85: 1239 | Z85: 1204 | AA85: 1141 | AB85: 1095 | AC85: 27098 | AD85: 1260.170862 | AE85: s1 | AF85: d1 | AG85: s1d1 | AQ85: 35 | AS85: 0 | BJ85: 0 | BK85: 8760 | BX85: 4 | BY85: 11 | BZ85: 83 | CA85: =OFFSET(EMP!$D$1,IF($CA$1,BX85,366-BX85),BY85) -> 881 | CB85: =IF(BZ85=SUMIF(EMP!$AQ$51:$AQ$90,CB84,EMP!$BK$51:$BK$90),CB84+1,CB84) -> 1 | CC85: 1364 | CD85: =SUMIF(EMP!$AQ$51:$AQ$90,CB85,EMP!$BJ$51:$BJ$90) -> 1475
A86: 85 | B86: 2009-03-26 | C86: 4 | D86: Thursday | E86: 1071 | F86: 1038 | G86: 1032 | H86: 1037 | I86: 1062 | J86: 1102 | K86: 1046 | L86: 1051 | M86: 1115 | N86: 1140 | O86: 1142 | P86: 1144 | Q86: 1136 | R86: 1164 | S86: 1193 | T86: 1185 | U86: 1183 | V86: 1163 | W86: 1322 | X86: 1326 | Y86: 1309 | Z86: 1300 | AA86: 1217 | AB86: 1171 | AC86: 27649 | AD86: 1266.353776 | AE86: s1 | AF86: d1 | AG86: s1d1 | AQ86: 36 | AS86: 0 | BJ86: 0 | BK86: 8760 | BX86: 4 | BY86: 12 | BZ86: 84 | CA86: =OFFSET(EMP!$D$1,IF($CA$1,BX86,366-BX86),BY86) -> 878 | CB86: =IF(BZ86=SUMIF(EMP!$AQ$51:$AQ$90,CB85,EMP!$BK$51:$BK$90),CB85+1,CB85) -> 1 | CC86: 1363.7 | CD86: =SUMIF(EMP!$AQ$51:$AQ$90,CB86,EMP!$BJ$51:$BJ$90) -> 1475
A87: 86 | B87: 2009-03-27 | C87: 5 | D87: Friday | E87: 1143 | F87: 1092 | G87: 1082 | H87: 1068 | I87: 1079 | J87: 1109 | K87: 1059 | L87: 1100 | M87: 1163 | N87: 1215 | O87: 1199.9 | P87: 1192 | Q87: 1172 | R87: 1168 | S87: 1194 | T87: 1191 | U87: 1171 | V87: 1167 | W87: 1300 | X87: 1314 | Y87: 1293 | Z87: 1272 | AA87: 1227 | AB87: 1169 | AC87: 28139.9 | AD87: 1269.718399 | AE87: s1 | AF87: d1 | AG87: s1d1 | AQ87: 37 | AS87: 0 | BJ87: 0 | BK87: 8760 | BX87: 4 | BY87: 13 | BZ87: 85 | CA87: =OFFSET(EMP!$D$1,IF($CA$1,BX87,366-BX87),BY87) -> 900 | CB87: =IF(BZ87=SUMIF(EMP!$AQ$51:$AQ$90,CB86,EMP!$BK$51:$BK$90),CB86+1,CB86) -> 1 | CC87: 1363.4 | CD87: =SUMIF(EMP!$AQ$51:$AQ$90,CB87,EMP!$BJ$51:$BJ$90) -> 1475
A88: 87 | B88: 2009-03-28 | C88: 6 | D88: Saturday | E88: 1103 | F88: 1134 | G88: 1114 | H88: 1095 | I88: 1096 | J88: 1096 | K88: 975 | L88: 991 | M88: 997 | N88: 970 | O88: 1042 | P88: 1058 | Q88: 937 | R88: 981 | S88: 1043 | T88: 1074 | U88: 1027 | V88: 1095 | W88: 1281 | X88: 1304 | Y88: 1314 | Z88: 1277 | AA88: 1136 | AB88: 1065 | AC88: 26205 | AD88: 1270.846559 | AE88: s1 | AF88: d1 | AG88: s1d1 | AQ88: 38 | AS88: 0 | BJ88: 0 | BK88: 8760 | BX88: 4 | BY88: 14 | BZ88: 86 | CA88: =OFFSET(EMP!$D$1,IF($CA$1,BX88,366-BX88),BY88) -> 922 | CB88: =IF(BZ88=SUMIF(EMP!$AQ$51:$AQ$90,CB87,EMP!$BK$51:$BK$90),CB87+1,CB87) -> 1 | CC88: 1363.1 | CD88: =SUMIF(EMP!$AQ$51:$AQ$90,CB88,EMP!$BJ$51:$BJ$90) -> 1475
A89: 88 | B89: 2009-03-29 | C89: 7 | D89: Sunday | E89: 1078 | F89: 1059 | G89: 1022 | H89: 1025 | I89: 1013 | J89: 1015 | K89: 924 | L89: 942 | M89: 925 | N89: 906 | O89: 887 | P89: 913 | Q89: 954 | R89: 970 | S89: 977 | T89: 983 | U89: 1002 | V89: 1020 | W89: 1224 | X89: 1236 | Y89: 1201 | Z89: 1190 | AA89: 1131 | AB89: 1051 | AC89: 24648 | AD89: 1266.161903 | AE89: s1 | AF89: d1 | AG89: s1d1 | AQ89: 39 | AS89: 0 | BJ89: 0 | BK89: 8760 | BX89: 4 | BY89: 15 | BZ89: 87 | CA89: =OFFSET(EMP!$D$1,IF($CA$1,BX89,366-BX89),BY89) -> 946 | CB89: =IF(BZ89=SUMIF(EMP!$AQ$51:$AQ$90,CB88,EMP!$BK$51:$BK$90),CB88+1,CB88) -> 1 | CC89: 1363 | CD89: =SUMIF(EMP!$AQ$51:$AQ$90,CB89,EMP!$BJ$51:$BJ$90) -> 1475
A90: 89 | B90: 2009-03-30 | C90: 1 | D90: Monday | E90: 1041 | F90: 1010 | G90: 1006 | H90: 1015 | I90: 1015 | J90: 1085 | K90: 1013 | L90: 1044 | M90: 1117 | N90: 1146 | O90: 1160 | P90: 1177 | Q90: 1120 | R90: 1153 | S90: 1173 | T90: 1179 | U90: 1159 | V90: 1137 | W90: 1274 | X90: 1265 | Y90: 1287 | Z90: 1244 | AA90: 1214 | AB90: 1156 | AC90: 27190 | AD90: 1266.945713 | AE90: s1 | AF90: d1 | AG90: s1d1 | AQ90: =AQ89+1 -> 40 | AS90: 0 | BJ90: 0 | BK90: 8760 | BX90: 4 | BY90: 16 | BZ90: 88 | CA90: =OFFSET(EMP!$D$1,IF($CA$1,BX90,366-BX90),BY90) -> 935 | CB90: =IF(BZ90=SUMIF(EMP!$AQ$51:$AQ$90,CB89,EMP!$BK$51:$BK$90),CB89+1,CB89) -> 1 | CC90: 1363 | CD90: =SUMIF(EMP!$AQ$51:$AQ$90,CB90,EMP!$BJ$51:$BJ$90) -> 1475
A91: 90 | B91: 2009-03-31 | C91: 2 | D91: Tuesday | E91: 1101 | F91: 1067 | G91: 1028 | H91: 1002 | I91: 984 | J91: 1014 | K91: 1021 | L91: 1048 | M91: 1092 | N91: 1113 | O91: 1136 | P91: 1067 | Q91: 1077 | R91: 1146 | S91: 1150 | T91: 1177 | U91: 1175 | V91: 1185 | W91: 1293 | X91: 1277 | Y91: 1299 | Z91: 1277 | AA91: 1231 | AB91: 1155 | AC91: 27115 | AD91: 1269.551141 | AE91: s1 | AF91: d1 | AG91: s1d1 | BX91: 4 | BY91: =BY67 -> 17 | BZ91: 89 | CA91: =OFFSET(EMP!$D$1,IF($CA$1,BX91,366-BX91),BY91) -> 933 | CB91: =IF(BZ91=SUMIF(EMP!$AQ$51:$AQ$90,CB90,EMP!$BK$51:$BK$90),CB90+1,CB90) -> 1 | CC91: 1362.9 | CD91: =SUMIF(EMP!$AQ$51:$AQ$90,CB91,EMP!$BJ$51:$BJ$90) -> 1475
A92: 91 | B92: 2009-04-01 | C92: 3 | D92: Wednesday | E92: 1113 | F92: 1082 | G92: 1088 | H92: 1061 | I92: 1091 | J92: 1118 | K92: 1031 | L92: 1084 | M92: 1110 | N92: 1141 | O92: 1158 | P92: 1170 | Q92: 1127.5 | R92: 1151 | S92: 1154 | T92: 1166 | U92: 1086 | V92: 1108 | W92: 1262 | X92: 1275 | Y92: 1251 | Z92: 1169 | AA92: 1123 | AB92: 1111 | AC92: 27230.5 | AD92: 1268.796027 | AE92: s1 | AF92: d1 | AG92: s1d1 | BX92: 4 | BY92: 18 | BZ92: 90 | CA92: =OFFSET(EMP!$D$1,IF($CA$1,BX92,366-BX92),BY92) -> 984 | CB92: =IF(BZ92=SUMIF(EMP!$AQ$51:$AQ$90,CB91,EMP!$BK$51:$BK$90),CB91+1,CB91) -> 1 | CC92: 1362.7 | CD92: =SUMIF(EMP!$AQ$51:$AQ$90,CB92,EMP!$BJ$51:$BJ$90) -> 1475
A93: 92 | B93: 2009-04-02 | C93: 4 | D93: Thursday | E93: 1053 | F93: 1047 | G93: 1005 | H93: 983 | I93: 1042 | J93: 1076 | K93: 1017 | L93: 1065 | M93: 1078 | N93: 1092 | O93: 1105 | P93: 1141 | Q93: 1119 | R93: 1127 | S93: 1144 | T93: 1141 | U93: 1120 | V93: 1114 | W93: 1284 | X93: 1295 | Y93: 1282 | Z93: 1280 | AA93: 1190 | AB93: 1099 | AC93: 26899 | AD93: 1270.316424 | AE93: s1 | AF93: d1 | AG93: s1d1 | BX93: 4 | BY93: 19 | BZ93: 91 | CA93: =OFFSET(EMP!$D$1,IF($CA$1,BX93,366-BX93),BY93) -> 1200 | CB93: =IF(BZ93=SUMIF(EMP!$AQ$51:$AQ$90,CB92,EMP!$BK$51:$BK$90),CB92+1,CB92) -> 1 | CC93: 1362 | CD93: =SUMIF(EMP!$AQ$51:$AQ$90,CB93,EMP!$BJ$51:$BJ$90) -> 1475
A94: 93 | B94: 2009-04-03 | C94: 5 | D94: Friday | E94: 1088 | F94: 1089 | G94: 1071 | H94: 1055 | I94: 1061 | J94: 1107 | K94: 989 | L94: 1063 | M94: 1082 | N94: 1102 | O94: 1123 | P94: 1131 | Q94: 1138 | R94: 1149 | S94: 1177 | T94: 1158 | U94: 1144 | V94: 1126 | W94: 1258 | X94: 1223 | Y94: 1320 | Z94: 1219 | AA94: 1227 | AB94: 1182 | AC94: 27282 | AD94: 1269.084782 | AE94: s1 | AF94: d1 | AG94: s1d1 | BX94: 4 | BY94: 20 | BZ94: 92 | CA94: =OFFSET(EMP!$D$1,IF($CA$1,BX94,366-BX94),BY94) -> 1191 | CB94: =IF(BZ94=SUMIF(EMP!$AQ$51:$AQ$90,CB93,EMP!$BK$51:$BK$90),CB93+1,CB93) -> 1 | CC94: 1361.6 | CD94: =SUMIF(EMP!$AQ$51:$AQ$90,CB94,EMP!$BJ$51:$BJ$90) -> 1475
A95: 94 | B95: 2009-04-04 | C95: 6 | D95: Saturday | E95: 1136 | F95: 1125 | G95: 1097 | H95: 1089 | I95: 1114 | J95: 1064 | K95: 992 | L95: 1005 | M95: 1041 | N95: 1054 | O95: 1047 | P95: 1062 | Q95: 1073 | R95: 990 | S95: 1064 | T95: 1043 | U95: 1032 | V95: 1014 | W95: 1214 | X95: 1271 | Y95: 1267 | Z95: 1226 | AA95: 1186 | AB95: 1134 | AC95: 26340 | AD95: 1263.576304 | AE95: s1 | AF95: d1 | AG95: s1d1 | BX95: 4 | BY95: 21 | BZ95: 93 | CA95: =OFFSET(EMP!$D$1,IF($CA$1,BX95,366-BX95),BY95) -> 1167 | CB95: =IF(BZ95=SUMIF(EMP!$AQ$51:$AQ$90,CB94,EMP!$BK$51:$BK$90),CB94+1,CB94) -> 1 | CC95: 1361.4 | CD95: =SUMIF(EMP!$AQ$51:$AQ$90,CB95,EMP!$BJ$51:$BJ$90) -> 1475
A96: 95 | B96: 2009-04-05 | C96: 7 | D96: Sunday | E96: 1101 | F96: 1066 | G96: 1041 | H96: 1032 | I96: 1023 | J96: 1048 | K96: 952 | L96: 949 | M96: 938 | N96: 910 | O96: 908 | P96: 953 | Q96: 948 | R96: 985 | S96: 984 | T96: 1008 | U96: 1008 | V96: 1025 | W96: 1259 | X96: 1280 | Y96: 1268 | Z96: 1261 | AA96: 1172 | AB96: 1103 | AC96: 25222 | AD96: 1263.118673 | AE96: s1 | AF96: d1 | AG96: s1d1 | BX96: 4 | BY96: 22 | BZ96: 94 | CA96: =OFFSET(EMP!$D$1,IF($CA$1,BX96,366-BX96),BY96) -> 1146 | CB96: =IF(BZ96=SUMIF(EMP!$AQ$51:$AQ$90,CB95,EMP!$BK$51:$BK$90),CB95+1,CB95) -> 1 | CC96: 1361.2 | CD96: =SUMIF(EMP!$AQ$51:$AQ$90,CB96,EMP!$BJ$51:$BJ$90) -> 1475
A97: 96 | B97: 2009-04-06 | C97: 1 | D97: Monday | E97: 1034 | F97: 1038 | G97: 993 | H97: 1017 | I97: 1036 | J97: 1081 | K97: 1018 | L97: 1061 | M97: 1104 | N97: 1164 | O97: 1172 | P97: 1149 | Q97: 1164 | R97: 1188 | S97: 1208 | T97: 1228 | U97: 1173 | V97: 1114 | W97: 1285 | X97: 1316 | Y97: 1317 | Z97: 1296 | AA97: 1232 | AB97: 1163 | AC97: 27551 | AD97: 1265.306806 | AE97: s1 | AF97: d1 | AG97: s1d1 | BX97: 4 | BY97: 23 | BZ97: 95 | CA97: =OFFSET(EMP!$D$1,IF($CA$1,BX97,366-BX97),BY97) -> 1052 | CB97: =IF(BZ97=SUMIF(EMP!$AQ$51:$AQ$90,CB96,EMP!$BK$51:$BK$90),CB96+1,CB96) -> 1 | CC97: 1361 | CD97: =SUMIF(EMP!$AQ$51:$AQ$90,CB97,EMP!$BJ$51:$BJ$90) -> 1475
A98: 97 | B98: 2009-04-07 | C98: 2 | D98: Tuesday | E98: 1111 | F98: 1088 | G98: 1082 | H98: 1083 | I98: 1102 | J98: 1096 | K98: 1022 | L98: 1074 | M98: 1118 | N98: 1151 | O98: 1140 | P98: 1192 | Q98: 1198 | R98: 1232 | S98: 1199.6 | T98: 1221 | U98: 1178 | V98: 1116 | W98: 1316 | X98: 1333 | Y98: 1319 | Z98: 1275 | AA98: 1228 | AB98: 1175 | AC98: 28049.6 | AD98: 1270.376125 | AE98: s1 | AF98: d1 | AG98: s1d1 | BX98: 4 | BY98: 24 | BZ98: 96 | CA98: =OFFSET(EMP!$D$1,IF($CA$1,BX98,366-BX98),BY98) -> 1043 | CB98: =IF(BZ98=SUMIF(EMP!$AQ$51:$AQ$90,CB97,EMP!$BK$51:$BK$90),CB97+1,CB97) -> 1 | CC98: 1361 | CD98: =SUMIF(EMP!$AQ$51:$AQ$90,CB98,EMP!$BJ$51:$BJ$90) -> 1475
A99: 98 | B99: 2009-04-08 | C99: 3 | D99: Wednesday | E99: 1108 | F99: 1065 | G99: 1052 | H99: 1051 | I99: 1075 | J99: 1129 | K99: 1054 | L99: 1082 | M99: 1127 | N99: 1133 | O99: 1136 | P99: 1136 | Q99: 1130 | R99: 1106 | S99: 1142 | T99: 1113 | U99: 1105 | V99: 1119 | W99: 1273 | X99: 1306 | Y99: 1277 | Z99: 1246 | AA99: 1169 | AB99: 1117 | AC99: 27251 | AD99: 1270.638513 | AE99: s1 | AF99: d1 | AG99: s1d1 | BX99: 5 | BY99: 1 | BZ99: 97 | CA99: =OFFSET(EMP!$D$1,IF($CA$1,BX99,366-BX99),BY99) -> 961 | CB99: =IF(BZ99=SUMIF(EMP!$AQ$51:$AQ$90,CB98,EMP!$BK$51:$BK$90),CB98+1,CB98) -> 1 | CC99: 1361 | CD99: =SUMIF(EMP!$AQ$51:$AQ$90,CB99,EMP!$BJ$51:$BJ$90) -> 1475
A100: 99 | B100: 2009-04-09 | C100: 4 | D100: Thursday | E100: 1078 | F100: 1061 | G100: 1035 | H100: 1036 | I100: 1065 | J100: 1053 | K100: 1037 | L100: 1064 | M100: 1112 | N100: 1132 | O100: 1133 | P100: 1155 | Q100: 1145 | R100: 1152 | S100: 1174 | T100: 1158 | U100: 1119 | V100: 1073 | W100: 1248 | X100: 1282 | Y100: 1294 | Z100: 1297 | AA100: 1233 | AB100: 1171 | AC100: 27307 | AD100: 1268.374662 | AE100: s1 | AF100: d1 | AG100: s1d1 | BX100: 5 | BY100: 2 | BZ100: 98 | CA100: =OFFSET(EMP!$D$1,IF($CA$1,BX100,366-BX100),BY100) -> 950 | CB100: =IF(BZ100=SUMIF(EMP!$AQ$51:$AQ$90,CB99,EMP!$BK$51:$BK$90),CB99+1,CB99) -> 1 | CC100: 1360.5 | CD100: =SUMIF(EMP!$AQ$51:$AQ$90,CB100,EMP!$BJ$51:$BJ$90) -> 1475
A101: 100 | B101: 2009-04-10 | C101: 5 | D101: Friday | E101: 1105 | F101: 1089 | G101: 1080 | H101: 1051 | I101: 1044 | J101: 1048 | K101: 979 | L101: 1014 | M101: 1009 | N101: 1005 | O101: 1034 | P101: 1042 | Q101: 1036 | R101: 1025 | S101: 1040 | T101: 1036 | U101: 1055 | V101: 1078 | W101: 1223 | X101: 1257 | Y101: 1256 | Z101: 1211 | AA101: 1175 | AB101: 1120 | AC101: 26012 | AD101: 1263.837195 | AE101: s1 | AF101: d1 | AG101: s1d1 | BX101: 5 | BY101: 3 | BZ101: 99 | CA101: =OFFSET(EMP!$D$1,IF($CA$1,BX101,366-BX101),BY101) -> 927 | CB101: =IF(BZ101=SUMIF(EMP!$AQ$51:$AQ$90,CB100,EMP!$BK$51:$BK$90),CB100+1,CB100) -> 1 | CC101: 1360.4 | CD101: =SUMIF(EMP!$AQ$51:$AQ$90,CB101,EMP!$BJ$51:$BJ$90) -> 1475
A102: 101 | B102: 2009-04-11 | C102: 6 | D102: Saturday | E102: 1065 | F102: 1029 | G102: 1048 | H102: 1053 | I102: 1036 | J102: 999 | K102: 951 | L102: 954 | M102: 996 | N102: 1018 | O102: 1037 | P102: 1057 | Q102: 1045 | R102: 1094 | S102: 1086 | T102: 1082 | U102: 1115 | V102: 1097 | W102: 1292 | X102: 1267 | Y102: 1253 | Z102: 1246 | AA102: 1194 | AB102: 1174 | AC102: 26188 | AD102: 1266.653476 | AE102: s1 | AF102: d1 | AG102: s1d1 | BX102: 5 | BY102: 4 | BZ102: 100 | CA102: =OFFSET(EMP!$D$1,IF($CA$1,BX102,366-BX102),BY102) -> 930 | CB102: =IF(BZ102=SUMIF(EMP!$AQ$51:$AQ$90,CB101,EMP!$BK$51:$BK$90),CB101+1,CB101) -> 1 | CC102: 1359.9 | CD102: =SUMIF(EMP!$AQ$51:$AQ$90,CB102,EMP!$BJ$51:$BJ$90) -> 1475
A103: 102 | B103: 2009-04-12 | C103: 7 | D103: Sunday | E103: 1125 | F103: 1085 | G103: 1043 | H103: 1041 | I103: 1064 | J103: 1024 | K103: 993 | L103: 1007 | M103: 993 | N103: 953 | O103: 951 | P103: 926 | Q103: 950 | R103: 962 | S103: 977 | T103: 977 | U103: 964 | V103: 1003 | W103: 1159 | X103: 1208 | Y103: 1218 | Z103: 1218 | AA103: 1113 | AB103: 1062 | AC103: 25016 | AD103: 1255.888128 | AE103: s1 | AF103: d1 | AG103: s1d1 | BX103: 5 | BY103: 5 | BZ103: 101 | CA103: =OFFSET(EMP!$D$1,IF($CA$1,BX103,366-BX103),BY103) -> 931 | CB103: =IF(BZ103=SUMIF(EMP!$AQ$51:$AQ$90,CB102,EMP!$BK$51:$BK$90),CB102+1,CB102) -> 1 | CC103: 1359 | CD103: =SUMIF(EMP!$AQ$51:$AQ$90,CB103,EMP!$BJ$51:$BJ$90) -> 1475
A104: 103 | B104: 2009-04-13 | C104: 1 | D104: Monday | E104: 1040 | F104: 1033 | G104: 1006 | H104: 977 | I104: 997 | J104: 986 | K104: 909 | L104: 921 | M104: 939 | N104: 797 | O104: 911 | P104: 858 | Q104: 832 | R104: 835 | S104: 802 | T104: 752 | U104: 770 | V104: 840 | W104: 1000 | X104: 992 | Y104: 992 | Z104: 935 | AA104: 880 | AB104: 853 | AC104: 21857 | AD104: 1230.299316 | AE104: s1 | AF104: d1 | AG104: s1d1 | BX104: 5 | BY104: 6 | BZ104: 102 | CA104: =OFFSET(EMP!$D$1,IF($CA$1,BX104,366-BX104),BY104) -> 957 | CB104: =IF(BZ104=SUMIF(EMP!$AQ$51:$AQ$90,CB103,EMP!$BK$51:$BK$90),CB103+1,CB103) -> 1 | CC104: 1359 | CD104: =SUMIF(EMP!$AQ$51:$AQ$90,CB104,EMP!$BJ$51:$BJ$90) -> 1475
A105: 104 | B105: 2009-04-14 | C105: 2 | D105: Tuesday | E105: 816 | F105: 797 | G105: 791 | H105: 781 | I105: 819 | J105: 856 | K105: 854 | L105: 912 | M105: 981 | N105: 1000 | O105: 1039 | P105: 1060 | Q105: 1070 | R105: 1091 | S105: 1122 | T105: 1009 | U105: 1085 | V105: 1107 | W105: 1274 | X105: 1287.7 | Y105: 1213.1 | Z105: 1236 | AA105: 1166 | AB105: 1066 | AC105: 24432.8 | AD105: 1234.669384 | AE105: s1 | AF105: d1 | AG105: s1d1 | BX105: 5 | BY105: 7 | BZ105: 103 | CA105: =OFFSET(EMP!$D$1,IF($CA$1,BX105,366-BX105),BY105) -> 948 | CB105: =IF(BZ105=SUMIF(EMP!$AQ$51:$AQ$90,CB104,EMP!$BK$51:$BK$90),CB104+1,CB104) -> 1 | CC105: 1358.9 | CD105: =SUMIF(EMP!$AQ$51:$AQ$90,CB105,EMP!$BJ$51:$BJ$90) -> 1475
A106: 105 | B106: 2009-04-15 | C106: 3 | D106: Wednesday | E106: 1018 | F106: 1004 | G106: 998 | H106: 999 | I106: 1007 | J106: 1004 | K106: 956 | L106: 1008 | M106: 1139 | N106: 1099 | O106: 1006 | P106: 1090 | Q106: 1079 | R106: 1088 | S106: 1116 | T106: 1119 | U106: 1010 | V106: 1053 | W106: 1197 | X106: 1253 | Y106: 1248 | Z106: 1227 | AA106: 1140 | AB106: 967 | AC106: 25825 | AD106: 1230.902446 | AE106: s1 | AF106: d1 | AG106: s1d1 | BX106: 5 | BY106: 8 | BZ106: 104 | CA106: =OFFSET(EMP!$D$1,IF($CA$1,BX106,366-BX106),BY106) -> 1021 | CB106: =IF(BZ106=SUMIF(EMP!$AQ$51:$AQ$90,CB105,EMP!$BK$51:$BK$90),CB105+1,CB105) -> 1 | CC106: 1358.6 | CD106: =SUMIF(EMP!$AQ$51:$AQ$90,CB106,EMP!$BJ$51:$BJ$90) -> 1475
A107: 106 | B107: 2009-04-16 | C107: 4 | D107: Thursday | E107: 1072 | F107: 1060 | G107: 1038 | H107: 1033 | I107: 945 | J107: 945 | K107: 941 | L107: 915 | M107: 925 | N107: 894 | O107: 928 | P107: 952 | Q107: 972.1 | R107: 981.2 | S107: 985 | T107: 1011 | U107: 1025 | V107: 1021 | W107: 1232 | X107: 1257 | Y107: 1212 | Z107: 1214 | AA107: 1116 | AB107: 1074 | AC107: 24748.3 | AD107: 1231.012201 | AE107: s1 | AF107: d1 | AG107: s1d1 | BX107: 5 | BY107: 9 | BZ107: 105 | CA107: =OFFSET(EMP!$D$1,IF($CA$1,BX107,366-BX107),BY107) -> 1073 | CB107: =IF(BZ107=SUMIF(EMP!$AQ$51:$AQ$90,CB106,EMP!$BK$51:$BK$90),CB106+1,CB106) -> 1 | CC107: 1358.4 | CD107: =SUMIF(EMP!$AQ$51:$AQ$90,CB107,EMP!$BJ$51:$BJ$90) -> 1475
A108: 107 | B108: 2009-04-17 | C108: 5 | D108: Friday | E108: 1010 | F108: 1009 | G108: 971 | H108: 974 | I108: 991 | J108: 1028 | K108: 965 | L108: 1018 | M108: 1074 | N108: 1099 | O108: 1092 | P108: 1063 | Q108: 1094 | R108: 1114 | S108: 1121 | T108: 1168 | U108: 1104 | V108: 1038 | W108: 1245 | X108: 1265 | Y108: 1281 | Z108: 1235 | AA108: 1199 | AB108: 1140 | AC108: 26298 | AD108: 1232.410981 | AE108: s1 | AF108: d1 | AG108: s1d1 | BX108: 5 | BY108: 10 | BZ108: 106 | CA108: =OFFSET(EMP!$D$1,IF($CA$1,BX108,366-BX108),BY108) -> 1085 | CB108: =IF(BZ108=SUMIF(EMP!$AQ$51:$AQ$90,CB107,EMP!$BK$51:$BK$90),CB107+1,CB107) -> 1 | CC108: 1358 | CD108: =SUMIF(EMP!$AQ$51:$AQ$90,CB108,EMP!$BJ$51:$BJ$90) -> 1475
A109: 108 | B109: 2009-04-18 | C109: 6 | D109: Saturday | E109: 1044 | F109: 1058 | G109: 1050 | H109: 1036 | I109: 1042 | J109: 1000 | K109: 951 | L109: 961 | M109: 997 | N109: 994 | O109: 986 | P109: 1032 | Q109: 1008 | R109: 1026 | S109: 1026 | T109: 1003 | U109: 1028 | V109: 1053 | W109: 1257 | X109: 1260 | Y109: 1260 | Z109: 1232 | AA109: 1206 | AB109: 1121 | AC109: 25631 | AD109: 1234.869883 | AE109: s1 | AF109: d1 | AG109: s1d1 | BX109: 5 | BY109: 11 | BZ109: 107 | CA109: =OFFSET(EMP!$D$1,IF($CA$1,BX109,366-BX109),BY109) -> 1108 | CB109: =IF(BZ109=SUMIF(EMP!$AQ$51:$AQ$90,CB108,EMP!$BK$51:$BK$90),CB108+1,CB108) -> 1 | CC109: 1357 | CD109: =SUMIF(EMP!$AQ$51:$AQ$90,CB109,EMP!$BJ$51:$BJ$90) -> 1475
A110: 109 | B110: 2009-04-19 | C110: 7 | D110: Sunday | E110: 938 | F110: 904 | G110: 845 | H110: 824 | I110: 859 | J110: 829 | K110: 860 | L110: 909 | M110: 851 | N110: 895 | O110: 879 | P110: 903 | Q110: 935 | R110: 967 | S110: 978 | T110: 1001 | U110: 993 | V110: 979 | W110: 1213 | X110: 1235 | Y110: 1245 | Z110: 1215 | AA110: 1152 | AB110: 1120 | AC110: 23529 | AD110: 1232.682895 | AE110: s1 | AF110: d1 | AG110: s1d1 | BX110: 5 | BY110: 12 | BZ110: 108 | CA110: =OFFSET(EMP!$D$1,IF($CA$1,BX110,366-BX110),BY110) -> 1131 | CB110: =IF(BZ110=SUMIF(EMP!$AQ$51:$AQ$90,CB109,EMP!$BK$51:$BK$90),CB109+1,CB109) -> 1 | CC110: 1355 | CD110: =SUMIF(EMP!$AQ$51:$AQ$90,CB110,EMP!$BJ$51:$BJ$90) -> 1475
A111: 110 | B111: 2009-04-20 | C111: 1 | D111: Monday | E111: 1040 | F111: 1012 | G111: 992 | H111: 1002 | I111: 1007 | J111: 994 | K111: 986 | L111: 1071 | M111: 1161 | N111: 1176 | O111: 1196 | P111: 1205.7 | Q111: 1196 | R111: 1198 | S111: 1194 | T111: 1218 | U111: 1172 | V111: 1165 | W111: 228 | X111: 10 | Y111: 214 | Z111: 505 | AA111: 842 | AB111: 880 | AC111: 22664.7 | AD111: 1132.214605 | AE111: s1 | AF111: d1 | AG111: s1d1 | BX111: 5 | BY111: 13 | BZ111: 109 | CA111: =OFFSET(EMP!$D$1,IF($CA$1,BX111,366-BX111),BY111) -> 1112 | CB111: =IF(BZ111=SUMIF(EMP!$AQ$51:$AQ$90,CB110,EMP!$BK$51:$BK$90),CB110+1,CB110) -> 1 | CC111: 1355 | CD111: =SUMIF(EMP!$AQ$51:$AQ$90,CB111,EMP!$BJ$51:$BJ$90) -> 1475
A112: 111 | B112: 2009-04-21 | C112: 2 | D112: Tuesday | E112: 972 | F112: 944 | G112: 833 | H112: 870 | I112: 862 | J112: 935 | K112: 944 | L112: 1017 | M112: 1024 | N112: 1018 | O112: 1049 | P112: 1062 | Q112: 1053 | R112: 1049 | S112: 1078 | T112: 1091 | U112: 1078 | V112: 1025 | W112: 1203 | X112: 1250 | Y112: 1146 | Z112: 1232 | AA112: 1187 | AB112: 1147 | AC112: 25069 | AD112: 1139.293145 | AE112: s1 | AF112: d1 | AG112: s1d1 | BX112: 5 | BY112: 14 | BZ112: 110 | CA112: =OFFSET(EMP!$D$1,IF($CA$1,BX112,366-BX112),BY112) -> 1125 | CB112: =IF(BZ112=SUMIF(EMP!$AQ$51:$AQ$90,CB111,EMP!$BK$51:$BK$90),CB111+1,CB111) -> 1 | CC112: 1355 | CD112: =SUMIF(EMP!$AQ$51:$AQ$90,CB112,EMP!$BJ$51:$BJ$90) -> 1475
A113: 112 | B113: 2009-04-22 | C113: 3 | D113: Wednesday | E113: 1075 | F113: 1060 | G113: 1008 | H113: 935 | I113: 931 | J113: 947 | K113: 931 | L113: 952 | M113: 1061 | N113: 1116 | O113: 1132 | P113: 1144 | Q113: 1149 | R113: 1175 | S113: 1160 | T113: 1210 | U113: 1178 | V113: 1144 | W113: 1268 | X113: 1324 | Y113: 1324 | Z113: 1274 | AA113: 1210 | AB113: 1165 | AC113: 26873 | AD113: 1152.16383 | AE113: s1 | AF113: d1 | AG113: s1d1 | BX113: 5 | BY113: 15 | BZ113: 111 | CA113: =OFFSET(EMP!$D$1,IF($CA$1,BX113,366-BX113),BY113) -> 1145 | CB113: =IF(BZ113=SUMIF(EMP!$AQ$51:$AQ$90,CB112,EMP!$BK$51:$BK$90),CB112+1,CB112) -> 1 | CC113: 1355 | CD113: =SUMIF(EMP!$AQ$51:$AQ$90,CB113,EMP!$BJ$51:$BJ$90) -> 1475
A114: 113 | B114: 2009-04-23 | C114: 4 | D114: Thursday | E114: 1103 | F114: 1064 | G114: 1036 | H114: 1031 | I114: 1056 | J114: 1023 | K114: 987 | L114: 1079 | M114: 1170 | N114: 1187 | O114: 1188 | P114: 1181 | Q114: 1159 | R114: 1097 | S114: 1177 | T114: 1177 | U114: 1147 | V114: 1106 | W114: 1270 | X114: 1200 | Y114: 1267 | Z114: 1254 | AA114: 1206 | AB114: 1149 | AC114: 27314 | AD114: 1163.947447 | AE114: s1 | AF114: d1 | AG114: s1d1 | BX114: 5 | BY114: 16 | BZ114: 112 | CA114: =OFFSET(EMP!$D$1,IF($CA$1,BX114,366-BX114),BY114) -> 1133 | CB114: =IF(BZ114=SUMIF(EMP!$AQ$51:$AQ$90,CB113,EMP!$BK$51:$BK$90),CB113+1,CB113) -> 1 | CC114: 1354.4 | CD114: =SUMIF(EMP!$AQ$51:$AQ$90,CB114,EMP!$BJ$51:$BJ$90) -> 1475
A115: 114 | B115: 2009-04-24 | C115: 5 | D115: Friday | E115: 1051 | F115: 1077 | G115: 1052 | H115: 1061 | I115: 1077 | J115: 1094 | K115: 1054 | L115: 1109.5 | M115: 1194 | N115: 1196 | O115: 1180 | P115: 1214 | Q115: 1141 | R115: 1148 | S115: 1047 | T115: 1073 | U115: 1050 | V115: 1121 | W115: 1172 | X115: 1132 | Y115: 1016 | Z115: 1077.6 | AA115: 1042.1 | AB115: 997.9 | AC115: 26377.1 | AD115: 1164.752702 | AE115: s1 | AF115: d1 | AG115: s1d1 | BX115: 5 | BY115: 17 | BZ115: 113 | CA115: =OFFSET(EMP!$D$1,IF($CA$1,BX115,366-BX115),BY115) -> 1114 | CB115: =IF(BZ115=SUMIF(EMP!$AQ$51:$AQ$90,CB114,EMP!$BK$51:$BK$90),CB114+1,CB114) -> 1 | CC115: 1354 | CD115: =SUMIF(EMP!$AQ$51:$AQ$90,CB115,EMP!$BJ$51:$BJ$90) -> 1475
A116: 115 | B116: 2009-04-25 | C116: 6 | D116: Saturday | E116: 952 | F116: 943 | G116: 915 | H116: 913 | I116: 905 | J116: 939 | K116: 863 | L116: 925 | M116: 911 | N116: 942 | O116: 965 | P116: 938 | Q116: 969 | R116: 994 | S116: 990 | T116: 1014 | U116: 1020 | V116: 1043 | W116: 1233 | X116: 1278.5 | Y116: 1271 | Z116: 1252.2 | AA116: 1196 | AB116: 1128 | AC116: 24499.7 | AD116: 1171.577432 | AE116: s1 | AF116: d1 | AG116: s1d1 | BX116: 5 | BY116: 18 | BZ116: 114 | CA116: =OFFSET(EMP!$D$1,IF($CA$1,BX116,366-BX116),BY116) -> 1143 | CB116: =IF(BZ116=SUMIF(EMP!$AQ$51:$AQ$90,CB115,EMP!$BK$51:$BK$90),CB115+1,CB115) -> 1 | CC116: 1354 | CD116: =SUMIF(EMP!$AQ$51:$AQ$90,CB116,EMP!$BJ$51:$BJ$90) -> 1475
A117: 116 | B117: 2009-04-26 | C117: 7 | D117: Sunday | E117: 1084 | F117: 1062 | G117: 1025 | H117: 1001 | I117: 982 | J117: 1000 | K117: 932 | L117: 951 | M117: 924 | N117: 841 | O117: 731 | P117: 874 | Q117: 924 | R117: 977 | S117: 977 | T117: 987 | U117: 986 | V117: 1018 | W117: 1268 | X117: 1253 | Y117: 1250 | Z117: 1229 | AA117: 1137 | AB117: 1095 | AC117: 24508 | AD117: 1181.219689 | AE117: s1 | AF117: d1 | AG117: s1d1 | BX117: 5 | BY117: 19 | BZ117: 115 | CA117: =OFFSET(EMP!$D$1,IF($CA$1,BX117,366-BX117),BY117) -> 1264 | CB117: =IF(BZ117=SUMIF(EMP!$AQ$51:$AQ$90,CB116,EMP!$BK$51:$BK$90),CB116+1,CB116) -> 1 | CC117: 1353 | CD117: =SUMIF(EMP!$AQ$51:$AQ$90,CB117,EMP!$BJ$51:$BJ$90) -> 1475
A118: 117 | B118: 2009-04-27 | C118: 1 | D118: Monday | E118: 1056 | F118: 1012 | G118: 993 | H118: 1019 | I118: 993 | J118: 979 | K118: 900 | L118: 1014 | M118: 1065 | N118: 1100 | O118: 1127 | P118: 1110 | Q118: 1088 | R118: 1107 | S118: 1119 | T118: 1125 | U118: 1099 | V118: 1105 | W118: 1291 | X118: 1323 | Y118: 1311 | Z118: 1262 | AA118: 1179 | AB118: 1069 | AC118: 26446 | AD118: 1192.19772 | AE118: s1 | AF118: d1 | AG118: s1d1 | BX118: 5 | BY118: 20 | BZ118: 116 | CA118: =OFFSET(EMP!$D$1,IF($CA$1,BX118,366-BX118),BY118) -> 1269 | CB118: =IF(BZ118=SUMIF(EMP!$AQ$51:$AQ$90,CB117,EMP!$BK$51:$BK$90),CB117+1,CB117) -> 1 | CC118: 1352.7 | CD118: =SUMIF(EMP!$AQ$51:$AQ$90,CB118,EMP!$BJ$51:$BJ$90) -> 1475
A119: 118 | B119: 2009-04-28 | C119: 2 | D119: Tuesday | E119: 1086 | F119: 1049 | G119: 1009 | H119: 1009 | I119: 1029 | J119: 1013 | K119: 977 | L119: 1061 | M119: 1129 | N119: 1170 | O119: 1175.6 | P119: 1167 | Q119: 1153 | R119: 1166 | S119: 1183 | T119: 1183 | U119: 1167 | V119: 1144 | W119: 1314 | X119: 1359 | Y119: 1349 | Z119: 1299 | AA119: 1238 | AB119: 1169 | AC119: 27598.6 | AD119: 1204.377948 | AE119: s1 | AF119: d1 | AG119: s1d1 | BX119: 5 | BY119: 21 | BZ119: 117 | CA119: =OFFSET(EMP!$D$1,IF($CA$1,BX119,366-BX119),BY119) -> 1245 | CB119: =IF(BZ119=SUMIF(EMP!$AQ$51:$AQ$90,CB118,EMP!$BK$51:$BK$90),CB118+1,CB118) -> 2 | CC119: 1352.2 | CD119: =SUMIF(EMP!$AQ$51:$AQ$90,CB119,EMP!$BJ$51:$BJ$90) -> 1265.362607
A120: 119 | B120: 2009-04-29 | C120: 3 | D120: Wednesday | E120: 1129 | F120: 1110 | G120: 1091 | H120: 1078 | I120: 1089 | J120: 1105 | K120: 1051 | L120: 1146 | M120: 1209 | N120: 1177 | O120: 1188 | P120: 1193 | Q120: 1203 | R120: 1183 | S120: 1207 | T120: 1212 | U120: 1222 | V120: 1143 | W120: 1277 | X120: 1330 | Y120: 1314 | Z120: 1278 | AA120: 1235 | AB120: 1147 | AC120: 28317 | AD120: 1211.640153 | AE120: s1 | AF120: d1 | AG120: s1d1 | BX120: 5 | BY120: 22 | BZ120: 118 | CA120: =OFFSET(EMP!$D$1,IF($CA$1,BX120,366-BX120),BY120) -> 1216 | CB120: =IF(BZ120=SUMIF(EMP!$AQ$51:$AQ$90,CB119,EMP!$BK$51:$BK$90),CB119+1,CB119) -> 2 | CC120: 1352 | CD120: =SUMIF(EMP!$AQ$51:$AQ$90,CB120,EMP!$BJ$51:$BJ$90) -> 1265.362607
A121: 120 | B121: 2009-04-30 | C121: 4 | D121: Thursday | E121: 1095 | F121: 1091 | G121: 1070 | H121: 1052 | I121: 1049 | J121: 1043 | K121: 1015 | L121: 1069 | M121: 1133 | N121: 1075 | O121: 1110.9 | P121: 1187 | Q121: 1150 | R121: 1190 | S121: 1181 | T121: 1176 | U121: 1160 | V121: 1135 | W121: 1285 | X121: 1314 | Y121: 1323 | Z121: 1295 | AA121: 1236 | AB121: 1172 | AC121: 27606.9 | AD121: 1218.976138 | AE121: s1 | AF121: d1 | AG121: s1d1 | BX121: 5 | BY121: 23 | BZ121: 119 | CA121: =OFFSET(EMP!$D$1,IF($CA$1,BX121,366-BX121),BY121) -> 1136 | CB121: =IF(BZ121=SUMIF(EMP!$AQ$51:$AQ$90,CB120,EMP!$BK$51:$BK$90),CB120+1,CB120) -> 2 | CC121: 1352 | CD121: =SUMIF(EMP!$AQ$51:$AQ$90,CB121,EMP!$BJ$51:$BJ$90) -> 1265.362607
A122: 121 | B122: 2009-05-01 | C122: 5 | D122: Friday | E122: 1142 | F122: 1114 | G122: 1089 | H122: 1038 | I122: 1081 | J122: 1040 | K122: 914 | L122: 929 | M122: 955 | N122: 1001 | O122: 1007 | P122: 1030 | Q122: 997 | R122: 1003 | S122: 972 | T122: 989 | U122: 972 | V122: 966 | W122: 1128 | X122: 1200 | Y122: 1190 | Z122: 1164 | AA122: 1110 | AB122: 958 | AC122: 24989 | AD122: 1209.878524 | AE122: s1 | AF122: d1 | AG122: s1d1 | BX122: 5 | BY122: 24 | BZ122: 120 | CA122: =OFFSET(EMP!$D$1,IF($CA$1,BX122,366-BX122),BY122) -> 1076 | CB122: =IF(BZ122=SUMIF(EMP!$AQ$51:$AQ$90,CB121,EMP!$BK$51:$BK$90),CB121+1,CB121) -> 2 | CC122: 1351.8 | CD122: =SUMIF(EMP!$AQ$51:$AQ$90,CB122,EMP!$BJ$51:$BJ$90) -> 1265.362607
A123: 122 | B123: 2009-05-02 | C123: 6 | D123: Saturday | E123: 1017 | F123: 995 | G123: 974 | H123: 973 | I123: 973 | J123: 935 | K123: 910 | L123: 1007 | M123: 898 | N123: 1038 | O123: 1058 | P123: 1081 | Q123: 1088 | R123: 1071 | S123: 1069 | T123: 1065 | U123: 1072 | V123: 1114 | W123: 1236 | X123: 1286 | Y123: 1292 | Z123: 1256 | AA123: 1226 | AB123: 1162 | AC123: 25796 | AD123: 1212.490672 | AE123: s1 | AF123: d1 | AG123: s1d1 | BX123: 6 | BY123: 1 | BZ123: 121 | CA123: =OFFSET(EMP!$D$1,IF($CA$1,BX123,366-BX123),BY123) -> 1148 | CB123: =IF(BZ123=SUMIF(EMP!$AQ$51:$AQ$90,CB122,EMP!$BK$51:$BK$90),CB122+1,CB122) -> 2 | CC123: 1351.5 | CD123: =SUMIF(EMP!$AQ$51:$AQ$90,CB123,EMP!$BJ$51:$BJ$90) -> 1265.362607
A124: 123 | B124: 2009-05-03 | C124: 7 | D124: Sunday | E124: 1111 | F124: 1068 | G124: 1019 | H124: 993 | I124: 991 | J124: 933 | K124: 918 | L124: 969 | M124: 982 | N124: 967 | O124: 933 | P124: 956 | Q124: 1007 | R124: 1010 | S124: 971 | T124: 964 | U124: 1022 | V124: 1021 | W124: 1191 | X124: 1212 | Y124: 1209 | Z124: 1172 | AA124: 1083 | AB124: 1037 | AC124: 24739 | AD124: 1210.341605 | AE124: s1 | AF124: d1 | AG124: s1d1 | BX124: 6 | BY124: 2 | BZ124: 122 | CA124: =OFFSET(EMP!$D$1,IF($CA$1,BX124,366-BX124),BY124) -> 1127 | CB124: =IF(BZ124=SUMIF(EMP!$AQ$51:$AQ$90,CB123,EMP!$BK$51:$BK$90),CB123+1,CB123) -> 2 | CC124: 1351.2 | CD124: =SUMIF(EMP!$AQ$51:$AQ$90,CB124,EMP!$BJ$51:$BJ$90) -> 1265.362607
A125: 124 | B125: 2009-05-04 | C125: 1 | D125: Monday | E125: 1013 | F125: 986 | G125: 964 | H125: 963 | I125: 956 | J125: 982 | K125: 951 | L125: 1085 | M125: 1119 | N125: 1159 | O125: 1160 | P125: 1157 | Q125: 1140 | R125: 1139 | S125: 1158 | T125: 1164 | U125: 1064 | V125: 1112 | W125: 1251 | X125: 1268 | Y125: 1267 | Z125: 1254 | AA125: 1190 | AB125: 1160 | AC125: 26662 | AD125: 1214.407444 | AE125: s1 | AF125: d1 | AG125: s1d1 | BX125: 6 | BY125: 3 | BZ125: 123 | CA125: =OFFSET(EMP!$D$1,IF($CA$1,BX125,366-BX125),BY125) -> 1118 | CB125: =IF(BZ125=SUMIF(EMP!$AQ$51:$AQ$90,CB124,EMP!$BK$51:$BK$90),CB124+1,CB124) -> 2 | CC125: 1351 | CD125: =SUMIF(EMP!$AQ$51:$AQ$90,CB125,EMP!$BJ$51:$BJ$90) -> 1265.362607
A126: 125 | B126: 2009-05-05 | C126: 2 | D126: Tuesday | E126: 1104 | F126: 1077 | G126: 1027 | H126: 973 | I126: 990 | J126: 1004 | K126: 998 | L126: 1041 | M126: 1062 | N126: 1093 | O126: 1089 | P126: 1075 | Q126: 1063 | R126: 1055 | S126: 1075 | T126: 1101 | U126: 1095 | V126: 1090 | W126: 1261 | X126: 1270 | Y126: 1249 | Z126: 1206 | AA126: 1144 | AB126: 1087 | AC126: 26229 | AD126: 1219.0667 | AE126: s1 | AF126: d1 | AG126: s1d1 | BX126: 6 | BY126: 4 | BZ126: 124 | CA126: =OFFSET(EMP!$D$1,IF($CA$1,BX126,366-BX126),BY126) -> 1096 | CB126: =IF(BZ126=SUMIF(EMP!$AQ$51:$AQ$90,CB125,EMP!$BK$51:$BK$90),CB125+1,CB125) -> 2 | CC126: 1349.5 | CD126: =SUMIF(EMP!$AQ$51:$AQ$90,CB126,EMP!$BJ$51:$BJ$90) -> 1265.362607
A127: 126 | B127: 2009-05-06 | C127: 3 | D127: Wednesday | E127: 702 | F127: 1010 | G127: 983 | H127: 995 | I127: 1025 | J127: 1011 | K127: 1000 | L127: 1055 | M127: 1093 | N127: 1153 | O127: 1124 | P127: 1117 | Q127: 1111 | R127: 1145 | S127: 1138 | T127: 1140 | U127: 1131 | V127: 1133 | W127: 1265 | X127: 1287 | Y127: 1261 | Z127: 1228 | AA127: 1163 | AB127: 1078 | AC127: 26348 | AD127: 1223.66003 | AE127: s1 | AF127: d1 | AG127: s1d1 | BX127: 6 | BY127: 5 | BZ127: 125 | CA127: =OFFSET(EMP!$D$1,IF($CA$1,BX127,366-BX127),BY127) -> 1111 | CB127: =IF(BZ127=SUMIF(EMP!$AQ$51:$AQ$90,CB126,EMP!$BK$51:$BK$90),CB126+1,CB126) -> 2 | CC127: 1349.2 | CD127: =SUMIF(EMP!$AQ$51:$AQ$90,CB127,EMP!$BJ$51:$BJ$90) -> 1265.362607
A128: 127 | B128: 2009-05-07 | C128: 4 | D128: Thursday | E128: 1065 | F128: 1027 | G128: 990 | H128: 1006 | I128: 1009 | J128: 1000 | K128: 987 | L128: 1045 | M128: 1090 | N128: 1111 | O128: 1110 | P128: 1114 | Q128: 1070 | R128: 1064 | S128: 1076 | T128: 1062 | U128: 1033 | V128: 1043 | W128: 1150 | X128: 1183 | Y128: 1176 | Z128: 1113 | AA128: 1035 | AB128: 987 | AC128: 25546 | AD128: 1216.294027 | AE128: s2 | AF128: d1 | AG128: s2d1 | BX128: 6 | BY128: 6 | BZ128: 126 | CA128: =OFFSET(EMP!$D$1,IF($CA$1,BX128,366-BX128),BY128) -> 1039 | CB128: =IF(BZ128=SUMIF(EMP!$AQ$51:$AQ$90,CB127,EMP!$BK$51:$BK$90),CB127+1,CB127) -> 2 | CC128: 1349 | CD128: =SUMIF(EMP!$AQ$51:$AQ$90,CB128,EMP!$BJ$51:$BJ$90) -> 1265.362607
A129: 128 | B129: 2009-05-08 | C129: 5 | D129: Friday | E129: 943 | F129: 879 | G129: 872 | H129: 872 | I129: 886 | J129: 946 | K129: 909 | L129: 985 | M129: 1018 | N129: 1019 | O129: 998 | P129: 1032 | Q129: 1019 | R129: 1069 | S129: 1076 | T129: 1046 | U129: 1078 | V129: 1082 | W129: 1198 | X129: 1229 | Y129: 1230 | Z129: 1185 | AA129: 1130 | AB129: 1074 | AC129: 24775 | AD129: 1214.464624 | AE129: s2 | AF129: d1 | AG129: s2d1 | BX129: 6 | BY129: 7 | BZ129: 127 | CA129: =OFFSET(EMP!$D$1,IF($CA$1,BX129,366-BX129),BY129) -> 994 | CB129: =IF(BZ129=SUMIF(EMP!$AQ$51:$AQ$90,CB128,EMP!$BK$51:$BK$90),CB128+1,CB128) -> 2 | CC129: 1349 | CD129: =SUMIF(EMP!$AQ$51:$AQ$90,CB129,EMP!$BJ$51:$BJ$90) -> 1265.362607
A130: 129 | B130: 2009-05-09 | C130: 6 | D130: =VLOOKUP(C130,weekdays,2,FALSE) -> Saturday | E130: 1028 | F130: 1003 | G130: 1002 | H130: 979 | I130: 967 | J130: 969 | K130: 910 | L130: 906 | M130: 934 | N130: 843 | O130: 950 | P130: 966 | Q130: 969 | R130: 975 | S130: 974 | T130: 955 | U130: 972 | V130: 1029 | W130: 1183 | X130: 1272 | Y130: 1268 | Z130: 1222 | AA130: 1132 | AB130: 1056 | AC130: =SUM(E130:AB130) -> 24464 | AD130: 1211.318162 | AE130: s2 | AF130: d1 | AG130: s2d1 | BX130: 6 | BY130: 8 | BZ130: 128 | CA130: =OFFSET(EMP!$D$1,IF($CA$1,BX130,366-BX130),BY130) -> 1046 | CB130: =IF(BZ130=SUMIF(EMP!$AQ$51:$AQ$90,CB129,EMP!$BK$51:$BK$90),CB129+1,CB129) -> 2 | CC130: 1348.3 | CD130: =SUMIF(EMP!$AQ$51:$AQ$90,CB130,EMP!$BJ$51:$BJ$90) -> 1265.362607
A131: 130 | B131: 2009-05-10 | C131: =WEEKDAY(B131,2) -> 7 | D131: Sunday | E131: 955 | F131: 903 | G131: 915 | H131: 896 | I131: 900 | J131: 918 | K131: 899 | L131: 894 | M131: 883 | N131: 840 | O131: 841 | P131: 822 | Q131: 871 | R131: 898 | S131: 927 | T131: 927 | U131: 920 | V131: 1000 | W131: 1179 | X131: 1212 | Y131: 1182 | Z131: 1162 | AA131: 1073 | AB131: 1004 | AC131: 23021 | AD131: 1208.086345 | AE131: =IF(AND(A131>$AJ$6,A131<$AJ$7),"s2",IF(A131<=$AJ$6,"s1","s3")) -> s2 | AF131: d1 | AG131: =AE131&AF131 -> s2d1 | BX131: =ROUNDDOWN((BZ131-1)/24,0)+1 -> 6 | BY131: 9 | BZ131: 129 | CA131: =OFFSET(EMP!$D$1,IF($CA$1,BX131,366-BX131),BY131) -> 1106 | CB131: =IF(BZ131=SUMIF(EMP!$AQ$51:$AQ$90,CB130,EMP!$BK$51:$BK$90),CB130+1,CB130) -> 2 | CC131: 1348 | CD131: =SUMIF(EMP!$AQ$51:$AQ$90,CB131,EMP!$BJ$51:$BJ$90) -> 1265.362607
A132: =A131+1 -> 131 | B132: 2009-05-11 | C132: 1 | D132: Monday | E132: 974 | F132: 939 | G132: 924 | H132: 882 | I132: 942 | J132: 970 | K132: 986 | L132: 1010 | M132: 1086 | N132: 1105 | O132: 1108 | P132: 1106 | Q132: 1109 | R132: 1117 | S132: 1119 | T132: 1120 | U132: 1108 | V132: 1099 | W132: 1272 | X132: 1307 | Y132: 1282 | Z132: 1247 | AA132: 1151 | AB132: 1113 | AC132: 26076 | AD132: 1214.477711 | AE132: s2 | AF132: d1 | AG132: s2d1 | BX132: 6 | BY132: 10 | BZ132: =BZ131+1 -> 130 | CA132: =OFFSET(EMP!$D$1,IF($CA$1,BX132,366-BX132),BY132) -> 1109 | CB132: =IF(BZ132=SUMIF(EMP!$AQ$51:$AQ$90,CB131,EMP!$BK$51:$BK$90),CB131+1,CB131) -> 2 | CC132: 1347.8 | CD132: =SUMIF(EMP!$AQ$51:$AQ$90,CB132,EMP!$BJ$51:$BJ$90) -> 1265.362607
A133: 132 | B133: 2009-05-12 | C133: 2 | D133: Tuesday | E133: 1094 | F133: 1049 | G133: 1043 | H133: 1050 | I133: 1030 | J133: 1050 | K133: 995 | L133: 1063 | M133: 1125 | N133: 1135 | O133: 1139 | P133: 1076 | Q133: 1097 | R133: 1098 | S133: 1124 | T133: 1102 | U133: 1153 | V133: 1064 | W133: 1257 | X133: 1273 | Y133: 1282 | Z133: 1252 | AA133: 1193 | AB133: 1155 | AC133: 26899 | AD133: 1218.72994 | AE133: s2 | AF133: d1 | AG133: s2d1 | BX133: 6 | BY133: 11 | BZ133: 131 | CA133: =OFFSET(EMP!$D$1,IF($CA$1,BX133,366-BX133),BY133) -> 1109 | CB133: =IF(BZ133=SUMIF(EMP!$AQ$51:$AQ$90,CB132,EMP!$BK$51:$BK$90),CB132+1,CB132) -> 2 | CC133: 1347.8 | CD133: =SUMIF(EMP!$AQ$51:$AQ$90,CB133,EMP!$BJ$51:$BJ$90) -> 1265.362607
A134: 133 | B134: 2009-05-13 | C134: 3 | D134: Wednesday | E134: 1098 | F134: 1081 | G134: 1012 | H134: 1029 | I134: 1059 | J134: 1005 | K134: 984 | L134: 1058 | M134: 1121 | N134: 1159 | O134: 1179 | P134: 1168 | Q134: 1175 | R134: 1184 | S134: 1177 | T134: 1192 | U134: 1159 | V134: 1163 | W134: 1282 | X134: 1310 | Y134: 1284 | Z134: 1237 | AA134: 1180 | AB134: 1162 | AC134: 27458 | AD134: 1225.056946 | AE134: s2 | AF134: d1 | AG134: s2d1 | BX134: 6 | BY134: 12 | BZ134: 132 | CA134: =OFFSET(EMP!$D$1,IF($CA$1,BX134,366-BX134),BY134) -> 1102 | CB134: =IF(BZ134=SUMIF(EMP!$AQ$51:$AQ$90,CB133,EMP!$BK$51:$BK$90),CB133+1,CB133) -> 2 | CC134: 1347.4 | CD134: =SUMIF(EMP!$AQ$51:$AQ$90,CB134,EMP!$BJ$51:$BJ$90) -> 1265.362607
A135: 134 | B135: 2009-05-14 | C135: 4 | D135: Thursday | E135: 1119 | F135: 1108 | G135: 1074 | H135: 1085 | I135: 1075 | J135: 1055 | K135: 1024 | L135: 1088 | M135: 1134 | N135: 1166 | O135: 1212 | P135: 1160.7 | Q135: 1168 | R135: 1167 | S135: 1185 | T135: 1191 | U135: 1159 | V135: 1116 | W135: 1249 | X135: 1284 | Y135: 1211 | Z135: 1168 | AA135: 1088 | AB135: 1076 | AC135: 27362.7 | AD135: 1227.451251 | AE135: s2 | AF135: d1 | AG135: s2d1 | BX135: 6 | BY135: 13 | BZ135: 133 | CA135: =OFFSET(EMP!$D$1,IF($CA$1,BX135,366-BX135),BY135) -> 1073 | CB135: =IF(BZ135=SUMIF(EMP!$AQ$51:$AQ$90,CB134,EMP!$BK$51:$BK$90),CB134+1,CB134) -> 2 | CC135: 1347.3 | CD135: =SUMIF(EMP!$AQ$51:$AQ$90,CB135,EMP!$BJ$51:$BJ$90) -> 1265.362607
A136: 135 | B136: 2009-05-15 | C136: 5 | D136: Friday | E136: 1063 | F136: 1041 | G136: 1016 | H136: 1024 | I136: 1039 | J136: 1009 | K136: 1001 | L136: 1043 | M136: 1070 | N136: 1083 | O136: 1080 | P136: 1110 | Q136: 1062.5 | R136: 1122.6 | S136: 1165 | T136: 1151 | U136: 1133 | V136: 1170 | W136: 1272 | X136: 1297 | Y136: 1303 | Z136: 1271 | AA136: 1232 | AB136: 1159 | AC136: 26917.1 | AD136: 1231.906126 | AE136: s2 | AF136: d1 | AG136: s2d1 | BX136: 6 | BY136: 14 | BZ136: 134 | CA136: =OFFSET(EMP!$D$1,IF($CA$1,BX136,366-BX136),BY136) -> 1123 | CB136: =IF(BZ136=SUMIF(EMP!$AQ$51:$AQ$90,CB135,EMP!$BK$51:$BK$90),CB135+1,CB135) -> 2 | CC136: 1347.2 | CD136: =SUMIF(EMP!$AQ$51:$AQ$90,CB136,EMP!$BJ$51:$BJ$90) -> 1265.362607
A137: 136 | B137: 2009-05-16 | C137: 6 | D137: Saturday | E137: 1132 | F137: 1096 | G137: 1111 | H137: 1088 | I137: 1083 | J137: 1015 | K137: 980 | L137: 958 | M137: 977 | N137: 1013 | O137: 1024 | P137: 1040 | Q137: 1054.8 | R137: 1067 | S137: 1057 | T137: 1075 | U137: 1059 | V137: 1090 | W137: 1274 | X137: 1255 | Y137: 1291 | Z137: 1285 | AA137: 1227 | AB137: 1194 | AC137: 26445.8 | AD137: 1236.115514 | AE137: s2 | AF137: d1 | AG137: s2d1 | BX137: 6 | BY137: 15 | BZ137: 135 | CA137: =OFFSET(EMP!$D$1,IF($CA$1,BX137,366-BX137),BY137) -> 1132 | CB137: =IF(BZ137=SUMIF(EMP!$AQ$51:$AQ$90,CB136,EMP!$BK$51:$BK$90),CB136+1,CB136) -> 2 | CC137: 1347 | CD137: =SUMIF(EMP!$AQ$51:$AQ$90,CB137,EMP!$BJ$51:$BJ$90) -> 1265.362607
A138: 137 | B138: 2009-05-17 | C138: 7 | D138: Sunday | E138: 1125 | F138: 1056 | G138: 1072 | H138: 1046 | I138: 1063 | J138: 961 | K138: 974 | L138: 971 | M138: 940 | N138: 955 | O138: 752 | P138: 766 | Q138: 811 | R138: 831 | S138: 812 | T138: 832 | U138: 829 | V138: 854 | W138: 1042 | X138: 1072 | Y138: 1037 | Z138: 1087 | AA138: 1107 | AB138: 1045 | AC138: 23040 | AD138: 1216.703962 | AE138: s2 | AF138: d1 | AG138: s2d1 | BX138: 6 | BY138: 16 | BZ138: 136 | CA138: =OFFSET(EMP!$D$1,IF($CA$1,BX138,366-BX138),BY138) -> 1115 | CB138: =IF(BZ138=SUMIF(EMP!$AQ$51:$AQ$90,CB137,EMP!$BK$51:$BK$90),CB137+1,CB137) -> 2 | CC138: 1347 | CD138: =SUMIF(EMP!$AQ$51:$AQ$90,CB138,EMP!$BJ$51:$BJ$90) -> 1265.362607
A139: 138 | B139: 2009-05-18 | C139: 1 | D139: Monday | E139: 1020 | F139: 1007 | G139: 982 | H139: 984 | I139: 1026 | J139: 1022 | K139: 1018 | L139: 1067 | M139: 1140 | N139: 1136 | O139: 1068 | P139: 1178 | Q139: 1148 | R139: 1140 | S139: 1198 | T139: 1204 | U139: 1198 | V139: 1169 | W139: 1315 | X139: 1337 | Y139: 1278 | Z139: 1274 | AA139: 1233 | AB139: 1160 | AC139: 27302 | AD139: 1226.533566 | AE139: s2 | AF139: d1 | AG139: s2d1 | BX139: 6 | BY139: 17 | BZ139: 137 | CA139: =OFFSET(EMP!$D$1,IF($CA$1,BX139,366-BX139),BY139) -> 1078 | CB139: =IF(BZ139=SUMIF(EMP!$AQ$51:$AQ$90,CB138,EMP!$BK$51:$BK$90),CB138+1,CB138) -> 2 | CC139: 1347 | CD139: =SUMIF(EMP!$AQ$51:$AQ$90,CB139,EMP!$BJ$51:$BJ$90) -> 1265.362607
A140: 139 | B140: 2009-05-19 | C140: 2 | D140: Tuesday | E140: 1109 | F140: 1123 | G140: 1106 | H140: 1124 | I140: 1142 | J140: 1091 | K140: 1112 | L140: 1146 | M140: 1186 | N140: 1192 | O140: 1145 | P140: 1175 | Q140: 1164 | R140: 954 | S140: 1030 | T140: 1097 | U140: 1096 | V140: 1024 | W140: 1141 | X140: 1209 | Y140: 1173 | Z140: 1152 | AA140: 1078 | AB140: 1096 | AC140: 26865 | AD140: 1217.980209 | AE140: s2 | AF140: d1 | AG140: s2d1 | BX140: 6 | BY140: 18 | BZ140: 138 | CA140: =OFFSET(EMP!$D$1,IF($CA$1,BX140,366-BX140),BY140) -> 1096 | CB140: =IF(BZ140=SUMIF(EMP!$AQ$51:$AQ$90,CB139,EMP!$BK$51:$BK$90),CB139+1,CB139) -> 2 | CC140: 1346.9 | CD140: =SUMIF(EMP!$AQ$51:$AQ$90,CB140,EMP!$BJ$51:$BJ$90) -> 1265.362607
A141: 140 | B141: 2009-05-20 | C141: 3 | D141: Wednesday | E141: 1044 | F141: 1034 | G141: 1022 | H141: 995 | I141: 1038 | J141: 1024 | K141: 1000 | L141: 1070 | M141: 1107 | N141: 1110 | O141: 1105 | P141: 1093 | Q141: 325 | R141: 656 | S141: 897 | T141: 961 | U141: 1064 | V141: 1076 | W141: 1217 | X141: 1245 | Y141: 1231 | Z141: 1221 | AA141: 1179 | AB141: 1124 | AC141: 24838 | AD141: =AD140*(1-$AH$1)+W141*$AH$1 -> 1217.882188 | AE141: s2 | AF141: d1 | AG141: s2d1 | BX141: 6 | BY141: 19 | BZ141: 139 | CA141: =OFFSET(EMP!$D$1,IF($CA$1,BX141,366-BX141),BY141) -> 1224 | CB141: =IF(BZ141=SUMIF(EMP!$AQ$51:$AQ$90,CB140,EMP!$BK$51:$BK$90),CB140+1,CB140) -> 2 | CC141: 1346.8 | CD141: =SUMIF(EMP!$AQ$51:$AQ$90,CB141,EMP!$BJ$51:$BJ$90) -> 1265.362607
A142: 141 | B142: 2009-05-21 | C142: 4 | D142: Thursday | E142: 1084 | F142: 1055 | G142: 1051 | H142: 1047 | I142: 1069 | J142: 1014 | K142: 1008 | L142: 1039 | M142: 1119 | N142: 1132 | O142: 1122 | P142: 1161 | Q142: 1140 | R142: 1139 | S142: 1138 | T142: 1149 | U142: 1124 | V142: 1098 | W142: 1266 | X142: 1304 | Y142: 1291 | Z142: 1283 | AA142: 1206 | AB142: 1176 | AC142: 27215 | AD142: 1222.69397 | AE142: s2 | AF142: d1 | AG142: s2d1 | BX142: 6 | BY142: 20 | BZ142: 140 | CA142: =OFFSET(EMP!$D$1,IF($CA$1,BX142,366-BX142),BY142) -> 1251 | CB142: =IF(BZ142=SUMIF(EMP!$AQ$51:$AQ$90,CB141,EMP!$BK$51:$BK$90),CB141+1,CB141) -> 2 | CC142: 1346.8 | CD142: =SUMIF(EMP!$AQ$51:$AQ$90,CB142,EMP!$BJ$51:$BJ$90) -> 1265.362607
A143: 142 | B143: 2009-05-22 | C143: 5 | D143: Friday | E143: 1110 | F143: 1079 | G143: 1073 | H143: 1074 | I143: 1080 | J143: 1077 | K143: 1047 | L143: 1109 | M143: 1160 | N143: 1173 | O143: 1170 | P143: 1167 | Q143: 1175 | R143: 1187 | S143: 1191 | T143: 1194 | U143: 1186 | V143: 1154 | W143: 1291 | X143: 1327 | Y143: 1319 | Z143: 1314 | AA143: 1276 | AB143: 1194 | AC143: 28127 | AD143: 1229.524573 | AE143: s2 | AF143: d1 | AG143: s2d1 | BX143: 6 | BY143: 21 | BZ143: 141 | CA143: =OFFSET(EMP!$D$1,IF($CA$1,BX143,366-BX143),BY143) -> 1229 | CB143: =IF(BZ143=SUMIF(EMP!$AQ$51:$AQ$90,CB142,EMP!$BK$51:$BK$90),CB142+1,CB142) -> 2 | CC143: 1346 | CD143: =SUMIF(EMP!$AQ$51:$AQ$90,CB143,EMP!$BJ$51:$BJ$90) -> 1265.362607
A144: 143 | B144: 2009-05-23 | C144: 6 | D144: Saturday | E144: 1148 | F144: 1125 | G144: 1128 | H144: 1117 | I144: 1120 | J144: 1037 | K144: 942 | L144: 1009 | M144: 1024 | N144: 1010 | O144: 1043 | P144: 1058 | Q144: 1079 | R144: 1090 | S144: 1134 | T144: 1084 | U144: 1073 | V144: 1083 | W144: 1239 | X144: 1275 | Y144: 1274 | Z144: 1258 | AA144: 1187 | AB144: 1144 | AC144: 26681 | AD144: 1230.472115 | AE144: s2 | AF144: d1 | AG144: s2d1 | BX144: 6 | BY144: 22 | BZ144: 142 | CA144: =OFFSET(EMP!$D$1,IF($CA$1,BX144,366-BX144),BY144) -> 1214 | CB144: =IF(BZ144=SUMIF(EMP!$AQ$51:$AQ$90,CB143,EMP!$BK$51:$BK$90),CB143+1,CB143) -> 2 | CC144: 1346 | CD144: =SUMIF(EMP!$AQ$51:$AQ$90,CB144,EMP!$BJ$51:$BJ$90) -> 1265.362607
A145: 144 | B145: 2009-05-24 | C145: 7 | D145: Sunday | E145: 1097 | F145: 1081 | G145: 1056 | H145: 1045 | I145: 1044 | J145: 998 | K145: 964 | L145: 946 | M145: 976 | N145: 963 | O145: 957 | P145: 985 | Q145: 1001 | R145: 1002 | S145: 1005 | T145: 1027 | U145: 1040 | V145: 1039 | W145: 1182 | X145: 1194 | Y145: 1168 | Z145: 1180 | AA145: 1144 | AB145: 1083 | AC145: 25177 | AD145: 1225.624904 | AE145: s2 | AF145: d1 | AG145: s2d1 | BX145: 6 | BY145: 23 | BZ145: 143 | CA145: =OFFSET(EMP!$D$1,IF($CA$1,BX145,366-BX145),BY145) -> 1156 | CB145: =IF(BZ145=SUMIF(EMP!$AQ$51:$AQ$90,CB144,EMP!$BK$51:$BK$90),CB144+1,CB144) -> 2 | CC145: 1345 | CD145: =SUMIF(EMP!$AQ$51:$AQ$90,CB145,EMP!$BJ$51:$BJ$90) -> 1265.362607
A146: 145 | B146: 2009-05-25 | C146: 1 | D146: Monday | E146: 1048 | F146: 1014 | G146: 1003 | H146: 998 | I146: 1010 | J146: 949 | K146: 934 | L146: 975 | M146: 1005 | N146: 1000 | O146: 1025 | P146: 986 | Q146: 993 | R146: 966 | S146: 998 | T146: 974 | U146: 995 | V146: 1034 | W146: 1201 | X146: 1218 | Y146: 1183 | Z146: 1176 | AA146: 1108 | AB146: 1077 | AC146: 24870 | AD146: 1223.162413 | AE146: s2 | AF146: d1 | AG146: s2d1 | BX146: 6 | BY146: 24 | BZ146: 144 | CA146: =OFFSET(EMP!$D$1,IF($CA$1,BX146,366-BX146),BY146) -> 1080 | CB146: =IF(BZ146=SUMIF(EMP!$AQ$51:$AQ$90,CB145,EMP!$BK$51:$BK$90),CB145+1,CB145) -> 2 | CC146: 1345 | CD146: =SUMIF(EMP!$AQ$51:$AQ$90,CB146,EMP!$BJ$51:$BJ$90) -> 1265.362607
A147: 146 | B147: 2009-05-26 | C147: 2 | D147: Tuesday | E147: 1013 | F147: 994 | G147: 997 | H147: 986 | I147: 997 | J147: 1038 | K147: 981 | L147: 1013 | M147: 1072 | N147: 1092 | O147: 1088 | P147: 1061 | Q147: 1060 | R147: 1085 | S147: 1115 | T147: 1114 | U147: 1133 | V147: 1106 | W147: 1270 | X147: 1295 | Y147: 1277 | Z147: 1248 | AA147: 1180 | AB147: 1131 | AC147: 26346 | AD147: 1227.846172 | AE147: s2 | AF147: d1 | AG147: s2d1 | BX147: 7 | BY147: 1 | BZ147: 145 | CA147: =OFFSET(EMP!$D$1,IF($CA$1,BX147,366-BX147),BY147) -> 1050 | CB147: =IF(BZ147=SUMIF(EMP!$AQ$51:$AQ$90,CB146,EMP!$BK$51:$BK$90),CB146+1,CB146) -> 2 | CC147: 1345 | CD147: =SUMIF(EMP!$AQ$51:$AQ$90,CB147,EMP!$BJ$51:$BJ$90) -> 1265.362607
A148: 147 | B148: 2009-05-27 | C148: 3 | D148: Wednesday | E148: 1091 | F148: 1055 | G148: 1042 | H148: 1037 | I148: 1073 | J148: 1026 | K148: 961 | L148: 1056 | M148: 1111 | N148: 1136 | O148: 1139 | P148: 1152 | Q148: 1149 | R148: 1146 | S148: 1168 | T148: 1172 | U148: 1155 | V148: 1159 | W148: 1301 | X148: 1332 | Y148: 1153 | Z148: 1162 | AA148: 1117 | AB148: 1122 | AC148: 27015 | AD148: 1235.161555 | AE148: s2 | AF148: d1 | AG148: s2d1 | BX148: 7 | BY148: 2 | BZ148: 146 | CA148: =OFFSET(EMP!$D$1,IF($CA$1,BX148,366-BX148),BY148) -> 1057 | CB148: =IF(BZ148=SUMIF(EMP!$AQ$51:$AQ$90,CB147,EMP!$BK$51:$BK$90),CB147+1,CB147) -> 2 | CC148: 1344 | CD148: =SUMIF(EMP!$AQ$51:$AQ$90,CB148,EMP!$BJ$51:$BJ$90) -> 1265.362607
A149: 148 | B149: 2009-05-28 | C149: 4 | D149: Thursday | E149: 1117 | F149: 1091 | G149: 1048 | H149: 1026 | I149: 1036 | J149: 1026 | K149: 1002 | L149: 1058 | M149: 1108 | N149: 1138 | O149: 1128 | P149: 1141 | Q149: 1108 | R149: 1137 | S149: 1133 | T149: 1147 | U149: 1121 | V149: 1103 | W149: 1230 | X149: 1278 | Y149: 1273 | Z149: 1255 | AA149: 1205 | AB149: 1141 | AC149: 27050 | AD149: 1234.645399 | AE149: s2 | AF149: d1 | AG149: s2d1 | BX149: 7 | BY149: 3 | BZ149: 147 | CA149: =OFFSET(EMP!$D$1,IF($CA$1,BX149,366-BX149),BY149) -> 1023 | CB149: =IF(BZ149=SUMIF(EMP!$AQ$51:$AQ$90,CB148,EMP!$BK$51:$BK$90),CB148+1,CB148) -> 2 | CC149: 1344 | CD149: =SUMIF(EMP!$AQ$51:$AQ$90,CB149,EMP!$BJ$51:$BJ$90) -> 1265.362607
A150: 149 | B150: 2009-05-29 | C150: 5 | D150: Friday | E150: 1109 | F150: 1093 | G150: 1071 | H150: 1054 | I150: 1097 | J150: 1052 | K150: 1091 | L150: 1089 | M150: 1177 | N150: 1138 | O150: 1157 | P150: 1153 | Q150: 1095 | R150: 1169 | S150: 1161 | T150: 1101 | U150: 1119 | V150: 1078 | W150: 1224 | X150: 1230 | Y150: 1210 | Z150: 1187 | AA150: 1143 | AB150: 1089 | AC150: 27087 | AD150: 1233.580859 | AE150: s2 | AF150: d1 | AG150: s2d1 | BX150: 7 | BY150: 4 | BZ150: 148 | CA150: =OFFSET(EMP!$D$1,IF($CA$1,BX150,366-BX150),BY150) -> 922 | CB150: =IF(BZ150=SUMIF(EMP!$AQ$51:$AQ$90,CB149,EMP!$BK$51:$BK$90),CB149+1,CB149) -> 2 | CC150: 1343 | CD150: =SUMIF(EMP!$AQ$51:$AQ$90,CB150,EMP!$BJ$51:$BJ$90) -> 1265.362607
A151: 150 | B151: 2009-05-30 | C151: 6 | D151: Saturday | E151: 1034 | F151: 1016 | G151: 991 | H151: 974 | I151: 976 | J151: 937 | K151: 878 | L151: 887 | M151: 943 | N151: 900 | O151: 945 | P151: 934 | Q151: 945 | R151: 996 | S151: 949 | T151: 1088 | U151: 982 | V151: 1026 | W151: 1202 | X151: 1241 | Y151: 1233 | Z151: 1171 | AA151: 1133 | AB151: 1087 | AC151: 24468 | AD151: 1230.422774 | AE151: s2 | AF151: d1 | AG151: s2d1 | BX151: 7 | BY151: 5 | BZ151: 149 | CA151: =OFFSET(EMP!$D$1,IF($CA$1,BX151,366-BX151),BY151) -> 1037 | CB151: =IF(BZ151=SUMIF(EMP!$AQ$51:$AQ$90,CB150,EMP!$BK$51:$BK$90),CB150+1,CB150) -> 2 | CC151: 1342.2 | CD151: =SUMIF(EMP!$AQ$51:$AQ$90,CB151,EMP!$BJ$51:$BJ$90) -> 1265.362607
A152: 151 | B152: 2009-05-31 | C152: 7 | D152: Sunday | E152: 1041 | F152: 996 | G152: 979 | H152: 962 | I152: 967 | J152: 948 | K152: 921 | L152: 915 | M152: 895 | N152: 876 | O152: 897 | P152: 911 | Q152: 926 | R152: 937 | S152: 968 | T152: 983 | U152: 975 | V152: 993 | W152: 1187 | X152: 1230 | Y152: 1241 | Z152: 1200 | AA152: 1078 | AB152: 1020 | AC152: 24046 | AD152: 1226.080496 | AE152: s2 | AF152: d1 | AG152: s2d1 | BX152: 7 | BY152: 6 | BZ152: 150 | CA152: =OFFSET(EMP!$D$1,IF($CA$1,BX152,366-BX152),BY152) -> 1079 | CB152: =IF(BZ152=SUMIF(EMP!$AQ$51:$AQ$90,CB151,EMP!$BK$51:$BK$90),CB151+1,CB151) -> 2 | CC152: 1342.1 | CD152: =SUMIF(EMP!$AQ$51:$AQ$90,CB152,EMP!$BJ$51:$BJ$90) -> 1265.362607
A153: 152 | B153: 2009-06-01 | C153: 1 | D153: Monday | E153: 974 | F153: 978 | G153: 962 | H153: 955 | I153: 906 | J153: 968 | K153: 893 | L153: 847 | M153: 975 | N153: 1052 | O153: 1067 | P153: 1069 | Q153: 1048 | R153: 1081 | S153: 1108 | T153: 1025 | U153: 1222 | V153: 1085 | W153: 1254 | X153: 1300 | Y153: 1280 | Z153: 1257 | AA153: 1203 | AB153: 1096 | AC153: 25605 | AD153: 1228.872447 | AE153: s2 | AF153: d1 | AG153: s2d1 | BX153: 7 | BY153: 7 | BZ153: 151 | CA153: =OFFSET(EMP!$D$1,IF($CA$1,BX153,366-BX153),BY153) -> 1007 | CB153: =IF(BZ153=SUMIF(EMP!$AQ$51:$AQ$90,CB152,EMP!$BK$51:$BK$90),CB152+1,CB152) -> 2 | CC153: 1342.1 | CD153: =SUMIF(EMP!$AQ$51:$AQ$90,CB153,EMP!$BJ$51:$BJ$90) -> 1265.362607
A154: 153 | B154: 2009-06-02 | C154: 2 | D154: Tuesday | E154: 1058 | F154: 1038 | G154: 1042 | H154: 1044 | I154: 1070 | J154: 1020 | K154: 993 | L154: 1041 | M154: 1094 | N154: 1104 | O154: 1149 | P154: 1133 | Q154: 1126 | R154: 1080 | S154: 1121 | T154: 1122 | U154: 1135 | V154: 1083 | W154: 1277 | X154: 1289 | Y154: 1301 | Z154: 394 | AA154: 795 | AB154: 903 | AC154: 25412 | AD154: 1233.685202 | AE154: s2 | AF154: d1 | AG154: s2d1 | BX154: 7 | BY154: 8 | BZ154: 152 | CA154: =OFFSET(EMP!$D$1,IF($CA$1,BX154,366-BX154),BY154) -> 1047 | CB154: =IF(BZ154=SUMIF(EMP!$AQ$51:$AQ$90,CB153,EMP!$BK$51:$BK$90),CB153+1,CB153) -> 2 | CC154: 1342 | CD154: =SUMIF(EMP!$AQ$51:$AQ$90,CB154,EMP!$BJ$51:$BJ$90) -> 1265.362607
A155: 154 | B155: 2009-06-03 | C155: 3 | D155: Wednesday | E155: 1029 | F155: 986 | G155: 975 | H155: 970 | I155: 971 | J155: 1033 | K155: 868 | L155: 943 | M155: 1068 | N155: 1111 | O155: 0 | P155: 0 | Q155: 374 | R155: 779 | S155: 871 | T155: 863 | U155: 816 | V155: 834 | W155: 1256 | X155: 1276 | Y155: 982 | Z155: 1127 | AA155: 1200 | AB155: 1163 | AC155: 21495 | AD155: 1235.916682 | AE155: s2 | AF155: d1 | AG155: s2d1 | BX155: 7 | BY155: =BY131 -> 9 | BZ155: 153 | CA155: =OFFSET(EMP!$D$1,IF($CA$1,BX155,366-BX155),BY155) -> 1109 | CB155: =IF(BZ155=SUMIF(EMP!$AQ$51:$AQ$90,CB154,EMP!$BK$51:$BK$90),CB154+1,CB154) -> 2 | CC155: 1342 | CD155: =SUMIF(EMP!$AQ$51:$AQ$90,CB155,EMP!$BJ$51:$BJ$90) -> 1265.362607
A156: 155 | B156: 2009-06-04 | C156: 4 | D156: Thursday | E156: 1108 | F156: 1082 | G156: 1056 | H156: 1056 | I156: 1068 | J156: 1054 | K156: 1015 | L156: 1062 | M156: 1109 | N156: 1138 | O156: 1141 | P156: 1143 | Q156: 1132 | R156: 1146 | S156: 1142 | T156: 1133 | U156: 1077 | V156: 1049 | W156: 1239 | X156: 1231 | Y156: 1176 | Z156: 1165 | AA156: 1050 | AB156: 1066 | AC156: 26638 | AD156: 1236.225014 | AE156: s2 | AF156: d1 | AG156: s2d1 | BX156: 7 | BY156: 10 | BZ156: 154 | CA156: =OFFSET(EMP!$D$1,IF($CA$1,BX156,366-BX156),BY156) -> 1143 | CB156: =IF(BZ156=SUMIF(EMP!$AQ$51:$AQ$90,CB155,EMP!$BK$51:$BK$90),CB155+1,CB155) -> 2 | CC156: 1341.7 | CD156: =SUMIF(EMP!$AQ$51:$AQ$90,CB156,EMP!$BJ$51:$BJ$90) -> 1265.362607
A157: 156 | B157: 2009-06-05 | C157: 5 | D157: Friday | E157: 1072 | F157: 1009 | G157: 1025 | H157: 1018 | I157: 1004 | J157: 1023 | K157: 997 | L157: 1013 | M157: 1039 | N157: 1050 | O157: 1036 | P157: 1072 | Q157: 1042 | R157: 1068 | S157: 1081 | T157: 1065 | U157: 1058 | V157: 1052 | W157: 1195 | X157: 1231 | Y157: 1202 | Z157: 1165 | AA157: 1105 | AB157: 1052 | AC157: 25674 | AD157: 1232.102512 | AE157: s2 | AF157: d1 | AG157: s2d1 | BX157: 7 | BY157: 11 | BZ157: 155 | CA157: =OFFSET(EMP!$D$1,IF($CA$1,BX157,366-BX157),BY157) -> 1149 | CB157: =IF(BZ157=SUMIF(EMP!$AQ$51:$AQ$90,CB156,EMP!$BK$51:$BK$90),CB156+1,CB156) -> 2 | CC157: 1341 | CD157: =SUMIF(EMP!$AQ$51:$AQ$90,CB157,EMP!$BJ$51:$BJ$90) -> 1265.362607
A158: 157 | B158: 2009-06-06 | C158: 6 | D158: Saturday | E158: 1016 | F158: 991 | G158: 999 | H158: 989 | I158: 956 | J158: 969 | K158: 913 | L158: 920 | M158: 930 | N158: 939 | O158: 952 | P158: 967 | Q158: 968 | R158: 984 | S158: 987 | T158: 993 | U158: 994 | V158: 1000 | W158: 1201 | X158: 1223 | Y158: 1219 | Z158: 1197 | AA158: 1112 | AB158: 1092 | AC158: 24511 | AD158: 1228.992261 | AE158: s2 | AF158: d1 | AG158: s2d1 | BX158: 7 | BY158: 12 | BZ158: 156 | CA158: =OFFSET(EMP!$D$1,IF($CA$1,BX158,366-BX158),BY158) -> 1161 | CB158: =IF(BZ158=SUMIF(EMP!$AQ$51:$AQ$90,CB157,EMP!$BK$51:$BK$90),CB157+1,CB157) -> 2 | CC158: 1340 | CD158: =SUMIF(EMP!$AQ$51:$AQ$90,CB158,EMP!$BJ$51:$BJ$90) -> 1265.362607
A159: 158 | B159: 2009-06-07 | C159: 7 | D159: Sunday | E159: 1040 | F159: 983 | G159: 984 | H159: 964 | I159: 977 | J159: 926 | K159: 933 | L159: 933 | M159: 907 | N159: 876 | O159: 873 | P159: 894 | Q159: 954 | R159: 950 | S159: 923 | T159: 973 | U159: 966 | V159: 989 | W159: 1181 | X159: 1217 | Y159: 1193 | Z159: 1161 | AA159: 1097 | AB159: 1055 | AC159: 23949 | AD159: 1224.193035 | AE159: s2 | AF159: d1 | AG159: s2d1 | BX159: 7 | BY159: 13 | BZ159: 157 | CA159: =OFFSET(EMP!$D$1,IF($CA$1,BX159,366-BX159),BY159) -> 1161 | CB159: =IF(BZ159=SUMIF(EMP!$AQ$51:$AQ$90,CB158,EMP!$BK$51:$BK$90),CB158+1,CB158) -> 2 | CC159: 1340 | CD159: =SUMIF(EMP!$AQ$51:$AQ$90,CB159,EMP!$BJ$51:$BJ$90) -> 1265.362607
A160: 159 | B160: 2009-06-08 | C160: 1 | D160: Monday | E160: 932 | F160: 946 | G160: 945 | H160: 942 | I160: 972 | J160: 1005 | K160: 978 | L160: 1015 | M160: 1113 | N160: 1135 | O160: 1154 | P160: 1123 | Q160: 1106 | R160: 1135 | S160: 1159 | T160: 1162 | U160: 1144 | V160: 1167 | W160: 1267 | X160: 1298 | Y160: 1294 | Z160: 1257 | AA160: 1168 | AB160: 1142 | AC160: 26559 | AD160: 1228.473731 | AE160: s2 | AF160: d1 | AG160: s2d1 | BX160: 7 | BY160: 14 | BZ160: 158 | CA160: =OFFSET(EMP!$D$1,IF($CA$1,BX160,366-BX160),BY160) -> 1178 | CB160: =IF(BZ160=SUMIF(EMP!$AQ$51:$AQ$90,CB159,EMP!$BK$51:$BK$90),CB159+1,CB159) -> 2 | CC160: 1340 | CD160: =SUMIF(EMP!$AQ$51:$AQ$90,CB160,EMP!$BJ$51:$BJ$90) -> 1265.362607
A161: 160 | B161: 2009-06-09 | C161: 2 | D161: Tuesday | E161: 1113 | F161: 1108 | G161: 1083 | H161: 1059 | I161: 1077 | J161: 1082 | K161: 1022 | L161: 1093 | M161: 1150 | N161: 1157 | O161: 1117 | P161: 1120 | Q161: 1128 | R161: 1134 | S161: 1153 | T161: 1150 | U161: 1124 | V161: 1109 | W161: 1209 | X161: 1236 | Y161: 1250 | Z161: 1191 | AA161: 1112 | AB161: 1080 | AC161: 27057 | AD161: 1226.526358 | AE161: s2 | AF161: d1 | AG161: s2d1 | BX161: 7 | BY161: 15 | BZ161: 159 | CA161: =OFFSET(EMP!$D$1,IF($CA$1,BX161,366-BX161),BY161) -> 1186 | CB161: =IF(BZ161=SUMIF(EMP!$AQ$51:$AQ$90,CB160,EMP!$BK$51:$BK$90),CB160+1,CB160) -> 2 | CC161: 1340 | CD161: =SUMIF(EMP!$AQ$51:$AQ$90,CB161,EMP!$BJ$51:$BJ$90) -> 1265.362607
A162: 161 | B162: 2009-06-10 | C162: 3 | D162: Wednesday | E162: 1016 | F162: 1016 | G162: 966 | H162: 994 | I162: 1025 | J162: 1035 | K162: 1009 | L162: 1092 | M162: 1116 | N162: 1161 | O162: 1130 | P162: 1102 | Q162: 1074 | R162: 1100 | S162: 1121 | T162: 1127 | U162: 1108 | V162: 1075 | W162: 1209 | X162: 1231 | Y162: 1257 | Z162: 1181 | AA162: 1175 | AB162: 1080 | AC162: 26400 | AD162: 1224.773722 | AE162: s2 | AF162: d1 | AG162: s2d1 | BX162: 7 | BY162: 16 | BZ162: 160 | CA162: =OFFSET(EMP!$D$1,IF($CA$1,BX162,366-BX162),BY162) -> 1135 | CB162: =IF(BZ162=SUMIF(EMP!$AQ$51:$AQ$90,CB161,EMP!$BK$51:$BK$90),CB161+1,CB161) -> 2 | CC162: 1339.3 | CD162: =SUMIF(EMP!$AQ$51:$AQ$90,CB162,EMP!$BJ$51:$BJ$90) -> 1265.362607
A163: 162 | B163: 2009-06-11 | C163: 4 | D163: Thursday | E163: 1109 | F163: 1062 | G163: 1041 | H163: 1037 | I163: 1006 | J163: 1009 | K163: 1004 | L163: 1055 | M163: 1084 | N163: 1109 | O163: 1069 | P163: 1070 | Q163: 1037 | R163: 1021 | S163: 1040 | T163: 1053 | U163: 947 | V163: 1010 | W163: 1166 | X163: 1161 | Y163: 1130 | Z163: 1066 | AA163: 1047 | AB163: 970 | AC163: 25303 | AD163: 1218.89635 | AE163: s2 | AF163: d1 | AG163: s2d1 | BX163: 7 | BY163: 17 | BZ163: 161 | CA163: =OFFSET(EMP!$D$1,IF($CA$1,BX163,366-BX163),BY163) -> 1091 | CB163: =IF(BZ163=SUMIF(EMP!$AQ$51:$AQ$90,CB162,EMP!$BK$51:$BK$90),CB162+1,CB162) -> 2 | CC163: 1339 | CD163: =SUMIF(EMP!$AQ$51:$AQ$90,CB163,EMP!$BJ$51:$BJ$90) -> 1265.362607
A164: 163 | B164: 2009-06-12 | C164: 5 | D164: Friday | E164: 940 | F164: 951 | G164: 930 | H164: 924 | I164: 942 | J164: 968 | K164: 943 | L164: 981 | M164: 1047 | N164: 1049 | O164: 1077 | P164: 1072 | Q164: 961 | R164: 956 | S164: 1003 | T164: 1059 | U164: 1067 | V164: 1035 | W164: 1185 | X164: 1201 | Y164: 1185 | Z164: 1156 | AA164: 1105 | AB164: 1064 | AC164: 24801 | AD164: 1215.506715 | AE164: s2 | AF164: d1 | AG164: s2d1 | BX164: 7 | BY164: 18 | BZ164: 162 | CA164: =OFFSET(EMP!$D$1,IF($CA$1,BX164,366-BX164),BY164) -> 1100 | CB164: =IF(BZ164=SUMIF(EMP!$AQ$51:$AQ$90,CB163,EMP!$BK$51:$BK$90),CB163+1,CB163) -> 2 | CC164: 1339 | CD164: =SUMIF(EMP!$AQ$51:$AQ$90,CB164,EMP!$BJ$51:$BJ$90) -> 1265.362607
A165: 164 | B165: 2009-06-13 | C165: 6 | D165: Saturday | E165: 1031 | F165: 1016 | G165: 1007 | H165: 969 | I165: 989 | J165: 957 | K165: 916 | L165: 925 | M165: 938 | N165: 920 | O165: 937 | P165: 931 | Q165: 925 | R165: 943 | S165: 952 | T165: 941 | U165: 946 | V165: 991 | W165: 1129 | X165: 1122 | Y165: 1111 | Z165: 1101 | AA165: 1087 | AB165: 1038 | AC165: 23822 | AD165: 1206.856044 | AE165: s2 | AF165: d1 | AG165: s2d1 | BX165: 7 | BY165: 19 | BZ165: 163 | CA165: =OFFSET(EMP!$D$1,IF($CA$1,BX165,366-BX165),BY165) -> 1258 | CB165: =IF(BZ165=SUMIF(EMP!$AQ$51:$AQ$90,CB164,EMP!$BK$51:$BK$90),CB164+1,CB164) -> 2 | CC165: 1339 | CD165: =SUMIF(EMP!$AQ$51:$AQ$90,CB165,EMP!$BJ$51:$BJ$90) -> 1265.362607
A166: 165 | B166: 2009-06-14 | C166: 7 | D166: Sunday | E166: 951 | F166: 899 | G166: 740 | H166: 623 | I166: 832 | J166: 857 | K166: 861 | L166: 787 | M166: 878 | N166: 864 | O166: 784 | P166: 859 | Q166: 781 | R166: 837 | S166: 710 | T166: 863 | U166: 885 | V166: 932 | W166: 1184 | X166: 1150 | Y166: 1157 | Z166: 1118 | AA166: 1089 | AB166: 1009 | AC166: 21650 | AD166: 1204.570439 | AE166: s2 | AF166: d1 | AG166: s2d1 | BX166: 7 | BY166: 20 | BZ166: 164 | CA166: =OFFSET(EMP!$D$1,IF($CA$1,BX166,366-BX166),BY166) -> 1283 | CB166: =IF(BZ166=SUMIF(EMP!$AQ$51:$AQ$90,CB165,EMP!$BK$51:$BK$90),CB165+1,CB165) -> 2 | CC166: 1339 | CD166: =SUMIF(EMP!$AQ$51:$AQ$90,CB166,EMP!$BJ$51:$BJ$90) -> 1265.362607
A167: 166 | B167: 2009-06-15 | C167: 1 | D167: Monday | E167: 960 | F167: 960 | G167: 939 | H167: 946 | I167: 947 | J167: 1004 | K167: 948 | L167: 961 | M167: 1056 | N167: 1079 | O167: 1074 | P167: 1070 | Q167: 1074 | R167: 1085 | S167: 1116 | T167: 1153 | U167: 1096 | V167: 1071 | W167: 1224 | X167: 1248 | Y167: 1243 | Z167: 1170 | AA167: 1088 | AB167: 1016 | AC167: 25528 | AD167: 1206.513395 | AE167: s2 | AF167: d1 | AG167: s2d1 | BX167: 7 | BY167: 21 | BZ167: 165 | CA167: =OFFSET(EMP!$D$1,IF($CA$1,BX167,366-BX167),BY167) -> 1262 | CB167: =IF(BZ167=SUMIF(EMP!$AQ$51:$AQ$90,CB166,EMP!$BK$51:$BK$90),CB166+1,CB166) -> 2 | CC167: 1339 | CD167: =SUMIF(EMP!$AQ$51:$AQ$90,CB167,EMP!$BJ$51:$BJ$90) -> 1265.362607
A168: 167 | B168: 2009-06-16 | C168: 2 | D168: Tuesday | E168: 988 | F168: 955 | G168: 921 | H168: 903 | I168: 901 | J168: 939 | K168: 943 | L168: 950 | M168: 1013 | N168: 1007 | O168: 1009 | P168: 967 | Q168: 942 | R168: 977 | S168: 996 | T168: 920 | U168: 987 | V168: 972 | W168: 1206 | X168: 1207 | Y168: 1194 | Z168: 1119 | AA168: 1085 | AB168: 1034 | AC168: 24135 | AD168: 1206.462056 | AE168: s2 | AF168: d1 | AG168: s2d1 | BX168: 7 | BY168: 22 | BZ168: 166 | CA168: =OFFSET(EMP!$D$1,IF($CA$1,BX168,366-BX168),BY168) -> 1205 | CB168: =IF(BZ168=SUMIF(EMP!$AQ$51:$AQ$90,CB167,EMP!$BK$51:$BK$90),CB167+1,CB167) -> 2 | CC168: 1338.3 | CD168: =SUMIF(EMP!$AQ$51:$AQ$90,CB168,EMP!$BJ$51:$BJ$90) -> 1265.362607
A169: 168 | B169: 2009-06-17 | C169: 3 | D169: Wednesday | E169: 971 | F169: 952 | G169: 955 | H169: 951 | I169: 985 | J169: 1027 | K169: 965 | L169: 973 | M169: 1015 | N169: 1025 | O169: 1032 | P169: 1049 | Q169: 1009 | R169: 1032 | S169: 1068 | T169: 1100 | U169: 1097 | V169: 1062 | W169: 1207 | X169: 1243 | Y169: 1187 | Z169: 1190 | AA169: 1131 | AB169: 1038 | AC169: 25264 | AD169: 1206.51585 | AE169: s2 | AF169: d1 | AG169: s2d1 | BX169: 7 | BY169: 23 | BZ169: 167 | CA169: =OFFSET(EMP!$D$1,IF($CA$1,BX169,366-BX169),BY169) -> 1133 | CB169: =IF(BZ169=SUMIF(EMP!$AQ$51:$AQ$90,CB168,EMP!$BK$51:$BK$90),CB168+1,CB168) -> 2 | CC169: 1338 | CD169: =SUMIF(EMP!$AQ$51:$AQ$90,CB169,EMP!$BJ$51:$BJ$90) -> 1265.362607
A170: 169 | B170: 2009-06-18 | C170: 4 | D170: Thursday | E170: 1024 | F170: 983 | G170: 969 | H170: 960 | I170: 993 | J170: 995 | K170: 960 | L170: 985 | M170: 1062 | N170: 1083 | O170: 1088 | P170: 1086 | Q170: 1069 | R170: 1063 | S170: 1115 | T170: 1118 | U170: 1112 | V170: 1094 | W170: 1292 | X170: 1285 | Y170: 1271 | Z170: 1249 | AA170: 1194 | AB170: 1074 | AC170: 26124 | AD170: 1215.064265 | AE170: s2 | AF170: d1 | AG170: s2d1 | BX170: 7 | BY170: 24 | BZ170: 168 | CA170: =OFFSET(EMP!$D$1,IF($CA$1,BX170,366-BX170),BY170) -> 1094 | CB170: =IF(BZ170=SUMIF(EMP!$AQ$51:$AQ$90,CB169,EMP!$BK$51:$BK$90),CB169+1,CB169) -> 2 | CC170: 1338 | CD170: =SUMIF(EMP!$AQ$51:$AQ$90,CB170,EMP!$BJ$51:$BJ$90) -> 1265.362607
A171: 170 | B171: 2009-06-19 | C171: 5 | D171: Friday | E171: 1034 | F171: 1045 | G171: 996 | H171: 979 | I171: 1009 | J171: 1040 | K171: 1020 | L171: 1048 | M171: 1109 | N171: 1148 | O171: 1141 | P171: 1160 | Q171: 1083 | R171: 1117 | S171: 1096 | T171: 1124 | U171: 1094 | V171: 1106 | W171: 1254 | X171: 1285 | Y171: 1236 | Z171: 1142 | AA171: 1065 | AB171: 1013 | AC171: 26344 | AD171: 1218.957839 | AE171: s2 | AF171: d1 | AG171: s2d1 | BX171: 8 | BY171: 1 | BZ171: 169 | CA171: =OFFSET(EMP!$D$1,IF($CA$1,BX171,366-BX171),BY171) -> 1048 | CB171: =IF(BZ171=SUMIF(EMP!$AQ$51:$AQ$90,CB170,EMP!$BK$51:$BK$90),CB170+1,CB170) -> 2 | CC171: 1338 | CD171: =SUMIF(EMP!$AQ$51:$AQ$90,CB171,EMP!$BJ$51:$BJ$90) -> 1265.362607
A172: 171 | B172: 2009-06-20 | C172: 6 | D172: Saturday | E172: 994 | F172: 969 | G172: 953 | H172: 928 | I172: 955 | J172: 963 | K172: 906 | L172: 951 | M172: 955 | N172: 950 | O172: 1001 | P172: 1001 | Q172: 974 | R172: 998 | S172: 1009 | T172: 1025 | U172: 1030 | V172: 1032 | W172: 1225 | X172: 1180 | Y172: 1205 | Z172: 1185 | AA172: 1106 | AB172: 1050 | AC172: 24545 | AD172: 1219.562055 | AE172: s2 | AF172: d1 | AG172: s2d1 | BX172: 8 | BY172: 2 | BZ172: 170 | CA172: =OFFSET(EMP!$D$1,IF($CA$1,BX172,366-BX172),BY172) -> 1048 | CB172: =IF(BZ172=SUMIF(EMP!$AQ$51:$AQ$90,CB171,EMP!$BK$51:$BK$90),CB171+1,CB171) -> 2 | CC172: 1338 | CD172: =SUMIF(EMP!$AQ$51:$AQ$90,CB172,EMP!$BJ$51:$BJ$90) -> 1265.362607
A173: 172 | B173: 2009-06-21 | C173: 7 | D173: Sunday | E173: 937 | F173: 869 | G173: 848 | H173: 825 | I173: 849 | J173: 849 | K173: 801 | L173: 813 | M173: 783 | N173: 757 | O173: 727 | P173: 789 | Q173: 848 | R173: 829 | S173: 877 | T173: 978 | U173: 983 | V173: 1019 | W173: 1163 | X173: 1126 | Y173: 1152 | Z173: 1100 | AA173: 1058 | AB173: 974 | AC173: 21954 | AD173: 1213.905849 | AE173: s2 | AF173: d1 | AG173: s2d1 | BX173: 8 | BY173: 3 | BZ173: 171 | CA173: =OFFSET(EMP!$D$1,IF($CA$1,BX173,366-BX173),BY173) -> 1022 | CB173: =IF(BZ173=SUMIF(EMP!$AQ$51:$AQ$90,CB172,EMP!$BK$51:$BK$90),CB172+1,CB172) -> 2 | CC173: 1337 | CD173: =SUMIF(EMP!$AQ$51:$AQ$90,CB173,EMP!$BJ$51:$BJ$90) -> 1265.362607
A174: 173 | B174: 2009-06-22 | C174: 1 | D174: Monday | E174: 933 | F174: 944 | G174: 941 | H174: 918 | I174: 959 | J174: 974 | K174: 988 | L174: 1041 | M174: 961 | N174: 1093 | O174: 1028 | P174: 1038 | Q174: 1026 | R174: 1101 | S174: 1114 | T174: 1150 | U174: 1106 | V174: 1120 | W174: 1250 | X174: 1276 | Y174: 1279 | Z174: 1221 | AA174: 1190 | AB174: 1096 | AC174: 25747 | AD174: 1217.515264 | AE174: s2 | AF174: d1 | AG174: s2d1 | BX174: 8 | BY174: 4 | BZ174: 172 | CA174: =OFFSET(EMP!$D$1,IF($CA$1,BX174,366-BX174),BY174) -> 998 | CB174: =IF(BZ174=SUMIF(EMP!$AQ$51:$AQ$90,CB173,EMP!$BK$51:$BK$90),CB173+1,CB173) -> 2 | CC174: 1337 | CD174: =SUMIF(EMP!$AQ$51:$AQ$90,CB174,EMP!$BJ$51:$BJ$90) -> 1265.362607
A175: 174 | B175: 2009-06-23 | C175: 2 | D175: Tuesday | E175: 1077 | F175: 1122 | G175: 1054 | H175: 1032 | I175: 1053 | J175: 1064 | K175: 1037 | L175: 1051 | M175: 1097 | N175: 1126 | O175: 1086 | P175: 1095 | Q175: 1097 | R175: 1130 | S175: 1164 | T175: 1160 | U175: 1129 | V175: 1124 | W175: 1293 | X175: 1293 | Y175: 1299 | Z175: 1260 | AA175: 1181 | AB175: 1143 | AC175: 27167 | AD175: 1225.063738 | AE175: s2 | AF175: d1 | AG175: s2d1 | BX175: 8 | BY175: 5 | BZ175: 173 | CA175: =OFFSET(EMP!$D$1,IF($CA$1,BX175,366-BX175),BY175) -> 1012 | CB175: =IF(BZ175=SUMIF(EMP!$AQ$51:$AQ$90,CB174,EMP!$BK$51:$BK$90),CB174+1,CB174) -> 2 | CC175: 1336.7 | CD175: =SUMIF(EMP!$AQ$51:$AQ$90,CB175,EMP!$BJ$51:$BJ$90) -> 1265.362607
A176: 175 | B176: 2009-06-24 | C176: 3 | D176: Wednesday | E176: 1103 | F176: 1084 | G176: 1060 | H176: 1060 | I176: 1061 | J176: 1047 | K176: 859 | L176: 916 | M176: 988 | N176: 1025 | O176: 1013 | P176: 1051 | Q176: 834 | R176: 958 | S176: 1030 | T176: 1053 | U176: 1047 | V176: 1074 | W176: 1193 | X176: 1247 | Y176: 1229 | Z176: 1202 | AA176: 1128 | AB176: 1067 | AC176: 25329 | AD176: 1221.857364 | AE176: s2 | AF176: d1 | AG176: s2d1 | BX176: 8 | BY176: 6 | BZ176: 174 | CA176: =OFFSET(EMP!$D$1,IF($CA$1,BX176,366-BX176),BY176) -> 1062 | CB176: =IF(BZ176=SUMIF(EMP!$AQ$51:$AQ$90,CB175,EMP!$BK$51:$BK$90),CB175+1,CB175) -> 2 | CC176: 1336 | CD176: =SUMIF(EMP!$AQ$51:$AQ$90,CB176,EMP!$BJ$51:$BJ$90) -> 1265.362607
A177: 176 | B177: 2009-06-25 | C177: 4 | D177: Thursday | E177: 1038 | F177: 1018 | G177: 990 | H177: 971 | I177: 1000 | J177: 1003 | K177: 733 | L177: 912 | M177: 825 | N177: 932 | O177: 986 | P177: 703 | Q177: 924 | R177: 934 | S177: 1046 | T177: 1047 | U177: 1033 | V177: 1014 | W177: 1124 | X177: 1192 | Y177: 1180 | Z177: 1136 | AA177: 1075 | AB177: 1016 | AC177: 23832 | AD177: 1212.071628 | AE177: s2 | AF177: d1 | AG177: s2d1 | BX177: 8 | BY177: 7 | BZ177: 175 | CA177: =OFFSET(EMP!$D$1,IF($CA$1,BX177,366-BX177),BY177) -> 985 | CB177: =IF(BZ177=SUMIF(EMP!$AQ$51:$AQ$90,CB176,EMP!$BK$51:$BK$90),CB176+1,CB176) -> 2 | CC177: 1335 | CD177: =SUMIF(EMP!$AQ$51:$AQ$90,CB177,EMP!$BJ$51:$BJ$90) -> 1265.362607
A178: 177 | B178: 2009-06-26 | C178: 5 | D178: Friday | E178: 941 | F178: 942 | G178: 912 | H178: 932 | I178: 968 | J178: 981 | K178: 1038 | L178: 963 | M178: 1012 | N178: 987 | O178: 995 | P178: 990 | Q178: 1044 | R178: 1005 | S178: 1008 | T178: 1036 | U178: 1023 | V178: 1040 | W178: 1193 | X178: 1176 | Y178: 1072 | Z178: 1057 | AA178: 983 | AB178: 940 | AC178: 24238 | AD178: 1210.164465 | AE178: s2 | AF178: d1 | AG178: s2d1 | BX178: 8 | BY178: 8 | BZ178: 176 | CA178: =OFFSET(EMP!$D$1,IF($CA$1,BX178,366-BX178),BY178) -> 1055.5 | CB178: =IF(BZ178=SUMIF(EMP!$AQ$51:$AQ$90,CB177,EMP!$BK$51:$BK$90),CB177+1,CB177) -> 2 | CC178: 1335 | CD178: =SUMIF(EMP!$AQ$51:$AQ$90,CB178,EMP!$BJ$51:$BJ$90) -> 1265.362607
A179: 178 | B179: 2009-06-27 | C179: 6 | D179: Saturday | E179: 909 | F179: 860 | G179: 871 | H179: 877 | I179: 885 | J179: 903 | K179: 867 | L179: 878 | M179: 895 | N179: 967 | O179: 980 | P179: 984 | Q179: 963 | R179: 934 | S179: 950 | T179: 956 | U179: 954 | V179: 1009 | W179: 1226 | X179: 1218 | Y179: 1210 | Z179: 1163 | AA179: 1090 | AB179: 1014 | AC179: 23563 | AD179: 1211.748018 | AE179: s2 | AF179: d1 | AG179: s2d1 | BX179: 8 | BY179: 9 | BZ179: 177 | CA179: =OFFSET(EMP!$D$1,IF($CA$1,BX179,366-BX179),BY179) -> 1106.5 | CB179: =IF(BZ179=SUMIF(EMP!$AQ$51:$AQ$90,CB178,EMP!$BK$51:$BK$90),CB178+1,CB178) -> 2 | CC179: 1335 | CD179: =SUMIF(EMP!$AQ$51:$AQ$90,CB179,EMP!$BJ$51:$BJ$90) -> 1265.362607
A180: 179 | B180: 2009-06-28 | C180: 7 | D180: Sunday | E180: 935 | F180: 922 | G180: 906 | H180: 892 | I180: 906 | J180: 928 | K180: 864 | L180: 925 | M180: 876 | N180: 818 | O180: 808 | P180: 811 | Q180: 804 | R180: 826 | S180: 819 | T180: 871 | U180: 883 | V180: 910 | W180: 1083 | X180: 1087 | Y180: 1077 | Z180: 1015 | AA180: 932 | AB180: 882 | AC180: 21780 | AD180: 1198.873217 | AE180: s2 | AF180: d1 | AG180: s2d1 | BX180: 8 | BY180: 10 | BZ180: 178 | CA180: =OFFSET(EMP!$D$1,IF($CA$1,BX180,366-BX180),BY180) -> 1115.5 | CB180: =IF(BZ180=SUMIF(EMP!$AQ$51:$AQ$90,CB179,EMP!$BK$51:$BK$90),CB179+1,CB179) -> 2 | CC180: 1334.3 | CD180: =SUMIF(EMP!$AQ$51:$AQ$90,CB180,EMP!$BJ$51:$BJ$90) -> 1265.362607
A181: 180 | B181: 2009-06-29 | C181: 1 | D181: Monday | E181: 831 | F181: 822 | G181: 816 | H181: 823 | I181: 874 | J181: 968 | K181: 939 | L181: 930 | M181: 975 | N181: 975 | O181: 1008 | P181: 1012 | Q181: 997 | R181: 1019 | S181: 1029 | T181: 1038 | U181: 1013 | V181: 1056 | W181: 1130.7 | X181: 1141.5 | Y181: 1143 | Z181: 1058 | AA181: 1061 | AB181: 1002 | AC181: 23661.2 | AD181: 1192.055895 | AE181: s2 | AF181: d1 | AG181: s2d1 | BX181: 8 | BY181: 11 | BZ181: 179 | CA181: =OFFSET(EMP!$D$1,IF($CA$1,BX181,366-BX181),BY181) -> 1153.5 | CB181: =IF(BZ181=SUMIF(EMP!$AQ$51:$AQ$90,CB180,EMP!$BK$51:$BK$90),CB180+1,CB180) -> 2 | CC181: 1334 | CD181: =SUMIF(EMP!$AQ$51:$AQ$90,CB181,EMP!$BJ$51:$BJ$90) -> 1265.362607
A182: 181 | B182: 2009-06-30 | C182: 2 | D182: Tuesday | E182: 955 | F182: 957 | G182: 925 | H182: 936 | I182: 971 | J182: 1015 | K182: 995 | L182: 978 | M182: 985 | N182: 1002 | O182: 950 | P182: 972 | Q182: 980 | R182: 989 | S182: 1022 | T182: 986 | U182: 978 | V182: 958 | W182: 1068 | X182: 1050 | Y182: 1074 | Z182: 1058 | AA182: 990 | AB182: 949 | AC182: 23743 | AD182: 1179.650305 | AE182: s2 | AF182: d1 | AG182: s2d1 | BX182: 8 | BY182: 12 | BZ182: 180 | CA182: =OFFSET(EMP!$D$1,IF($CA$1,BX182,366-BX182),BY182) -> 1159.5 | CB182: =IF(BZ182=SUMIF(EMP!$AQ$51:$AQ$90,CB181,EMP!$BK$51:$BK$90),CB181+1,CB181) -> 2 | CC182: 1334 | CD182: =SUMIF(EMP!$AQ$51:$AQ$90,CB182,EMP!$BJ$51:$BJ$90) -> 1265.362607
A183: 182 | B183: 2009-07-01 | C183: 3 | D183: Wednesday | E183: 907 | F183: 909 | G183: 900 | H183: 892 | I183: 907 | J183: 894 | K183: 856 | L183: 900 | M183: 915 | N183: 884 | O183: 894 | P183: 937 | Q183: 918 | R183: 946 | S183: 942 | T183: 951 | U183: 925 | V183: 918 | W183: 1121 | X183: 1176 | Y183: 1133 | Z183: 1095 | AA183: 1046 | AB183: 962 | AC183: 22928 | AD183: 1173.785275 | AE183: s2 | AF183: d1 | AG183: s2d1 | BX183: 8 | BY183: 13 | BZ183: 181 | CA183: =OFFSET(EMP!$D$1,IF($CA$1,BX183,366-BX183),BY183) -> 1151.5 | CB183: =IF(BZ183=SUMIF(EMP!$AQ$51:$AQ$90,CB182,EMP!$BK$51:$BK$90),CB182+1,CB182) -> 2 | CC183: 1333.9 | CD183: =SUMIF(EMP!$AQ$51:$AQ$90,CB183,EMP!$BJ$51:$BJ$90) -> 1265.362607
A184: 183 | B184: 2009-07-02 | C184: 4 | D184: Thursday | E184: 954 | F184: 923 | G184: 921 | H184: 900 | I184: 951 | J184: 890 | K184: 976 | L184: 990 | M184: 1063 | N184: 1071 | O184: 1077 | P184: 1050 | Q184: 1055 | R184: 1068 | S184: 1093 | T184: 1095 | U184: 1096 | V184: 1047 | W184: 1171 | X184: 1209 | Y184: 1201 | Z184: 1163 | AA184: 1119 | AB184: 1076 | AC184: 25159 | AD184: 1173.506747 | AE184: s2 | AF184: d1 | AG184: s2d1 | BX184: 8 | BY184: 14 | BZ184: 182 | CA184: =OFFSET(EMP!$D$1,IF($CA$1,BX184,366-BX184),BY184) -> 1146.5 | CB184: =IF(BZ184=SUMIF(EMP!$AQ$51:$AQ$90,CB183,EMP!$BK$51:$BK$90),CB183+1,CB183) -> 2 | CC184: 1333.4 | CD184: =SUMIF(EMP!$AQ$51:$AQ$90,CB184,EMP!$BJ$51:$BJ$90) -> 1265.362607
A185: 184 | B185: 2009-07-03 | C185: 5 | D185: Friday | E185: 1019 | F185: 1004 | G185: 989 | H185: 965 | I185: 1001 | J185: 1039 | K185: 990 | L185: 1015 | M185: 1052 | N185: 1052 | O185: 1076 | P185: 1094 | Q185: 1041 | R185: 1091 | S185: 1087 | T185: 1088 | U185: 1054 | V185: 1053 | W185: 1155 | X185: 1192 | Y185: 1221 | Z185: 1219 | AA185: 1201 | AB185: 1112 | AC185: 25810 | AD185: 1171.656073 | AE185: s2 | AF185: d1 | AG185: s2d1 | BX185: 8 | BY185: 15 | BZ185: 183 | CA185: =OFFSET(EMP!$D$1,IF($CA$1,BX185,366-BX185),BY185) -> 1159.5 | CB185: =IF(BZ185=SUMIF(EMP!$AQ$51:$AQ$90,CB184,EMP!$BK$51:$BK$90),CB184+1,CB184) -> 2 | CC185: 1333 | CD185: =SUMIF(EMP!$AQ$51:$AQ$90,CB185,EMP!$BJ$51:$BJ$90) -> 1265.362607
A186: 185 | B186: 2009-07-04 | C186: 6 | D186: Saturday | E186: 970 | F186: 1004 | G186: 969 | H186: 960 | I186: 972 | J186: 932 | K186: 876 | L186: 906 | M186: 940 | N186: 937 | O186: 956 | P186: 984 | Q186: 970 | R186: 975 | S186: 968 | T186: 969 | U186: 974 | V186: 1005 | W186: 1160 | X186: 1141 | Y186: 1155 | Z186: 1097 | AA186: 1097 | AB186: 1009 | AC186: 23926 | AD186: 1170.490465 | AE186: s2 | AF186: d1 | AG186: s2d1 | BX186: 8 | BY186: 16 | BZ186: 184 | CA186: =OFFSET(EMP!$D$1,IF($CA$1,BX186,366-BX186),BY186) -> 1154 | CB186: =IF(BZ186=SUMIF(EMP!$AQ$51:$AQ$90,CB185,EMP!$BK$51:$BK$90),CB185+1,CB185) -> 2 | CC186: 1333 | CD186: =SUMIF(EMP!$AQ$51:$AQ$90,CB186,EMP!$BJ$51:$BJ$90) -> 1265.362607
A187: 186 | B187: 2009-07-05 | C187: 7 | D187: Sunday | E187: 979 | F187: 942 | G187: 920 | H187: 932 | I187: 943 | J187: 956 | K187: 835 | L187: 934 | M187: 911 | N187: 857 | O187: 847 | P187: 864 | Q187: 870 | R187: 882 | S187: 881 | T187: 914 | U187: 914 | V187: 935 | W187: 1118 | X187: 1192 | Y187: 1191 | Z187: 1153 | AA187: 919 | AB187: 994 | AC187: 22883 | AD187: 1165.241419 | AE187: s2 | AF187: d1 | AG187: s2d1 | BX187: 8 | BY187: 17 | BZ187: 185 | CA187: =OFFSET(EMP!$D$1,IF($CA$1,BX187,366-BX187),BY187) -> 1125 | CB187: =IF(BZ187=SUMIF(EMP!$AQ$51:$AQ$90,CB186,EMP!$BK$51:$BK$90),CB186+1,CB186) -> 2 | CC187: 1333 | CD187: =SUMIF(EMP!$AQ$51:$AQ$90,CB187,EMP!$BJ$51:$BJ$90) -> 1265.362607
A188: 187 | B188: 2009-07-06 | C188: 1 | D188: Monday | E188: 934 | F188: 903 | G188: 890 | H188: 889 | I188: 930 | J188: 985 | K188: 963 | L188: 976 | M188: 1052 | N188: 1076 | O188: 1078 | P188: 1054 | Q188: 1029 | R188: 1064 | S188: 1076 | T188: 1093 | U188: 1083 | V188: 1072 | W188: 1213 | X188: 1229 | Y188: 1191 | Z188: 1152 | AA188: 1051 | AB188: 1026 | AC188: 25009 | AD188: 1170.017277 | AE188: s2 | AF188: d1 | AG188: s2d1 | BX188: 8 | BY188: 18 | BZ188: 186 | CA188: =OFFSET(EMP!$D$1,IF($CA$1,BX188,366-BX188),BY188) -> 1133 | CB188: =IF(BZ188=SUMIF(EMP!$AQ$51:$AQ$90,CB187,EMP!$BK$51:$BK$90),CB187+1,CB187) -> 2 | CC188: 1332.7 | CD188: =SUMIF(EMP!$AQ$51:$AQ$90,CB188,EMP!$BJ$51:$BJ$90) -> 1265.362607
A189: 188 | B189: 2009-07-07 | C189: 2 | D189: Tuesday | E189: 977 | F189: 956 | G189: 954 | H189: 918 | I189: 951 | J189: 1007 | K189: 986 | L189: 1004 | M189: 1027 | N189: 1055 | O189: 1078 | P189: 1089 | Q189: 1021 | R189: 1136 | S189: 1122 | T189: 1136 | U189: 1114 | V189: 1047 | W189: 1253 | X189: 1282 | Y189: 1259 | Z189: 1209 | AA189: 1070 | AB189: 1054 | AC189: 25705 | AD189: 1178.315549 | AE189: s2 | AF189: d1 | AG189: s2d1 | BX189: 8 | BY189: 19 | BZ189: 187 | CA189: =OFFSET(EMP!$D$1,IF($CA$1,BX189,366-BX189),BY189) -> 1305 | CB189: =IF(BZ189=SUMIF(EMP!$AQ$51:$AQ$90,CB188,EMP!$BK$51:$BK$90),CB188+1,CB188) -> 2 | CC189: 1332 | CD189: =SUMIF(EMP!$AQ$51:$AQ$90,CB189,EMP!$BJ$51:$BJ$90) -> 1265.362607
A190: 189 | B190: 2009-07-08 | C190: 3 | D190: Wednesday | E190: 1029 | F190: 963 | G190: 975 | H190: 963 | I190: 971 | J190: 1028 | K190: 969 | L190: 974 | M190: 1003 | N190: 1018 | O190: 1019 | P190: 987 | Q190: 934 | R190: 961 | S190: 974 | T190: 996 | U190: 984 | V190: 986 | W190: 1178 | X190: 1148 | Y190: 1160 | Z190: 1080 | AA190: 1020 | AB190: 969 | AC190: 24289 | AD190: 1178.283994 | AE190: s2 | AF190: d1 | AG190: s2d1 | BX190: 8 | BY190: 20 | BZ190: 188 | CA190: =OFFSET(EMP!$D$1,IF($CA$1,BX190,366-BX190),BY190) -> 1309 | CB190: =IF(BZ190=SUMIF(EMP!$AQ$51:$AQ$90,CB189,EMP!$BK$51:$BK$90),CB189+1,CB189) -> 2 | CC190: 1332 | CD190: =SUMIF(EMP!$AQ$51:$AQ$90,CB190,EMP!$BJ$51:$BJ$90) -> 1265.362607
A191: 190 | B191: 2009-07-09 | C191: 4 | D191: Thursday | E191: 908 | F191: 900 | G191: 894 | H191: 906 | I191: 918 | J191: 1010 | K191: 968 | L191: 967 | M191: 998 | N191: 993 | O191: 1005 | P191: 1004 | Q191: 965 | R191: 1049 | S191: 1019 | T191: 1019 | U191: 1033 | V191: 1014 | W191: 1173 | X191: 1123 | Y191: 1144 | Z191: 1081 | AA191: 1052 | AB191: 978 | AC191: 24121 | AD191: 1177.755595 | AE191: s2 | AF191: d1 | AG191: s2d1 | BX191: 8 | BY191: 21 | BZ191: 189 | CA191: =OFFSET(EMP!$D$1,IF($CA$1,BX191,366-BX191),BY191) -> 1319 | CB191: =IF(BZ191=SUMIF(EMP!$AQ$51:$AQ$90,CB190,EMP!$BK$51:$BK$90),CB190+1,CB190) -> 2 | CC191: 1332 | CD191: =SUMIF(EMP!$AQ$51:$AQ$90,CB191,EMP!$BJ$51:$BJ$90) -> 1265.362607
A192: 191 | B192: 2009-07-10 | C192: 5 | D192: Friday | E192: 922 | F192: 909 | G192: 917 | H192: 795 | I192: 839 | J192: 981 | K192: 945 | L192: 949 | M192: 984 | N192: 1005 | O192: 997 | P192: 992 | Q192: 973 | R192: 979 | S192: 980 | T192: 991 | U192: 998 | V192: 1054 | W192: 1171 | X192: 1166 | Y192: 1143 | Z192: 1101 | AA192: 1016 | AB192: 970 | AC192: 23777 | AD192: 1177.080035 | AE192: s2 | AF192: d1 | AG192: s2d1 | BX192: 8 | BY192: 22 | BZ192: 190 | CA192: =OFFSET(EMP!$D$1,IF($CA$1,BX192,366-BX192),BY192) -> 1256 | CB192: =IF(BZ192=SUMIF(EMP!$AQ$51:$AQ$90,CB191,EMP!$BK$51:$BK$90),CB191+1,CB191) -> 2 | CC192: 1332 | CD192: =SUMIF(EMP!$AQ$51:$AQ$90,CB192,EMP!$BJ$51:$BJ$90) -> 1265.362607
A193: 192 | B193: 2009-07-11 | C193: 6 | D193: Saturday | E193: 900 | F193: 889 | G193: 876 | H193: 881 | I193: 893 | J193: 910 | K193: 884 | L193: 899 | M193: 914 | N193: 929.4 | O193: 944.5 | P193: 933 | Q193: 930 | R193: 920 | S193: 918 | T193: 925 | U193: 918 | V193: 944 | W193: 1072 | X193: 1174 | Y193: 1167 | Z193: 1114 | AA193: 1030 | AB193: 998 | AC193: 22962.9 | AD193: 1166.572032 | AE193: s2 | AF193: d1 | AG193: s2d1 | BX193: 8 | BY193: 23 | BZ193: 191 | CA193: =OFFSET(EMP!$D$1,IF($CA$1,BX193,366-BX193),BY193) -> 1179 | CB193: =IF(BZ193=SUMIF(EMP!$AQ$51:$AQ$90,CB192,EMP!$BK$51:$BK$90),CB192+1,CB192) -> 2 | CC193: 1332 | CD193: =SUMIF(EMP!$AQ$51:$AQ$90,CB193,EMP!$BJ$51:$BJ$90) -> 1265.362607
A194: 193 | B194: 2009-07-12 | C194: 7 | D194: =VLOOKUP(C194,weekdays,2,FALSE) -> Sunday | E194: 893 | F194: 872 | G194: 851 | H194: 847 | I194: 868 | J194: 877 | K194: 858 | L194: 876 | M194: 867 | N194: 750 | O194: 721 | P194: 748 | Q194: 782 | R194: 798 | S194: 840 | T194: 840 | U194: 857 | V194: 878 | W194: 1109 | X194: 1146 | Y194: 1134 | Z194: 1100 | AA194: 987 | AB194: 923 | AC194: =SUM(E194:AB194) -> 21422 | AD194: 1160.814829 | AE194: s2 | AF194: d1 | AG194: s2d1 | BX194: 8 | BY194: 24 | BZ194: 192 | CA194: =OFFSET(EMP!$D$1,IF($CA$1,BX194,366-BX194),BY194) -> 1088 | CB194: =IF(BZ194=SUMIF(EMP!$AQ$51:$AQ$90,CB193,EMP!$BK$51:$BK$90),CB193+1,CB193) -> 2 | CC194: 1332 | CD194: =SUMIF(EMP!$AQ$51:$AQ$90,CB194,EMP!$BJ$51:$BJ$90) -> 1265.362607
A195: 194 | B195: 2009-07-13 | C195: =WEEKDAY(B195,2) -> 1 | D195: Monday | E195: 877 | F195: 866 | G195: 822 | H195: 826 | I195: 890 | J195: 870 | K195: 838 | L195: 961 | M195: 997 | N195: 1034 | O195: 1060 | P195: 1010 | Q195: 999 | R195: 1016 | S195: 1042 | T195: 1068 | U195: 1054 | V195: 1053 | W195: 1196.3 | X195: 1222 | Y195: 1214 | Z195: 1162 | AA195: 1087 | AB195: 1006 | AC195: 24170.3 | AD195: 1164.363346 | AE195: =IF(AND(A195>$AJ$6,A195<$AJ$7),"s2",IF(A195<=$AJ$6,"s1","s3")) -> s2 | AF195: d1 | AG195: =AE195&AF195 -> s2d1 | BX195: =ROUNDDOWN((BZ195-1)/24,0)+1 -> 9 | BY195: 1 | BZ195: 193 | CA195: =OFFSET(EMP!$D$1,IF($CA$1,BX195,366-BX195),BY195) -> 1073 | CB195: =IF(BZ195=SUMIF(EMP!$AQ$51:$AQ$90,CB194,EMP!$BK$51:$BK$90),CB194+1,CB194) -> 2 | CC195: 1332 | CD195: =SUMIF(EMP!$AQ$51:$AQ$90,CB195,EMP!$BJ$51:$BJ$90) -> 1265.362607
A196: =A195+1 -> 195 | B196: 2009-07-14 | C196: 2 | D196: Tuesday | E196: 961 | F196: 939 | G196: 939 | H196: 919 | I196: 968 | J196: 1002 | K196: 977 | L196: 1006 | M196: 1030 | N196: 1000 | O196: 1008 | P196: 1023 | Q196: 984 | R196: 997 | S196: 1043 | T196: 924 | U196: 998 | V196: 1008 | W196: 1180 | X196: 1207 | Y196: 1205 | Z196: 1143 | AA196: 1081 | AB196: 1004 | AC196: 24546 | AD196: 1165.927011 | AE196: s2 | AF196: d1 | AG196: s2d1 | BX196: 9 | BY196: 2 | BZ196: =BZ195+1 -> 194 | CA196: =OFFSET(EMP!$D$1,IF($CA$1,BX196,366-BX196),BY196) -> 1042 | CB196: =IF(BZ196=SUMIF(EMP!$AQ$51:$AQ$90,CB195,EMP!$BK$51:$BK$90),CB195+1,CB195) -> 2 | CC196: 1331.1 | CD196: =SUMIF(EMP!$AQ$51:$AQ$90,CB196,EMP!$BJ$51:$BJ$90) -> 1265.362607
A197: 196 | B197: 2009-07-15 | C197: 3 | D197: Wednesday | E197: 931 | F197: 951 | G197: 923 | H197: 910 | I197: 950 | J197: 1020 | K197: 967 | L197: 986 | M197: 1026 | N197: 1057 | O197: 1019 | P197: 1005 | Q197: 1009 | R197: 990 | S197: 1050 | T197: 1003 | U197: 1055 | V197: 1038 | W197: 1184 | X197: 1225 | Y197: 1232 | Z197: 1144 | AA197: 1099 | AB197: 1037 | AC197: 24811 | AD197: 1167.73431 | AE197: s2 | AF197: d1 | AG197: s2d1 | BX197: 9 | BY197: 3 | BZ197: 195 | CA197: =OFFSET(EMP!$D$1,IF($CA$1,BX197,366-BX197),BY197) -> 1000 | CB197: =IF(BZ197=SUMIF(EMP!$AQ$51:$AQ$90,CB196,EMP!$BK$51:$BK$90),CB196+1,CB196) -> 2 | CC197: 1331 | CD197: =SUMIF(EMP!$AQ$51:$AQ$90,CB197,EMP!$BJ$51:$BJ$90) -> 1265.362607
A198: 197 | B198: 2009-07-16 | C198: 4 | D198: Thursday | E198: 974 | F198: 978 | G198: 982 | H198: 937 | I198: 975 | J198: 1059 | K198: 973 | L198: 968 | M198: 1022 | N198: 1063 | O198: 1045 | P198: 1089 | Q198: 1033 | R198: 1041 | S198: 1072 | T198: 1087 | U198: 1081 | V198: 1031 | W198: 1199 | X198: 1225 | Y198: 1197 | Z198: 1180 | AA198: 1096 | AB198: 1036 | AC198: 25343 | AD198: 1170.860879 | AE198: s2 | AF198: d1 | AG198: s2d1 | BX198: 9 | BY198: 4 | BZ198: 196 | CA198: =OFFSET(EMP!$D$1,IF($CA$1,BX198,366-BX198),BY198) -> 1013 | CB198: =IF(BZ198=SUMIF(EMP!$AQ$51:$AQ$90,CB197,EMP!$BK$51:$BK$90),CB197+1,CB197) -> 2 | CC198: 1331 | CD198: =SUMIF(EMP!$AQ$51:$AQ$90,CB198,EMP!$BJ$51:$BJ$90) -> 1265.362607
A199: 198 | B199: 2009-07-17 | C199: 5 | D199: Friday | E199: 986 | F199: 984 | G199: 969 | H199: 959 | I199: 977 | J199: 1032 | K199: 1007 | L199: 1014 | M199: 1035 | N199: 1035 | O199: 1030 | P199: 1035 | Q199: 1008 | R199: 984 | S199: 100.1 | T199: 1013.8 | U199: 1019 | V199: 1051 | W199: 1195 | X199: 1214 | Y199: 1190 | Z199: 1161 | AA199: 1073 | AB199: 1017 | AC199: 24088.9 | AD199: 1173.274791 | AE199: s2 | AF199: d1 | AG199: s2d1 | BX199: 9 | BY199: 5 | BZ199: 197 | CA199: =OFFSET(EMP!$D$1,IF($CA$1,BX199,366-BX199),BY199) -> 1041 | CB199: =IF(BZ199=SUMIF(EMP!$AQ$51:$AQ$90,CB198,EMP!$BK$51:$BK$90),CB198+1,CB198) -> 2 | CC199: 1331 | CD199: =SUMIF(EMP!$AQ$51:$AQ$90,CB199,EMP!$BJ$51:$BJ$90) -> 1265.362607
A200: 199 | B200: 2009-07-18 | C200: 6 | D200: Saturday | E200: 972 | F200: 988 | G200: 984 | H200: 943 | I200: 930 | J200: 986 | K200: 938 | L200: 948 | M200: 942 | N200: 988 | O200: 921 | P200: 924 | Q200: 928 | R200: 935 | S200: 929 | T200: 932 | U200: 929 | V200: 983 | W200: 1050 | X200: 1105 | Y200: 1131.7 | Z200: 1105.3 | AA200: 1055 | AB200: 1008 | AC200: 23555 | AD200: 1160.947312 | AE200: s2 | AF200: d1 | AG200: s2d1 | BX200: 9 | BY200: 6 | BZ200: 198 | CA200: =OFFSET(EMP!$D$1,IF($CA$1,BX200,366-BX200),BY200) -> 1145 | CB200: =IF(BZ200=SUMIF(EMP!$AQ$51:$AQ$90,CB199,EMP!$BK$51:$BK$90),CB199+1,CB199) -> 2 | CC200: 1330 | CD200: =SUMIF(EMP!$AQ$51:$AQ$90,CB200,EMP!$BJ$51:$BJ$90) -> 1265.362607
... 925 more rows

Sheet GHA
A1: day # | B1: Date | C1: wkday# | D1: weekday | E1: 0 | F1: =E1+1 -> 1 | G1: =F1+1 -> 2 | H1: 3 | I1: 4 | J1: 5 | K1: 6 | L1: 7 | M1: 8 | N1: 9 | O1: 10 | P1: 11 | Q1: 12 | R1: 13 | S1: 14 | T1: 15 | U1: 16 | V1: 17 | W1: 18 | X1: 19 | Y1: 20 | Z1: 21 | AA1: 22 | AB1: 23 | AC1: sum(row) | AD1: Moving average | AE1: Season | AF1: day type | AG1: Group | AH1: 0.1 | AR1: =0.00000001 -> 1e-08 | BZ1: up | CA1: 1 | CB1: Blck index
A2: 1 | B2: 2009-01-01 | C2: =WEEKDAY(B2,2) -> 4 | D2: =VLOOKUP(C2,weekdays,2,FALSE) -> Thursday | E2: 1076 | F2: 1091 | G2: 1076 | H2: 1071 | I2: 1060 | J2: 1062 | K2: 972 | L2: 970 | M2: 951 | N2: 972 | O2: 975 | P2: 1016 | Q2: 1021 | R2: 1004 | S2: 992 | T2: 980 | U2: 965 | V2: 1056 | W2: 1225 | X2: 1270 | Y2: 1251 | Z2: 1226 | AA2: 1176 | AB2: 1101 | AC2: =SUM(E2:AB2) -> 25559 | AE2: =IF(AND(A2>$AJ$6,A2<$AJ$7),"s2",IF(A2<=$AJ$6,"s1","s3")) -> s1 | AF2: d1 | AG2: =AE2&AF2 -> s1d1 | AT2: Average working day calculation | BX2: day | BY2: hr | BZ2: Vector index | CA2: Load vector | CC2: Sorted load duration curve | CD2: Sorted Agg load
A3: =A2+1 -> 2 | B3: 2009-01-02 | C3: =WEEKDAY(B3,2) -> 5 | D3: Friday | E3: 1075 | F3: 1040 | G3: 1006 | H3: 998 | I3: 1011 | J3: 1022 | K3: 999 | L3: 1061 | M3: 1093 | N3: 1136 | O3: 1155 | P3: 1157 | Q3: 1128 | R3: 1122 | S3: 1146 | T3: 1137 | U3: 1146 | V3: 1200 | W3: 1287 | X3: 1304 | Y3: 1306 | Z3: 1268 | AA3: 1225 | AB3: 1156 | AC3: 27178 | AE3: =IF(AND(A3>$AJ$6,A3<$AJ$7),"s2",IF(A3<=$AJ$6,"s1","s3")) -> s1 | AF3: d1 | AG3: =AE3&AF3 -> s1d1 | AI3: Start Day | AJ3: End Day | AK3: Days | AL3: Days frac | AM3: Energy | AN3: Energy frac | AO3: Max Power | AP3: Row (Max) | AQ3: Column (Max) | BX3: =ROUNDDOWN((BZ3-1)/24,0)+1 -> 1 | BY3: 1 | BZ3: 1 | CA3: =OFFSET(GHA!$D$1,IF($CA$1,BX3,366-BX3),BY3) -> 1076 | CB3: 1 | CC3: 1475 | CD3: =SUMIF(GHA!$AQ$51:$AQ$90,CB3,GHA!$BJ$51:$BJ$90) -> 1475
A4: =A3+1 -> 3 | B4: 2009-01-03 | C4: 6 | D4: Saturday | E4: 1134 | F4: 1099 | G4: 1094 | H4: 1067 | I4: 1073 | J4: 1078 | K4: 1001 | L4: 982 | M4: 988 | N4: 1033 | O4: 972 | P4: 999 | Q4: 996 | R4: 999 | S4: 1000 | T4: 993 | U4: 885 | V4: 1033 | W4: 1131 | X4: 1195 | Y4: 1212 | Z4: 1163 | AA4: 1130 | AB4: 1051 | AC4: 25308 | AE4: s1 | AF4: d1 | AG4: s1d1 | AO4: MW | BX4: 1 | BY4: =BZ4 -> 2 | BZ4: =BZ3+1 -> 2 | CA4: =OFFSET(GHA!$D$1,IF($CA$1,BX4,366-BX4),BY4) -> 1091 | CB4: =IF(BZ4=SUMIF(GHA!$AQ$51:$AQ$90,CB3,GHA!$BK$51:$BK$90),CB3+1,CB3) -> 1 | CC4: 1474 | CD4: =SUMIF(GHA!$AQ$51:$AQ$90,CB4,GHA!$BJ$51:$BJ$90) -> 1475
A5: 4 | B5: 2009-01-04 | C5: 7 | D5: Sunday | E5: 1019 | F5: 1012 | G5: 963 | H5: 950 | I5: 953 | J5: 987 | K5: 918 | L5: 924 | M5: 924 | N5: 889 | O5: 881 | P5: 878 | Q5: 900 | R5: 922 | S5: 946 | T5: 935 | U5: 933 | V5: 984 | W5: 1200 | X5: 1191 | Y5: 1167 | Z5: 1146 | AA5: 1052 | AB5: 1043 | AC5: 23717 | AE5: s1 | AF5: d1 | AG5: s1d1 | AH5: Annual | AI5: 1 | AJ5: 365 | AK5: =AJ5-AI5+1 -> 365 | AM5: =AM19 -> 9478.8998 | AO5: =findmax(OFFSET($E$2,$AI5-1,0,$AK5,24),AI5) -> 1475 | AP5: 350 | AQ5: 19 | BX5: 1 | BY5: 3 | BZ5: 3 | CA5: =OFFSET(GHA!$D$1,IF($CA$1,BX5,366-BX5),BY5) -> 1076 | CB5: =IF(BZ5=SUMIF(GHA!$AQ$51:$AQ$90,CB4,GHA!$BK$51:$BK$90),CB4+1,CB4) -> 1 | CC5: 1439 | CD5: =SUMIF(GHA!$AQ$51:$AQ$90,CB5,GHA!$BJ$51:$BJ$90) -> 1475
A6: 5 | B6: 2009-01-05 | C6: 1 | D6: Monday | E6: 961 | F6: 950 | G6: 927 | H6: 930 | I6: 931 | J6: 957 | K6: 948 | L6: 1021 | M6: 1073 | N6: 1085 | O6: 1108 | P6: 1131 | Q6: 1112 | R6: 1125 | S6: 1145 | T6: 1133 | U6: 1114 | V6: 1143 | W6: 1264 | X6: 1269 | Y6: 1245 | Z6: 1216 | AA6: 1136 | AB6: 1076 | AC6: 26000 | AE6: s1 | AF6: d1 | AG6: s1d1 | AH6: s1 | AI6: 1 | AJ6: 126 | AK6: =AJ6-AI6+1 -> 126 | AL6: =AK6/AK$5 -> 0.3452054795 | AM6: =SUMIF($AP$13:$AP$18,AH6,$AM$13:$AM$18) -> 3286.9733 | AN6: =AM6/$AM$5 -> 0.3467673854 | AO6: =findmax(OFFSET($E$2,$AI6-1,0,$AK6,24),AI6) -> 1359 | AP6: 118 | AQ6: 20 | BX6: 1 | BY6: 4 | BZ6: 4 | CA6: =OFFSET(GHA!$D$1,IF($CA$1,BX6,366-BX6),BY6) -> 1071 | CB6: =IF(BZ6=SUMIF(GHA!$AQ$51:$AQ$90,CB5,GHA!$BK$51:$BK$90),CB5+1,CB5) -> 1 | CC6: 1424 | CD6: =SUMIF(GHA!$AQ$51:$AQ$90,CB6,GHA!$BJ$51:$BJ$90) -> 1475
A7: 6 | B7: 2009-01-06 | C7: 2 | D7: Tuesday | E7: 1148 | F7: 1127 | G7: 1118 | H7: 1096 | I7: 1111 | J7: 1039 | K7: 994 | L7: 1046 | M7: 1106 | N7: 1109 | O7: 1109 | P7: 1102 | Q7: 1073 | R7: 1123 | S7: 1132 | T7: 1115 | U7: 1078 | V7: 1096 | W7: 1224 | X7: 1251 | Y7: 1229 | Z7: 1214 | AA7: 1156 | AB7: 1080 | AC7: 26876 | AE7: s1 | AF7: d1 | AG7: s1d1 | AH7: s2 | AI7: =AJ6+1 -> 127 | AJ7: 249 | AK7: =AJ7-AI7+1 -> 123 | AL7: =AK7/AK$5 -> 0.3369863014 | AM7: =SUMIF($AP$13:$AP$18,AH7,$AM$13:$AM$18) -> 3025.0529 | AN7: =AM7/$AM$5 -> 0.3191354444 | AO7: =findmax(OFFSET($E$2,$AI7-1,0,$AK7,24),AI7) -> 1337 | AP7: 138 | AQ7: 20 | BX7: 1 | BY7: 5 | BZ7: 5 | CA7: =OFFSET(GHA!$D$1,IF($CA$1,BX7,366-BX7),BY7) -> 1060 | CB7: =IF(BZ7=SUMIF(GHA!$AQ$51:$AQ$90,CB6,GHA!$BK$51:$BK$90),CB6+1,CB6) -> 1 | CC7: 1417 | CD7: =SUMIF(GHA!$AQ$51:$AQ$90,CB7,GHA!$BJ$51:$BJ$90) -> 1475
A8: 7 | B8: 2009-01-07 | C8: 3 | D8: Wednesday | E8: 1050 | F8: 1057 | G8: 1023 | H8: 922 | I8: 1037 | J8: 1079 | K8: 1007 | L8: 1047 | M8: 1109 | N8: 1143 | O8: 1149 | P8: 1161 | Q8: 1161 | R8: 1178 | S8: 1186 | T8: 1135 | U8: 1091 | V8: 1100 | W8: 1258 | X8: 1283 | Y8: 1262 | Z8: 1205 | AA8: 1133 | AB8: 1094 | AC8: 26870 | AE8: s1 | AF8: d1 | AG8: s1d1 | AH8: s3 | AI8: =AJ7+1 -> 250 | AJ8: 365 | AK8: =AJ8-AI8+1 -> 116 | AL8: =AK8/AK$5 -> 0.3178082192 | AM8: =SUMIF($AP$13:$AP$18,AH8,$AM$13:$AM$18) -> 3166.8736 | AN8: =AM8/$AM$5 -> 0.3340971702 | AO8: =findmax(OFFSET($E$2,$AI8-1,0,$AK8,24),AI8) -> 1475 | AP8: 350 | AQ8: 19 | BX8: 1 | BY8: 6 | BZ8: 6 | CA8: =OFFSET(GHA!$D$1,IF($CA$1,BX8,366-BX8),BY8) -> 1062 | CB8: =IF(BZ8=SUMIF(GHA!$AQ$51:$AQ$90,CB7,GHA!$BK$51:$BK$90),CB7+1,CB7) -> 1 | CC8: 1415 | CD8: =SUMIF(GHA!$AQ$51:$AQ$90,CB8,GHA!$BJ$51:$BJ$90) -> 1475
A9: 8 | B9: 2009-01-08 | C9: 4 | D9: Thursday | E9: 1048 | F9: 1048 | G9: 1022 | H9: 998 | I9: 1012 | J9: 1062 | K9: 985 | L9: 1055.5 | M9: 1106.5 | N9: 1115.5 | O9: 1153.5 | P9: 1159.5 | Q9: 1151.5 | R9: 1146.5 | S9: 1159.5 | T9: 1154 | U9: 1125 | V9: 1133 | W9: 1305 | X9: 1309 | Y9: 1319 | Z9: 1256 | AA9: 1179 | AB9: 1088 | AC9: 27091 | AE9: s1 | AF9: d1 | AG9: s1d1 | AO9: Load factor | AP9: =AM19/(AO5*8.67) -> 0.7412194632 | BX9: 1 | BY9: 7 | BZ9: 7 | CA9: =OFFSET(GHA!$D$1,IF($CA$1,BX9,366-BX9),BY9) -> 972 | CB9: =IF(BZ9=SUMIF(GHA!$AQ$51:$AQ$90,CB8,GHA!$BK$51:$BK$90),CB8+1,CB8) -> 1 | CC9: 1411 | CD9: =SUMIF(GHA!$AQ$51:$AQ$90,CB9,GHA!$BJ$51:$BJ$90) -> 1475
A10: 9 | B10: 2009-01-09 | C10: 5 | D10: Friday | E10: 1073 | F10: 1042 | G10: 1000 | H10: 1013 | I10: 1041 | J10: 1145 | K10: 1008 | L10: 1048 | M10: 1069 | N10: 1054 | O10: 1008 | P10: 1101 | Q10: 1101 | R10: 1097 | S10: 1100 | T10: 1110 | U10: 1099 | V10: 1111 | W10: 1265 | X10: 1279 | Y10: 1291 | Z10: 1223 | AA10: 1166 | AB10: 1085 | AC10: 26529 | AE10: s1 | AF10: d1 | AG10: s1d1 | BX10: 1 | BY10: 8 | BZ10: 8 | CA10: =OFFSET(GHA!$D$1,IF($CA$1,BX10,366-BX10),BY10) -> 970 | CB10: =IF(BZ10=SUMIF(GHA!$AQ$51:$AQ$90,CB9,GHA!$BK$51:$BK$90),CB9+1,CB9) -> 1 | CC10: 1409.7 | CD10: =SUMIF(GHA!$AQ$51:$AQ$90,CB10,GHA!$BJ$51:$BJ$90) -> 1475
A11: 10 | B11: 2009-01-10 | C11: 6 | D11: Saturday | E11: 1053 | F11: 1025 | G11: 1000 | H11: 990 | I11: 1003 | J11: 1039 | K11: 947 | L11: 923 | M11: 941 | N11: 949 | O11: 973 | P11: 981 | Q11: 1001 | R11: 986 | S11: 1002 | T11: 995 | U11: 980 | V11: 1018 | W11: 1230 | X11: 1284 | Y11: 1274 | Z11: 1240 | AA11: 1111 | AB11: 1068 | AC11: 25013 | AE11: s1 | AF11: d1 | AG11: s1d1 | AT11: Energy (GWh) | BX11: 1 | BY11: 9 | BZ11: 9 | CA11: =OFFSET(GHA!$D$1,IF($CA$1,BX11,366-BX11),BY11) -> 951 | CB11: =IF(BZ11=SUMIF(GHA!$AQ$51:$AQ$90,CB10,GHA!$BK$51:$BK$90),CB10+1,CB10) -> 1 | CC11: 1409.2 | CD11: =SUMIF(GHA!$AQ$51:$AQ$90,CB11,GHA!$BJ$51:$BJ$90) -> 1475
A12: 11 | B12: 2009-01-11 | C12: 7 | D12: Sunday | E12: 1029 | F12: 1011 | G12: 966 | H12: 994 | I12: 1008 | J12: 1016 | K12: 936 | L12: 941 | M12: 912 | N12: 907 | O12: 897 | P12: 901 | Q12: 918 | R12: 932 | S12: 951 | T12: 943 | U12: 975 | V12: 991 | W12: 1218 | X12: 1242 | Y12: 1229 | Z12: 1214 | AA12: 1121 | AB12: 1046 | AC12: 24298 | AD12: =W14 -> 1304 | AE12: s1 | AF12: d1 | AG12: s1d1 | AJ12: Days | AK12: Duration | AL12: Duration(N) | AM12: Energy (GWh) | AN12: Energy share | AO12: Share (N) | AT12: 0 | AU12: =AT12+1 -> 1 | AV12: =AU12+1 -> 2 | AW12: 3 | AX12: 4 | AY12: 5 | AZ12: 6 | BA12: 7 | BB12: 8 | BC12: 9 | BD12: 10 | BE12: 11 | BF12: 12 | BG12: 13 | BH12: 14 | BI12: 15 | BJ12: 16 | BK12: 17 | BL12: 18 | BM12: 19 | BN12: 20 | BO12: 21 | BP12: 22 | BQ12: 23 | BX12: 1 | BY12: 10 | BZ12: 10 | CA12: =OFFSET(GHA!$D$1,IF($CA$1,BX12,366-BX12),BY12) -> 972 | CB12: =IF(BZ12=SUMIF(GHA!$AQ$51:$AQ$90,CB11,GHA!$BK$51:$BK$90),CB11+1,CB11) -> 1 | CC12: 1407.4 | CD12: =SUMIF(GHA!$AQ$51:$AQ$90,CB12,GHA!$BJ$51:$BJ$90) -> 1475
A13: 12 | B13: 2009-01-12 | C13: 1 | D13: Monday | E13: 1018 | F13: 979 | G13: 965 | H13: 979 | I13: 979 | J13: 1050 | K13: 957 | L13: 1019 | M13: 1106 | N13: 1125 | O13: 1142 | P13: 1066 | Q13: 1112 | R13: 1130 | S13: 1144 | T13: 1117 | U13: 1111 | V13: 1128 | W13: 1294 | X13: 1310 | Y13: 1308 | Z13: 1252 | AA13: 1178 | AB13: 1081 | AC13: 26550 | AD13: =AD12*(1-$AH$1)+W13*$AH$1 -> 1303 | AE13: s1 | AF13: d1 | AG13: s1d1 | AJ13: =COUNTIF($AG$2:$AG$366,$AR13) -> 126 | AK13: =AJ13/AJ$19 -> 0.3452054795 | AL13: =AJ13/(AJ13+AJ14) -> 1 | AM13: =SUMIF($AG$2:$AG$366,AR13,$AC$2:$AC$366)/1000 -> 3286.9733 | AN13: =AM13/$AM$19 -> 0.3467673854 | AO13: =AM13/(AM13+AM14) -> 1 | AP13: s1 | AQ13: d1 | AR13: =AP13&AQ13 -> s1d1 | AS13: Pre-winter weekday | AT13: =SUMIF($AG$2:$AG$367,$AP13&$AQ13,E$2:E$367)/1000 -> 133.555 | AU13: 131.2062 | AV13: 128.528 | AW13: 127.5662 | AX13: 129.354 | AY13: 132.823 | AZ13: 124.417 | BA13: 127.519 | BB13: 131.8125 | BC13: 132.94 | BD13: 132.6247 | BE13: 133.5333 | BF13: 133.771 | BG13: 135.0595 | BH13: 136.5021 | BI13: 136.8341 | BJ13: =SUMIF($AG$2:$AG$367,$AP13&$AQ13,U$2:U$367)/1000 -> 135.511 | BK13: 135.9331 | BL13: 154.8548 | BM13: 157.6749 | BN13: 157.1679 | BO13: 153.9772 | BP13: 145.2349 | BQ13: 138.5739 | BX13: 1 | BY13: 11 | BZ13: 11 | CA13: =OFFSET(GHA!$D$1,IF($CA$1,BX13,366-BX13),BY13) -> 975 | CB13: =IF(BZ13=SUMIF(GHA!$AQ$51:$AQ$90,CB12,GHA!$BK$51:$BK$90),CB12+1,CB12) -> 1 | CC13: 1407 | CD13: =SUMIF(GHA!$AQ$51:$AQ$90,CB13,GHA!$BJ$51:$BJ$90) -> 1475
A14: 13 | B14: 2009-01-13 | C14: 2 | D14: Tuesday | E14: 1089 | F14: 1071 | G14: 1029 | H14: 1027 | I14: 1066 | J14: 1092 | K14: 1045 | L14: 1042 | M14: 1092 | N14: 1045 | O14: 1080 | P14: 1102 | Q14: 1085 | R14: 943 | S14: 1068 | T14: 1090 | U14: 1055 | V14: 1085 | W14: 1304 | X14: 1315 | Y14: 1308 | Z14: 1283 | AA14: 1215 | AB14: 1129 | AC14: 26660 | AD14: 1303.1 | AE14: s1 | AF14: d1 | AG14: s1d1 | AJ14: 0 | AK14: 0 | AL14: =1-AL13 -> 0 | AM14: 0 | AN14: 0 | AO14: =1-AO13 -> 0 | AP14: s1 | AQ14: d2 | AR14: s1d2 | AS14: pre-winter weekend | AT14: 0 | AU14: 0 | AV14: 0 | AW14: 0 | AX14: 0 | AY14: 0 | AZ14: 0 | BA14: 0 | BB14: 0 | BC14: 0 | BD14: 0 | BE14: 0 | BF14: 0 | BG14: 0 | BH14: 0 | BI14: 0 | BJ14: 0 | BK14: 0 | BL14: 0 | BM14: 0 | BN14: 0 | BO14: 0 | BP14: 0 | BQ14: 0 | BX14: 1 | BY14: 12 | BZ14: 12 | CA14: =OFFSET(GHA!$D$1,IF($CA$1,BX14,366-BX14),BY14) -> 1016 | CB14: =IF(BZ14=SUMIF(GHA!$AQ$51:$AQ$90,CB13,GHA!$BK$51:$BK$90),CB13+1,CB13) -> 1 | CC14: 1405 | CD14: =SUMIF(GHA!$AQ$51:$AQ$90,CB14,GHA!$BJ$51:$BJ$90) -> 1475
A15: 14 | B15: 2009-01-14 | C15: 3 | D15: Wednesday | E15: 1093 | F15: 1055 | G15: 1068 | H15: 1032 | I15: 1049 | J15: 1083 | K15: 1051 | L15: 1056 | M15: 1112 | N15: 1136 | O15: 1111 | P15: 1053 | Q15: 1085 | R15: 1135 | S15: 1130 | T15: 1151 | U15: 1171 | V15: 1142 | W15: 1302 | X15: 1309 | Y15: 1316 | Z15: 1284 | AA15: 1228 | AB15: 1135 | AC15: 27287 | AD15: 1302.99 | AE15: s1 | AF15: d1 | AG15: s1d1 | AJ15: 122 | AK15: 0.3342465753 | AL15: =AJ15/(AJ15+AJ16) -> 1 | AM15: 3025.0529 | AN15: 0.3191354444 | AO15: =AM15/(AM15+AM16) -> 1 | AP15: s2 | AQ15: d1 | AR15: s2d1 | AS15: winter weekday | AT15: 120.56 | AU15: 117.952 | AV15: 116.379 | AW15: 116.016 | AX15: 118.514 | AY15: 120.452 | AZ15: 116.416 | BA15: 119.625 | BB15: 123.058 | BC15: 123.3864 | BD15: 122.3972 | BE15: 122.1446 | BF15: 120.3432 | BG15: 122.671 | BH15: 123.8519 | BI15: 125.6769 | BJ15: 125.089 | BK15: 125.6129 | BL15: 147.1089 | BM15: 150.0119 | BN15: 147.4623 | BO15: 141.5889 | BP15: 132.7678 | BQ15: 125.968 | BX15: 1 | BY15: 13 | BZ15: 13 | CA15: =OFFSET(GHA!$D$1,IF($CA$1,BX15,366-BX15),BY15) -> 1021 | CB15: =IF(BZ15=SUMIF(GHA!$AQ$51:$AQ$90,CB14,GHA!$BK$51:$BK$90),CB14+1,CB14) -> 1 | CC15: 1404.7 | CD15: =SUMIF(GHA!$AQ$51:$AQ$90,CB15,GHA!$BJ$51:$BJ$90) -> 1475
A16: 15 | B16: 2009-01-15 | C16: 4 | D16: Thursday | E16: 1096 | F16: 1045 | G16: 1032 | H16: 1050 | I16: 1048 | J16: 1104 | K16: 1058 | L16: 1100 | M16: 1110 | N16: 1013 | O16: 1021 | P16: 1028 | Q16: 1040 | R16: 1075 | S16: 1091 | T16: 1125 | U16: 1095 | V16: 1132 | W16: 1306 | X16: 1327 | Y16: 1327 | Z16: 1292 | AA16: 1200 | AB16: 1152 | AC16: 26867 | AD16: 1303.291 | AE16: s1 | AF16: d1 | AG16: s1d1 | AJ16: 0 | AK16: 0 | AL16: =1-AL15 -> 0 | AM16: 0 | AN16: 0 | AO16: =1-AO15 -> 0 | AP16: s2 | AQ16: d2 | AR16: s2d2 | AS16: winter weekend | AT16: 0 | AU16: 0 | AV16: 0 | AW16: 0 | AX16: 0 | AY16: 0 | AZ16: 0 | BA16: 0 | BB16: 0 | BC16: 0 | BD16: 0 | BE16: 0 | BF16: 0 | BG16: 0 | BH16: 0 | BI16: 0 | BJ16: 0 | BK16: 0 | BL16: 0 | BM16: 0 | BN16: 0 | BO16: 0 | BP16: 0 | BQ16: 0 | BX16: 1 | BY16: 14 | BZ16: 14 | CA16: =OFFSET(GHA!$D$1,IF($CA$1,BX16,366-BX16),BY16) -> 1004 | CB16: =IF(BZ16=SUMIF(GHA!$AQ$51:$AQ$90,CB15,GHA!$BK$51:$BK$90),CB15+1,CB15) -> 1 | CC16: 1404.1 | CD16: =SUMIF(GHA!$AQ$51:$AQ$90,CB16,GHA!$BJ$51:$BJ$90) -> 1475
A17: 16 | B17: 2009-01-16 | C17: 5 | D17: Friday | E17: 1075 | F17: 1042 | G17: 1021 | H17: 1037 | I17: 1059 | J17: 1142 | K17: 1056 | L17: 1111 | M17: 1109 | N17: 1131 | O17: 1147 | P17: 1143 | Q17: 1135 | R17: 1156 | S17: 1159 | T17: 1174 | U17: 1099 | V17: 1150 | W17: 1323 | X17: 1332 | Y17: 1307 | Z17: 1278 | AA17: 1213 | AB17: 1156 | AC17: 27555 | AD17: 1305.2619 | AE17: s1 | AF17: d1 | AG17: s1d1 | AJ17: 117 | AK17: 0.3205479452 | AL17: =AJ17/(AJ17+AJ18) -> 1 | AM17: 3166.8736 | AN17: 0.3340971702 | AO17: =AM17/(AM17+AM18) -> 1 | AP17: s3 | AQ17: d1 | AR17: s3d1 | AS17: post-winter weekday | AT17: 126.8875 | AU17: 124.4785 | AV17: 122.7485 | AW17: 122.3601 | AX17: 125.4136 | AY17: 127.044 | AZ17: 119.9138 | BA17: 122.7688 | BB17: 126.8685 | BC17: 127.9789 | BD17: 128.1204 | BE17: 127.979 | BF17: 127.8628 | BG17: 128.575 | BH17: 129.9354 | BI17: 130.6659 | BJ17: 129.7221 | BK17: 138.1041 | BL17: 153.377 | BM17: 154.7305 | BN17: 152.8706 | BO17: 148.0401 | BP17: 139.0375 | BQ17: 131.391 | BX17: 1 | BY17: 15 | BZ17: 15 | CA17: =OFFSET(GHA!$D$1,IF($CA$1,BX17,366-BX17),BY17) -> 992 | CB17: =IF(BZ17=SUMIF(GHA!$AQ$51:$AQ$90,CB16,GHA!$BK$51:$BK$90),CB16+1,CB16) -> 1 | CC17: 1403.5 | CD17: =SUMIF(GHA!$AQ$51:$AQ$90,CB17,GHA!$BJ$51:$BJ$90) -> 1475
A18: 17 | B18: 2009-01-17 | C18: 6 | D18: Saturday | E18: 1117 | F18: 1084 | G18: 1053 | H18: 1055 | I18: 1070 | J18: 1175 | K18: 1036 | L18: 995 | M18: 1032 | N18: 1060 | O18: 1060 | P18: 1044 | Q18: 1050 | R18: 1049 | S18: 1072 | T18: 1069 | U18: 1070 | V18: 1102 | W18: 1297 | X18: 1321 | Y18: 1321 | Z18: 1284 | AA18: 1198 | AB18: 1175 | AC18: 26789 | AD18: 1304.43571 | AE18: s1 | AF18: d1 | AG18: s1d1 | AJ18: 0 | AK18: 0 | AL18: =1-AL17 -> 0 | AM18: 0 | AN18: 0 | AO18: =1-AO17 -> 0 | AP18: s3 | AQ18: d2 | AR18: s3d2 | AS18: post-winter weekend | AT18: 0 | AU18: 0 | AV18: 0 | AW18: 0 | AX18: 0 | AY18: 0 | AZ18: 0 | BA18: 0 | BB18: 0 | BC18: 0 | BD18: 0 | BE18: 0 | BF18: 0 | BG18: 0 | BH18: 0 | BI18: 0 | BJ18: 0 | BK18: 0 | BL18: 0 | BM18: 0 | BN18: 0 | BO18: 0 | BP18: 0 | BQ18: 0 | BX18: 1 | BY18: 16 | BZ18: 16 | CA18: =OFFSET(GHA!$D$1,IF($CA$1,BX18,366-BX18),BY18) -> 980 | CB18: =IF(BZ18=SUMIF(GHA!$AQ$51:$AQ$90,CB17,GHA!$BK$51:$BK$90),CB17+1,CB17) -> 1 | CC18: 1403.3 | CD18: =SUMIF(GHA!$AQ$51:$AQ$90,CB18,GHA!$BJ$51:$BJ$90) -> 1475
A19: 18 | B19: 2009-01-18 | C19: 7 | D19: Sunday | E19: 1103 | F19: 1072 | G19: 1066 | H19: 1042 | I19: 1065 | J19: 1085 | K19: 981 | L19: 979 | M19: 963 | N19: 932 | O19: 919 | P19: 953 | Q19: 957 | R19: 985 | S19: 992 | T19: 993 | U19: 991 | V19: 1046 | W19: 1214 | X19: 1246 | Y19: 1239 | Z19: 1209 | AA19: 1125 | AB19: 1061 | AC19: 25218 | AD19: 1295.392139 | AE19: s1 | AF19: d1 | AG19: s1d1 | AI19: Total | AJ19: =SUM(AJ13:AJ18) -> 365 | AK19: =SUM(AK13:AK18) -> 1 | AM19: =SUM(AM13:AM18) -> 9478.8998 | AN19: =SUM(AN13:AN18) -> 1 | BX19: 1 | BY19: 17 | BZ19: 17 | CA19: =OFFSET(GHA!$D$1,IF($CA$1,BX19,366-BX19),BY19) -> 965 | CB19: =IF(BZ19=SUMIF(GHA!$AQ$51:$AQ$90,CB18,GHA!$BK$51:$BK$90),CB18+1,CB18) -> 1 | CC19: 1403 | CD19: =SUMIF(GHA!$AQ$51:$AQ$90,CB19,GHA!$BJ$51:$BJ$90) -> 1475
A20: 19 | B20: 2009-01-19 | C20: 1 | D20: Monday | E20: 1001 | F20: 977 | G20: 959 | H20: 962 | I20: 1025 | J20: 1110 | K20: 1001 | L20: 1013 | M20: 1053 | N20: 1068 | O20: 1065 | P20: 1065 | Q20: 1055 | R20: 1056 | S20: 1124 | T20: 1085 | U20: 1070 | V20: 1053 | W20: 1257 | X20: 1228 | Y20: 1228 | Z20: 1206 | AA20: 1105 | AB20: 1088 | AC20: 25854 | AD20: 1291.552925 | AE20: s1 | AF20: d1 | AG20: s1d1 | BX20: 1 | BY20: 18 | BZ20: 18 | CA20: =OFFSET(GHA!$D$1,IF($CA$1,BX20,366-BX20),BY20) -> 1056 | CB20: =IF(BZ20=SUMIF(GHA!$AQ$51:$AQ$90,CB19,GHA!$BK$51:$BK$90),CB19+1,CB19) -> 1 | CC20: 1402.2 | CD20: =SUMIF(GHA!$AQ$51:$AQ$90,CB20,GHA!$BJ$51:$BJ$90) -> 1475
A21: 20 | B21: 2009-01-20 | C21: 2 | D21: Tuesday | E21: 1018 | F21: 1009 | G21: 1008 | H21: 1009 | I21: 1030 | J21: 1140 | K21: 992 | L21: 990 | M21: 1120 | N21: 1009 | O21: 1010 | P21: 1028 | Q21: 970 | R21: 1004 | S21: 1038 | T21: 1062 | U21: 1062 | V21: 1094 | W21: 1260 | X21: 1171 | Y21: 1230 | Z21: 1143 | AA21: 1074 | AB21: 1008 | AC21: 25479 | AD21: 1288.397633 | AE21: s1 | AF21: d1 | AG21: s1d1 | AQ21: max blocks | AR21: Characterization | AT21: 0 | AU21: =AT21+1 -> 1 | AV21: =AU21+1 -> 2 | AW21: 3 | AX21: 4 | AY21: 5 | AZ21: 6 | BA21: 7 | BB21: 8 | BC21: 9 | BD21: 10 | BE21: 11 | BF21: 12 | BG21: 13 | BH21: 14 | BI21: 15 | BJ21: 16 | BK21: 17 | BL21: 18 | BM21: 19 | BN21: 20 | BO21: 21 | BP21: 22 | BQ21: 23 | BX21: 1 | BY21: 19 | BZ21: 19 | CA21: =OFFSET(GHA!$D$1,IF($CA$1,BX21,366-BX21),BY21) -> 1225 | CB21: =IF(BZ21=SUMIF(GHA!$AQ$51:$AQ$90,CB20,GHA!$BK$51:$BK$90),CB20+1,CB20) -> 1 | CC21: 1400.7 | CD21: =SUMIF(GHA!$AQ$51:$AQ$90,CB21,GHA!$BJ$51:$BJ$90) -> 1475
A22: 21 | B22: 2009-01-21 | C22: 3 | D22: Wednesday | E22: 1005 | F22: 969 | G22: 942 | H22: 942 | I22: 972 | J22: 1040 | K22: 960 | L22: 902 | M22: 977 | N22: 991 | O22: 1010 | P22: 868 | Q22: 1014 | R22: 1020 | S22: 1038 | T22: 1060 | U22: 1031 | V22: 1025 | W22: 1224 | X22: 1260 | Y22: 1253 | Z22: 1180 | AA22: 1080 | AB22: 982 | AC22: 24745 | AD22: 1281.957869 | AE22: s1 | AF22: d1 | AG22: s1d1 | AP22: 1 | AQ22: =MAX(AT22:BQ22) -> 3 | AR22: =AR13 -> s1d1 | AS22: =AP22 -> 1 | AT22: 1 | AU22: 1 | AV22: 1 | AW22: 1 | AX22: 1 | AY22: 1 | AZ22: 2 | BA22: 2 | BB22: 2 | BC22: 2 | BD22: 2 | BE22: 2 | BF22: 2 | BG22: 2 | BH22: 2 | BI22: 2 | BJ22: 2 | BK22: 2 | BL22: 3 | BM22: 3 | BN22: 3 | BO22: 3 | BP22: 3 | BQ22: 1 | BX22: 1 | BY22: 20 | BZ22: 20 | CA22: =OFFSET(GHA!$D$1,IF($CA$1,BX22,366-BX22),BY22) -> 1270 | CB22: =IF(BZ22=SUMIF(GHA!$AQ$51:$AQ$90,CB21,GHA!$BK$51:$BK$90),CB21+1,CB21) -> 1 | CC22: 1400 | CD22: =SUMIF(GHA!$AQ$51:$AQ$90,CB22,GHA!$BJ$51:$BJ$90) -> 1475
A23: 22 | B23: 2009-01-22 | C23: 4 | D23: Thursday | E23: 979 | F23: 891 | G23: 956 | H23: 941 | I23: 994 | J23: 1067 | K23: 1002 | L23: 938 | M23: 984 | N23: 970 | O23: 874 | P23: 983 | Q23: 989 | R23: 990 | S23: 1024 | T23: 1054 | U23: 1039 | V23: 1068 | W23: 1242 | X23: 1265 | Y23: 1257 | Z23: 1206 | AA23: 1082 | AB23: 1010 | AC23: 24805 | AD23: 1277.962082 | AE23: s1 | AF23: d1 | AG23: s1d1 | AP23: =AP22+1 -> 2 | AQ23: 3 | AR23: s1d2 | AS23: 2 | AT23: 1 | AU23: 1 | AV23: 1 | AW23: 1 | AX23: 1 | AY23: 1 | AZ23: 2 | BA23: 2 | BB23: 2 | BC23: 2 | BD23: 2 | BE23: 2 | BF23: 2 | BG23: 2 | BH23: 2 | BI23: 2 | BJ23: 2 | BK23: 2 | BL23: 3 | BM23: 3 | BN23: 3 | BO23: 3 | BP23: 3 | BQ23: 1 | BX23: 1 | BY23: 21 | BZ23: 21 | CA23: =OFFSET(GHA!$D$1,IF($CA$1,BX23,366-BX23),BY23) -> 1251 | CB23: =IF(BZ23=SUMIF(GHA!$AQ$51:$AQ$90,CB22,GHA!$BK$51:$BK$90),CB22+1,CB22) -> 1 | CC23: 1399 | CD23: =SUMIF(GHA!$AQ$51:$AQ$90,CB23,GHA!$BJ$51:$BJ$90) -> 1475
A24: 23 | B24: 2009-01-23 | C24: 5 | D24: Friday | E24: 982 | F24: 967 | G24: 990 | H24: 951 | I24: 988 | J24: 1062 | K24: 996 | L24: 957 | M24: 897 | N24: 958 | O24: 951 | P24: 958 | Q24: 966 | R24: 983 | S24: 998 | T24: 1018 | U24: 1112 | V24: 1044.4 | W24: 1224.9 | X24: 1243 | Y24: 1236 | Z24: 1143 | AA24: 1074 | AB24: 1012 | AC24: 24711.3 | AD24: 1272.655874 | AE24: s1 | AF24: d1 | AG24: s1d1 | AP24: =AP23+1 -> 3 | AQ24: 3 | AR24: s2d1 | AS24: 3 | AT24: 1 | AU24: 1 | AV24: 1 | AW24: 1 | AX24: 1 | AY24: 1 | AZ24: 2 | BA24: 2 | BB24: 2 | BC24: 2 | BD24: 2 | BE24: 2 | BF24: 2 | BG24: 2 | BH24: 2 | BI24: 2 | BJ24: 2 | BK24: 2 | BL24: 3 | BM24: 3 | BN24: 3 | BO24: 3 | BP24: 3 | BQ24: 1 | BX24: 1 | BY24: 22 | BZ24: 22 | CA24: =OFFSET(GHA!$D$1,IF($CA$1,BX24,366-BX24),BY24) -> 1226 | CB24: =IF(BZ24=SUMIF(GHA!$AQ$51:$AQ$90,CB23,GHA!$BK$51:$BK$90),CB23+1,CB23) -> 1 | CC24: 1398 | CD24: =SUMIF(GHA!$AQ$51:$AQ$90,CB24,GHA!$BJ$51:$BJ$90) -> 1475
A25: 24 | B25: 2009-01-24 | C25: 6 | D25: Saturday | E25: 1028 | F25: 946.2 | G25: 916 | H25: 921.2 | I25: 933 | J25: 978 | K25: 920 | L25: 938 | M25: 889 | N25: 863 | O25: 884 | P25: 876 | Q25: 891 | R25: 900 | S25: 903 | T25: 908 | U25: 931 | V25: 968 | W25: 118 | X25: 1195 | Y25: 1189 | Z25: 1120 | AA25: 1051 | AB25: 994 | AC25: 22260.4 | AD25: 1157.190287 | AE25: s1 | AF25: d1 | AG25: s1d1 | AP25: =AP24+1 -> 4 | AQ25: 3 | AR25: s2d2 | AS25: 4 | AT25: 1 | AU25: 1 | AV25: 1 | AW25: 1 | AX25: 1 | AY25: 1 | AZ25: 2 | BA25: 2 | BB25: 2 | BC25: 2 | BD25: 2 | BE25: 2 | BF25: 2 | BG25: 2 | BH25: 2 | BI25: 2 | BJ25: 2 | BK25: 2 | BL25: 3 | BM25: 3 | BN25: 3 | BO25: 3 | BP25: 3 | BQ25: 1 | BX25: 1 | BY25: 23 | BZ25: 23 | CA25: =OFFSET(GHA!$D$1,IF($CA$1,BX25,366-BX25),BY25) -> 1176 | CB25: =IF(BZ25=SUMIF(GHA!$AQ$51:$AQ$90,CB24,GHA!$BK$51:$BK$90),CB24+1,CB24) -> 1 | CC25: 1398 | CD25: =SUMIF(GHA!$AQ$51:$AQ$90,CB25,GHA!$BJ$51:$BJ$90) -> 1475
A26: 25 | B26: 2009-01-25 | C26: 7 | D26: Sunday | E26: 941 | F26: 917 | G26: 873 | H26: 862 | I26: 920 | J26: 939 | K26: 906 | L26: 901 | M26: 861 | N26: 830 | O26: 810 | P26: 808 | Q26: 826 | R26: 827 | S26: 854 | T26: 895 | U26: 912 | V26: 987 | W26: 1219 | X26: 1206 | Y26: 1212 | Z26: 1158 | AA26: 1066 | AB26: 988 | AC26: 22718 | AD26: 1163.371258 | AE26: s1 | AF26: d1 | AG26: s1d1 | AP26: =AP25+1 -> 5 | AQ26: 4 | AR26: s3d1 | AS26: 5 | AT26: 1 | AU26: 1 | AV26: 1 | AW26: 1 | AX26: 1 | AY26: 1 | AZ26: 2 | BA26: 2 | BB26: 2 | BC26: 2 | BD26: 2 | BE26: 2 | BF26: 2 | BG26: 2 | BH26: 2 | BI26: 2 | BJ26: 2 | BK26: 2 | BL26: 3 | BM26: 4 | BN26: 3 | BO26: 3 | BP26: 3 | BQ26: 1 | BX26: 1 | BY26: 24 | BZ26: 24 | CA26: =OFFSET(GHA!$D$1,IF($CA$1,BX26,366-BX26),BY26) -> 1101 | CB26: =IF(BZ26=SUMIF(GHA!$AQ$51:$AQ$90,CB25,GHA!$BK$51:$BK$90),CB25+1,CB25) -> 1 | CC26: 1397.8 | CD26: =SUMIF(GHA!$AQ$51:$AQ$90,CB26,GHA!$BJ$51:$BJ$90) -> 1475
A27: 26 | B27: 2009-01-26 | C27: 1 | D27: Monday | E27: 941 | F27: 900 | G27: 878 | H27: 888 | I27: 935 | J27: 1060 | K27: 982 | L27: 969 | M27: 1011 | N27: 989 | O27: 1035 | P27: 1012 | Q27: 1029 | R27: 1045 | S27: 1084 | T27: 1067 | U27: 1093 | V27: 1080 | W27: 1264 | X27: 1297 | Y27: 1298 | Z27: 1238 | AA27: 1111 | AB27: 1071 | AC27: 25277 | AD27: 1173.434132 | AE27: s1 | AF27: d1 | AG27: s1d1 | AP27: =AP26+1 -> 6 | AQ27: 4 | AR27: s3d2 | AS27: 6 | AT27: 1 | AU27: 1 | AV27: 1 | AW27: 1 | AX27: 1 | AY27: 1 | AZ27: 2 | BA27: 2 | BB27: 2 | BC27: 2 | BD27: 2 | BE27: 2 | BF27: 2 | BG27: 2 | BH27: 2 | BI27: 2 | BJ27: 2 | BK27: 2 | BL27: 3 | BM27: 4 | BN27: 3 | BO27: 3 | BP27: 3 | BQ27: 1 | BX27: 2 | BY27: =BY3 -> 1 | BZ27: 25 | CA27: =OFFSET(GHA!$D$1,IF($CA$1,BX27,366-BX27),BY27) -> 1075 | CB27: =IF(BZ27=SUMIF(GHA!$AQ$51:$AQ$90,CB26,GHA!$BK$51:$BK$90),CB26+1,CB26) -> 1 | CC27: 1397.3 | CD27: =SUMIF(GHA!$AQ$51:$AQ$90,CB27,GHA!$BJ$51:$BJ$90) -> 1475
A28: 27 | B28: 2009-01-27 | C28: 2 | D28: Tuesday | E28: 1054 | F28: 1043 | G28: 1005 | H28: 1014 | I28: 1045 | J28: 1121 | K28: 1065 | L28: 1008 | M28: 1051 | N28: 1059 | O28: 1068 | P28: 1035 | Q28: 1055 | R28: 1064 | S28: 1078 | T28: 1104 | U28: 1078 | V28: 1075 | W28: 1258 | X28: 1287 | Y28: 1286 | Z28: 1243 | AA28: 1164 | AB28: 1025 | AC28: 26285 | AD28: 1181.890719 | AE28: s1 | AF28: d1 | AG28: s1d1 | AP28: Total blcks | AQ28: =AQ26+AQ24+AQ22 -> 10 | BX28: 2 | BY28: 2 | BZ28: 26 | CA28: =OFFSET(GHA!$D$1,IF($CA$1,BX28,366-BX28),BY28) -> 1040 | CB28: =IF(BZ28=SUMIF(GHA!$AQ$51:$AQ$90,CB27,GHA!$BK$51:$BK$90),CB27+1,CB27) -> 1 | CC28: 1395 | CD28: =SUMIF(GHA!$AQ$51:$AQ$90,CB28,GHA!$BJ$51:$BJ$90) -> 1475
A29: 28 | B29: 2009-01-28 | C29: 3 | D29: Wednesday | E29: 1082 | F29: 1029 | G29: 1019 | H29: 1016 | I29: 1045 | J29: 1103 | K29: 1042 | L29: 1033 | M29: 1072 | N29: 1103 | O29: 1117 | P29: 1130 | Q29: 1131 | R29: 1118 | S29: 1131 | T29: 1133 | U29: 1147 | V29: 1118 | W29: 1272 | X29: 1302 | Y29: 1301 | Z29: 1270 | AA29: 1180 | AB29: 1119 | AC29: 27013 | AD29: 1190.901647 | AE29: s1 | AF29: d1 | AG29: s1d1 | BX29: 2 | BY29: 3 | BZ29: 27 | CA29: =OFFSET(GHA!$D$1,IF($CA$1,BX29,366-BX29),BY29) -> 1006 | CB29: =IF(BZ29=SUMIF(GHA!$AQ$51:$AQ$90,CB28,GHA!$BK$51:$BK$90),CB28+1,CB28) -> 1 | CC29: 1394.2 | CD29: =SUMIF(GHA!$AQ$51:$AQ$90,CB29,GHA!$BJ$51:$BJ$90) -> 1475
A30: 29 | B30: 2009-01-29 | C30: 4 | D30: Thursday | E30: 1073 | F30: 1060 | G30: 1081 | H30: 1062 | I30: 1058 | J30: 1122 | K30: 1034 | L30: 1009 | M30: 1077 | N30: 1085 | O30: 1092 | P30: 1081 | Q30: 1077 | R30: 1090 | S30: 1052 | T30: 1054 | U30: 1034 | V30: 1081 | W30: 1249 | X30: 1288 | Y30: 1301 | Z30: 1272 | AA30: 1178 | AB30: 1110 | AC30: 26620 | AD30: 1196.711482 | AE30: s1 | AF30: d1 | AG30: s1d1 | AP30: select day | AQ30: 1 | AR30: =VLOOKUP(AQ30,$AP$22:$AR$27,3,FALSE) -> s1d1 | AS30: avg pwr | AT30: =SUMIF($AR$13:$AR$18,$AR30,AT$13:AT$18)/SUMIF($AR$13:$AR$18,$AR30,$AK$13:$AK$18)/8.76*24 -> 1059.960317 | AU30: 1041.319048 | AV30: 1020.063492 | AW30: 1012.430159 | AX30: 1026.619048 | AY30: 1054.150794 | AZ30: 987.4365079 | BA30: 1012.055556 | BB30: 1046.130952 | BC30: 1055.079365 | BD30: 1052.576984 | BE30: 1059.788095 | BF30: 1061.674603 | BG30: 1071.900794 | BH30: 1083.35 | BI30: 1085.984921 | BJ30: 1075.484127 | BK30: 1078.834127 | BL30: 1229.006349 | BM30: 1251.388095 | BN30: 1247.364286 | BO30: 1222.04127 | BP30: 1152.657937 | BQ30: 1099.792857 | BX30: 2 | BY30: 4 | BZ30: 28 | CA30: =OFFSET(GHA!$D$1,IF($CA$1,BX30,366-BX30),BY30) -> 998 | CB30: =IF(BZ30=SUMIF(GHA!$AQ$51:$AQ$90,CB29,GHA!$BK$51:$BK$90),CB29+1,CB29) -> 1 | CC30: 1393.8 | CD30: =SUMIF(GHA!$AQ$51:$AQ$90,CB30,GHA!$BJ$51:$BJ$90) -> 1475
A31: 30 | B31: 2009-01-30 | C31: 5 | D31: Friday | E31: 1063 | F31: 1058 | G31: 1048 | H31: 1016 | I31: 1051 | J31: 1103 | K31: 1030 | L31: 1028 | M31: 1062 | N31: 1118 | O31: 1080 | P31: 1055 | Q31: 1047 | R31: 1077 | S31: 1090 | T31: 1098 | U31: 1092 | V31: 1084 | W31: 1260 | X31: 1242 | Y31: 1205 | Z31: 1182 | AA31: 1097 | AB31: 1030 | AC31: 26216 | AD31: 1203.040334 | AE31: s1 | AF31: d1 | AG31: s1d1 | AR31: =VLOOKUP(AR30,AR13:AS18,2,FALSE) -> Pre-winter weekday | AS31: day with peak | AT31: =OFFSET($E$1,$AP$5,AT$12) -> 1196 | AU31: =OFFSET($E$1,$AP$5,AU$12) -> 1184 | AV31: 1164 | AW31: 1161 | AX31: 1196 | AY31: 1244 | AZ31: 1142 | BA31: 1201 | BB31: 1224 | BC31: 1256 | BD31: 1257.1 | BE31: 1262.1 | BF31: 1242.9 | BG31: 1276.6 | BH31: 1242.3 | BI31: 1251.8 | BJ31: 1265.4 | BK31: 1303.6 | BL31: 1475 | BM31: 1474 | BN31: 1424 | BO31: 1411 | BP31: 1307 | BQ31: 1240 | BX31: 2 | BY31: 5 | BZ31: 29 | CA31: =OFFSET(GHA!$D$1,IF($CA$1,BX31,366-BX31),BY31) -> 1011 | CB31: =IF(BZ31=SUMIF(GHA!$AQ$51:$AQ$90,CB30,GHA!$BK$51:$BK$90),CB30+1,CB30) -> 1 | CC31: 1393.2 | CD31: =SUMIF(GHA!$AQ$51:$AQ$90,CB31,GHA!$BJ$51:$BJ$90) -> 1475
A32: 31 | B32: 2009-01-31 | C32: 6 | D32: Saturday | E32: 1032 | F32: 989 | G32: 995 | H32: 986 | I32: 969 | J32: 1009 | K32: 925 | L32: 939 | M32: 926 | N32: 875 | O32: 885 | P32: 898 | Q32: 943 | R32: 989 | S32: 998 | T32: 980 | U32: 880 | V32: 953 | W32: 1148 | X32: 1221 | Y32: 1195 | Z32: 1167 | AA32: 1118 | AB32: 1051 | AC32: 24071 | AD32: 1197.536301 | AE32: s1 | AF32: d1 | AG32: s1d1 | AS32: blck avg w/o corr | AT32: =SUMIF($AR$51:$AR$90,$AR30&"b"&SUMIF($AR$22:$AR$27,$AR30,AT$22:AT$27),$BB$51:$BB$90) -> 1044.905102 | AU32: 1044.905102 | AV32: 1044.905102 | AW32: 1044.905102 | AX32: 1044.905102 | AY32: 1044.905102 | AZ32: 1055.858003 | BA32: 1055.858003 | BB32: 1055.858003 | BC32: 1055.858003 | BD32: 1055.858003 | BE32: 1055.858003 | BF32: 1055.858003 | BG32: 1055.858003 | BH32: 1055.858003 | BI32: 1055.858003 | BJ32: 1055.858003 | BK32: 1055.858003 | BL32: 1220.491587 | BM32: 1220.491587 | BN32: 1220.491587 | BO32: 1220.491587 | BP32: 1220.491587 | BQ32: 1044.905102 | BX32: 2 | BY32: 6 | BZ32: 30 | CA32: =OFFSET(GHA!$D$1,IF($CA$1,BX32,366-BX32),BY32) -> 1022 | CB32: =IF(BZ32=SUMIF(GHA!$AQ$51:$AQ$90,CB31,GHA!$BK$51:$BK$90),CB31+1,CB31) -> 1 | CC32: 1391.3 | CD32: =SUMIF(GHA!$AQ$51:$AQ$90,CB32,GHA!$BJ$51:$BJ$90) -> 1475
A33: 32 | B33: 2009-02-01 | C33: 7 | D33: Sunday | E33: 912 | F33: 873 | G33: 861 | H33: 864 | I33: 982 | J33: 983 | K33: 921 | L33: 910 | M33: 917 | N33: 934 | O33: 938 | P33: 944 | Q33: 966 | R33: 977 | S33: 953 | T33: 956 | U33: 958 | V33: 969 | W33: 1220 | X33: 1223 | Y33: 1251 | Z33: 1201 | AA33: 1131 | AB33: 1072 | AC33: 23916 | AD33: 1199.782671 | AE33: s1 | AF33: d1 | AG33: s1d1 | AS33: blck avg w corr | AT33: =SUMIF($AR$51:$AR$90,$AR30&"b"&SUMIF($AR$22:$AR$27,$AR30,AT$22:AT$27),$BH$51:$BH$90) -> 1042.905373 | AU33: 1042.905373 | AV33: 1042.905373 | AW33: 1042.905373 | AX33: 1042.905373 | AY33: 1042.905373 | AZ33: 1053.837312 | BA33: 1053.837312 | BB33: 1053.837312 | BC33: 1053.837312 | BD33: 1053.837312 | BE33: 1053.837312 | BF33: 1053.837312 | BG33: 1053.837312 | BH33: 1053.837312 | BI33: 1053.837312 | BJ33: 1053.837312 | BK33: 1053.837312 | BL33: 1218.155823 | BM33: 1218.155823 | BN33: 1218.155823 | BO33: 1218.155823 | BP33: 1218.155823 | BQ33: 1042.905373 | BX33: 2 | BY33: 7 | BZ33: 31 | CA33: =OFFSET(GHA!$D$1,IF($CA$1,BX33,366-BX33),BY33) -> 999 | CB33: =IF(BZ33=SUMIF(GHA!$AQ$51:$AQ$90,CB32,GHA!$BK$51:$BK$90),CB32+1,CB32) -> 1 | CC33: 1391 | CD33: =SUMIF(GHA!$AQ$51:$AQ$90,CB33,GHA!$BJ$51:$BJ$90) -> 1475
A34: 33 | B34: 2009-02-02 | C34: 1 | D34: Monday | E34: 1032 | F34: 989 | G34: 995 | H34: 986 | I34: 969 | J34: 1009 | K34: 925 | L34: 939 | M34: 926 | N34: 875 | O34: 885 | P34: 898 | Q34: 943 | R34: 989 | S34: 998 | T34: 980 | U34: 880 | V34: 953 | W34: 1148 | X34: 1221 | Y34: 1195 | Z34: 1167 | AA34: 1118 | AB34: 1051 | AC34: 24071 | AD34: 1194.604404 | AE34: s1 | AF34: d1 | AG34: s1d1 | BX34: 2 | BY34: 8 | BZ34: 32 | CA34: =OFFSET(GHA!$D$1,IF($CA$1,BX34,366-BX34),BY34) -> 1061 | CB34: =IF(BZ34=SUMIF(GHA!$AQ$51:$AQ$90,CB33,GHA!$BK$51:$BK$90),CB33+1,CB33) -> 1 | CC34: 1390 | CD34: =SUMIF(GHA!$AQ$51:$AQ$90,CB34,GHA!$BJ$51:$BJ$90) -> 1475
A35: 34 | B35: 2009-02-03 | C35: 2 | D35: Tuesday | E35: 1035 | F35: 1038 | G35: 1004 | H35: 999 | I35: 1029 | J35: 1077 | K35: 1018 | L35: 1030 | M35: 1078 | N35: 1063 | O35: 1081 | P35: 1072 | Q35: 1075 | R35: 1089 | S35: 1093 | T35: 1111 | U35: 1093 | V35: 1087 | W35: 1257 | X35: 1296 | Y35: 1277 | Z35: 1241 | AA35: 1166 | AB35: 1105 | AC35: 26414 | AD35: 1200.843963 | AE35: s1 | AF35: d1 | AG35: s1d1 | BX35: 2 | BY35: 9 | BZ35: 33 | CA35: =OFFSET(GHA!$D$1,IF($CA$1,BX35,366-BX35),BY35) -> 1093 | CB35: =IF(BZ35=SUMIF(GHA!$AQ$51:$AQ$90,CB34,GHA!$BK$51:$BK$90),CB34+1,CB34) -> 1 | CC35: 1390 | CD35: =SUMIF(GHA!$AQ$51:$AQ$90,CB35,GHA!$BJ$51:$BJ$90) -> 1475
A36: 35 | B36: 2009-02-04 | C36: 3 | D36: Wednesday | E36: 1111 | F36: 1097 | G36: 1004 | H36: 1032 | I36: 1046 | J36: 1100 | K36: 1012 | L36: 1038 | M36: 1065 | N36: 1097 | O36: 1121 | P36: 1114 | Q36: 1138 | R36: 1118 | S36: 1133 | T36: 1110 | U36: 1155 | V36: 1101 | W36: 1282 | X36: 1277 | Y36: 1272 | Z36: 1198 | AA36: 1156 | AB36: 1093 | AC36: 26870 | AD36: 1208.959567 | AE36: s1 | AF36: d1 | AG36: s1d1 | BX36: 2 | BY36: 10 | BZ36: 34 | CA36: =OFFSET(GHA!$D$1,IF($CA$1,BX36,366-BX36),BY36) -> 1136 | CB36: =IF(BZ36=SUMIF(GHA!$AQ$51:$AQ$90,CB35,GHA!$BK$51:$BK$90),CB35+1,CB35) -> 1 | CC36: 1389 | CD36: =SUMIF(GHA!$AQ$51:$AQ$90,CB36,GHA!$BJ$51:$BJ$90) -> 1475
A37: 36 | B37: 2009-02-05 | C37: 4 | D37: Thursday | E37: 1050 | F37: 1058 | G37: 1020 | H37: 1030 | I37: 1043 | J37: 1080 | K37: 994 | L37: 994 | M37: 1090 | N37: 1101 | O37: 1152 | P37: 1151.1 | Q37: 1128.9 | R37: 1139 | S37: 1129 | T37: 1137 | U37: 1099 | V37: 1080 | W37: 1254 | X37: 763 | Y37: 1009 | Z37: 1164 | AA37: 1150 | AB37: 1094 | AC37: 25910 | AD37: 1213.46361 | AE37: s1 | AF37: d1 | AG37: s1d1 | BX37: 2 | BY37: 11 | BZ37: 35 | CA37: =OFFSET(GHA!$D$1,IF($CA$1,BX37,366-BX37),BY37) -> 1155 | CB37: =IF(BZ37=SUMIF(GHA!$AQ$51:$AQ$90,CB36,GHA!$BK$51:$BK$90),CB36+1,CB36) -> 1 | CC37: 1389 | CD37: =SUMIF(GHA!$AQ$51:$AQ$90,CB37,GHA!$BJ$51:$BJ$90) -> 1475
A38: 37 | B38: 2009-02-06 | C38: 5 | D38: Friday | E38: 1071 | F38: 1033 | G38: 1045 | H38: 1050 | I38: 1045 | J38: 935 | K38: 838 | L38: 880 | M38: 925 | N38: 939 | O38: 962 | P38: 1016 | Q38: 1160 | R38: 1124 | S38: 1164 | T38: 1129 | U38: 1100 | V38: 1115 | W38: 1295 | X38: 1322 | Y38: 1312 | Z38: 1266 | AA38: 1210 | AB38: 1158 | AC38: 26094 | AD38: 1221.617249 | AE38: s1 | AF38: d1 | AG38: s1d1 | BX38: 2 | BY38: 12 | BZ38: 36 | CA38: =OFFSET(GHA!$D$1,IF($CA$1,BX38,366-BX38),BY38) -> 1157 | CB38: =IF(BZ38=SUMIF(GHA!$AQ$51:$AQ$90,CB37,GHA!$BK$51:$BK$90),CB37+1,CB37) -> 1 | CC38: 1388.4 | CD38: =SUMIF(GHA!$AQ$51:$AQ$90,CB38,GHA!$BJ$51:$BJ$90) -> 1475
A39: 38 | B39: 2009-02-07 | C39: 6 | D39: Saturday | E39: 1112 | F39: 1086 | G39: 1054 | H39: 1063 | I39: 1084 | J39: 1070 | K39: 995 | L39: 983 | M39: 989 | N39: 1066 | O39: 1087 | P39: 1091 | Q39: 1048 | R39: 1039 | S39: 1040 | T39: 919 | U39: 1023 | V39: 1050 | W39: 1261.3 | X39: 1276.3 | Y39: 1278.8 | Z39: 1260.9 | AA39: 1200.3 | AB39: 1145 | AC39: 26221.6 | AD39: 1225.585524 | AE39: s1 | AF39: d1 | AG39: s1d1 | BX39: 2 | BY39: 13 | BZ39: 37 | CA39: =OFFSET(GHA!$D$1,IF($CA$1,BX39,366-BX39),BY39) -> 1128 | CB39: =IF(BZ39=SUMIF(GHA!$AQ$51:$AQ$90,CB38,GHA!$BK$51:$BK$90),CB38+1,CB38) -> 1 | CC39: 1387 | CD39: =SUMIF(GHA!$AQ$51:$AQ$90,CB39,GHA!$BJ$51:$BJ$90) -> 1475
A40: 39 | B40: 2009-02-08 | C40: 7 | D40: Sunday | E40: 1087 | F40: 1066 | G40: 1066 | H40: 1039 | I40: 1040 | J40: 1040 | K40: 967 | L40: 977 | M40: 938 | N40: 898 | O40: 920 | P40: 930 | Q40: 941 | R40: 993 | S40: 991 | T40: 986 | U40: 990 | V40: 1015 | W40: 1236.2 | X40: 1257.1 | Y40: 1205 | Z40: 1161 | AA40: 1117 | AB40: 1062 | AC40: 24922.3 | AD40: 1226.646972 | AE40: s1 | AF40: d1 | AG40: s1d1 | BX40: 2 | BY40: 14 | BZ40: 38 | CA40: =OFFSET(GHA!$D$1,IF($CA$1,BX40,366-BX40),BY40) -> 1122 | CB40: =IF(BZ40=SUMIF(GHA!$AQ$51:$AQ$90,CB39,GHA!$BK$51:$BK$90),CB39+1,CB39) -> 1 | CC40: 1387 | CD40: =SUMIF(GHA!$AQ$51:$AQ$90,CB40,GHA!$BJ$51:$BJ$90) -> 1475
A41: 40 | B41: 2009-02-09 | C41: 1 | D41: Monday | E41: 1025 | F41: 979 | G41: 957 | H41: 934 | I41: 960 | J41: 1053 | K41: 989 | L41: 1009 | M41: 1070 | N41: 1094 | O41: 1118 | P41: 1142 | Q41: 1108 | R41: 1125 | S41: 1123 | T41: 1156.1 | U41: 1131 | V41: 1084.9 | W41: 1230.3 | X41: 1286.2 | Y41: 1267.7 | Z41: 1243.6 | AA41: 1191.6 | AB41: 1120 | AC41: 26397.4 | AD41: 1227.012275 | AE41: s1 | AF41: d1 | AG41: s1d1 | BX41: 2 | BY41: 15 | BZ41: 39 | CA41: =OFFSET(GHA!$D$1,IF($CA$1,BX41,366-BX41),BY41) -> 1146 | CB41: =IF(BZ41=SUMIF(GHA!$AQ$51:$AQ$90,CB40,GHA!$BK$51:$BK$90),CB40+1,CB40) -> 1 | CC41: 1387 | CD41: =SUMIF(GHA!$AQ$51:$AQ$90,CB41,GHA!$BJ$51:$BJ$90) -> 1475
A42: 41 | B42: 2009-02-10 | C42: 2 | D42: Tuesday | E42: 1091 | F42: 1077 | G42: 1066 | H42: 1070 | I42: 1076 | J42: 1125 | K42: 1045 | L42: 1044 | M42: 1110 | N42: 1119 | O42: 1133 | P42: 1160 | Q42: 1165 | R42: 1082 | S42: 1043 | T42: 1125 | U42: 1110 | V42: 1094.7 | W42: 1228.7 | X42: 1286.9 | Y42: 1291.7 | Z42: 1242 | AA42: 1221.1 | AB42: 1128 | AC42: 27134.1 | AD42: 1227.181047 | AE42: s1 | AF42: d1 | AG42: s1d1 | BX42: 2 | BY42: 16 | BZ42: 40 | CA42: =OFFSET(GHA!$D$1,IF($CA$1,BX42,366-BX42),BY42) -> 1137 | CB42: =IF(BZ42=SUMIF(GHA!$AQ$51:$AQ$90,CB41,GHA!$BK$51:$BK$90),CB41+1,CB41) -> 1 | CC42: 1386.9 | CD42: =SUMIF(GHA!$AQ$51:$AQ$90,CB42,GHA!$BJ$51:$BJ$90) -> 1475
A43: 42 | B43: 2009-02-11 | C43: 3 | D43: Wednesday | E43: 1080 | F43: 1060 | G43: 1053 | H43: 1045 | I43: 1073 | J43: 1119 | K43: 1028 | L43: 1048 | M43: 1112 | N43: 1115 | O43: 1091 | P43: 1149 | Q43: 1137 | R43: 1107 | S43: 1120 | T43: 1102 | U43: 1159 | V43: 1159.7 | W43: 1277.5 | X43: 1272.1 | Y43: 1250.8 | Z43: 1228.1 | AA43: 1166 | AB43: 1109 | AC43: 27061.2 | AD43: 1232.212942 | AE43: s1 | AF43: d1 | AG43: s1d1 | BX43: 2 | BY43: 17 | BZ43: 41 | CA43: =OFFSET(GHA!$D$1,IF($CA$1,BX43,366-BX43),BY43) -> 1146 | CB43: =IF(BZ43=SUMIF(GHA!$AQ$51:$AQ$90,CB42,GHA!$BK$51:$BK$90),CB42+1,CB42) -> 1 | CC43: 1386 | CD43: =SUMIF(GHA!$AQ$51:$AQ$90,CB43,GHA!$BJ$51:$BJ$90) -> 1475
A44: 43 | B44: 2009-02-12 | C44: 4 | D44: Thursday | E44: 1098 | F44: 1043 | G44: 1033 | H44: 1040 | I44: 1079 | J44: 1118 | K44: 1033 | L44: 1044 | M44: 1102 | N44: 1137 | O44: 1151 | P44: 1148 | Q44: 1166 | R44: 1094 | S44: 1111 | T44: 1166 | U44: 1137 | V44: 1032.4 | W44: 1258.7 | X44: 1185.1 | Y44: 1300.4 | Z44: 1279.2 | AA44: 1216 | AB44: 1148 | AC44: 27119.8 | AD44: 1234.861648 | AE44: s1 | AF44: d1 | AG44: s1d1 | BX44: 2 | BY44: 18 | BZ44: 42 | CA44: =OFFSET(GHA!$D$1,IF($CA$1,BX44,366-BX44),BY44) -> 1200 | CB44: =IF(BZ44=SUMIF(GHA!$AQ$51:$AQ$90,CB43,GHA!$BK$51:$BK$90),CB43+1,CB43) -> 1 | CC44: 1385.2 | CD44: =SUMIF(GHA!$AQ$51:$AQ$90,CB44,GHA!$BJ$51:$BJ$90) -> 1475
A45: 44 | B45: 2009-02-13 | C45: 5 | D45: Friday | E45: 1088 | F45: 1099 | G45: 1070 | H45: 1072 | I45: 1073 | J45: 1133 | K45: 1046 | L45: 1075 | M45: 1133 | N45: 1140 | O45: 1143 | P45: 1173 | Q45: 1137 | R45: 1117 | S45: 1117 | T45: 1156 | U45: 1134 | V45: 1136 | W45: 1314 | X45: 1323 | Y45: 1324 | Z45: 1289 | AA45: 1218 | AB45: 1178 | AC45: 27688 | AD45: 1242.775483 | AE45: s1 | AF45: d1 | AG45: s1d1 | BX45: 2 | BY45: 19 | BZ45: 43 | CA45: =OFFSET(GHA!$D$1,IF($CA$1,BX45,366-BX45),BY45) -> 1287 | CB45: =IF(BZ45=SUMIF(GHA!$AQ$51:$AQ$90,CB44,GHA!$BK$51:$BK$90),CB44+1,CB44) -> 1 | CC45: 1385 | CD45: =SUMIF(GHA!$AQ$51:$AQ$90,CB45,GHA!$BJ$51:$BJ$90) -> 1475
A46: 45 | B46: 2009-02-14 | C46: 6 | D46: Saturday | E46: 1145 | F46: 1129 | G46: 1117 | H46: 1123 | I46: 1082 | J46: 1103 | K46: 1002 | L46: 1010 | M46: 1030 | N46: 1041 | O46: 1046 | P46: 1051 | Q46: 1070 | R46: 1057 | S46: 1062 | T46: 1060 | U46: 1036 | V46: 1060 | W46: 1217 | X46: 1167 | Y46: 1101 | Z46: 933 | AA46: 896 | AB46: 840 | AC46: 25378 | AD46: 1240.197935 | AE46: s1 | AF46: d1 | AG46: s1d1 | BX46: 2 | BY46: 20 | BZ46: 44 | CA46: =OFFSET(GHA!$D$1,IF($CA$1,BX46,366-BX46),BY46) -> 1304 | CB46: =IF(BZ46=SUMIF(GHA!$AQ$51:$AQ$90,CB45,GHA!$BK$51:$BK$90),CB45+1,CB45) -> 1 | CC46: 1383.4 | CD46: =SUMIF(GHA!$AQ$51:$AQ$90,CB46,GHA!$BJ$51:$BJ$90) -> 1475
A47: 46 | B47: 2009-02-15 | C47: 7 | D47: Sunday | E47: 868 | F47: 854 | G47: 843 | H47: 829 | I47: 825 | J47: 857 | K47: 779 | L47: 857 | M47: 866 | N47: 782 | O47: 781 | P47: 794 | Q47: 757 | R47: 869 | S47: 859 | T47: 885 | U47: 926 | V47: 976 | W47: 1154 | X47: 1179 | Y47: 1161 | Z47: 1145 | AA47: 1105 | AB47: 1004 | AC47: 21955 | AD47: 1231.578142 | AE47: s1 | AF47: d1 | AG47: s1d1 | BX47: 2 | BY47: 21 | BZ47: 45 | CA47: =OFFSET(GHA!$D$1,IF($CA$1,BX47,366-BX47),BY47) -> 1306 | CB47: =IF(BZ47=SUMIF(GHA!$AQ$51:$AQ$90,CB46,GHA!$BK$51:$BK$90),CB46+1,CB46) -> 1 | CC47: 1383 | CD47: =SUMIF(GHA!$AQ$51:$AQ$90,CB47,GHA!$BJ$51:$BJ$90) -> 1475
A48: 47 | B48: 2009-02-16 | C48: 1 | D48: Monday | E48: 995 | F48: 958 | G48: 954 | H48: 948 | I48: 968 | J48: 1041 | K48: 988 | L48: 1001 | M48: 1059 | N48: 1081 | O48: 1103 | P48: 1081 | Q48: 1073 | R48: 1098 | S48: 1072 | T48: 1074 | U48: 1067 | V48: 1057 | W48: 1234 | X48: 1224 | Y48: 1233 | Z48: 1180 | AA48: 1094 | AB48: 1049 | AC48: 25632 | AD48: 1231.820327 | AE48: s1 | AF48: d1 | AG48: s1d1 | BX48: 2 | BY48: 22 | BZ48: 46 | CA48: =OFFSET(GHA!$D$1,IF($CA$1,BX48,366-BX48),BY48) -> 1268 | CB48: =IF(BZ48=SUMIF(GHA!$AQ$51:$AQ$90,CB47,GHA!$BK$51:$BK$90),CB47+1,CB47) -> 1 | CC48: 1382.2 | CD48: =SUMIF(GHA!$AQ$51:$AQ$90,CB48,GHA!$BJ$51:$BJ$90) -> 1475
A49: 48 | B49: 2009-02-17 | C49: 2 | D49: Tuesday | E49: 1012 | F49: 988 | G49: 971 | H49: 974 | I49: 1011 | J49: 1069 | K49: 994 | L49: 997 | M49: 1075 | N49: 1100 | O49: 633 | P49: 812 | Q49: 925 | R49: 973 | S49: 1060 | T49: 1036 | U49: 1046 | V49: 1032 | W49: 1177 | X49: 1217 | Y49: 1240 | Z49: 1226 | AA49: 1130 | AB49: 1066 | AC49: 24764 | AD49: 1226.338295 | AE49: s1 | AF49: d1 | AG49: s1d1 | AS49: week | AT49: season | AU49: day | AV49: block | AW49: Peak | AX49: Duration | AY49: Duration (%) | AZ49: Duration (N) | BA49: Energy | BB49: Avg Pwr | BC49: Engy sh w p | BD49: Engy err | BE49: Engy w Cor | BF49: share w corr | BG49: share (N) | BH49: Pwr w Cor | BI49: Rank | BJ49: Ordered Pwr | BK49: Cum duration | BX49: 2 | BY49: 23 | BZ49: 47 | CA49: =OFFSET(GHA!$D$1,IF($CA$1,BX49,366-BX49),BY49) -> 1225 | CB49: =IF(BZ49=SUMIF(GHA!$AQ$51:$AQ$90,CB48,GHA!$BK$51:$BK$90),CB48+1,CB48) -> 1 | CC49: 1382 | CD49: =SUMIF(GHA!$AQ$51:$AQ$90,CB49,GHA!$BJ$51:$BJ$90) -> 1475
A50: 49 | B50: 2009-02-18 | C50: 3 | D50: Wednesday | E50: 1048 | F50: 1030 | G50: 1017 | H50: 1028 | I50: 1025 | J50: 1084 | K50: 976 | L50: 993 | M50: 1024 | N50: 1064 | O50: 1053 | P50: 1027 | Q50: 1043 | R50: 1069 | S50: 1046 | T50: 1078 | U50: 1001 | V50: 1074 | W50: 1212 | X50: 1278 | Y50: 1262 | Z50: 1227 | AA50: 1178 | AB50: 1077 | AC50: 25914 | AD50: 1224.904465 | AE50: s1 | AF50: d1 | AG50: s1d1 | AX50: hrs | AY50: % | BA50: GWh | BB50: MW | BC50: % | BE50: GWh | BF50: % | BH50: MW | BJ50: MW | BX50: 2 | BY50: 24 | BZ50: 48 | CA50: =OFFSET(GHA!$D$1,IF($CA$1,BX50,366-BX50),BY50) -> 1156 | CB50: =IF(BZ50=SUMIF(GHA!$AQ$51:$AQ$90,CB49,GHA!$BK$51:$BK$90),CB49+1,CB49) -> 1 | CC50: 1382 | CD50: =SUMIF(GHA!$AQ$51:$AQ$90,CB50,GHA!$BJ$51:$BJ$90) -> 1475
A51: 50 | B51: 2009-02-19 | C51: 4 | D51: Thursday | E51: 1063 | F51: 1072 | G51: 1038 | H51: 1034 | I51: 1029 | J51: 1100 | K51: 1019 | L51: 1018 | M51: 1102 | N51: 1096 | O51: 1002 | P51: 1113 | Q51: 1077 | R51: 1058 | S51: 1087 | T51: 1084 | U51: 1073 | V51: 1087 | W51: 1282 | X51: 1286 | Y51: 1274 | Z51: 1260 | AA51: 1178 | AB51: 1120 | AC51: 26552 | AD51: 1230.614019 | AE51: s1 | AF51: d1 | AG51: s1d1 | AQ51: 1 | AR51: =IF(AQ51>$AQ$28,"","s"&AT51&"d"&AU51&"b"&AV51) -> s1d1b1 | AS51: =SUMIF($AR$22:$AR$27,LEFT(AR51,4),$AP$22:$AP$27) -> 1 | AT51: 1 | AU51: 1 | AV51: 1 | AX51: =IF(AQ51>$AQ$28,"",COUNTIF(OFFSET($AS$21,$AS51,1,1,24),AV51)) -> 7 | AY51: =IF(AQ51>$AQ$28,"",AX51/24*SUMIF($AR$13:$AR$18,LEFT($AR51,4),$AK$13:$AK$18)) -> 0.1006849315 | AZ51: =IF(AQ51>$AQ$28,"",AY51/SUMIF($AR$51:$AR$90,LEFT(AR51,4)&"*",$AY$51:$AY$90)) -> 0.2916666667 | BA51: =IF(AQ51>$AQ$28,"",SUMIF(OFFSET($AS$21,$AS51,1,1,24),$AV51,OFFSET($AS$12,$AS51,1,1,24))) -> 921.6063 | BB51: =IF(AQ51>$AQ$28,"",BA51/AY51/8.76) -> 1044.905102 | BC51: =IF(AQ51>$AQ$28,"",BA51/SUMIF($AW$51:$AW$90,"",$BA$51:$BA$90)) -> 0.09884057983 | BD51: =IF(AQ51>$AQ$28,"",IF(AW51,$AO$5*AY51*8.76-BA51,0)) -> 0 | BE51: =IF(AQ51>$AQ$28,"",IF(AW51,BD51+BA51,BA51-BC51*SUM($BD$51:$BD$90))) -> 919.8425393 | BF51: =IF(AQ51>$AQ$28,"",BE51/$AM$19) -> 0.09704106581 | BG51: =IF(AQ51>$AQ$28,"",BF51/SUMIF($AR$51:$AR$90,LEFT(AR51,4)&"*",$BF$51:$BF$90)) -> 0.2803814378 | BH51: =IF(AQ51>$AQ$28,"",BE51/AY51/8.76) -> 1042.905373 | BI51: =IF(AQ51>$AQ$28,"",RANK(BH51,$BH$51:$BH$90)) -> 8 | BJ51: =SUMIF($BI$51:$BI$90,AQ51,$BH$51:$BH$90) -> 1475 | BK51: =SUMIF($BI$51:$BI$90,AQ51,$AY$51:$AY$90)*8760 -> 117 | BX51: 3 | BY51: 1 | BZ51: 49 | CA51: =OFFSET(GHA!$D$1,IF($CA$1,BX51,366-BX51),BY51) -> 1134 | CB51: =IF(BZ51=SUMIF(GHA!$AQ$51:$AQ$90,CB50,GHA!$BK$51:$BK$90),CB50+1,CB50) -> 1 | CC51: 1381.6 | CD51: =SUMIF(GHA!$AQ$51:$AQ$90,CB51,GHA!$BJ$51:$BJ$90) -> 1475
A52: 51 | B52: 2009-02-20 | C52: 5 | D52: Friday | E52: 1067 | F52: 1067 | G52: 1062 | H52: 1061 | I52: 1072 | J52: 1102 | K52: 1027 | L52: 1058 | M52: 1103 | N52: 1112 | O52: 1110 | P52: 1105 | Q52: 1088 | R52: 1109 | S52: 1110 | T52: 1155 | U52: 1101 | V52: 1081 | W52: 1280.6 | X52: 1287 | Y52: 1280.2 | Z52: 1244.9 | AA52: 1160.7 | AB52: 1138 | AC52: 26981.4 | AD52: 1235.612617 | AE52: s1 | AF52: d1 | AG52: s1d1 | AQ52: =AQ51+1 -> 2 | AR52: s1d1b2 | AS52: 1 | AT52: =IF(AQ52>$AQ$28,"",IF(AU52+AV52=2,AT51+1,AT51)) -> 1 | AU52: =IF(AQ52>$AQ$28,"",IF(AND(AU51=2,AV52=1),1,IF(AV52=1,AU51+1,AU51))) -> 1 | AV52: =IF(AQ52>$AQ$28,"",IF(SUMIF($AR$22:$AR$27,"s"&AT51&"d"&AU51,$AQ$22:$AQ$27)=AV51,1,AV51+1)) -> 2 | AX52: =IF(AQ52>$AQ$28,"",COUNTIF(OFFSET($AS$21,$AS52,1,1,24),AV52)) -> 12 | AY52: 0.1726027397 | AZ52: =IF(AQ52>$AQ$28,"",AY52/SUMIF($AR$51:$AR$90,LEFT(AR52,4)&"*",$AY$51:$AY$90)) -> 0.5 | BA52: 1596.4573 | BB52: 1055.858003 | BC52: 0.1712171078 | BD52: 0 | BE52: 1593.402016 | BF52: 0.1680998903 | BG52: =IF(AQ52>$AQ$28,"",BF52/SUMIF($AR$51:$AR$90,LEFT(AR52,4)&"*",$BF$51:$BF$90)) -> 0.485692202 | BH52: 1053.837312 | BI52: 7 | BJ52: 1265.362607 | BK52: =SUMIF($BI$51:$BI$90,AQ52,$AY$51:$AY$90)*8760+BK51 -> 585 | BX52: 3 | BY52: 2 | BZ52: 50 | CA52: =OFFSET(GHA!$D$1,IF($CA$1,BX52,366-BX52),BY52) -> 1099 | CB52: =IF(BZ52=SUMIF(GHA!$AQ$51:$AQ$90,CB51,GHA!$BK$51:$BK$90),CB51+1,CB51) -> 1 | CC52: 1380 | CD52: =SUMIF(GHA!$AQ$51:$AQ$90,CB52,GHA!$BJ$51:$BJ$90) -> 1475
A53: 52 | B53: 2009-02-21 | C53: 6 | D53: Saturday | E53: 1093 | F53: 1100 | G53: 1057 | H53: 1031 | I53: 1066 | J53: 1063 | K53: 985 | L53: 964 | M53: 975 | N53: 967 | O53: 985 | P53: 944 | Q53: 956 | R53: 969 | S53: 987 | T53: 1022 | U53: 1036 | V53: 1040.5 | W53: 1256.9 | X53: 1312.3 | Y53: 1292 | Z53: 1290.1 | AA53: 1226.1 | AB53: 1145 | AC53: 25762.9 | AD53: 1237.741355 | AE53: s1 | AF53: d1 | AG53: s1d1 | AQ53: =AQ52+1 -> 3 | AR53: s1d1b3 | AS53: 1 | AT53: 1 | AU53: 1 | AV53: 3 | AX53: 5 | AY53: 0.07191780822 | AZ53: 0.2083333333 | BA53: 768.9097 | BB53: 1220.491587 | BC53: 0.08246415045 | BD53: 0 | BE53: 767.4381685 | BF53: 0.08096278942 | BG53: 0.2339263602 | BH53: 1218.155823 | BI53: 3 | BJ53: 1218.155823 | BK53: 1215 | BX53: 3 | BY53: 3 | BZ53: 51 | CA53: =OFFSET(GHA!$D$1,IF($CA$1,BX53,366-BX53),BY53) -> 1094 | CB53: =IF(BZ53=SUMIF(GHA!$AQ$51:$AQ$90,CB52,GHA!$BK$51:$BK$90),CB52+1,CB52) -> 1 | CC53: 1379 | CD53: =SUMIF(GHA!$AQ$51:$AQ$90,CB53,GHA!$BJ$51:$BJ$90) -> 1475
A54: 53 | B54: 2009-02-22 | C54: 7 | D54: Sunday | E54: 1106 | F54: 1105 | G54: 1024 | H54: 1015 | I54: 1019 | J54: 1079 | K54: 958 | L54: 940 | M54: 900 | N54: 869 | O54: 909 | P54: 915 | Q54: 933 | R54: 967 | S54: 975 | T54: 971 | U54: 963 | V54: 983 | W54: 1170 | X54: 1256 | Y54: 1247 | Z54: 1229 | AA54: 1165 | AB54: 1087 | AC54: 24785 | AD54: 1230.96722 | AE54: s1 | AF54: d1 | AG54: s1d1 | AQ54: 4 | AR54: s2d1b1 | AS54: 3 | AT54: 2 | AU54: 1 | AV54: 1 | AX54: 7 | AY54: 0.09748858447 | AZ54: 0.2916666667 | BA54: 835.841 | BB54: 978.736534 | BC54: 0.08964240922 | BD54: 0 | BE54: 834.241376 | BF54: 0.08801035918 | BG54: 0.2763062424 | BH54: 976.863438 | BI54: 10 | BJ54: 1176.334263 | BK54: 1825 | BX54: 3 | BY54: 4 | BZ54: 52 | CA54: =OFFSET(GHA!$D$1,IF($CA$1,BX54,366-BX54),BY54) -> 1067 | CB54: =IF(BZ54=SUMIF(GHA!$AQ$51:$AQ$90,CB53,GHA!$BK$51:$BK$90),CB53+1,CB53) -> 1 | CC54: 1379 | CD54: =SUMIF(GHA!$AQ$51:$AQ$90,CB54,GHA!$BJ$51:$BJ$90) -> 1475
A55: 54 | B55: 2009-02-23 | C55: 1 | D55: Monday | E55: 1069 | F55: 1045 | G55: 1034 | H55: 1008 | I55: 1039 | J55: 1100 | K55: 1015 | L55: 1049 | M55: 1093 | N55: 1141 | O55: 1151 | P55: 1137 | Q55: 1108 | R55: 1148 | S55: 1169 | T55: 1185 | U55: 1173 | V55: 1118.9 | W55: 1248.3 | X55: 1281.6 | Y55: 1280.1 | Z55: 1247 | AA55: 1158 | AB55: 1140 | AC55: 27137.9 | AD55: 1232.700498 | AE55: s1 | AF55: d1 | AG55: s1d1 | AQ55: 5 | AR55: s2d1b2 | AS55: 3 | AT55: 2 | AU55: 1 | AV55: 2 | AX55: 12 | AY55: 0.1671232877 | AZ55: 0.5 | BA55: 1470.2721 | BB55: 1004.284221 | BC55: 0.1576839773 | BD55: 0 | BE55: 1467.458308 | BF55: 0.154813147 | BG55: 0.4860318641 | BH55: 1002.362232 | BI55: 9 | BJ55: 1093.696827 | BK55: 3229 | BX55: 3 | BY55: 5 | BZ55: 53 | CA55: =OFFSET(GHA!$D$1,IF($CA$1,BX55,366-BX55),BY55) -> 1073 | CB55: =IF(BZ55=SUMIF(GHA!$AQ$51:$AQ$90,CB54,GHA!$BK$51:$BK$90),CB54+1,CB54) -> 1 | CC55: 1378 | CD55: =SUMIF(GHA!$AQ$51:$AQ$90,CB55,GHA!$BJ$51:$BJ$90) -> 1475
A56: 55 | B56: 2009-02-24 | C56: 2 | D56: Tuesday | E56: 1117 | F56: 1109 | G56: 1079 | H56: 1073 | I56: 1084 | J56: 1131 | K56: 1072 | L56: 1089 | M56: 1163 | N56: 1170 | O56: 1187 | P56: 1126 | Q56: 1156 | R56: 1154 | S56: 1182 | T56: 1152 | U56: 1195 | V56: 1172 | W56: 1161 | X56: 1243.8 | Y56: 1239.3 | Z56: 1249 | AA56: 1186 | AB56: 1120 | AC56: 27610.1 | AD56: 1225.530448 | AE56: s1 | AF56: d1 | AG56: s1d1 | AQ56: 6 | AR56: s2d1b3 | AS56: 3 | AT56: 2 | AU56: 1 | AV56: 3 | AX56: 5 | AY56: 0.0696347032 | AZ56: 0.2083333333 | BA56: 718.9398 | BB56: 1178.589836 | BC56: 0.07710497063 | BD56: 0 | BE56: 717.5639004 | BF56: 0.07570118004 | BG56: 0.2376618934 | BH56: 1176.334263 | BI56: 4 | BJ56: 1072.818616 | BK56: 4048 | BX56: 3 | BY56: 6 | BZ56: 54 | CA56: =OFFSET(GHA!$D$1,IF($CA$1,BX56,366-BX56),BY56) -> 1078 | CB56: =IF(BZ56=SUMIF(GHA!$AQ$51:$AQ$90,CB55,GHA!$BK$51:$BK$90),CB55+1,CB55) -> 1 | CC56: 1377 | CD56: =SUMIF(GHA!$AQ$51:$AQ$90,CB56,GHA!$BJ$51:$BJ$90) -> 1475
A57: 56 | B57: 2009-02-25 | C57: 3 | D57: Wednesday | E57: 1113 | F57: 1109 | G57: 1099 | H57: 1093 | I57: 1088 | J57: 1155 | K57: 1074 | L57: 1095 | M57: 1177 | N57: 1186 | O57: 1164 | P57: 1178 | Q57: 1191 | R57: 1129 | S57: 1210 | T57: 1123 | U57: 1163 | V57: 1122.1 | W57: 1252.9 | X57: 1268.8 | Y57: 1295.8 | Z57: 1255.6 | AA57: 1190 | AB57: 1127 | AC57: 27859.2 | AD57: 1228.267403 | AE57: s1 | AF57: d1 | AG57: s1d1 | AQ57: 7 | AR57: s3d1b1 | AS57: 5 | AT57: 3 | AU57: 1 | AV57: 1 | AX57: 7 | AY57: 0.09349315068 | AZ57: 0.2916666667 | BA57: 880.3232 | BB57: 1074.875702 | BC57: 0.09441304332 | BD57: 0 | BE57: 878.6384464 | BF57: 0.09269413803 | BG57: 0.2763923564 | BH57: 1072.818616 | BI57: 6 | BJ57: 1053.837312 | BK57: 5560 | BX57: 3 | BY57: 7 | BZ57: 55 | CA57: =OFFSET(GHA!$D$1,IF($CA$1,BX57,366-BX57),BY57) -> 1001 | CB57: =IF(BZ57=SUMIF(GHA!$AQ$51:$AQ$90,CB56,GHA!$BK$51:$BK$90),CB56+1,CB56) -> 1 | CC57: 1376.9 | CD57: =SUMIF(GHA!$AQ$51:$AQ$90,CB57,GHA!$BJ$51:$BJ$90) -> 1475
A58: 57 | B58: 2009-02-26 | C58: 4 | D58: Thursday | E58: 1093 | F58: 1086 | G58: 1062 | H58: 1056 | I58: 1031 | J58: 1096 | K58: 1022 | L58: 1050 | M58: 1091 | N58: 1081 | O58: 1121 | P58: 1134 | Q58: 1106 | R58: 1158 | S58: 1148 | T58: 1153 | U58: 1106 | V58: 1110 | W58: 1275 | X58: 1331 | Y58: 1311 | Z58: 1300 | AA58: 1236 | AB58: 1181 | AC58: 27338 | AD58: 1232.940663 | AE58: s1 | AF58: d1 | AG58: s1d1 | AQ58: 8 | AR58: s3d1b2 | AS58: 5 | AT58: 3 | AU58: 1 | AV58: 2 | AX58: 12 | AY58: 0.1602739726 | AZ58: 0.5 | BA58: 1538.4947 | BB58: 1095.793946 | BC58: 0.1650007256 | BD58: 0 | BE58: 1535.550345 | BF58: 0.1619966849 | BG58: 0.4830364297 | BH58: 1093.696827 | BI58: 5 | BJ58: 1042.905373 | BK58: 6442 | BX58: 3 | BY58: 8 | BZ58: 56 | CA58: =OFFSET(GHA!$D$1,IF($CA$1,BX58,366-BX58),BY58) -> 982 | CB58: =IF(BZ58=SUMIF(GHA!$AQ$51:$AQ$90,CB57,GHA!$BK$51:$BK$90),CB57+1,CB57) -> 1 | CC58: 1376.7 | CD58: =SUMIF(GHA!$AQ$51:$AQ$90,CB58,GHA!$BJ$51:$BJ$90) -> 1475
A59: 58 | B59: 2009-02-27 | C59: 5 | D59: Friday | E59: 1045 | F59: 1071 | G59: 1062 | H59: 1064 | I59: 1078 | J59: 1098 | K59: 1041 | L59: 1077 | M59: 1128 | N59: 1143 | O59: 1136 | P59: 1146 | Q59: 1127 | R59: 1182 | S59: 1150 | T59: 1067 | U59: 1107 | V59: 1065 | W59: 1280 | X59: 1307 | Y59: 1301 | Z59: 1258 | AA59: 1226 | AB59: 1152 | AC59: 27311 | AD59: 1237.646597 | AE59: s1 | AF59: d1 | AG59: s1d1 | AQ59: 9 | AR59: s3d1b3 | AS59: 5 | AT59: 3 | AU59: 1 | AV59: 3 | AX59: 4 | AY59: 0.05342465753 | AZ59: 0.1666666667 | BA59: 593.3252 | BB59: 1267.788889 | BC59: 0.06363303592 | BD59: 0 | BE59: 592.1897003 | BF59: 0.06247451843 | BG59: 0.1862844807 | BH59: 1265.362607 | BI59: 2 | BJ59: 1002.362232 | BK59: 7906 | BX59: 3 | BY59: 9 | BZ59: 57 | CA59: =OFFSET(GHA!$D$1,IF($CA$1,BX59,366-BX59),BY59) -> 988 | CB59: =IF(BZ59=SUMIF(GHA!$AQ$51:$AQ$90,CB58,GHA!$BK$51:$BK$90),CB58+1,CB58) -> 1 | CC59: 1376.2 | CD59: =SUMIF(GHA!$AQ$51:$AQ$90,CB59,GHA!$BJ$51:$BJ$90) -> 1475
A60: 59 | B60: 2009-02-28 | C60: 6 | D60: Saturday | E60: 1099 | F60: 1051 | G60: 1057 | H60: 1061 | I60: 1040 | J60: 1049 | K60: 989 | L60: 994 | M60: 1018 | N60: 990 | O60: 980 | P60: 1002 | Q60: 1007 | R60: 1003 | S60: 1005 | T60: 1021 | U60: 1029 | V60: 1037 | W60: 1244 | X60: 1260 | Y60: 1255 | Z60: 1232 | AA60: 1180 | AB60: 1128 | AC60: 25731 | AD60: 1238.281937 | AE60: s1 | AF60: d1 | AG60: s1d1 | AQ60: 10 | AR60: s3d1b4 | AS60: 5 | AT60: 3 | AU60: 1 | AV60: 4 | AW60: 1 | AX60: 1 | AY60: 0.01335616438 | AZ60: 0.04166666667 | BA60: 154.7305 | BB60: 1322.482906 | BC60: 0.01659456141 | BD60: 17.8445 | BE60: 172.575 | BF60: 0.01820622685 | BG60: 0.05428673319 | BH60: 1475 | BI60: 1 | BJ60: 976.863438 | BK60: 8760 | BX60: 3 | BY60: 10 | BZ60: 58 | CA60: =OFFSET(GHA!$D$1,IF($CA$1,BX60,366-BX60),BY60) -> 1033 | CB60: =IF(BZ60=SUMIF(GHA!$AQ$51:$AQ$90,CB59,GHA!$BK$51:$BK$90),CB59+1,CB59) -> 1 | CC60: 1376.2 | CD60: =SUMIF(GHA!$AQ$51:$AQ$90,CB60,GHA!$BJ$51:$BJ$90) -> 1475
A61: 60 | B61: 2009-03-01 | C61: 7 | D61: Sunday | E61: 1050 | F61: 1046 | G61: 1011 | H61: 1017 | I61: 1033 | J61: 1075 | K61: 1030 | L61: 1065 | M61: 1120 | N61: 1167 | O61: 925 | P61: 911 | Q61: 1001 | R61: 1022 | S61: 1090 | T61: 1191 | U61: 1097 | V61: 1086 | W61: 1244 | X61: 1279 | Y61: 1180 | Z61: 1247 | AA61: 1167 | AB61: 1123 | AC61: 26177 | AD61: 1238.853743 | AE61: s1 | AF61: d1 | AG61: s1d1 | AQ61: 11 | AS61: 0 | BJ61: 0 | BK61: 8760 | BX61: 3 | BY61: 11 | BZ61: 59 | CA61: =OFFSET(GHA!$D$1,IF($CA$1,BX61,366-BX61),BY61) -> 972 | CB61: =IF(BZ61=SUMIF(GHA!$AQ$51:$AQ$90,CB60,GHA!$BK$51:$BK$90),CB60+1,CB60) -> 1 | CC61: 1376 | CD61: =SUMIF(GHA!$AQ$51:$AQ$90,CB61,GHA!$BJ$51:$BJ$90) -> 1475
A62: 61 | B62: 2009-03-02 | C62: 1 | D62: Monday | E62: 1050 | F62: 1046 | G62: 1011 | H62: 1017 | I62: 1033 | J62: 1075 | K62: 1030 | L62: 1065 | M62: 1120 | N62: 1167 | O62: 925 | P62: 911 | Q62: 1001 | R62: 1022 | S62: 1090 | T62: 1191 | U62: 1097 | V62: 1086 | W62: 1244 | X62: 1279 | Y62: 1180 | Z62: 1247 | AA62: 1167 | AB62: 1123 | AC62: 26177 | AD62: 1239.368369 | AE62: s1 | AF62: d1 | AG62: s1d1 | AQ62: 12 | AS62: 0 | BJ62: 0 | BK62: 8760 | BX62: 3 | BY62: 12 | BZ62: 60 | CA62: =OFFSET(GHA!$D$1,IF($CA$1,BX62,366-BX62),BY62) -> 999 | CB62: =IF(BZ62=SUMIF(GHA!$AQ$51:$AQ$90,CB61,GHA!$BK$51:$BK$90),CB61+1,CB61) -> 1 | CC62: 1375.6 | CD62: =SUMIF(GHA!$AQ$51:$AQ$90,CB62,GHA!$BJ$51:$BJ$90) -> 1475
A63: 62 | B63: 2009-03-03 | C63: 2 | D63: Tuesday | E63: 1089 | F63: 1058 | G63: 1042 | H63: 1036 | I63: 1049 | J63: 1116 | K63: 1025 | L63: 1050 | M63: 1093 | N63: 1140 | O63: 1166 | P63: 1125 | Q63: 1081 | R63: 1134 | S63: 1153 | T63: 1161 | U63: 1172 | V63: 1139 | W63: 1318 | X63: 1277 | Y63: 1307 | Z63: 1292 | AA63: 1241 | AB63: 1155 | AC63: 27419 | AD63: 1247.231532 | AE63: s1 | AF63: d1 | AG63: s1d1 | AQ63: 13 | AS63: 0 | BJ63: 0 | BK63: 8760 | BX63: 3 | BY63: 13 | BZ63: 61 | CA63: =OFFSET(GHA!$D$1,IF($CA$1,BX63,366-BX63),BY63) -> 996 | CB63: =IF(BZ63=SUMIF(GHA!$AQ$51:$AQ$90,CB62,GHA!$BK$51:$BK$90),CB62+1,CB62) -> 1 | CC63: 1375.3 | CD63: =SUMIF(GHA!$AQ$51:$AQ$90,CB63,GHA!$BJ$51:$BJ$90) -> 1475
A64: 63 | B64: 2009-03-04 | C64: 3 | D64: Wednesday | E64: 1108 | F64: 1095 | G64: 1074 | H64: 1052 | I64: 1084 | J64: 1115 | K64: 1019 | L64: 1046 | M64: 1089 | N64: 1137 | O64: 1133.6 | P64: 1081 | Q64: 1094 | R64: 1095 | S64: 1118 | T64: 1166 | U64: 1164 | V64: 1148 | W64: 1230 | X64: 1302 | Y64: 1281 | Z64: 1266 | AA64: 1201 | AB64: 1107 | AC64: 27205.6 | AD64: 1245.508379 | AE64: s1 | AF64: d1 | AG64: s1d1 | AQ64: 14 | AS64: 0 | BJ64: 0 | BK64: 8760 | BX64: 3 | BY64: 14 | BZ64: 62 | CA64: =OFFSET(GHA!$D$1,IF($CA$1,BX64,366-BX64),BY64) -> 999 | CB64: =IF(BZ64=SUMIF(GHA!$AQ$51:$AQ$90,CB63,GHA!$BK$51:$BK$90),CB63+1,CB63) -> 1 | CC64: 1374.9 | CD64: =SUMIF(GHA!$AQ$51:$AQ$90,CB64,GHA!$BJ$51:$BJ$90) -> 1475
A65: 64 | B65: 2009-03-05 | C65: 4 | D65: Thursday | E65: 1072 | F65: 1062 | G65: 1048 | H65: 1030 | I65: 1053 | J65: 1084 | K65: 1041 | L65: 1032 | M65: 1075 | N65: 1105 | O65: 1108 | P65: 1113 | Q65: 1123 | R65: 1120.8 | S65: 1118 | T65: 1108 | U65: 1095 | V65: 1091 | W65: 1266 | X65: 1289 | Y65: 1280 | Z65: 1258 | AA65: 1221 | AB65: 1142 | AC65: 26934.8 | AD65: 1247.557541 | AE65: s1 | AF65: d1 | AG65: s1d1 | AQ65: 15 | AS65: 0 | BJ65: 0 | BK65: 8760 | BX65: 3 | BY65: 15 | BZ65: 63 | CA65: =OFFSET(GHA!$D$1,IF($CA$1,BX65,366-BX65),BY65) -> 1000 | CB65: =IF(BZ65=SUMIF(GHA!$AQ$51:$AQ$90,CB64,GHA!$BK$51:$BK$90),CB64+1,CB64) -> 1 | CC65: 1374.3 | CD65: =SUMIF(GHA!$AQ$51:$AQ$90,CB65,GHA!$BJ$51:$BJ$90) -> 1475
A66: 65 | B66: 2009-03-06 | C66: 5 | D66: =VLOOKUP(C66,weekdays,2,FALSE) -> Friday | E66: 1068 | F66: 1041 | G66: 1037 | H66: 1015 | I66: 1033 | J66: 1059 | K66: 952 | L66: 954 | M66: 988 | N66: 1006 | O66: 1031 | P66: 1023 | Q66: 999 | R66: 1020 | S66: 1022 | T66: 983 | U66: 999 | V66: 1074 | W66: 1198 | X66: 1252 | Y66: 1207 | Z66: 1202 | AA66: 1150 | AB66: 1109 | AC66: =SUM(E66:AB66) -> 25422 | AD66: 1242.601787 | AE66: s1 | AF66: d1 | AG66: s1d1 | AQ66: 16 | AS66: 0 | BJ66: 0 | BK66: 8760 | BX66: 3 | BY66: 16 | BZ66: 64 | CA66: =OFFSET(GHA!$D$1,IF($CA$1,BX66,366-BX66),BY66) -> 993 | CB66: =IF(BZ66=SUMIF(GHA!$AQ$51:$AQ$90,CB65,GHA!$BK$51:$BK$90),CB65+1,CB65) -> 1 | CC66: 1373.9 | CD66: =SUMIF(GHA!$AQ$51:$AQ$90,CB66,GHA!$BJ$51:$BJ$90) -> 1475
A67: 66 | B67: 2009-03-07 | C67: =WEEKDAY(B67,2) -> 6 | D67: Saturday | E67: 1066 | F67: 1066 | G67: 1048 | H67: 1020 | I67: 1027 | J67: 1043 | K67: 956 | L67: 937 | M67: 959 | N67: 957 | O67: 1002 | P67: 1013 | Q67: 1032 | R67: 1028 | S67: 1039 | T67: 1023 | U67: 1018 | V67: 1016 | W67: 1260 | X67: 1184 | Y67: 1183 | Z67: 1317 | AA67: 1267 | AB67: 1179 | AC67: 25640 | AD67: 1244.341608 | AE67: =IF(AND(A67>$AJ$6,A67<$AJ$7),"s2",IF(A67<=$AJ$6,"s1","s3")) -> s1 | AF67: d1 | AG67: =AE67&AF67 -> s1d1 | AQ67: 17 | AS67: 0 | BJ67: 0 | BK67: 8760 | BX67: =ROUNDDOWN((BZ67-1)/24,0)+1 -> 3 | BY67: 17 | BZ67: 65 | CA67: =OFFSET(GHA!$D$1,IF($CA$1,BX67,366-BX67),BY67) -> 885 | CB67: =IF(BZ67=SUMIF(GHA!$AQ$51:$AQ$90,CB66,GHA!$BK$51:$BK$90),CB66+1,CB66) -> 1 | CC67: 1372.8 | CD67: =SUMIF(GHA!$AQ$51:$AQ$90,CB67,GHA!$BJ$51:$BJ$90) -> 1475
A68: =A67+1 -> 67 | B68: 2009-03-08 | C68: 7 | D68: Sunday | E68: 1141 | F68: 1118 | G68: 1064 | H68: 1054 | I68: 1070 | J68: 1065 | K68: 1009 | L68: 988 | M68: 887 | N68: 873 | O68: 930 | P68: 960 | Q68: 964 | R68: 991 | S68: 966 | T68: 978 | U68: 1056 | V68: 1074 | W68: 928 | X68: 1066 | Y68: 1069 | Z68: 993 | AA68: 960 | AB68: 907 | AC68: 24111 | AD68: 1212.707447 | AE68: s1 | AF68: d1 | AG68: s1d1 | AQ68: 18 | AS68: 0 | BJ68: 0 | BK68: 8760 | BX68: 3 | BY68: 18 | BZ68: =BZ67+1 -> 66 | CA68: =OFFSET(GHA!$D$1,IF($CA$1,BX68,366-BX68),BY68) -> 1033 | CB68: =IF(BZ68=SUMIF(GHA!$AQ$51:$AQ$90,CB67,GHA!$BK$51:$BK$90),CB67+1,CB67) -> 1 | CC68: 1371.9 | CD68: =SUMIF(GHA!$AQ$51:$AQ$90,CB68,GHA!$BJ$51:$BJ$90) -> 1475
A69: 68 | B69: 2009-03-09 | C69: 1 | D69: Monday | E69: 869 | F69: 839 | G69: 826 | H69: 818 | I69: 837 | J69: 881 | K69: 857 | L69: 887 | M69: 970 | N69: 1066 | O69: 1148 | P69: 1045 | Q69: 1092 | R69: 1122 | S69: 1129 | T69: 1127 | U69: 1100 | V69: 1105 | W69: 1277 | X69: 1303 | Y69: 1231 | Z69: 1267 | AA69: 1217 | AB69: 1168 | AC69: 25181 | AD69: 1219.136703 | AE69: s1 | AF69: d1 | AG69: s1d1 | AQ69: 19 | AS69: 0 | BJ69: 0 | BK69: 8760 | BX69: 3 | BY69: 19 | BZ69: 67 | CA69: =OFFSET(GHA!$D$1,IF($CA$1,BX69,366-BX69),BY69) -> 1131 | CB69: =IF(BZ69=SUMIF(GHA!$AQ$51:$AQ$90,CB68,GHA!$BK$51:$BK$90),CB68+1,CB68) -> 1 | CC69: 1371 | CD69: =SUMIF(GHA!$AQ$51:$AQ$90,CB69,GHA!$BJ$51:$BJ$90) -> 1475
A70: 69 | B70: 2009-03-10 | C70: 2 | D70: Tuesday | E70: 1119 | F70: 1083 | G70: 1066 | H70: 1055 | I70: 1082 | J70: 1114 | K70: 1049 | L70: 1076 | M70: 1144 | N70: 1141 | O70: 1164 | P70: 1176 | Q70: 1169 | R70: 1094 | S70: 1135 | T70: 1159 | U70: 1147 | V70: 1113 | W70: 1334 | X70: 1283 | Y70: 1250 | Z70: 1263 | AA70: 1194 | AB70: 1146 | AC70: 27556 | AD70: 1230.623032 | AE70: s1 | AF70: d1 | AG70: s1d1 | AQ70: 20 | AS70: 0 | BJ70: 0 | BK70: 8760 | BX70: 3 | BY70: 20 | BZ70: 68 | CA70: =OFFSET(GHA!$D$1,IF($CA$1,BX70,366-BX70),BY70) -> 1195 | CB70: =IF(BZ70=SUMIF(GHA!$AQ$51:$AQ$90,CB69,GHA!$BK$51:$BK$90),CB69+1,CB69) -> 1 | CC70: 1371 | CD70: =SUMIF(GHA!$AQ$51:$AQ$90,CB70,GHA!$BJ$51:$BJ$90) -> 1475
A71: 70 | B71: 2009-03-11 | C71: 3 | D71: Wednesday | E71: 1118 | F71: 1081 | G71: 1087 | H71: 1050 | I71: 1064 | J71: 1130 | K71: 1047 | L71: 1091 | M71: 1127 | N71: 1169 | O71: 1160 | P71: 1154 | Q71: 1149 | R71: 1130 | S71: 1124 | T71: 1055 | U71: 1088 | V71: 1052.5 | W71: 1231.5 | X71: 1245.5 | Y71: 1256 | Z71: 1216 | AA71: 1143 | AB71: 1098 | AC71: 27066.5 | AD71: 1230.710729 | AE71: s1 | AF71: d1 | AG71: s1d1 | AQ71: 21 | AS71: 0 | BJ71: 0 | BK71: 8760 | BX71: 3 | BY71: 21 | BZ71: 69 | CA71: =OFFSET(GHA!$D$1,IF($CA$1,BX71,366-BX71),BY71) -> 1212 | CB71: =IF(BZ71=SUMIF(GHA!$AQ$51:$AQ$90,CB70,GHA!$BK$51:$BK$90),CB70+1,CB70) -> 1 | CC71: 1370 | CD71: =SUMIF(GHA!$AQ$51:$AQ$90,CB71,GHA!$BJ$51:$BJ$90) -> 1475
A72: 71 | B72: 2009-03-12 | C72: 4 | D72: Thursday | E72: 1009 | F72: 1013 | G72: 1000 | H72: 1012 | I72: 1026 | J72: 1016 | K72: 1006 | L72: 1025 | M72: 1106 | N72: 1157 | O72: 1103 | P72: 1085 | Q72: 1140 | R72: 1142 | S72: 1154 | T72: 1159 | U72: 1153 | V72: 1117 | W72: 1272 | X72: 1295 | Y72: 1285 | Z72: 1220 | AA72: 1169 | AB72: 1131 | AC72: 26795 | AD72: 1234.839656 | AE72: s1 | AF72: d1 | AG72: s1d1 | AQ72: 22 | AS72: 0 | BJ72: 0 | BK72: 8760 | BX72: 3 | BY72: 22 | BZ72: 70 | CA72: =OFFSET(GHA!$D$1,IF($CA$1,BX72,366-BX72),BY72) -> 1163 | CB72: =IF(BZ72=SUMIF(GHA!$AQ$51:$AQ$90,CB71,GHA!$BK$51:$BK$90),CB71+1,CB71) -> 1 | CC72: 1370 | CD72: =SUMIF(GHA!$AQ$51:$AQ$90,CB72,GHA!$BJ$51:$BJ$90) -> 1475
A73: 72 | B73: 2009-03-13 | C73: 5 | D73: Friday | E73: 1084 | F73: 1060 | G73: 1052 | H73: 1027 | I73: 1048 | J73: 1092 | K73: 1031 | L73: 1054 | M73: 1101 | N73: 1154 | O73: 1123 | P73: 1148 | Q73: 1128 | R73: 1140 | S73: 1099 | T73: 1138 | U73: 1142 | V73: 1155 | W73: 1225 | X73: 1249 | Y73: 1237 | Z73: 1171 | AA73: 1128 | AB73: 1122 | AC73: 26908 | AD73: 1233.855691 | AE73: s1 | AF73: d1 | AG73: s1d1 | AQ73: 23 | AS73: 0 | BJ73: 0 | BK73: 8760 | BX73: 3 | BY73: 23 | BZ73: 71 | CA73: =OFFSET(GHA!$D$1,IF($CA$1,BX73,366-BX73),BY73) -> 1130 | CB73: =IF(BZ73=SUMIF(GHA!$AQ$51:$AQ$90,CB72,GHA!$BK$51:$BK$90),CB72+1,CB72) -> 1 | CC73: 1369 | CD73: =SUMIF(GHA!$AQ$51:$AQ$90,CB73,GHA!$BJ$51:$BJ$90) -> 1475
A74: 73 | B74: 2009-03-14 | C74: 6 | D74: Saturday | E74: 1081 | F74: 1050 | G74: 1036 | H74: 1035 | I74: 1046 | J74: 1033 | K74: 917 | L74: 958 | M74: 1000 | N74: 1008 | O74: 1032 | P74: 1038 | Q74: 1047 | R74: 1014 | S74: 1010 | T74: 1007 | U74: 992 | V74: 983 | W74: 1191 | X74: 1196 | Y74: 1221 | Z74: 1171 | AA74: 1149 | AB74: 1106 | AC74: 25321 | AD74: 1229.570122 | AE74: s1 | AF74: d1 | AG74: s1d1 | AQ74: 24 | AS74: 0 | BJ74: 0 | BK74: 8760 | BX74: 3 | BY74: 24 | BZ74: 72 | CA74: =OFFSET(GHA!$D$1,IF($CA$1,BX74,366-BX74),BY74) -> 1051 | CB74: =IF(BZ74=SUMIF(GHA!$AQ$51:$AQ$90,CB73,GHA!$BK$51:$BK$90),CB73+1,CB73) -> 1 | CC74: 1369 | CD74: =SUMIF(GHA!$AQ$51:$AQ$90,CB74,GHA!$BJ$51:$BJ$90) -> 1475
A75: 74 | B75: 2009-03-15 | C75: 7 | D75: Sunday | E75: 1068 | F75: 1030 | G75: 1028 | H75: 989 | I75: 1034 | J75: 1044 | K75: 970 | L75: 948 | M75: 921 | N75: 899 | O75: 856 | P75: 881 | Q75: 887 | R75: 945 | S75: 999 | T75: 998 | U75: 991 | V75: 1024 | W75: 1210 | X75: 1248 | Y75: 1241 | Z75: 1218 | AA75: 1102 | AB75: 1046 | AC75: 24577 | AD75: 1227.613109 | AE75: s1 | AF75: d1 | AG75: s1d1 | AQ75: 25 | AS75: 0 | BJ75: 0 | BK75: 8760 | BX75: 4 | BY75: 1 | BZ75: 73 | CA75: =OFFSET(GHA!$D$1,IF($CA$1,BX75,366-BX75),BY75) -> 1019 | CB75: =IF(BZ75=SUMIF(GHA!$AQ$51:$AQ$90,CB74,GHA!$BK$51:$BK$90),CB74+1,CB74) -> 1 | CC75: 1368.8 | CD75: =SUMIF(GHA!$AQ$51:$AQ$90,CB75,GHA!$BJ$51:$BJ$90) -> 1475
A76: 75 | B76: 2009-03-16 | C76: 1 | D76: Monday | E76: 1000 | F76: 997 | G76: 977 | H76: 970 | I76: 1016 | J76: 1052 | K76: 1011 | L76: 1048 | M76: 1096 | N76: 1141.5 | O76: 1146.2 | P76: 1131 | Q76: 1110 | R76: 1129 | S76: 1189 | T76: 1166 | U76: 1150 | V76: 1112 | W76: 1219 | X76: 1210 | Y76: 1276 | Z76: 1254 | AA76: 1213 | AB76: 1140 | AC76: 26753.7 | AD76: 1226.751798 | AE76: s1 | AF76: d1 | AG76: s1d1 | AQ76: =AQ75+1 -> 26 | AS76: 0 | BJ76: 0 | BK76: 8760 | BX76: 4 | BY76: 2 | BZ76: 74 | CA76: =OFFSET(GHA!$D$1,IF($CA$1,BX76,366-BX76),BY76) -> 1012 | CB76: =IF(BZ76=SUMIF(GHA!$AQ$51:$AQ$90,CB75,GHA!$BK$51:$BK$90),CB75+1,CB75) -> 1 | CC76: 1368.7 | CD76: =SUMIF(GHA!$AQ$51:$AQ$90,CB76,GHA!$BJ$51:$BJ$90) -> 1475
A77: 76 | B77: 2009-03-17 | C77: 2 | D77: Tuesday | E77: 1107 | F77: 1091 | G77: 1053 | H77: 1054 | I77: 1082 | J77: 1152 | K77: 1041 | L77: 1107 | M77: 1153 | N77: 1161 | O77: 1161 | P77: 1172 | Q77: 1165 | R77: 1181 | S77: 1178 | T77: 1187 | U77: 1173 | V77: 1112 | W77: 1293 | X77: 1318 | Y77: 1313 | Z77: 1266 | AA77: 1219 | AB77: 1160 | AC77: 27899 | AD77: =AD76*(1-$AH$1)+W77*$AH$1 -> 1233.376619 | AE77: s1 | AF77: d1 | AG77: s1d1 | AQ77: 27 | AS77: 0 | BJ77: 0 | BK77: 8760 | BX77: 4 | BY77: 3 | BZ77: 75 | CA77: =OFFSET(GHA!$D$1,IF($CA$1,BX77,366-BX77),BY77) -> 963 | CB77: =IF(BZ77=SUMIF(GHA!$AQ$51:$AQ$90,CB76,GHA!$BK$51:$BK$90),CB76+1,CB76) -> 1 | CC77: 1368 | CD77: =SUMIF(GHA!$AQ$51:$AQ$90,CB77,GHA!$BJ$51:$BJ$90) -> 1475
A78: 77 | B78: 2009-03-18 | C78: 3 | D78: Wednesday | E78: 1127 | F78: 1109 | G78: 1054 | H78: 1056 | I78: 1103 | J78: 1110 | K78: 1044 | L78: 1081 | M78: 1139 | N78: 1148 | O78: 1148 | P78: 1152 | Q78: 1119 | R78: 1135 | S78: 1126 | T78: 1129 | U78: 1131 | V78: 1108 | W78: 1278 | X78: 1297 | Y78: 1304 | Z78: 1271 | AA78: 1215 | AB78: 1148 | AC78: 27532 | AD78: 1237.838957 | AE78: s1 | AF78: d1 | AG78: s1d1 | AQ78: 28 | AS78: 0 | BJ78: 0 | BK78: 8760 | BX78: 4 | BY78: 4 | BZ78: 76 | CA78: =OFFSET(GHA!$D$1,IF($CA$1,BX78,366-BX78),BY78) -> 950 | CB78: =IF(BZ78=SUMIF(GHA!$AQ$51:$AQ$90,CB77,GHA!$BK$51:$BK$90),CB77+1,CB77) -> 1 | CC78: 1368 | CD78: =SUMIF(GHA!$AQ$51:$AQ$90,CB78,GHA!$BJ$51:$BJ$90) -> 1475
A79: 78 | B79: 2009-03-19 | C79: 4 | D79: Thursday | E79: 1082 | F79: 1067 | G79: 1071 | H79: 1047 | I79: 1078 | J79: 1112 | K79: 1048 | L79: 1079 | M79: 1135 | N79: 1155 | O79: 1173 | P79: 1197 | Q79: 1160 | R79: 1158 | S79: 1157 | T79: 1167 | U79: 1148 | V79: 1110 | W79: 1298 | X79: 1299 | Y79: 1299 | Z79: 1288 | AA79: 1201 | AB79: 1145 | AC79: 27674 | AD79: 1243.855061 | AE79: s1 | AF79: d1 | AG79: s1d1 | AQ79: 29 | AS79: 0 | BJ79: 0 | BK79: 8760 | BX79: 4 | BY79: 5 | BZ79: 77 | CA79: =OFFSET(GHA!$D$1,IF($CA$1,BX79,366-BX79),BY79) -> 953 | CB79: =IF(BZ79=SUMIF(GHA!$AQ$51:$AQ$90,CB78,GHA!$BK$51:$BK$90),CB78+1,CB78) -> 1 | CC79: 1368 | CD79: =SUMIF(GHA!$AQ$51:$AQ$90,CB79,GHA!$BJ$51:$BJ$90) -> 1475
A80: 79 | B80: 2009-03-20 | C80: 5 | D80: Friday | E80: 1125 | F80: 1072 | G80: 1049 | H80: 1035 | I80: 1064 | J80: 1093 | K80: 1023 | L80: 1050 | M80: 1108 | N80: 1151 | O80: 1150 | P80: 1170 | Q80: 1162 | R80: 1148 | S80: 1191 | T80: 1186 | U80: 1169 | V80: 1141 | W80: 1275 | X80: 1293 | Y80: 1286 | Z80: 1267 | AA80: 123 | AB80: 1175 | AC80: 26506 | AD80: 1246.969555 | AE80: s1 | AF80: d1 | AG80: s1d1 | AQ80: 30 | AS80: 0 | BJ80: 0 | BK80: 8760 | BX80: 4 | BY80: 6 | BZ80: 78 | CA80: =OFFSET(GHA!$D$1,IF($CA$1,BX80,366-BX80),BY80) -> 987 | CB80: =IF(BZ80=SUMIF(GHA!$AQ$51:$AQ$90,CB79,GHA!$BK$51:$BK$90),CB79+1,CB79) -> 1 | CC80: 1366.9 | CD80: =SUMIF(GHA!$AQ$51:$AQ$90,CB80,GHA!$BJ$51:$BJ$90) -> 1475
A81: 80 | B81: 2009-03-21 | C81: 6 | D81: Saturday | E81: 1141 | F81: 1116 | G81: 1087 | H81: 1082 | I81: 1068 | J81: 1032 | K81: 953 | L81: 992 | M81: 956 | N81: 963 | O81: 965 | P81: 960 | Q81: 971 | R81: 984 | S81: 982 | T81: 1012 | U81: 1051 | V81: 1082 | W81: 1271 | X81: 1306 | Y81: 1318 | Z81: 1285 | AA81: 1235 | AB81: 1177 | AC81: 25989 | AD81: 1249.372599 | AE81: s1 | AF81: d1 | AG81: s1d1 | AQ81: 31 | AS81: 0 | BJ81: 0 | BK81: 8760 | BX81: 4 | BY81: 7 | BZ81: 79 | CA81: =OFFSET(GHA!$D$1,IF($CA$1,BX81,366-BX81),BY81) -> 918 | CB81: =IF(BZ81=SUMIF(GHA!$AQ$51:$AQ$90,CB80,GHA!$BK$51:$BK$90),CB80+1,CB80) -> 1 | CC81: 1365.8 | CD81: =SUMIF(GHA!$AQ$51:$AQ$90,CB81,GHA!$BJ$51:$BJ$90) -> 1475
A82: 81 | B82: 2009-03-22 | C82: 7 | D82: Sunday | E82: 1125 | F82: 1123 | G82: 1109 | H82: 1070 | I82: 1069 | J82: 1077 | K82: 913 | L82: 970 | M82: 959 | N82: 930 | O82: 946 | P82: 972 | Q82: 987 | R82: 1016 | S82: 993 | T82: 1018 | U82: 1019 | V82: 1023 | W82: 1225 | X82: 1274 | Y82: 1281 | Z82: 1238 | AA82: 1199 | AB82: 1127 | AC82: 25663 | AD82: 1246.93534 | AE82: s1 | AF82: d1 | AG82: s1d1 | AQ82: =AQ81+1 -> 32 | AS82: 0 | BJ82: 0 | BK82: 8760 | BX82: 4 | BY82: 8 | BZ82: 80 | CA82: =OFFSET(GHA!$D$1,IF($CA$1,BX82,366-BX82),BY82) -> 924 | CB82: =IF(BZ82=SUMIF(GHA!$AQ$51:$AQ$90,CB81,GHA!$BK$51:$BK$90),CB81+1,CB81) -> 1 | CC82: 1365 | CD82: =SUMIF(GHA!$AQ$51:$AQ$90,CB82,GHA!$BJ$51:$BJ$90) -> 1475
A83: 82 | B83: 2009-03-23 | C83: 1 | D83: Monday | E83: 1095 | F83: 1067 | G83: 1033 | H83: 1037 | I83: 1076 | J83: 1101 | K83: 1047 | L83: 1069 | M83: 1166 | N83: 1193 | O83: 1190 | P83: 1199 | Q83: 1181 | R83: 1211 | S83: 1187 | T83: 1190 | U83: 1170 | V83: 1121 | W83: 1305 | X83: 1312 | Y83: 1300 | Z83: 1243 | AA83: 1216 | AB83: 1152 | AC83: 27861 | AD83: 1252.741806 | AE83: s1 | AF83: d1 | AG83: s1d1 | AQ83: 33 | AS83: 0 | BJ83: 0 | BK83: 8760 | BX83: 4 | BY83: 9 | BZ83: 81 | CA83: =OFFSET(GHA!$D$1,IF($CA$1,BX83,366-BX83),BY83) -> 924 | CB83: =IF(BZ83=SUMIF(GHA!$AQ$51:$AQ$90,CB82,GHA!$BK$51:$BK$90),CB82+1,CB82) -> 1 | CC83: 1364 | CD83: =SUMIF(GHA!$AQ$51:$AQ$90,CB83,GHA!$BJ$51:$BJ$90) -> 1475
A84: 83 | B84: 2009-03-24 | C84: 2 | D84: Tuesday | E84: 1136 | F84: 1100 | G84: 1068 | H84: 1078 | I84: 1084 | J84: 1106 | K84: 1061 | L84: 1097 | M84: 1164 | N84: 1168 | O84: 1189 | P84: 1157 | Q84: 1075 | R84: 1167 | S84: 1192 | T84: 1190 | U84: 1148 | V84: 1111 | W84: 1315 | X84: 1317 | Y84: 1306 | Z84: 1279 | AA84: 1224 | AB84: 1171 | AC84: 27903 | AD84: 1258.967625 | AE84: s1 | AF84: d1 | AG84: s1d1 | AQ84: 34 | AS84: 0 | BJ84: 0 | BK84: 8760 | BX84: 4 | BY84: 10 | BZ84: 82 | CA84: =OFFSET(GHA!$D$1,IF($CA$1,BX84,366-BX84),BY84) -> 889 | CB84: =IF(BZ84=SUMIF(GHA!$AQ$51:$AQ$90,CB83,GHA!$BK$51:$BK$90),CB83+1,CB83) -> 1 | CC84: 1364 | CD84: =SUMIF(GHA!$AQ$51:$AQ$90,CB84,GHA!$BJ$51:$BJ$90) -> 1475
A85: 84 | B85: 2009-03-25 | C85: 3 | D85: Wednesday | E85: 1120 | F85: 1096 | G85: 1096 | H85: 1143 | I85: 1040 | J85: 1117 | K85: 991 | L85: 1019 | M85: 1088 | N85: 1098 | O85: 1100 | P85: 1119 | Q85: 1134 | R85: 1152 | S85: 1171 | T85: 1107 | U85: 1120 | V85: 1146 | W85: 1271 | X85: 1291 | Y85: 1239 | Z85: 1204 | AA85: 1141 | AB85: 1095 | AC85: 27098 | AD85: 1260.170862 | AE85: s1 | AF85: d1 | AG85: s1d1 | AQ85: 35 | AS85: 0 | BJ85: 0 | BK85: 8760 | BX85: 4 | BY85: 11 | BZ85: 83 | CA85: =OFFSET(GHA!$D$1,IF($CA$1,BX85,366-BX85),BY85) -> 881 | CB85: =IF(BZ85=SUMIF(GHA!$AQ$51:$AQ$90,CB84,GHA!$BK$51:$BK$90),CB84+1,CB84) -> 1 | CC85: 1364 | CD85: =SUMIF(GHA!$AQ$51:$AQ$90,CB85,GHA!$BJ$51:$BJ$90) -> 1475
A86: 85 | B86: 2009-03-26 | C86: 4 | D86: Thursday | E86: 1071 | F86: 1038 | G86: 1032 | H86: 1037 | I86: 1062 | J86: 1102 | K86: 1046 | L86: 1051 | M86: 1115 | N86: 1140 | O86: 1142 | P86: 1144 | Q86: 1136 | R86: 1164 | S86: 1193 | T86: 1185 | U86: 1183 | V86: 1163 | W86: 1322 | X86: 1326 | Y86: 1309 | Z86: 1300 | AA86: 1217 | AB86: 1171 | AC86: 27649 | AD86: 1266.353776 | AE86: s1 | AF86: d1 | AG86: s1d1 | AQ86: 36 | AS86: 0 | BJ86: 0 | BK86: 8760 | BX86: 4 | BY86: 12 | BZ86: 84 | CA86: =OFFSET(GHA!$D$1,IF($CA$1,BX86,366-BX86),BY86) -> 878 | CB86: =IF(BZ86=SUMIF(GHA!$AQ$51:$AQ$90,CB85,GHA!$BK$51:$BK$90),CB85+1,CB85) -> 1 | CC86: 1363.7 | CD86: =SUMIF(GHA!$AQ$51:$AQ$90,CB86,GHA!$BJ$51:$BJ$90) -> 1475
A87: 86 | B87: 2009-03-27 | C87: 5 | D87: Friday | E87: 1143 | F87: 1092 | G87: 1082 | H87: 1068 | I87: 1079 | J87: 1109 | K87: 1059 | L87: 1100 | M87: 1163 | N87: 1215 | O87: 1199.9 | P87: 1192 | Q87: 1172 | R87: 1168 | S87: 1194 | T87: 1191 | U87: 1171 | V87: 1167 | W87: 1300 | X87: 1314 | Y87: 1293 | Z87: 1272 | AA87: 1227 | AB87: 1169 | AC87: 28139.9 | AD87: 1269.718399 | AE87: s1 | AF87: d1 | AG87: s1d1 | AQ87: 37 | AS87: 0 | BJ87: 0 | BK87: 8760 | BX87: 4 | BY87: 13 | BZ87: 85 | CA87: =OFFSET(GHA!$D$1,IF($CA$1,BX87,366-BX87),BY87) -> 900 | CB87: =IF(BZ87=SUMIF(GHA!$AQ$51:$AQ$90,CB86,GHA!$BK$51:$BK$90),CB86+1,CB86) -> 1 | CC87: 1363.4 | CD87: =SUMIF(GHA!$AQ$51:$AQ$90,CB87,GHA!$BJ$51:$BJ$90) -> 1475
A88: 87 | B88: 2009-03-28 | C88: 6 | D88: Saturday | E88: 1103 | F88: 1134 | G88: 1114 | H88: 1095 | I88: 1096 | J88: 1096 | K88: 975 | L88: 991 | M88: 997 | N88: 970 | O88: 1042 | P88: 1058 | Q88: 937 | R88: 981 | S88: 1043 | T88: 1074 | U88: 1027 | V88: 1095 | W88: 1281 | X88: 1304 | Y88: 1314 | Z88: 1277 | AA88: 1136 | AB88: 1065 | AC88: 26205 | AD88: 1270.846559 | AE88: s1 | AF88: d1 | AG88: s1d1 | AQ88: 38 | AS88: 0 | BJ88: 0 | BK88: 8760 | BX88: 4 | BY88: 14 | BZ88: 86 | CA88: =OFFSET(GHA!$D$1,IF($CA$1,BX88,366-BX88),BY88) -> 922 | CB88: =IF(BZ88=SUMIF(GHA!$AQ$51:$AQ$90,CB87,GHA!$BK$51:$BK$90),CB87+1,CB87) -> 1 | CC88: 1363.1 | CD88: =SUMIF(GHA!$AQ$51:$AQ$90,CB88,GHA!$BJ$51:$BJ$90) -> 1475
A89: 88 | B89: 2009-03-29 | C89: 7 | D89: Sunday | E89: 1078 | F89: 1059 | G89: 1022 | H89: 1025 | I89: 1013 | J89: 1015 | K89: 924 | L89: 942 | M89: 925 | N89: 906 | O89: 887 | P89: 913 | Q89: 954 | R89: 970 | S89: 977 | T89: 983 | U89: 1002 | V89: 1020 | W89: 1224 | X89: 1236 | Y89: 1201 | Z89: 1190 | AA89: 1131 | AB89: 1051 | AC89: 24648 | AD89: 1266.161903 | AE89: s1 | AF89: d1 | AG89: s1d1 | AQ89: 39 | AS89: 0 | BJ89: 0 | BK89: 8760 | BX89: 4 | BY89: 15 | BZ89: 87 | CA89: =OFFSET(GHA!$D$1,IF($CA$1,BX89,366-BX89),BY89) -> 946 | CB89: =IF(BZ89=SUMIF(GHA!$AQ$51:$AQ$90,CB88,GHA!$BK$51:$BK$90),CB88+1,CB88) -> 1 | CC89: 1363 | CD89: =SUMIF(GHA!$AQ$51:$AQ$90,CB89,GHA!$BJ$51:$BJ$90) -> 1475
A90: 89 | B90: 2009-03-30 | C90: 1 | D90: Monday | E90: 1041 | F90: 1010 | G90: 1006 | H90: 1015 | I90: 1015 | J90: 1085 | K90: 1013 | L90: 1044 | M90: 1117 | N90: 1146 | O90: 1160 | P90: 1177 | Q90: 1120 | R90: 1153 | S90: 1173 | T90: 1179 | U90: 1159 | V90: 1137 | W90: 1274 | X90: 1265 | Y90: 1287 | Z90: 1244 | AA90: 1214 | AB90: 1156 | AC90: 27190 | AD90: 1266.945713 | AE90: s1 | AF90: d1 | AG90: s1d1 | AQ90: =AQ89+1 -> 40 | AS90: 0 | BJ90: 0 | BK90: 8760 | BX90: 4 | BY90: 16 | BZ90: 88 | CA90: =OFFSET(GHA!$D$1,IF($CA$1,BX90,366-BX90),BY90) -> 935 | CB90: =IF(BZ90=SUMIF(GHA!$AQ$51:$AQ$90,CB89,GHA!$BK$51:$BK$90),CB89+1,CB89) -> 1 | CC90: 1363 | CD90: =SUMIF(GHA!$AQ$51:$AQ$90,CB90,GHA!$BJ$51:$BJ$90) -> 1475
A91: 90 | B91: 2009-03-31 | C91: 2 | D91: Tuesday | E91: 1101 | F91: 1067 | G91: 1028 | H91: 1002 | I91: 984 | J91: 1014 | K91: 1021 | L91: 1048 | M91: 1092 | N91: 1113 | O91: 1136 | P91: 1067 | Q91: 1077 | R91: 1146 | S91: 1150 | T91: 1177 | U91: 1175 | V91: 1185 | W91: 1293 | X91: 1277 | Y91: 1299 | Z91: 1277 | AA91: 1231 | AB91: 1155 | AC91: 27115 | AD91: 1269.551141 | AE91: s1 | AF91: d1 | AG91: s1d1 | BX91: 4 | BY91: =BY67 -> 17 | BZ91: 89 | CA91: =OFFSET(GHA!$D$1,IF($CA$1,BX91,366-BX91),BY91) -> 933 | CB91: =IF(BZ91=SUMIF(GHA!$AQ$51:$AQ$90,CB90,GHA!$BK$51:$BK$90),CB90+1,CB90) -> 1 | CC91: 1362.9 | CD91: =SUMIF(GHA!$AQ$51:$AQ$90,CB91,GHA!$BJ$51:$BJ$90) -> 1475
A92: 91 | B92: 2009-04-01 | C92: 3 | D92: Wednesday | E92: 1113 | F92: 1082 | G92: 1088 | H92: 1061 | I92: 1091 | J92: 1118 | K92: 1031 | L92: 1084 | M92: 1110 | N92: 1141 | O92: 1158 | P92: 1170 | Q92: 1127.5 | R92: 1151 | S92: 1154 | T92: 1166 | U92: 1086 | V92: 1108 | W92: 1262 | X92: 1275 | Y92: 1251 | Z92: 1169 | AA92: 1123 | AB92: 1111 | AC92: 27230.5 | AD92: 1268.796027 | AE92: s1 | AF92: d1 | AG92: s1d1 | BX92: 4 | BY92: 18 | BZ92: 90 | CA92: =OFFSET(GHA!$D$1,IF($CA$1,BX92,366-BX92),BY92) -> 984 | CB92: =IF(BZ92=SUMIF(GHA!$AQ$51:$AQ$90,CB91,GHA!$BK$51:$BK$90),CB91+1,CB91) -> 1 | CC92: 1362.7 | CD92: =SUMIF(GHA!$AQ$51:$AQ$90,CB92,GHA!$BJ$51:$BJ$90) -> 1475
A93: 92 | B93: 2009-04-02 | C93: 4 | D93: Thursday | E93: 1053 | F93: 1047 | G93: 1005 | H93: 983 | I93: 1042 | J93: 1076 | K93: 1017 | L93: 1065 | M93: 1078 | N93: 1092 | O93: 1105 | P93: 1141 | Q93: 1119 | R93: 1127 | S93: 1144 | T93: 1141 | U93: 1120 | V93: 1114 | W93: 1284 | X93: 1295 | Y93: 1282 | Z93: 1280 | AA93: 1190 | AB93: 1099 | AC93: 26899 | AD93: 1270.316424 | AE93: s1 | AF93: d1 | AG93: s1d1 | BX93: 4 | BY93: 19 | BZ93: 91 | CA93: =OFFSET(GHA!$D$1,IF($CA$1,BX93,366-BX93),BY93) -> 1200 | CB93: =IF(BZ93=SUMIF(GHA!$AQ$51:$AQ$90,CB92,GHA!$BK$51:$BK$90),CB92+1,CB92) -> 1 | CC93: 1362 | CD93: =SUMIF(GHA!$AQ$51:$AQ$90,CB93,GHA!$BJ$51:$BJ$90) -> 1475
A94: 93 | B94: 2009-04-03 | C94: 5 | D94: Friday | E94: 1088 | F94: 1089 | G94: 1071 | H94: 1055 | I94: 1061 | J94: 1107 | K94: 989 | L94: 1063 | M94: 1082 | N94: 1102 | O94: 1123 | P94: 1131 | Q94: 1138 | R94: 1149 | S94: 1177 | T94: 1158 | U94: 1144 | V94: 1126 | W94: 1258 | X94: 1223 | Y94: 1320 | Z94: 1219 | AA94: 1227 | AB94: 1182 | AC94: 27282 | AD94: 1269.084782 | AE94: s1 | AF94: d1 | AG94: s1d1 | BX94: 4 | BY94: 20 | BZ94: 92 | CA94: =OFFSET(GHA!$D$1,IF($CA$1,BX94,366-BX94),BY94) -> 1191 | CB94: =IF(BZ94=SUMIF(GHA!$AQ$51:$AQ$90,CB93,GHA!$BK$51:$BK$90),CB93+1,CB93) -> 1 | CC94: 1361.6 | CD94: =SUMIF(GHA!$AQ$51:$AQ$90,CB94,GHA!$BJ$51:$BJ$90) -> 1475
A95: 94 | B95: 2009-04-04 | C95: 6 | D95: Saturday | E95: 1136 | F95: 1125 | G95: 1097 | H95: 1089 | I95: 1114 | J95: 1064 | K95: 992 | L95: 1005 | M95: 1041 | N95: 1054 | O95: 1047 | P95: 1062 | Q95: 1073 | R95: 990 | S95: 1064 | T95: 1043 | U95: 1032 | V95: 1014 | W95: 1214 | X95: 1271 | Y95: 1267 | Z95: 1226 | AA95: 1186 | AB95: 1134 | AC95: 26340 | AD95: 1263.576304 | AE95: s1 | AF95: d1 | AG95: s1d1 | BX95: 4 | BY95: 21 | BZ95: 93 | CA95: =OFFSET(GHA!$D$1,IF($CA$1,BX95,366-BX95),BY95) -> 1167 | CB95: =IF(BZ95=SUMIF(GHA!$AQ$51:$AQ$90,CB94,GHA!$BK$51:$BK$90),CB94+1,CB94) -> 1 | CC95: 1361.4 | CD95: =SUMIF(GHA!$AQ$51:$AQ$90,CB95,GHA!$BJ$51:$BJ$90) -> 1475
A96: 95 | B96: 2009-04-05 | C96: 7 | D96: Sunday | E96: 1101 | F96: 1066 | G96: 1041 | H96: 1032 | I96: 1023 | J96: 1048 | K96: 952 | L96: 949 | M96: 938 | N96: 910 | O96: 908 | P96: 953 | Q96: 948 | R96: 985 | S96: 984 | T96: 1008 | U96: 1008 | V96: 1025 | W96: 1259 | X96: 1280 | Y96: 1268 | Z96: 1261 | AA96: 1172 | AB96: 1103 | AC96: 25222 | AD96: 1263.118673 | AE96: s1 | AF96: d1 | AG96: s1d1 | BX96: 4 | BY96: 22 | BZ96: 94 | CA96: =OFFSET(GHA!$D$1,IF($CA$1,BX96,366-BX96),BY96) -> 1146 | CB96: =IF(BZ96=SUMIF(GHA!$AQ$51:$AQ$90,CB95,GHA!$BK$51:$BK$90),CB95+1,CB95) -> 1 | CC96: 1361.2 | CD96: =SUMIF(GHA!$AQ$51:$AQ$90,CB96,GHA!$BJ$51:$BJ$90) -> 1475
A97: 96 | B97: 2009-04-06 | C97: 1 | D97: Monday | E97: 1034 | F97: 1038 | G97: 993 | H97: 1017 | I97: 1036 | J97: 1081 | K97: 1018 | L97: 1061 | M97: 1104 | N97: 1164 | O97: 1172 | P97: 1149 | Q97: 1164 | R97: 1188 | S97: 1208 | T97: 1228 | U97: 1173 | V97: 1114 | W97: 1285 | X97: 1316 | Y97: 1317 | Z97: 1296 | AA97: 1232 | AB97: 1163 | AC97: 27551 | AD97: 1265.306806 | AE97: s1 | AF97: d1 | AG97: s1d1 | BX97: 4 | BY97: 23 | BZ97: 95 | CA97: =OFFSET(GHA!$D$1,IF($CA$1,BX97,366-BX97),BY97) -> 1052 | CB97: =IF(BZ97=SUMIF(GHA!$AQ$51:$AQ$90,CB96,GHA!$BK$51:$BK$90),CB96+1,CB96) -> 1 | CC97: 1361 | CD97: =SUMIF(GHA!$AQ$51:$AQ$90,CB97,GHA!$BJ$51:$BJ$90) -> 1475
A98: 97 | B98: 2009-04-07 | C98: 2 | D98: Tuesday | E98: 1111 | F98: 1088 | G98: 1082 | H98: 1083 | I98: 1102 | J98: 1096 | K98: 1022 | L98: 1074 | M98: 1118 | N98: 1151 | O98: 1140 | P98: 1192 | Q98: 1198 | R98: 1232 | S98: 1199.6 | T98: 1221 | U98: 1178 | V98: 1116 | W98: 1316 | X98: 1333 | Y98: 1319 | Z98: 1275 | AA98: 1228 | AB98: 1175 | AC98: 28049.6 | AD98: 1270.376125 | AE98: s1 | AF98: d1 | AG98: s1d1 | BX98: 4 | BY98: 24 | BZ98: 96 | CA98: =OFFSET(GHA!$D$1,IF($CA$1,BX98,366-BX98),BY98) -> 1043 | CB98: =IF(BZ98=SUMIF(GHA!$AQ$51:$AQ$90,CB97,GHA!$BK$51:$BK$90),CB97+1,CB97) -> 1 | CC98: 1361 | CD98: =SUMIF(GHA!$AQ$51:$AQ$90,CB98,GHA!$BJ$51:$BJ$90) -> 1475
A99: 98 | B99: 2009-04-08 | C99: 3 | D99: Wednesday | E99: 1108 | F99: 1065 | G99: 1052 | H99: 1051 | I99: 1075 | J99: 1129 | K99: 1054 | L99: 1082 | M99: 1127 | N99: 1133 | O99: 1136 | P99: 1136 | Q99: 1130 | R99: 1106 | S99: 1142 | T99: 1113 | U99: 1105 | V99: 1119 | W99: 1273 | X99: 1306 | Y99: 1277 | Z99: 1246 | AA99: 1169 | AB99: 1117 | AC99: 27251 | AD99: 1270.638513 | AE99: s1 | AF99: d1 | AG99: s1d1 | BX99: 5 | BY99: 1 | BZ99: 97 | CA99: =OFFSET(GHA!$D$1,IF($CA$1,BX99,366-BX99),BY99) -> 961 | CB99: =IF(BZ99=SUMIF(GHA!$AQ$51:$AQ$90,CB98,GHA!$BK$51:$BK$90),CB98+1,CB98) -> 1 | CC99: 1361 | CD99: =SUMIF(GHA!$AQ$51:$AQ$90,CB99,GHA!$BJ$51:$BJ$90) -> 1475
A100: 99 | B100: 2009-04-09 | C100: 4 | D100: Thursday | E100: 1078 | F100: 1061 | G100: 1035 | H100: 1036 | I100: 1065 | J100: 1053 | K100: 1037 | L100: 1064 | M100: 1112 | N100: 1132 | O100: 1133 | P100: 1155 | Q100: 1145 | R100: 1152 | S100: 1174 | T100: 1158 | U100: 1119 | V100: 1073 | W100: 1248 | X100: 1282 | Y100: 1294 | Z100: 1297 | AA100: 1233 | AB100: 1171 | AC100: 27307 | AD100: 1268.374662 | AE100: s1 | AF100: d1 | AG100: s1d1 | BX100: 5 | BY100: 2 | BZ100: 98 | CA100: =OFFSET(GHA!$D$1,IF($CA$1,BX100,366-BX100),BY100) -> 950 | CB100: =IF(BZ100=SUMIF(GHA!$AQ$51:$AQ$90,CB99,GHA!$BK$51:$BK$90),CB99+1,CB99) -> 1 | CC100: 1360.5 | CD100: =SUMIF(GHA!$AQ$51:$AQ$90,CB100,GHA!$BJ$51:$BJ$90) -> 1475
A101: 100 | B101: 2009-04-10 | C101: 5 | D101: Friday | E101: 1105 | F101: 1089 | G101: 1080 | H101: 1051 | I101: 1044 | J101: 1048 | K101: 979 | L101: 1014 | M101: 1009 | N101: 1005 | O101: 1034 | P101: 1042 | Q101: 1036 | R101: 1025 | S101: 1040 | T101: 1036 | U101: 1055 | V101: 1078 | W101: 1223 | X101: 1257 | Y101: 1256 | Z101: 1211 | AA101: 1175 | AB101: 1120 | AC101: 26012 | AD101: 1263.837195 | AE101: s1 | AF101: d1 | AG101: s1d1 | BX101: 5 | BY101: 3 | BZ101: 99 | CA101: =OFFSET(GHA!$D$1,IF($CA$1,BX101,366-BX101),BY101) -> 927 | CB101: =IF(BZ101=SUMIF(GHA!$AQ$51:$AQ$90,CB100,GHA!$BK$51:$BK$90),CB100+1,CB100) -> 1 | CC101: 1360.4 | CD101: =SUMIF(GHA!$AQ$51:$AQ$90,CB101,GHA!$BJ$51:$BJ$90) -> 1475
A102: 101 | B102: 2009-04-11 | C102: 6 | D102: Saturday | E102: 1065 | F102: 1029 | G102: 1048 | H102: 1053 | I102: 1036 | J102: 999 | K102: 951 | L102: 954 | M102: 996 | N102: 1018 | O102: 1037 | P102: 1057 | Q102: 1045 | R102: 1094 | S102: 1086 | T102: 1082 | U102: 1115 | V102: 1097 | W102: 1292 | X102: 1267 | Y102: 1253 | Z102: 1246 | AA102: 1194 | AB102: 1174 | AC102: 26188 | AD102: 1266.653476 | AE102: s1 | AF102: d1 | AG102: s1d1 | BX102: 5 | BY102: 4 | BZ102: 100 | CA102: =OFFSET(GHA!$D$1,IF($CA$1,BX102,366-BX102),BY102) -> 930 | CB102: =IF(BZ102=SUMIF(GHA!$AQ$51:$AQ$90,CB101,GHA!$BK$51:$BK$90),CB101+1,CB101) -> 1 | CC102: 1359.9 | CD102: =SUMIF(GHA!$AQ$51:$AQ$90,CB102,GHA!$BJ$51:$BJ$90) -> 1475
A103: 102 | B103: 2009-04-12 | C103: 7 | D103: Sunday | E103: 1125 | F103: 1085 | G103: 1043 | H103: 1041 | I103: 1064 | J103: 1024 | K103: 993 | L103: 1007 | M103: 993 | N103: 953 | O103: 951 | P103: 926 | Q103: 950 | R103: 962 | S103: 977 | T103: 977 | U103: 964 | V103: 1003 | W103: 1159 | X103: 1208 | Y103: 1218 | Z103: 1218 | AA103: 1113 | AB103: 1062 | AC103: 25016 | AD103: 1255.888128 | AE103: s1 | AF103: d1 | AG103: s1d1 | BX103: 5 | BY103: 5 | BZ103: 101 | CA103: =OFFSET(GHA!$D$1,IF($CA$1,BX103,366-BX103),BY103) -> 931 | CB103: =IF(BZ103=SUMIF(GHA!$AQ$51:$AQ$90,CB102,GHA!$BK$51:$BK$90),CB102+1,CB102) -> 1 | CC103: 1359 | CD103: =SUMIF(GHA!$AQ$51:$AQ$90,CB103,GHA!$BJ$51:$BJ$90) -> 1475
A104: 103 | B104: 2009-04-13 | C104: 1 | D104: Monday | E104: 1040 | F104: 1033 | G104: 1006 | H104: 977 | I104: 997 | J104: 986 | K104: 909 | L104: 921 | M104: 939 | N104: 797 | O104: 911 | P104: 858 | Q104: 832 | R104: 835 | S104: 802 | T104: 752 | U104: 770 | V104: 840 | W104: 1000 | X104: 992 | Y104: 992 | Z104: 935 | AA104: 880 | AB104: 853 | AC104: 21857 | AD104: 1230.299316 | AE104: s1 | AF104: d1 | AG104: s1d1 | BX104: 5 | BY104: 6 | BZ104: 102 | CA104: =OFFSET(GHA!$D$1,IF($CA$1,BX104,366-BX104),BY104) -> 957 | CB104: =IF(BZ104=SUMIF(GHA!$AQ$51:$AQ$90,CB103,GHA!$BK$51:$BK$90),CB103+1,CB103) -> 1 | CC104: 1359 | CD104: =SUMIF(GHA!$AQ$51:$AQ$90,CB104,GHA!$BJ$51:$BJ$90) -> 1475
A105: 104 | B105: 2009-04-14 | C105: 2 | D105: Tuesday | E105: 816 | F105: 797 | G105: 791 | H105: 781 | I105: 819 | J105: 856 | K105: 854 | L105: 912 | M105: 981 | N105: 1000 | O105: 1039 | P105: 1060 | Q105: 1070 | R105: 1091 | S105: 1122 | T105: 1009 | U105: 1085 | V105: 1107 | W105: 1274 | X105: 1287.7 | Y105: 1213.1 | Z105: 1236 | AA105: 1166 | AB105: 1066 | AC105: 24432.8 | AD105: 1234.669384 | AE105: s1 | AF105: d1 | AG105: s1d1 | BX105: 5 | BY105: 7 | BZ105: 103 | CA105: =OFFSET(GHA!$D$1,IF($CA$1,BX105,366-BX105),BY105) -> 948 | CB105: =IF(BZ105=SUMIF(GHA!$AQ$51:$AQ$90,CB104,GHA!$BK$51:$BK$90),CB104+1,CB104) -> 1 | CC105: 1358.9 | CD105: =SUMIF(GHA!$AQ$51:$AQ$90,CB105,GHA!$BJ$51:$BJ$90) -> 1475
A106: 105 | B106: 2009-04-15 | C106: 3 | D106: Wednesday | E106: 1018 | F106: 1004 | G106: 998 | H106: 999 | I106: 1007 | J106: 1004 | K106: 956 | L106: 1008 | M106: 1139 | N106: 1099 | O106: 1006 | P106: 1090 | Q106: 1079 | R106: 1088 | S106: 1116 | T106: 1119 | U106: 1010 | V106: 1053 | W106: 1197 | X106: 1253 | Y106: 1248 | Z106: 1227 | AA106: 1140 | AB106: 967 | AC106: 25825 | AD106: 1230.902446 | AE106: s1 | AF106: d1 | AG106: s1d1 | BX106: 5 | BY106: 8 | BZ106: 104 | CA106: =OFFSET(GHA!$D$1,IF($CA$1,BX106,366-BX106),BY106) -> 1021 | CB106: =IF(BZ106=SUMIF(GHA!$AQ$51:$AQ$90,CB105,GHA!$BK$51:$BK$90),CB105+1,CB105) -> 1 | CC106: 1358.6 | CD106: =SUMIF(GHA!$AQ$51:$AQ$90,CB106,GHA!$BJ$51:$BJ$90) -> 1475
A107: 106 | B107: 2009-04-16 | C107: 4 | D107: Thursday | E107: 1072 | F107: 1060 | G107: 1038 | H107: 1033 | I107: 945 | J107: 945 | K107: 941 | L107: 915 | M107: 925 | N107: 894 | O107: 928 | P107: 952 | Q107: 972.1 | R107: 981.2 | S107: 985 | T107: 1011 | U107: 1025 | V107: 1021 | W107: 1232 | X107: 1257 | Y107: 1212 | Z107: 1214 | AA107: 1116 | AB107: 1074 | AC107: 24748.3 | AD107: 1231.012201 | AE107: s1 | AF107: d1 | AG107: s1d1 | BX107: 5 | BY107: 9 | BZ107: 105 | CA107: =OFFSET(GHA!$D$1,IF($CA$1,BX107,366-BX107),BY107) -> 1073 | CB107: =IF(BZ107=SUMIF(GHA!$AQ$51:$AQ$90,CB106,GHA!$BK$51:$BK$90),CB106+1,CB106) -> 1 | CC107: 1358.4 | CD107: =SUMIF(GHA!$AQ$51:$AQ$90,CB107,GHA!$BJ$51:$BJ$90) -> 1475
A108: 107 | B108: 2009-04-17 | C108: 5 | D108: Friday | E108: 1010 | F108: 1009 | G108: 971 | H108: 974 | I108: 991 | J108: 1028 | K108: 965 | L108: 1018 | M108: 1074 | N108: 1099 | O108: 1092 | P108: 1063 | Q108: 1094 | R108: 1114 | S108: 1121 | T108: 1168 | U108: 1104 | V108: 1038 | W108: 1245 | X108: 1265 | Y108: 1281 | Z108: 1235 | AA108: 1199 | AB108: 1140 | AC108: 26298 | AD108: 1232.410981 | AE108: s1 | AF108: d1 | AG108: s1d1 | BX108: 5 | BY108: 10 | BZ108: 106 | CA108: =OFFSET(GHA!$D$1,IF($CA$1,BX108,366-BX108),BY108) -> 1085 | CB108: =IF(BZ108=SUMIF(GHA!$AQ$51:$AQ$90,CB107,GHA!$BK$51:$BK$90),CB107+1,CB107) -> 1 | CC108: 1358 | CD108: =SUMIF(GHA!$AQ$51:$AQ$90,CB108,GHA!$BJ$51:$BJ$90) -> 1475
A109: 108 | B109: 2009-04-18 | C109: 6 | D109: Saturday | E109: 1044 | F109: 1058 | G109: 1050 | H109: 1036 | I109: 1042 | J109: 1000 | K109: 951 | L109: 961 | M109: 997 | N109: 994 | O109: 986 | P109: 1032 | Q109: 1008 | R109: 1026 | S109: 1026 | T109: 1003 | U109: 1028 | V109: 1053 | W109: 1257 | X109: 1260 | Y109: 1260 | Z109: 1232 | AA109: 1206 | AB109: 1121 | AC109: 25631 | AD109: 1234.869883 | AE109: s1 | AF109: d1 | AG109: s1d1 | BX109: 5 | BY109: 11 | BZ109: 107 | CA109: =OFFSET(GHA!$D$1,IF($CA$1,BX109,366-BX109),BY109) -> 1108 | CB109: =IF(BZ109=SUMIF(GHA!$AQ$51:$AQ$90,CB108,GHA!$BK$51:$BK$90),CB108+1,CB108) -> 1 | CC109: 1357 | CD109: =SUMIF(GHA!$AQ$51:$AQ$90,CB109,GHA!$BJ$51:$BJ$90) -> 1475
A110: 109 | B110: 2009-04-19 | C110: 7 | D110: Sunday | E110: 938 | F110: 904 | G110: 845 | H110: 824 | I110: 859 | J110: 829 | K110: 860 | L110: 909 | M110: 851 | N110: 895 | O110: 879 | P110: 903 | Q110: 935 | R110: 967 | S110: 978 | T110: 1001 | U110: 993 | V110: 979 | W110: 1213 | X110: 1235 | Y110: 1245 | Z110: 1215 | AA110: 1152 | AB110: 1120 | AC110: 23529 | AD110: 1232.682895 | AE110: s1 | AF110: d1 | AG110: s1d1 | BX110: 5 | BY110: 12 | BZ110: 108 | CA110: =OFFSET(GHA!$D$1,IF($CA$1,BX110,366-BX110),BY110) -> 1131 | CB110: =IF(BZ110=SUMIF(GHA!$AQ$51:$AQ$90,CB109,GHA!$BK$51:$BK$90),CB109+1,CB109) -> 1 | CC110: 1355 | CD110: =SUMIF(GHA!$AQ$51:$AQ$90,CB110,GHA!$BJ$51:$BJ$90) -> 1475
A111: 110 | B111: 2009-04-20 | C111: 1 | D111: Monday | E111: 1040 | F111: 1012 | G111: 992 | H111: 1002 | I111: 1007 | J111: 994 | K111: 986 | L111: 1071 | M111: 1161 | N111: 1176 | O111: 1196 | P111: 1205.7 | Q111: 1196 | R111: 1198 | S111: 1194 | T111: 1218 | U111: 1172 | V111: 1165 | W111: 228 | X111: 10 | Y111: 214 | Z111: 505 | AA111: 842 | AB111: 880 | AC111: 22664.7 | AD111: 1132.214605 | AE111: s1 | AF111: d1 | AG111: s1d1 | BX111: 5 | BY111: 13 | BZ111: 109 | CA111: =OFFSET(GHA!$D$1,IF($CA$1,BX111,366-BX111),BY111) -> 1112 | CB111: =IF(BZ111=SUMIF(GHA!$AQ$51:$AQ$90,CB110,GHA!$BK$51:$BK$90),CB110+1,CB110) -> 1 | CC111: 1355 | CD111: =SUMIF(GHA!$AQ$51:$AQ$90,CB111,GHA!$BJ$51:$BJ$90) -> 1475
A112: 111 | B112: 2009-04-21 | C112: 2 | D112: Tuesday | E112: 972 | F112: 944 | G112: 833 | H112: 870 | I112: 862 | J112: 935 | K112: 944 | L112: 1017 | M112: 1024 | N112: 1018 | O112: 1049 | P112: 1062 | Q112: 1053 | R112: 1049 | S112: 1078 | T112: 1091 | U112: 1078 | V112: 1025 | W112: 1203 | X112: 1250 | Y112: 1146 | Z112: 1232 | AA112: 1187 | AB112: 1147 | AC112: 25069 | AD112: 1139.293145 | AE112: s1 | AF112: d1 | AG112: s1d1 | BX112: 5 | BY112: 14 | BZ112: 110 | CA112: =OFFSET(GHA!$D$1,IF($CA$1,BX112,366-BX112),BY112) -> 1125 | CB112: =IF(BZ112=SUMIF(GHA!$AQ$51:$AQ$90,CB111,GHA!$BK$51:$BK$90),CB111+1,CB111) -> 1 | CC112: 1355 | CD112: =SUMIF(GHA!$AQ$51:$AQ$90,CB112,GHA!$BJ$51:$BJ$90) -> 1475
A113: 112 | B113: 2009-04-22 | C113: 3 | D113: Wednesday | E113: 1075 | F113: 1060 | G113: 1008 | H113: 935 | I113: 931 | J113: 947 | K113: 931 | L113: 952 | M113: 1061 | N113: 1116 | O113: 1132 | P113: 1144 | Q113: 1149 | R113: 1175 | S113: 1160 | T113: 1210 | U113: 1178 | V113: 1144 | W113: 1268 | X113: 1324 | Y113: 1324 | Z113: 1274 | AA113: 1210 | AB113: 1165 | AC113: 26873 | AD113: 1152.16383 | AE113: s1 | AF113: d1 | AG113: s1d1 | BX113: 5 | BY113: 15 | BZ113: 111 | CA113: =OFFSET(GHA!$D$1,IF($CA$1,BX113,366-BX113),BY113) -> 1145 | CB113: =IF(BZ113=SUMIF(GHA!$AQ$51:$AQ$90,CB112,GHA!$BK$51:$BK$90),CB112+1,CB112) -> 1 | CC113: 1355 | CD113: =SUMIF(GHA!$AQ$51:$AQ$90,CB113,GHA!$BJ$51:$BJ$90) -> 1475
A114: 113 | B114: 2009-04-23 | C114: 4 | D114: Thursday | E114: 1103 | F114: 1064 | G114: 1036 | H114: 1031 | I114: 1056 | J114: 1023 | K114: 987 | L114: 1079 | M114: 1170 | N114: 1187 | O114: 1188 | P114: 1181 | Q114: 1159 | R114: 1097 | S114: 1177 | T114: 1177 | U114: 1147 | V114: 1106 | W114: 1270 | X114: 1200 | Y114: 1267 | Z114: 1254 | AA114: 1206 | AB114: 1149 | AC114: 27314 | AD114: 1163.947447 | AE114: s1 | AF114: d1 | AG114: s1d1 | BX114: 5 | BY114: 16 | BZ114: 112 | CA114: =OFFSET(GHA!$D$1,IF($CA$1,BX114,366-BX114),BY114) -> 1133 | CB114: =IF(BZ114=SUMIF(GHA!$AQ$51:$AQ$90,CB113,GHA!$BK$51:$BK$90),CB113+1,CB113) -> 1 | CC114: 1354.4 | CD114: =SUMIF(GHA!$AQ$51:$AQ$90,CB114,GHA!$BJ$51:$BJ$90) -> 1475
A115: 114 | B115: 2009-04-24 | C115: 5 | D115: Friday | E115: 1051 | F115: 1077 | G115: 1052 | H115: 1061 | I115: 1077 | J115: 1094 | K115: 1054 | L115: 1109.5 | M115: 1194 | N115: 1196 | O115: 1180 | P115: 1214 | Q115: 1141 | R115: 1148 | S115: 1047 | T115: 1073 | U115: 1050 | V115: 1121 | W115: 1172 | X115: 1132 | Y115: 1016 | Z115: 1077.6 | AA115: 1042.1 | AB115: 997.9 | AC115: 26377.1 | AD115: 1164.752702 | AE115: s1 | AF115: d1 | AG115: s1d1 | BX115: 5 | BY115: 17 | BZ115: 113 | CA115: =OFFSET(GHA!$D$1,IF($CA$1,BX115,366-BX115),BY115) -> 1114 | CB115: =IF(BZ115=SUMIF(GHA!$AQ$51:$AQ$90,CB114,GHA!$BK$51:$BK$90),CB114+1,CB114) -> 1 | CC115: 1354 | CD115: =SUMIF(GHA!$AQ$51:$AQ$90,CB115,GHA!$BJ$51:$BJ$90) -> 1475
A116: 115 | B116: 2009-04-25 | C116: 6 | D116: Saturday | E116: 952 | F116: 943 | G116: 915 | H116: 913 | I116: 905 | J116: 939 | K116: 863 | L116: 925 | M116: 911 | N116: 942 | O116: 965 | P116: 938 | Q116: 969 | R116: 994 | S116: 990 | T116: 1014 | U116: 1020 | V116: 1043 | W116: 1233 | X116: 1278.5 | Y116: 1271 | Z116: 1252.2 | AA116: 1196 | AB116: 1128 | AC116: 24499.7 | AD116: 1171.577432 | AE116: s1 | AF116: d1 | AG116: s1d1 | BX116: 5 | BY116: 18 | BZ116: 114 | CA116: =OFFSET(GHA!$D$1,IF($CA$1,BX116,366-BX116),BY116) -> 1143 | CB116: =IF(BZ116=SUMIF(GHA!$AQ$51:$AQ$90,CB115,GHA!$BK$51:$BK$90),CB115+1,CB115) -> 1 | CC116: 1354 | CD116: =SUMIF(GHA!$AQ$51:$AQ$90,CB116,GHA!$BJ$51:$BJ$90) -> 1475
A117: 116 | B117: 2009-04-26 | C117: 7 | D117: Sunday | E117: 1084 | F117: 1062 | G117: 1025 | H117: 1001 | I117: 982 | J117: 1000 | K117: 932 | L117: 951 | M117: 924 | N117: 841 | O117: 731 | P117: 874 | Q117: 924 | R117: 977 | S117: 977 | T117: 987 | U117: 986 | V117: 1018 | W117: 1268 | X117: 1253 | Y117: 1250 | Z117: 1229 | AA117: 1137 | AB117: 1095 | AC117: 24508 | AD117: 1181.219689 | AE117: s1 | AF117: d1 | AG117: s1d1 | BX117: 5 | BY117: 19 | BZ117: 115 | CA117: =OFFSET(GHA!$D$1,IF($CA$1,BX117,366-BX117),BY117) -> 1264 | CB117: =IF(BZ117=SUMIF(GHA!$AQ$51:$AQ$90,CB116,GHA!$BK$51:$BK$90),CB116+1,CB116) -> 1 | CC117: 1353 | CD117: =SUMIF(GHA!$AQ$51:$AQ$90,CB117,GHA!$BJ$51:$BJ$90) -> 1475
A118: 117 | B118: 2009-04-27 | C118: 1 | D118: Monday | E118: 1056 | F118: 1012 | G118: 993 | H118: 1019 | I118: 993 | J118: 979 | K118: 900 | L118: 1014 | M118: 1065 | N118: 1100 | O118: 1127 | P118: 1110 | Q118: 1088 | R118: 1107 | S118: 1119 | T118: 1125 | U118: 1099 | V118: 1105 | W118: 1291 | X118: 1323 | Y118: 1311 | Z118: 1262 | AA118: 1179 | AB118: 1069 | AC118: 26446 | AD118: 1192.19772 | AE118: s1 | AF118: d1 | AG118: s1d1 | BX118: 5 | BY118: 20 | BZ118: 116 | CA118: =OFFSET(GHA!$D$1,IF($CA$1,BX118,366-BX118),BY118) -> 1269 | CB118: =IF(BZ118=SUMIF(GHA!$AQ$51:$AQ$90,CB117,GHA!$BK$51:$BK$90),CB117+1,CB117) -> 1 | CC118: 1352.7 | CD118: =SUMIF(GHA!$AQ$51:$AQ$90,CB118,GHA!$BJ$51:$BJ$90) -> 1475
A119: 118 | B119: 2009-04-28 | C119: 2 | D119: Tuesday | E119: 1086 | F119: 1049 | G119: 1009 | H119: 1009 | I119: 1029 | J119: 1013 | K119: 977 | L119: 1061 | M119: 1129 | N119: 1170 | O119: 1175.6 | P119: 1167 | Q119: 1153 | R119: 1166 | S119: 1183 | T119: 1183 | U119: 1167 | V119: 1144 | W119: 1314 | X119: 1359 | Y119: 1349 | Z119: 1299 | AA119: 1238 | AB119: 1169 | AC119: 27598.6 | AD119: 1204.377948 | AE119: s1 | AF119: d1 | AG119: s1d1 | BX119: 5 | BY119: 21 | BZ119: 117 | CA119: =OFFSET(GHA!$D$1,IF($CA$1,BX119,366-BX119),BY119) -> 1245 | CB119: =IF(BZ119=SUMIF(GHA!$AQ$51:$AQ$90,CB118,GHA!$BK$51:$BK$90),CB118+1,CB118) -> 2 | CC119: 1352.2 | CD119: =SUMIF(GHA!$AQ$51:$AQ$90,CB119,GHA!$BJ$51:$BJ$90) -> 1265.362607
A120: 119 | B120: 2009-04-29 | C120: 3 | D120: Wednesday | E120: 1129 | F120: 1110 | G120: 1091 | H120: 1078 | I120: 1089 | J120: 1105 | K120: 1051 | L120: 1146 | M120: 1209 | N120: 1177 | O120: 1188 | P120: 1193 | Q120: 1203 | R120: 1183 | S120: 1207 | T120: 1212 | U120: 1222 | V120: 1143 | W120: 1277 | X120: 1330 | Y120: 1314 | Z120: 1278 | AA120: 1235 | AB120: 1147 | AC120: 28317 | AD120: 1211.640153 | AE120: s1 | AF120: d1 | AG120: s1d1 | BX120: 5 | BY120: 22 | BZ120: 118 | CA120: =OFFSET(GHA!$D$1,IF($CA$1,BX120,366-BX120),BY120) -> 1216 | CB120: =IF(BZ120=SUMIF(GHA!$AQ$51:$AQ$90,CB119,GHA!$BK$51:$BK$90),CB119+1,CB119) -> 2 | CC120: 1352 | CD120: =SUMIF(GHA!$AQ$51:$AQ$90,CB120,GHA!$BJ$51:$BJ$90) -> 1265.362607
A121: 120 | B121: 2009-04-30 | C121: 4 | D121: Thursday | E121: 1095 | F121: 1091 | G121: 1070 | H121: 1052 | I121: 1049 | J121: 1043 | K121: 1015 | L121: 1069 | M121: 1133 | N121: 1075 | O121: 1110.9 | P121: 1187 | Q121: 1150 | R121: 1190 | S121: 1181 | T121: 1176 | U121: 1160 | V121: 1135 | W121: 1285 | X121: 1314 | Y121: 1323 | Z121: 1295 | AA121: 1236 | AB121: 1172 | AC121: 27606.9 | AD121: 1218.976138 | AE121: s1 | AF121: d1 | AG121: s1d1 | BX121: 5 | BY121: 23 | BZ121: 119 | CA121: =OFFSET(GHA!$D$1,IF($CA$1,BX121,366-BX121),BY121) -> 1136 | CB121: =IF(BZ121=SUMIF(GHA!$AQ$51:$AQ$90,CB120,GHA!$BK$51:$BK$90),CB120+1,CB120) -> 2 | CC121: 1352 | CD121: =SUMIF(GHA!$AQ$51:$AQ$90,CB121,GHA!$BJ$51:$BJ$90) -> 1265.362607
A122: 121 | B122: 2009-05-01 | C122: 5 | D122: Friday | E122: 1142 | F122: 1114 | G122: 1089 | H122: 1038 | I122: 1081 | J122: 1040 | K122: 914 | L122: 929 | M122: 955 | N122: 1001 | O122: 1007 | P122: 1030 | Q122: 997 | R122: 1003 | S122: 972 | T122: 989 | U122: 972 | V122: 966 | W122: 1128 | X122: 1200 | Y122: 1190 | Z122: 1164 | AA122: 1110 | AB122: 958 | AC122: 24989 | AD122: 1209.878524 | AE122: s1 | AF122: d1 | AG122: s1d1 | BX122: 5 | BY122: 24 | BZ122: 120 | CA122: =OFFSET(GHA!$D$1,IF($CA$1,BX122,366-BX122),BY122) -> 1076 | CB122: =IF(BZ122=SUMIF(GHA!$AQ$51:$AQ$90,CB121,GHA!$BK$51:$BK$90),CB121+1,CB121) -> 2 | CC122: 1351.8 | CD122: =SUMIF(GHA!$AQ$51:$AQ$90,CB122,GHA!$BJ$51:$BJ$90) -> 1265.362607
A123: 122 | B123: 2009-05-02 | C123: 6 | D123: Saturday | E123: 1017 | F123: 995 | G123: 974 | H123: 973 | I123: 973 | J123: 935 | K123: 910 | L123: 1007 | M123: 898 | N123: 1038 | O123: 1058 | P123: 1081 | Q123: 1088 | R123: 1071 | S123: 1069 | T123: 1065 | U123: 1072 | V123: 1114 | W123: 1236 | X123: 1286 | Y123: 1292 | Z123: 1256 | AA123: 1226 | AB123: 1162 | AC123: 25796 | AD123: 1212.490672 | AE123: s1 | AF123: d1 | AG123: s1d1 | BX123: 6 | BY123: 1 | BZ123: 121 | CA123: =OFFSET(GHA!$D$1,IF($CA$1,BX123,366-BX123),BY123) -> 1148 | CB123: =IF(BZ123=SUMIF(GHA!$AQ$51:$AQ$90,CB122,GHA!$BK$51:$BK$90),CB122+1,CB122) -> 2 | CC123: 1351.5 | CD123: =SUMIF(GHA!$AQ$51:$AQ$90,CB123,GHA!$BJ$51:$BJ$90) -> 1265.362607
A124: 123 | B124: 2009-05-03 | C124: 7 | D124: Sunday | E124: 1111 | F124: 1068 | G124: 1019 | H124: 993 | I124: 991 | J124: 933 | K124: 918 | L124: 969 | M124: 982 | N124: 967 | O124: 933 | P124: 956 | Q124: 1007 | R124: 1010 | S124: 971 | T124: 964 | U124: 1022 | V124: 1021 | W124: 1191 | X124: 1212 | Y124: 1209 | Z124: 1172 | AA124: 1083 | AB124: 1037 | AC124: 24739 | AD124: 1210.341605 | AE124: s1 | AF124: d1 | AG124: s1d1 | BX124: 6 | BY124: 2 | BZ124: 122 | CA124: =OFFSET(GHA!$D$1,IF($CA$1,BX124,366-BX124),BY124) -> 1127 | CB124: =IF(BZ124=SUMIF(GHA!$AQ$51:$AQ$90,CB123,GHA!$BK$51:$BK$90),CB123+1,CB123) -> 2 | CC124: 1351.2 | CD124: =SUMIF(GHA!$AQ$51:$AQ$90,CB124,GHA!$BJ$51:$BJ$90) -> 1265.362607
A125: 124 | B125: 2009-05-04 | C125: 1 | D125: Monday | E125: 1013 | F125: 986 | G125: 964 | H125: 963 | I125: 956 | J125: 982 | K125: 951 | L125: 1085 | M125: 1119 | N125: 1159 | O125: 1160 | P125: 1157 | Q125: 1140 | R125: 1139 | S125: 1158 | T125: 1164 | U125: 1064 | V125: 1112 | W125: 1251 | X125: 1268 | Y125: 1267 | Z125: 1254 | AA125: 1190 | AB125: 1160 | AC125: 26662 | AD125: 1214.407444 | AE125: s1 | AF125: d1 | AG125: s1d1 | BX125: 6 | BY125: 3 | BZ125: 123 | CA125: =OFFSET(GHA!$D$1,IF($CA$1,BX125,366-BX125),BY125) -> 1118 | CB125: =IF(BZ125=SUMIF(GHA!$AQ$51:$AQ$90,CB124,GHA!$BK$51:$BK$90),CB124+1,CB124) -> 2 | CC125: 1351 | CD125: =SUMIF(GHA!$AQ$51:$AQ$90,CB125,GHA!$BJ$51:$BJ$90) -> 1265.362607
A126: 125 | B126: 2009-05-05 | C126: 2 | D126: Tuesday | E126: 1104 | F126: 1077 | G126: 1027 | H126: 973 | I126: 990 | J126: 1004 | K126: 998 | L126: 1041 | M126: 1062 | N126: 1093 | O126: 1089 | P126: 1075 | Q126: 1063 | R126: 1055 | S126: 1075 | T126: 1101 | U126: 1095 | V126: 1090 | W126: 1261 | X126: 1270 | Y126: 1249 | Z126: 1206 | AA126: 1144 | AB126: 1087 | AC126: 26229 | AD126: 1219.0667 | AE126: s1 | AF126: d1 | AG126: s1d1 | BX126: 6 | BY126: 4 | BZ126: 124 | CA126: =OFFSET(GHA!$D$1,IF($CA$1,BX126,366-BX126),BY126) -> 1096 | CB126: =IF(BZ126=SUMIF(GHA!$AQ$51:$AQ$90,CB125,GHA!$BK$51:$BK$90),CB125+1,CB125) -> 2 | CC126: 1349.5 | CD126: =SUMIF(GHA!$AQ$51:$AQ$90,CB126,GHA!$BJ$51:$BJ$90) -> 1265.362607
A127: 126 | B127: 2009-05-06 | C127: 3 | D127: Wednesday | E127: 702 | F127: 1010 | G127: 983 | H127: 995 | I127: 1025 | J127: 1011 | K127: 1000 | L127: 1055 | M127: 1093 | N127: 1153 | O127: 1124 | P127: 1117 | Q127: 1111 | R127: 1145 | S127: 1138 | T127: 1140 | U127: 1131 | V127: 1133 | W127: 1265 | X127: 1287 | Y127: 1261 | Z127: 1228 | AA127: 1163 | AB127: 1078 | AC127: 26348 | AD127: 1223.66003 | AE127: s1 | AF127: d1 | AG127: s1d1 | BX127: 6 | BY127: 5 | BZ127: 125 | CA127: =OFFSET(GHA!$D$1,IF($CA$1,BX127,366-BX127),BY127) -> 1111 | CB127: =IF(BZ127=SUMIF(GHA!$AQ$51:$AQ$90,CB126,GHA!$BK$51:$BK$90),CB126+1,CB126) -> 2 | CC127: 1349.2 | CD127: =SUMIF(GHA!$AQ$51:$AQ$90,CB127,GHA!$BJ$51:$BJ$90) -> 1265.362607
A128: 127 | B128: 2009-05-07 | C128: 4 | D128: Thursday | E128: 1065 | F128: 1027 | G128: 990 | H128: 1006 | I128: 1009 | J128: 1000 | K128: 987 | L128: 1045 | M128: 1090 | N128: 1111 | O128: 1110 | P128: 1114 | Q128: 1070 | R128: 1064 | S128: 1076 | T128: 1062 | U128: 1033 | V128: 1043 | W128: 1150 | X128: 1183 | Y128: 1176 | Z128: 1113 | AA128: 1035 | AB128: 987 | AC128: 25546 | AD128: 1216.294027 | AE128: s2 | AF128: d1 | AG128: s2d1 | BX128: 6 | BY128: 6 | BZ128: 126 | CA128: =OFFSET(GHA!$D$1,IF($CA$1,BX128,366-BX128),BY128) -> 1039 | CB128: =IF(BZ128=SUMIF(GHA!$AQ$51:$AQ$90,CB127,GHA!$BK$51:$BK$90),CB127+1,CB127) -> 2 | CC128: 1349 | CD128: =SUMIF(GHA!$AQ$51:$AQ$90,CB128,GHA!$BJ$51:$BJ$90) -> 1265.362607
A129: 128 | B129: 2009-05-08 | C129: 5 | D129: Friday | E129: 943 | F129: 879 | G129: 872 | H129: 872 | I129: 886 | J129: 946 | K129: 909 | L129: 985 | M129: 1018 | N129: 1019 | O129: 998 | P129: 1032 | Q129: 1019 | R129: 1069 | S129: 1076 | T129: 1046 | U129: 1078 | V129: 1082 | W129: 1198 | X129: 1229 | Y129: 1230 | Z129: 1185 | AA129: 1130 | AB129: 1074 | AC129: 24775 | AD129: 1214.464624 | AE129: s2 | AF129: d1 | AG129: s2d1 | BX129: 6 | BY129: 7 | BZ129: 127 | CA129: =OFFSET(GHA!$D$1,IF($CA$1,BX129,366-BX129),BY129) -> 994 | CB129: =IF(BZ129=SUMIF(GHA!$AQ$51:$AQ$90,CB128,GHA!$BK$51:$BK$90),CB128+1,CB128) -> 2 | CC129: 1349 | CD129: =SUMIF(GHA!$AQ$51:$AQ$90,CB129,GHA!$BJ$51:$BJ$90) -> 1265.362607
A130: 129 | B130: 2009-05-09 | C130: 6 | D130: =VLOOKUP(C130,weekdays,2,FALSE) -> Saturday | E130: 1028 | F130: 1003 | G130: 1002 | H130: 979 | I130: 967 | J130: 969 | K130: 910 | L130: 906 | M130: 934 | N130: 843 | O130: 950 | P130: 966 | Q130: 969 | R130: 975 | S130: 974 | T130: 955 | U130: 972 | V130: 1029 | W130: 1183 | X130: 1272 | Y130: 1268 | Z130: 1222 | AA130: 1132 | AB130: 1056 | AC130: =SUM(E130:AB130) -> 24464 | AD130: 1211.318162 | AE130: s2 | AF130: d1 | AG130: s2d1 | BX130: 6 | BY130: 8 | BZ130: 128 | CA130: =OFFSET(GHA!$D$1,IF($CA$1,BX130,366-BX130),BY130) -> 1046 | CB130: =IF(BZ130=SUMIF(GHA!$AQ$51:$AQ$90,CB129,GHA!$BK$51:$BK$90),CB129+1,CB129) -> 2 | CC130: 1348.3 | CD130: =SUMIF(GHA!$AQ$51:$AQ$90,CB130,GHA!$BJ$51:$BJ$90) -> 1265.362607
A131: 130 | B131: 2009-05-10 | C131: =WEEKDAY(B131,2) -> 7 | D131: Sunday | E131: 955 | F131: 903 | G131: 915 | H131: 896 | I131: 900 | J131: 918 | K131: 899 | L131: 894 | M131: 883 | N131: 840 | O131: 841 | P131: 822 | Q131: 871 | R131: 898 | S131: 927 | T131: 927 | U131: 920 | V131: 1000 | W131: 1179 | X131: 1212 | Y131: 1182 | Z131: 1162 | AA131: 1073 | AB131: 1004 | AC131: 23021 | AD131: 1208.086345 | AE131: =IF(AND(A131>$AJ$6,A131<$AJ$7),"s2",IF(A131<=$AJ$6,"s1","s3")) -> s2 | AF131: d1 | AG131: =AE131&AF131 -> s2d1 | BX131: =ROUNDDOWN((BZ131-1)/24,0)+1 -> 6 | BY131: 9 | BZ131: 129 | CA131: =OFFSET(GHA!$D$1,IF($CA$1,BX131,366-BX131),BY131) -> 1106 | CB131: =IF(BZ131=SUMIF(GHA!$AQ$51:$AQ$90,CB130,GHA!$BK$51:$BK$90),CB130+1,CB130) -> 2 | CC131: 1348 | CD131: =SUMIF(GHA!$AQ$51:$AQ$90,CB131,GHA!$BJ$51:$BJ$90) -> 1265.362607
A132: =A131+1 -> 131 | B132: 2009-05-11 | C132: 1 | D132: Monday | E132: 974 | F132: 939 | G132: 924 | H132: 882 | I132: 942 | J132: 970 | K132: 986 | L132: 1010 | M132: 1086 | N132: 1105 | O132: 1108 | P132: 1106 | Q132: 1109 | R132: 1117 | S132: 1119 | T132: 1120 | U132: 1108 | V132: 1099 | W132: 1272 | X132: 1307 | Y132: 1282 | Z132: 1247 | AA132: 1151 | AB132: 1113 | AC132: 26076 | AD132: 1214.477711 | AE132: s2 | AF132: d1 | AG132: s2d1 | BX132: 6 | BY132: 10 | BZ132: =BZ131+1 -> 130 | CA132: =OFFSET(GHA!$D$1,IF($CA$1,BX132,366-BX132),BY132) -> 1109 | CB132: =IF(BZ132=SUMIF(GHA!$AQ$51:$AQ$90,CB131,GHA!$BK$51:$BK$90),CB131+1,CB131) -> 2 | CC132: 1347.8 | CD132: =SUMIF(GHA!$AQ$51:$AQ$90,CB132,GHA!$BJ$51:$BJ$90) -> 1265.362607
A133: 132 | B133: 2009-05-12 | C133: 2 | D133: Tuesday | E133: 1094 | F133: 1049 | G133: 1043 | H133: 1050 | I133: 1030 | J133: 1050 | K133: 995 | L133: 1063 | M133: 1125 | N133: 1135 | O133: 1139 | P133: 1076 | Q133: 1097 | R133: 1098 | S133: 1124 | T133: 1102 | U133: 1153 | V133: 1064 | W133: 1257 | X133: 1273 | Y133: 1282 | Z133: 1252 | AA133: 1193 | AB133: 1155 | AC133: 26899 | AD133: 1218.72994 | AE133: s2 | AF133: d1 | AG133: s2d1 | BX133: 6 | BY133: 11 | BZ133: 131 | CA133: =OFFSET(GHA!$D$1,IF($CA$1,BX133,366-BX133),BY133) -> 1109 | CB133: =IF(BZ133=SUMIF(GHA!$AQ$51:$AQ$90,CB132,GHA!$BK$51:$BK$90),CB132+1,CB132) -> 2 | CC133: 1347.8 | CD133: =SUMIF(GHA!$AQ$51:$AQ$90,CB133,GHA!$BJ$51:$BJ$90) -> 1265.362607
A134: 133 | B134: 2009-05-13 | C134: 3 | D134: Wednesday | E134: 1098 | F134: 1081 | G134: 1012 | H134: 1029 | I134: 1059 | J134: 1005 | K134: 984 | L134: 1058 | M134: 1121 | N134: 1159 | O134: 1179 | P134: 1168 | Q134: 1175 | R134: 1184 | S134: 1177 | T134: 1192 | U134: 1159 | V134: 1163 | W134: 1282 | X134: 1310 | Y134: 1284 | Z134: 1237 | AA134: 1180 | AB134: 1162 | AC134: 27458 | AD134: 1225.056946 | AE134: s2 | AF134: d1 | AG134: s2d1 | BX134: 6 | BY134: 12 | BZ134: 132 | CA134: =OFFSET(GHA!$D$1,IF($CA$1,BX134,366-BX134),BY134) -> 1102 | CB134: =IF(BZ134=SUMIF(GHA!$AQ$51:$AQ$90,CB133,GHA!$BK$51:$BK$90),CB133+1,CB133) -> 2 | CC134: 1347.4 | CD134: =SUMIF(GHA!$AQ$51:$AQ$90,CB134,GHA!$BJ$51:$BJ$90) -> 1265.362607
A135: 134 | B135: 2009-05-14 | C135: 4 | D135: Thursday | E135: 1119 | F135: 1108 | G135: 1074 | H135: 1085 | I135: 1075 | J135: 1055 | K135: 1024 | L135: 1088 | M135: 1134 | N135: 1166 | O135: 1212 | P135: 1160.7 | Q135: 1168 | R135: 1167 | S135: 1185 | T135: 1191 | U135: 1159 | V135: 1116 | W135: 1249 | X135: 1284 | Y135: 1211 | Z135: 1168 | AA135: 1088 | AB135: 1076 | AC135: 27362.7 | AD135: 1227.451251 | AE135: s2 | AF135: d1 | AG135: s2d1 | BX135: 6 | BY135: 13 | BZ135: 133 | CA135: =OFFSET(GHA!$D$1,IF($CA$1,BX135,366-BX135),BY135) -> 1073 | CB135: =IF(BZ135=SUMIF(GHA!$AQ$51:$AQ$90,CB134,GHA!$BK$51:$BK$90),CB134+1,CB134) -> 2 | CC135: 1347.3 | CD135: =SUMIF(GHA!$AQ$51:$AQ$90,CB135,GHA!$BJ$51:$BJ$90) -> 1265.362607
A136: 135 | B136: 2009-05-15 | C136: 5 | D136: Friday | E136: 1063 | F136: 1041 | G136: 1016 | H136: 1024 | I136: 1039 | J136: 1009 | K136: 1001 | L136: 1043 | M136: 1070 | N136: 1083 | O136: 1080 | P136: 1110 | Q136: 1062.5 | R136: 1122.6 | S136: 1165 | T136: 1151 | U136: 1133 | V136: 1170 | W136: 1272 | X136: 1297 | Y136: 1303 | Z136: 1271 | AA136: 1232 | AB136: 1159 | AC136: 26917.1 | AD136: 1231.906126 | AE136: s2 | AF136: d1 | AG136: s2d1 | BX136: 6 | BY136: 14 | BZ136: 134 | CA136: =OFFSET(GHA!$D$1,IF($CA$1,BX136,366-BX136),BY136) -> 1123 | CB136: =IF(BZ136=SUMIF(GHA!$AQ$51:$AQ$90,CB135,GHA!$BK$51:$BK$90),CB135+1,CB135) -> 2 | CC136: 1347.2 | CD136: =SUMIF(GHA!$AQ$51:$AQ$90,CB136,GHA!$BJ$51:$BJ$90) -> 1265.362607
A137: 136 | B137: 2009-05-16 | C137: 6 | D137: Saturday | E137: 1132 | F137: 1096 | G137: 1111 | H137: 1088 | I137: 1083 | J137: 1015 | K137: 980 | L137: 958 | M137: 977 | N137: 1013 | O137: 1024 | P137: 1040 | Q137: 1054.8 | R137: 1067 | S137: 1057 | T137: 1075 | U137: 1059 | V137: 1090 | W137: 1274 | X137: 1255 | Y137: 1291 | Z137: 1285 | AA137: 1227 | AB137: 1194 | AC137: 26445.8 | AD137: 1236.115514 | AE137: s2 | AF137: d1 | AG137: s2d1 | BX137: 6 | BY137: 15 | BZ137: 135 | CA137: =OFFSET(GHA!$D$1,IF($CA$1,BX137,366-BX137),BY137) -> 1132 | CB137: =IF(BZ137=SUMIF(GHA!$AQ$51:$AQ$90,CB136,GHA!$BK$51:$BK$90),CB136+1,CB136) -> 2 | CC137: 1347 | CD137: =SUMIF(GHA!$AQ$51:$AQ$90,CB137,GHA!$BJ$51:$BJ$90) -> 1265.362607
A138: 137 | B138: 2009-05-17 | C138: 7 | D138: Sunday | E138: 1125 | F138: 1056 | G138: 1072 | H138: 1046 | I138: 1063 | J138: 961 | K138: 974 | L138: 971 | M138: 940 | N138: 955 | O138: 752 | P138: 766 | Q138: 811 | R138: 831 | S138: 812 | T138: 832 | U138: 829 | V138: 854 | W138: 1042 | X138: 1072 | Y138: 1037 | Z138: 1087 | AA138: 1107 | AB138: 1045 | AC138: 23040 | AD138: 1216.703962 | AE138: s2 | AF138: d1 | AG138: s2d1 | BX138: 6 | BY138: 16 | BZ138: 136 | CA138: =OFFSET(GHA!$D$1,IF($CA$1,BX138,366-BX138),BY138) -> 1115 | CB138: =IF(BZ138=SUMIF(GHA!$AQ$51:$AQ$90,CB137,GHA!$BK$51:$BK$90),CB137+1,CB137) -> 2 | CC138: 1347 | CD138: =SUMIF(GHA!$AQ$51:$AQ$90,CB138,GHA!$BJ$51:$BJ$90) -> 1265.362607
A139: 138 | B139: 2009-05-18 | C139: 1 | D139: Monday | E139: 1020 | F139: 1007 | G139: 982 | H139: 984 | I139: 1026 | J139: 1022 | K139: 1018 | L139: 1067 | M139: 1140 | N139: 1136 | O139: 1068 | P139: 1178 | Q139: 1148 | R139: 1140 | S139: 1198 | T139: 1204 | U139: 1198 | V139: 1169 | W139: 1315 | X139: 1337 | Y139: 1278 | Z139: 1274 | AA139: 1233 | AB139: 1160 | AC139: 27302 | AD139: 1226.533566 | AE139: s2 | AF139: d1 | AG139: s2d1 | BX139: 6 | BY139: 17 | BZ139: 137 | CA139: =OFFSET(GHA!$D$1,IF($CA$1,BX139,366-BX139),BY139) -> 1078 | CB139: =IF(BZ139=SUMIF(GHA!$AQ$51:$AQ$90,CB138,GHA!$BK$51:$BK$90),CB138+1,CB138) -> 2 | CC139: 1347 | CD139: =SUMIF(GHA!$AQ$51:$AQ$90,CB139,GHA!$BJ$51:$BJ$90) -> 1265.362607
A140: 139 | B140: 2009-05-19 | C140: 2 | D140: Tuesday | E140: 1109 | F140: 1123 | G140: 1106 | H140: 1124 | I140: 1142 | J140: 1091 | K140: 1112 | L140: 1146 | M140: 1186 | N140: 1192 | O140: 1145 | P140: 1175 | Q140: 1164 | R140: 954 | S140: 1030 | T140: 1097 | U140: 1096 | V140: 1024 | W140: 1141 | X140: 1209 | Y140: 1173 | Z140: 1152 | AA140: 1078 | AB140: 1096 | AC140: 26865 | AD140: 1217.980209 | AE140: s2 | AF140: d1 | AG140: s2d1 | BX140: 6 | BY140: 18 | BZ140: 138 | CA140: =OFFSET(GHA!$D$1,IF($CA$1,BX140,366-BX140),BY140) -> 1096 | CB140: =IF(BZ140=SUMIF(GHA!$AQ$51:$AQ$90,CB139,GHA!$BK$51:$BK$90),CB139+1,CB139) -> 2 | CC140: 1346.9 | CD140: =SUMIF(GHA!$AQ$51:$AQ$90,CB140,GHA!$BJ$51:$BJ$90) -> 1265.362607
A141: 140 | B141: 2009-05-20 | C141: 3 | D141: Wednesday | E141: 1044 | F141: 1034 | G141: 1022 | H141: 995 | I141: 1038 | J141: 1024 | K141: 1000 | L141: 1070 | M141: 1107 | N141: 1110 | O141: 1105 | P141: 1093 | Q141: 325 | R141: 656 | S141: 897 | T141: 961 | U141: 1064 | V141: 1076 | W141: 1217 | X141: 1245 | Y141: 1231 | Z141: 1221 | AA141: 1179 | AB141: 1124 | AC141: 24838 | AD141: =AD140*(1-$AH$1)+W141*$AH$1 -> 1217.882188 | AE141: s2 | AF141: d1 | AG141: s2d1 | BX141: 6 | BY141: 19 | BZ141: 139 | CA141: =OFFSET(GHA!$D$1,IF($CA$1,BX141,366-BX141),BY141) -> 1224 | CB141: =IF(BZ141=SUMIF(GHA!$AQ$51:$AQ$90,CB140,GHA!$BK$51:$BK$90),CB140+1,CB140) -> 2 | CC141: 1346.8 | CD141: =SUMIF(GHA!$AQ$51:$AQ$90,CB141,GHA!$BJ$51:$BJ$90) -> 1265.362607
A142: 141 | B142: 2009-05-21 | C142: 4 | D142: Thursday | E142: 1084 | F142: 1055 | G142: 1051 | H142: 1047 | I142: 1069 | J142: 1014 | K142: 1008 | L142: 1039 | M142: 1119 | N142: 1132 | O142: 1122 | P142: 1161 | Q142: 1140 | R142: 1139 | S142: 1138 | T142: 1149 | U142: 1124 | V142: 1098 | W142: 1266 | X142: 1304 | Y142: 1291 | Z142: 1283 | AA142: 1206 | AB142: 1176 | AC142: 27215 | AD142: 1222.69397 | AE142: s2 | AF142: d1 | AG142: s2d1 | BX142: 6 | BY142: 20 | BZ142: 140 | CA142: =OFFSET(GHA!$D$1,IF($CA$1,BX142,366-BX142),BY142) -> 1251 | CB142: =IF(BZ142=SUMIF(GHA!$AQ$51:$AQ$90,CB141,GHA!$BK$51:$BK$90),CB141+1,CB141) -> 2 | CC142: 1346.8 | CD142: =SUMIF(GHA!$AQ$51:$AQ$90,CB142,GHA!$BJ$51:$BJ$90) -> 1265.362607
A143: 142 | B143: 2009-05-22 | C143: 5 | D143: Friday | E143: 1110 | F143: 1079 | G143: 1073 | H143: 1074 | I143: 1080 | J143: 1077 | K143: 1047 | L143: 1109 | M143: 1160 | N143: 1173 | O143: 1170 | P143: 1167 | Q143: 1175 | R143: 1187 | S143: 1191 | T143: 1194 | U143: 1186 | V143: 1154 | W143: 1291 | X143: 1327 | Y143: 1319 | Z143: 1314 | AA143: 1276 | AB143: 1194 | AC143: 28127 | AD143: 1229.524573 | AE143: s2 | AF143: d1 | AG143: s2d1 | BX143: 6 | BY143: 21 | BZ143: 141 | CA143: =OFFSET(GHA!$D$1,IF($CA$1,BX143,366-BX143),BY143) -> 1229 | CB143: =IF(BZ143=SUMIF(GHA!$AQ$51:$AQ$90,CB142,GHA!$BK$51:$BK$90),CB142+1,CB142) -> 2 | CC143: 1346 | CD143: =SUMIF(GHA!$AQ$51:$AQ$90,CB143,GHA!$BJ$51:$BJ$90) -> 1265.362607
A144: 143 | B144: 2009-05-23 | C144: 6 | D144: Saturday | E144: 1148 | F144: 1125 | G144: 1128 | H144: 1117 | I144: 1120 | J144: 1037 | K144: 942 | L144: 1009 | M144: 1024 | N144: 1010 | O144: 1043 | P144: 1058 | Q144: 1079 | R144: 1090 | S144: 1134 | T144: 1084 | U144: 1073 | V144: 1083 | W144: 1239 | X144: 1275 | Y144: 1274 | Z144: 1258 | AA144: 1187 | AB144: 1144 | AC144: 26681 | AD144: 1230.472115 | AE144: s2 | AF144: d1 | AG144: s2d1 | BX144: 6 | BY144: 22 | BZ144: 142 | CA144: =OFFSET(GHA!$D$1,IF($CA$1,BX144,366-BX144),BY144) -> 1214 | CB144: =IF(BZ144=SUMIF(GHA!$AQ$51:$AQ$90,CB143,GHA!$BK$51:$BK$90),CB143+1,CB143) -> 2 | CC144: 1346 | CD144: =SUMIF(GHA!$AQ$51:$AQ$90,CB144,GHA!$BJ$51:$BJ$90) -> 1265.362607
A145: 144 | B145: 2009-05-24 | C145: 7 | D145: Sunday | E145: 1097 | F145: 1081 | G145: 1056 | H145: 1045 | I145: 1044 | J145: 998 | K145: 964 | L145: 946 | M145: 976 | N145: 963 | O145: 957 | P145: 985 | Q145: 1001 | R145: 1002 | S145: 1005 | T145: 1027 | U145: 1040 | V145: 1039 | W145: 1182 | X145: 1194 | Y145: 1168 | Z145: 1180 | AA145: 1144 | AB145: 1083 | AC145: 25177 | AD145: 1225.624904 | AE145: s2 | AF145: d1 | AG145: s2d1 | BX145: 6 | BY145: 23 | BZ145: 143 | CA145: =OFFSET(GHA!$D$1,IF($CA$1,BX145,366-BX145),BY145) -> 1156 | CB145: =IF(BZ145=SUMIF(GHA!$AQ$51:$AQ$90,CB144,GHA!$BK$51:$BK$90),CB144+1,CB144) -> 2 | CC145: 1345 | CD145: =SUMIF(GHA!$AQ$51:$AQ$90,CB145,GHA!$BJ$51:$BJ$90) -> 1265.362607
A146: 145 | B146: 2009-05-25 | C146: 1 | D146: Monday | E146: 1048 | F146: 1014 | G146: 1003 | H146: 998 | I146: 1010 | J146: 949 | K146: 934 | L146: 975 | M146: 1005 | N146: 1000 | O146: 1025 | P146: 986 | Q146: 993 | R146: 966 | S146: 998 | T146: 974 | U146: 995 | V146: 1034 | W146: 1201 | X146: 1218 | Y146: 1183 | Z146: 1176 | AA146: 1108 | AB146: 1077 | AC146: 24870 | AD146: 1223.162413 | AE146: s2 | AF146: d1 | AG146: s2d1 | BX146: 6 | BY146: 24 | BZ146: 144 | CA146: =OFFSET(GHA!$D$1,IF($CA$1,BX146,366-BX146),BY146) -> 1080 | CB146: =IF(BZ146=SUMIF(GHA!$AQ$51:$AQ$90,CB145,GHA!$BK$51:$BK$90),CB145+1,CB145) -> 2 | CC146: 1345 | CD146: =SUMIF(GHA!$AQ$51:$AQ$90,CB146,GHA!$BJ$51:$BJ$90) -> 1265.362607
A147: 146 | B147: 2009-05-26 | C147: 2 | D147: Tuesday | E147: 1013 | F147: 994 | G147: 997 | H147: 986 | I147: 997 | J147: 1038 | K147: 981 | L147: 1013 | M147: 1072 | N147: 1092 | O147: 1088 | P147: 1061 | Q147: 1060 | R147: 1085 | S147: 1115 | T147: 1114 | U147: 1133 | V147: 1106 | W147: 1270 | X147: 1295 | Y147: 1277 | Z147: 1248 | AA147: 1180 | AB147: 1131 | AC147: 26346 | AD147: 1227.846172 | AE147: s2 | AF147: d1 | AG147: s2d1 | BX147: 7 | BY147: 1 | BZ147: 145 | CA147: =OFFSET(GHA!$D$1,IF($CA$1,BX147,366-BX147),BY147) -> 1050 | CB147: =IF(BZ147=SUMIF(GHA!$AQ$51:$AQ$90,CB146,GHA!$BK$51:$BK$90),CB146+1,CB146) -> 2 | CC147: 1345 | CD147: =SUMIF(GHA!$AQ$51:$AQ$90,CB147,GHA!$BJ$51:$BJ$90) -> 1265.362607
A148: 147 | B148: 2009-05-27 | C148: 3 | D148: Wednesday | E148: 1091 | F148: 1055 | G148: 1042 | H148: 1037 | I148: 1073 | J148: 1026 | K148: 961 | L148: 1056 | M148: 1111 | N148: 1136 | O148: 1139 | P148: 1152 | Q148: 1149 | R148: 1146 | S148: 1168 | T148: 1172 | U148: 1155 | V148: 1159 | W148: 1301 | X148: 1332 | Y148: 1153 | Z148: 1162 | AA148: 1117 | AB148: 1122 | AC148: 27015 | AD148: 1235.161555 | AE148: s2 | AF148: d1 | AG148: s2d1 | BX148: 7 | BY148: 2 | BZ148: 146 | CA148: =OFFSET(GHA!$D$1,IF($CA$1,BX148,366-BX148),BY148) -> 1057 | CB148: =IF(BZ148=SUMIF(GHA!$AQ$51:$AQ$90,CB147,GHA!$BK$51:$BK$90),CB147+1,CB147) -> 2 | CC148: 1344 | CD148: =SUMIF(GHA!$AQ$51:$AQ$90,CB148,GHA!$BJ$51:$BJ$90) -> 1265.362607
A149: 148 | B149: 2009-05-28 | C149: 4 | D149: Thursday | E149: 1117 | F149: 1091 | G149: 1048 | H149: 1026 | I149: 1036 | J149: 1026 | K149: 1002 | L149: 1058 | M149: 1108 | N149: 1138 | O149: 1128 | P149: 1141 | Q149: 1108 | R149: 1137 | S149: 1133 | T149: 1147 | U149: 1121 | V149: 1103 | W149: 1230 | X149: 1278 | Y149: 1273 | Z149: 1255 | AA149: 1205 | AB149: 1141 | AC149: 27050 | AD149: 1234.645399 | AE149: s2 | AF149: d1 | AG149: s2d1 | BX149: 7 | BY149: 3 | BZ149: 147 | CA149: =OFFSET(GHA!$D$1,IF($CA$1,BX149,366-BX149),BY149) -> 1023 | CB149: =IF(BZ149=SUMIF(GHA!$AQ$51:$AQ$90,CB148,GHA!$BK$51:$BK$90),CB148+1,CB148) -> 2 | CC149: 1344 | CD149: =SUMIF(GHA!$AQ$51:$AQ$90,CB149,GHA!$BJ$51:$BJ$90) -> 1265.362607
A150: 149 | B150: 2009-05-29 | C150: 5 | D150: Friday | E150: 1109 | F150: 1093 | G150: 1071 | H150: 1054 | I150: 1097 | J150: 1052 | K150: 1091 | L150: 1089 | M150: 1177 | N150: 1138 | O150: 1157 | P150: 1153 | Q150: 1095 | R150: 1169 | S150: 1161 | T150: 1101 | U150: 1119 | V150: 1078 | W150: 1224 | X150: 1230 | Y150: 1210 | Z150: 1187 | AA150: 1143 | AB150: 1089 | AC150: 27087 | AD150: 1233.580859 | AE150: s2 | AF150: d1 | AG150: s2d1 | BX150: 7 | BY150: 4 | BZ150: 148 | CA150: =OFFSET(GHA!$D$1,IF($CA$1,BX150,366-BX150),BY150) -> 922 | CB150: =IF(BZ150=SUMIF(GHA!$AQ$51:$AQ$90,CB149,GHA!$BK$51:$BK$90),CB149+1,CB149) -> 2 | CC150: 1343 | CD150: =SUMIF(GHA!$AQ$51:$AQ$90,CB150,GHA!$BJ$51:$BJ$90) -> 1265.362607
A151: 150 | B151: 2009-05-30 | C151: 6 | D151: Saturday | E151: 1034 | F151: 1016 | G151: 991 | H151: 974 | I151: 976 | J151: 937 | K151: 878 | L151: 887 | M151: 943 | N151: 900 | O151: 945 | P151: 934 | Q151: 945 | R151: 996 | S151: 949 | T151: 1088 | U151: 982 | V151: 1026 | W151: 1202 | X151: 1241 | Y151: 1233 | Z151: 1171 | AA151: 1133 | AB151: 1087 | AC151: 24468 | AD151: 1230.422774 | AE151: s2 | AF151: d1 | AG151: s2d1 | BX151: 7 | BY151: 5 | BZ151: 149 | CA151: =OFFSET(GHA!$D$1,IF($CA$1,BX151,366-BX151),BY151) -> 1037 | CB151: =IF(BZ151=SUMIF(GHA!$AQ$51:$AQ$90,CB150,GHA!$BK$51:$BK$90),CB150+1,CB150) -> 2 | CC151: 1342.2 | CD151: =SUMIF(GHA!$AQ$51:$AQ$90,CB151,GHA!$BJ$51:$BJ$90) -> 1265.362607
A152: 151 | B152: 2009-05-31 | C152: 7 | D152: Sunday | E152: 1041 | F152: 996 | G152: 979 | H152: 962 | I152: 967 | J152: 948 | K152: 921 | L152: 915 | M152: 895 | N152: 876 | O152: 897 | P152: 911 | Q152: 926 | R152: 937 | S152: 968 | T152: 983 | U152: 975 | V152: 993 | W152: 1187 | X152: 1230 | Y152: 1241 | Z152: 1200 | AA152: 1078 | AB152: 1020 | AC152: 24046 | AD152: 1226.080496 | AE152: s2 | AF152: d1 | AG152: s2d1 | BX152: 7 | BY152: 6 | BZ152: 150 | CA152: =OFFSET(GHA!$D$1,IF($CA$1,BX152,366-BX152),BY152) -> 1079 | CB152: =IF(BZ152=SUMIF(GHA!$AQ$51:$AQ$90,CB151,GHA!$BK$51:$BK$90),CB151+1,CB151) -> 2 | CC152: 1342.1 | CD152: =SUMIF(GHA!$AQ$51:$AQ$90,CB152,GHA!$BJ$51:$BJ$90) -> 1265.362607
A153: 152 | B153: 2009-06-01 | C153: 1 | D153: Monday | E153: 974 | F153: 978 | G153: 962 | H153: 955 | I153: 906 | J153: 968 | K153: 893 | L153: 847 | M153: 975 | N153: 1052 | O153: 1067 | P153: 1069 | Q153: 1048 | R153: 1081 | S153: 1108 | T153: 1025 | U153: 1222 | V153: 1085 | W153: 1254 | X153: 1300 | Y153: 1280 | Z153: 1257 | AA153: 1203 | AB153: 1096 | AC153: 25605 | AD153: 1228.872447 | AE153: s2 | AF153: d1 | AG153: s2d1 | BX153: 7 | BY153: 7 | BZ153: 151 | CA153: =OFFSET(GHA!$D$1,IF($CA$1,BX153,366-BX153),BY153) -> 1007 | CB153: =IF(BZ153=SUMIF(GHA!$AQ$51:$AQ$90,CB152,GHA!$BK$51:$BK$90),CB152+1,CB152) -> 2 | CC153: 1342.1 | CD153: =SUMIF(GHA!$AQ$51:$AQ$90,CB153,GHA!$BJ$51:$BJ$90) -> 1265.362607
A154: 153 | B154: 2009-06-02 | C154: 2 | D154: Tuesday | E154: 1058 | F154: 1038 | G154: 1042 | H154: 1044 | I154: 1070 | J154: 1020 | K154: 993 | L154: 1041 | M154: 1094 | N154: 1104 | O154: 1149 | P154: 1133 | Q154: 1126 | R154: 1080 | S154: 1121 | T154: 1122 | U154: 1135 | V154: 1083 | W154: 1277 | X154: 1289 | Y154: 1301 | Z154: 394 | AA154: 795 | AB154: 903 | AC154: 25412 | AD154: 1233.685202 | AE154: s2 | AF154: d1 | AG154: s2d1 | BX154: 7 | BY154: 8 | BZ154: 152 | CA154: =OFFSET(GHA!$D$1,IF($CA$1,BX154,366-BX154),BY154) -> 1047 | CB154: =IF(BZ154=SUMIF(GHA!$AQ$51:$AQ$90,CB153,GHA!$BK$51:$BK$90),CB153+1,CB153) -> 2 | CC154: 1342 | CD154: =SUMIF(GHA!$AQ$51:$AQ$90,CB154,GHA!$BJ$51:$BJ$90) -> 1265.362607
A155: 154 | B155: 2009-06-03 | C155: 3 | D155: Wednesday | E155: 1029 | F155: 986 | G155: 975 | H155: 970 | I155: 971 | J155: 1033 | K155: 868 | L155: 943 | M155: 1068 | N155: 1111 | O155: 0 | P155: 0 | Q155: 374 | R155: 779 | S155: 871 | T155: 863 | U155: 816 | V155: 834 | W155: 1256 | X155: 1276 | Y155: 982 | Z155: 1127 | AA155: 1200 | AB155: 1163 | AC155: 21495 | AD155: 1235.916682 | AE155: s2 | AF155: d1 | AG155: s2d1 | BX155: 7 | BY155: =BY131 -> 9 | BZ155: 153 | CA155: =OFFSET(GHA!$D$1,IF($CA$1,BX155,366-BX155),BY155) -> 1109 | CB155: =IF(BZ155=SUMIF(GHA!$AQ$51:$AQ$90,CB154,GHA!$BK$51:$BK$90),CB154+1,CB154) -> 2 | CC155: 1342 | CD155: =SUMIF(GHA!$AQ$51:$AQ$90,CB155,GHA!$BJ$51:$BJ$90) -> 1265.362607
A156: 155 | B156: 2009-06-04 | C156: 4 | D156: Thursday | E156: 1108 | F156: 1082 | G156: 1056 | H156: 1056 | I156: 1068 | J156: 1054 | K156: 1015 | L156: 1062 | M156: 1109 | N156: 1138 | O156: 1141 | P156: 1143 | Q156: 1132 | R156: 1146 | S156: 1142 | T156: 1133 | U156: 1077 | V156: 1049 | W156: 1239 | X156: 1231 | Y156: 1176 | Z156: 1165 | AA156: 1050 | AB156: 1066 | AC156: 26638 | AD156: 1236.225014 | AE156: s2 | AF156: d1 | AG156: s2d1 | BX156: 7 | BY156: 10 | BZ156: 154 | CA156: =OFFSET(GHA!$D$1,IF($CA$1,BX156,366-BX156),BY156) -> 1143 | CB156: =IF(BZ156=SUMIF(GHA!$AQ$51:$AQ$90,CB155,GHA!$BK$51:$BK$90),CB155+1,CB155) -> 2 | CC156: 1341.7 | CD156: =SUMIF(GHA!$AQ$51:$AQ$90,CB156,GHA!$BJ$51:$BJ$90) -> 1265.362607
A157: 156 | B157: 2009-06-05 | C157: 5 | D157: Friday | E157: 1072 | F157: 1009 | G157: 1025 | H157: 1018 | I157: 1004 | J157: 1023 | K157: 997 | L157: 1013 | M157: 1039 | N157: 1050 | O157: 1036 | P157: 1072 | Q157: 1042 | R157: 1068 | S157: 1081 | T157: 1065 | U157: 1058 | V157: 1052 | W157: 1195 | X157: 1231 | Y157: 1202 | Z157: 1165 | AA157: 1105 | AB157: 1052 | AC157: 25674 | AD157: 1232.102512 | AE157: s2 | AF157: d1 | AG157: s2d1 | BX157: 7 | BY157: 11 | BZ157: 155 | CA157: =OFFSET(GHA!$D$1,IF($CA$1,BX157,366-BX157),BY157) -> 1149 | CB157: =IF(BZ157=SUMIF(GHA!$AQ$51:$AQ$90,CB156,GHA!$BK$51:$BK$90),CB156+1,CB156) -> 2 | CC157: 1341 | CD157: =SUMIF(GHA!$AQ$51:$AQ$90,CB157,GHA!$BJ$51:$BJ$90) -> 1265.362607
A158: 157 | B158: 2009-06-06 | C158: 6 | D158: Saturday | E158: 1016 | F158: 991 | G158: 999 | H158: 989 | I158: 956 | J158: 969 | K158: 913 | L158: 920 | M158: 930 | N158: 939 | O158: 952 | P158: 967 | Q158: 968 | R158: 984 | S158: 987 | T158: 993 | U158: 994 | V158: 1000 | W158: 1201 | X158: 1223 | Y158: 1219 | Z158: 1197 | AA158: 1112 | AB158: 1092 | AC158: 24511 | AD158: 1228.992261 | AE158: s2 | AF158: d1 | AG158: s2d1 | BX158: 7 | BY158: 12 | BZ158: 156 | CA158: =OFFSET(GHA!$D$1,IF($CA$1,BX158,366-BX158),BY158) -> 1161 | CB158: =IF(BZ158=SUMIF(GHA!$AQ$51:$AQ$90,CB157,GHA!$BK$51:$BK$90),CB157+1,CB157) -> 2 | CC158: 1340 | CD158: =SUMIF(GHA!$AQ$51:$AQ$90,CB158,GHA!$BJ$51:$BJ$90) -> 1265.362607
A159: 158 | B159: 2009-06-07 | C159: 7 | D159: Sunday | E159: 1040 | F159: 983 | G159: 984 | H159: 964 | I159: 977 | J159: 926 | K159: 933 | L159: 933 | M159: 907 | N159: 876 | O159: 873 | P159: 894 | Q159: 954 | R159: 950 | S159: 923 | T159: 973 | U159: 966 | V159: 989 | W159: 1181 | X159: 1217 | Y159: 1193 | Z159: 1161 | AA159: 1097 | AB159: 1055 | AC159: 23949 | AD159: 1224.193035 | AE159: s2 | AF159: d1 | AG159: s2d1 | BX159: 7 | BY159: 13 | BZ159: 157 | CA159: =OFFSET(GHA!$D$1,IF($CA$1,BX159,366-BX159),BY159) -> 1161 | CB159: =IF(BZ159=SUMIF(GHA!$AQ$51:$AQ$90,CB158,GHA!$BK$51:$BK$90),CB158+1,CB158) -> 2 | CC159: 1340 | CD159: =SUMIF(GHA!$AQ$51:$AQ$90,CB159,GHA!$BJ$51:$BJ$90) -> 1265.362607
A160: 159 | B160: 2009-06-08 | C160: 1 | D160: Monday | E160: 932 | F160: 946 | G160: 945 | H160: 942 | I160: 972 | J160: 1005 | K160: 978 | L160: 1015 | M160: 1113 | N160: 1135 | O160: 1154 | P160: 1123 | Q160: 1106 | R160: 1135 | S160: 1159 | T160: 1162 | U160: 1144 | V160: 1167 | W160: 1267 | X160: 1298 | Y160: 1294 | Z160: 1257 | AA160: 1168 | AB160: 1142 | AC160: 26559 | AD160: 1228.473731 | AE160: s2 | AF160: d1 | AG160: s2d1 | BX160: 7 | BY160: 14 | BZ160: 158 | CA160: =OFFSET(GHA!$D$1,IF($CA$1,BX160,366-BX160),BY160) -> 1178 | CB160: =IF(BZ160=SUMIF(GHA!$AQ$51:$AQ$90,CB159,GHA!$BK$51:$BK$90),CB159+1,CB159) -> 2 | CC160: 1340 | CD160: =SUMIF(GHA!$AQ$51:$AQ$90,CB160,GHA!$BJ$51:$BJ$90) -> 1265.362607
A161: 160 | B161: 2009-06-09 | C161: 2 | D161: Tuesday | E161: 1113 | F161: 1108 | G161: 1083 | H161: 1059 | I161: 1077 | J161: 1082 | K161: 1022 | L161: 1093 | M161: 1150 | N161: 1157 | O161: 1117 | P161: 1120 | Q161: 1128 | R161: 1134 | S161: 1153 | T161: 1150 | U161: 1124 | V161: 1109 | W161: 1209 | X161: 1236 | Y161: 1250 | Z161: 1191 | AA161: 1112 | AB161: 1080 | AC161: 27057 | AD161: 1226.526358 | AE161: s2 | AF161: d1 | AG161: s2d1 | BX161: 7 | BY161: 15 | BZ161: 159 | CA161: =OFFSET(GHA!$D$1,IF($CA$1,BX161,366-BX161),BY161) -> 1186 | CB161: =IF(BZ161=SUMIF(GHA!$AQ$51:$AQ$90,CB160,GHA!$BK$51:$BK$90),CB160+1,CB160) -> 2 | CC161: 1340 | CD161: =SUMIF(GHA!$AQ$51:$AQ$90,CB161,GHA!$BJ$51:$BJ$90) -> 1265.362607
A162: 161 | B162: 2009-06-10 | C162: 3 | D162: Wednesday | E162: 1016 | F162: 1016 | G162: 966 | H162: 994 | I162: 1025 | J162: 1035 | K162: 1009 | L162: 1092 | M162: 1116 | N162: 1161 | O162: 1130 | P162: 1102 | Q162: 1074 | R162: 1100 | S162: 1121 | T162: 1127 | U162: 1108 | V162: 1075 | W162: 1209 | X162: 1231 | Y162: 1257 | Z162: 1181 | AA162: 1175 | AB162: 1080 | AC162: 26400 | AD162: 1224.773722 | AE162: s2 | AF162: d1 | AG162: s2d1 | BX162: 7 | BY162: 16 | BZ162: 160 | CA162: =OFFSET(GHA!$D$1,IF($CA$1,BX162,366-BX162),BY162) -> 1135 | CB162: =IF(BZ162=SUMIF(GHA!$AQ$51:$AQ$90,CB161,GHA!$BK$51:$BK$90),CB161+1,CB161) -> 2 | CC162: 1339.3 | CD162: =SUMIF(GHA!$AQ$51:$AQ$90,CB162,GHA!$BJ$51:$BJ$90) -> 1265.362607
A163: 162 | B163: 2009-06-11 | C163: 4 | D163: Thursday | E163: 1109 | F163: 1062 | G163: 1041 | H163: 1037 | I163: 1006 | J163: 1009 | K163: 1004 | L163: 1055 | M163: 1084 | N163: 1109 | O163: 1069 | P163: 1070 | Q163: 1037 | R163: 1021 | S163: 1040 | T163: 1053 | U163: 947 | V163: 1010 | W163: 1166 | X163: 1161 | Y163: 1130 | Z163: 1066 | AA163: 1047 | AB163: 970 | AC163: 25303 | AD163: 1218.89635 | AE163: s2 | AF163: d1 | AG163: s2d1 | BX163: 7 | BY163: 17 | BZ163: 161 | CA163: =OFFSET(GHA!$D$1,IF($CA$1,BX163,366-BX163),BY163) -> 1091 | CB163: =IF(BZ163=SUMIF(GHA!$AQ$51:$AQ$90,CB162,GHA!$BK$51:$BK$90),CB162+1,CB162) -> 2 | CC163: 1339 | CD163: =SUMIF(GHA!$AQ$51:$AQ$90,CB163,GHA!$BJ$51:$BJ$90) -> 1265.362607
A164: 163 | B164: 2009-06-12 | C164: 5 | D164: Friday | E164: 940 | F164: 951 | G164: 930 | H164: 924 | I164: 942 | J164: 968 | K164: 943 | L164: 981 | M164: 1047 | N164: 1049 | O164: 1077 | P164: 1072 | Q164: 961 | R164: 956 | S164: 1003 | T164: 1059 | U164: 1067 | V164: 1035 | W164: 1185 | X164: 1201 | Y164: 1185 | Z164: 1156 | AA164: 1105 | AB164: 1064 | AC164: 24801 | AD164: 1215.506715 | AE164: s2 | AF164: d1 | AG164: s2d1 | BX164: 7 | BY164: 18 | BZ164: 162 | CA164: =OFFSET(GHA!$D$1,IF($CA$1,BX164,366-BX164),BY164) -> 1100 | CB164: =IF(BZ164=SUMIF(GHA!$AQ$51:$AQ$90,CB163,GHA!$BK$51:$BK$90),CB163+1,CB163) -> 2 | CC164: 1339 | CD164: =SUMIF(GHA!$AQ$51:$AQ$90,CB164,GHA!$BJ$51:$BJ$90) -> 1265.362607
A165: 164 | B165: 2009-06-13 | C165: 6 | D165: Saturday | E165: 1031 | F165: 1016 | G165: 1007 | H165: 969 | I165: 989 | J165: 957 | K165: 916 | L165: 925 | M165: 938 | N165: 920 | O165: 937 | P165: 931 | Q165: 925 | R165: 943 | S165: 952 | T165: 941 | U165: 946 | V165: 991 | W165: 1129 | X165: 1122 | Y165: 1111 | Z165: 1101 | AA165: 1087 | AB165: 1038 | AC165: 23822 | AD165: 1206.856044 | AE165: s2 | AF165: d1 | AG165: s2d1 | BX165: 7 | BY165: 19 | BZ165: 163 | CA165: =OFFSET(GHA!$D$1,IF($CA$1,BX165,366-BX165),BY165) -> 1258 | CB165: =IF(BZ165=SUMIF(GHA!$AQ$51:$AQ$90,CB164,GHA!$BK$51:$BK$90),CB164+1,CB164) -> 2 | CC165: 1339 | CD165: =SUMIF(GHA!$AQ$51:$AQ$90,CB165,GHA!$BJ$51:$BJ$90) -> 1265.362607
A166: 165 | B166: 2009-06-14 | C166: 7 | D166: Sunday | E166: 951 | F166: 899 | G166: 740 | H166: 623 | I166: 832 | J166: 857 | K166: 861 | L166: 787 | M166: 878 | N166: 864 | O166: 784 | P166: 859 | Q166: 781 | R166: 837 | S166: 710 | T166: 863 | U166: 885 | V166: 932 | W166: 1184 | X166: 1150 | Y166: 1157 | Z166: 1118 | AA166: 1089 | AB166: 1009 | AC166: 21650 | AD166: 1204.570439 | AE166: s2 | AF166: d1 | AG166: s2d1 | BX166: 7 | BY166: 20 | BZ166: 164 | CA166: =OFFSET(GHA!$D$1,IF($CA$1,BX166,366-BX166),BY166) -> 1283 | CB166: =IF(BZ166=SUMIF(GHA!$AQ$51:$AQ$90,CB165,GHA!$BK$51:$BK$90),CB165+1,CB165) -> 2 | CC166: 1339 | CD166: =SUMIF(GHA!$AQ$51:$AQ$90,CB166,GHA!$BJ$51:$BJ$90) -> 1265.362607
A167: 166 | B167: 2009-06-15 | C167: 1 | D167: Monday | E167: 960 | F167: 960 | G167: 939 | H167: 946 | I167: 947 | J167: 1004 | K167: 948 | L167: 961 | M167: 1056 | N167: 1079 | O167: 1074 | P167: 1070 | Q167: 1074 | R167: 1085 | S167: 1116 | T167: 1153 | U167: 1096 | V167: 1071 | W167: 1224 | X167: 1248 | Y167: 1243 | Z167: 1170 | AA167: 1088 | AB167: 1016 | AC167: 25528 | AD167: 1206.513395 | AE167: s2 | AF167: d1 | AG167: s2d1 | BX167: 7 | BY167: 21 | BZ167: 165 | CA167: =OFFSET(GHA!$D$1,IF($CA$1,BX167,366-BX167),BY167) -> 1262 | CB167: =IF(BZ167=SUMIF(GHA!$AQ$51:$AQ$90,CB166,GHA!$BK$51:$BK$90),CB166+1,CB166) -> 2 | CC167: 1339 | CD167: =SUMIF(GHA!$AQ$51:$AQ$90,CB167,GHA!$BJ$51:$BJ$90) -> 1265.362607
A168: 167 | B168: 2009-06-16 | C168: 2 | D168: Tuesday | E168: 988 | F168: 955 | G168: 921 | H168: 903 | I168: 901 | J168: 939 | K168: 943 | L168: 950 | M168: 1013 | N168: 1007 | O168: 1009 | P168: 967 | Q168: 942 | R168: 977 | S168: 996 | T168: 920 | U168: 987 | V168: 972 | W168: 1206 | X168: 1207 | Y168: 1194 | Z168: 1119 | AA168: 1085 | AB168: 1034 | AC168: 24135 | AD168: 1206.462056 | AE168: s2 | AF168: d1 | AG168: s2d1 | BX168: 7 | BY168: 22 | BZ168: 166 | CA168: =OFFSET(GHA!$D$1,IF($CA$1,BX168,366-BX168),BY168) -> 1205 | CB168: =IF(BZ168=SUMIF(GHA!$AQ$51:$AQ$90,CB167,GHA!$BK$51:$BK$90),CB167+1,CB167) -> 2 | CC168: 1338.3 | CD168: =SUMIF(GHA!$AQ$51:$AQ$90,CB168,GHA!$BJ$51:$BJ$90) -> 1265.362607
A169: 168 | B169: 2009-06-17 | C169: 3 | D169: Wednesday | E169: 971 | F169: 952 | G169: 955 | H169: 951 | I169: 985 | J169: 1027 | K169: 965 | L169: 973 | M169: 1015 | N169: 1025 | O169: 1032 | P169: 1049 | Q169: 1009 | R169: 1032 | S169: 1068 | T169: 1100 | U169: 1097 | V169: 1062 | W169: 1207 | X169: 1243 | Y169: 1187 | Z169: 1190 | AA169: 1131 | AB169: 1038 | AC169: 25264 | AD169: 1206.51585 | AE169: s2 | AF169: d1 | AG169: s2d1 | BX169: 7 | BY169: 23 | BZ169: 167 | CA169: =OFFSET(GHA!$D$1,IF($CA$1,BX169,366-BX169),BY169) -> 1133 | CB169: =IF(BZ169=SUMIF(GHA!$AQ$51:$AQ$90,CB168,GHA!$BK$51:$BK$90),CB168+1,CB168) -> 2 | CC169: 1338 | CD169: =SUMIF(GHA!$AQ$51:$AQ$90,CB169,GHA!$BJ$51:$BJ$90) -> 1265.362607
A170: 169 | B170: 2009-06-18 | C170: 4 | D170: Thursday | E170: 1024 | F170: 983 | G170: 969 | H170: 960 | I170: 993 | J170: 995 | K170: 960 | L170: 985 | M170: 1062 | N170: 1083 | O170: 1088 | P170: 1086 | Q170: 1069 | R170: 1063 | S170: 1115 | T170: 1118 | U170: 1112 | V170: 1094 | W170: 1292 | X170: 1285 | Y170: 1271 | Z170: 1249 | AA170: 1194 | AB170: 1074 | AC170: 26124 | AD170: 1215.064265 | AE170: s2 | AF170: d1 | AG170: s2d1 | BX170: 7 | BY170: 24 | BZ170: 168 | CA170: =OFFSET(GHA!$D$1,IF($CA$1,BX170,366-BX170),BY170) -> 1094 | CB170: =IF(BZ170=SUMIF(GHA!$AQ$51:$AQ$90,CB169,GHA!$BK$51:$BK$90),CB169+1,CB169) -> 2 | CC170: 1338 | CD170: =SUMIF(GHA!$AQ$51:$AQ$90,CB170,GHA!$BJ$51:$BJ$90) -> 1265.362607
A171: 170 | B171: 2009-06-19 | C171: 5 | D171: Friday | E171: 1034 | F171: 1045 | G171: 996 | H171: 979 | I171: 1009 | J171: 1040 | K171: 1020 | L171: 1048 | M171: 1109 | N171: 1148 | O171: 1141 | P171: 1160 | Q171: 1083 | R171: 1117 | S171: 1096 | T171: 1124 | U171: 1094 | V171: 1106 | W171: 1254 | X171: 1285 | Y171: 1236 | Z171: 1142 | AA171: 1065 | AB171: 1013 | AC171: 26344 | AD171: 1218.957839 | AE171: s2 | AF171: d1 | AG171: s2d1 | BX171: 8 | BY171: 1 | BZ171: 169 | CA171: =OFFSET(GHA!$D$1,IF($CA$1,BX171,366-BX171),BY171) -> 1048 | CB171: =IF(BZ171=SUMIF(GHA!$AQ$51:$AQ$90,CB170,GHA!$BK$51:$BK$90),CB170+1,CB170) -> 2 | CC171: 1338 | CD171: =SUMIF(GHA!$AQ$51:$AQ$90,CB171,GHA!$BJ$51:$BJ$90) -> 1265.362607
A172: 171 | B172: 2009-06-20 | C172: 6 | D172: Saturday | E172: 994 | F172: 969 | G172: 953 | H172: 928 | I172: 955 | J172: 963 | K172: 906 | L172: 951 | M172: 955 | N172: 950 | O172: 1001 | P172: 1001 | Q172: 974 | R172: 998 | S172: 1009 | T172: 1025 | U172: 1030 | V172: 1032 | W172: 1225 | X172: 1180 | Y172: 1205 | Z172: 1185 | AA172: 1106 | AB172: 1050 | AC172: 24545 | AD172: 1219.562055 | AE172: s2 | AF172: d1 | AG172: s2d1 | BX172: 8 | BY172: 2 | BZ172: 170 | CA172: =OFFSET(GHA!$D$1,IF($CA$1,BX172,366-BX172),BY172) -> 1048 | CB172: =IF(BZ172=SUMIF(GHA!$AQ$51:$AQ$90,CB171,GHA!$BK$51:$BK$90),CB171+1,CB171) -> 2 | CC172: 1338 | CD172: =SUMIF(GHA!$AQ$51:$AQ$90,CB172,GHA!$BJ$51:$BJ$90) -> 1265.362607
A173: 172 | B173: 2009-06-21 | C173: 7 | D173: Sunday | E173: 937 | F173: 869 | G173: 848 | H173: 825 | I173: 849 | J173: 849 | K173: 801 | L173: 813 | M173: 783 | N173: 757 | O173: 727 | P173: 789 | Q173: 848 | R173: 829 | S173: 877 | T173: 978 | U173: 983 | V173: 1019 | W173: 1163 | X173: 1126 | Y173: 1152 | Z173: 1100 | AA173: 1058 | AB173: 974 | AC173: 21954 | AD173: 1213.905849 | AE173: s2 | AF173: d1 | AG173: s2d1 | BX173: 8 | BY173: 3 | BZ173: 171 | CA173: =OFFSET(GHA!$D$1,IF($CA$1,BX173,366-BX173),BY173) -> 1022 | CB173: =IF(BZ173=SUMIF(GHA!$AQ$51:$AQ$90,CB172,GHA!$BK$51:$BK$90),CB172+1,CB172) -> 2 | CC173: 1337 | CD173: =SUMIF(GHA!$AQ$51:$AQ$90,CB173,GHA!$BJ$51:$BJ$90) -> 1265.362607
A174: 173 | B174: 2009-06-22 | C174: 1 | D174: Monday | E174: 933 | F174: 944 | G174: 941 | H174: 918 | I174: 959 | J174: 974 | K174: 988 | L174: 1041 | M174: 961 | N174: 1093 | O174: 1028 | P174: 1038 | Q174: 1026 | R174: 1101 | S174: 1114 | T174: 1150 | U174: 1106 | V174: 1120 | W174: 1250 | X174: 1276 | Y174: 1279 | Z174: 1221 | AA174: 1190 | AB174: 1096 | AC174: 25747 | AD174: 1217.515264 | AE174: s2 | AF174: d1 | AG174: s2d1 | BX174: 8 | BY174: 4 | BZ174: 172 | CA174: =OFFSET(GHA!$D$1,IF($CA$1,BX174,366-BX174),BY174) -> 998 | CB174: =IF(BZ174=SUMIF(GHA!$AQ$51:$AQ$90,CB173,GHA!$BK$51:$BK$90),CB173+1,CB173) -> 2 | CC174: 1337 | CD174: =SUMIF(GHA!$AQ$51:$AQ$90,CB174,GHA!$BJ$51:$BJ$90) -> 1265.362607
A175: 174 | B175: 2009-06-23 | C175: 2 | D175: Tuesday | E175: 1077 | F175: 1122 | G175: 1054 | H175: 1032 | I175: 1053 | J175: 1064 | K175: 1037 | L175: 1051 | M175: 1097 | N175: 1126 | O175: 1086 | P175: 1095 | Q175: 1097 | R175: 1130 | S175: 1164 | T175: 1160 | U175: 1129 | V175: 1124 | W175: 1293 | X175: 1293 | Y175: 1299 | Z175: 1260 | AA175: 1181 | AB175: 1143 | AC175: 27167 | AD175: 1225.063738 | AE175: s2 | AF175: d1 | AG175: s2d1 | BX175: 8 | BY175: 5 | BZ175: 173 | CA175: =OFFSET(GHA!$D$1,IF($CA$1,BX175,366-BX175),BY175) -> 1012 | CB175: =IF(BZ175=SUMIF(GHA!$AQ$51:$AQ$90,CB174,GHA!$BK$51:$BK$90),CB174+1,CB174) -> 2 | CC175: 1336.7 | CD175: =SUMIF(GHA!$AQ$51:$AQ$90,CB175,GHA!$BJ$51:$BJ$90) -> 1265.362607
A176: 175 | B176: 2009-06-24 | C176: 3 | D176: Wednesday | E176: 1103 | F176: 1084 | G176: 1060 | H176: 1060 | I176: 1061 | J176: 1047 | K176: 859 | L176: 916 | M176: 988 | N176: 1025 | O176: 1013 | P176: 1051 | Q176: 834 | R176: 958 | S176: 1030 | T176: 1053 | U176: 1047 | V176: 1074 | W176: 1193 | X176: 1247 | Y176: 1229 | Z176: 1202 | AA176: 1128 | AB176: 1067 | AC176: 25329 | AD176: 1221.857364 | AE176: s2 | AF176: d1 | AG176: s2d1 | BX176: 8 | BY176: 6 | BZ176: 174 | CA176: =OFFSET(GHA!$D$1,IF($CA$1,BX176,366-BX176),BY176) -> 1062 | CB176: =IF(BZ176=SUMIF(GHA!$AQ$51:$AQ$90,CB175,GHA!$BK$51:$BK$90),CB175+1,CB175) -> 2 | CC176: 1336 | CD176: =SUMIF(GHA!$AQ$51:$AQ$90,CB176,GHA!$BJ$51:$BJ$90) -> 1265.362607
A177: 176 | B177: 2009-06-25 | C177: 4 | D177: Thursday | E177: 1038 | F177: 1018 | G177: 990 | H177: 971 | I177: 1000 | J177: 1003 | K177: 733 | L177: 912 | M177: 825 | N177: 932 | O177: 986 | P177: 703 | Q177: 924 | R177: 934 | S177: 1046 | T177: 1047 | U177: 1033 | V177: 1014 | W177: 1124 | X177: 1192 | Y177: 1180 | Z177: 1136 | AA177: 1075 | AB177: 1016 | AC177: 23832 | AD177: 1212.071628 | AE177: s2 | AF177: d1 | AG177: s2d1 | BX177: 8 | BY177: 7 | BZ177: 175 | CA177: =OFFSET(GHA!$D$1,IF($CA$1,BX177,366-BX177),BY177) -> 985 | CB177: =IF(BZ177=SUMIF(GHA!$AQ$51:$AQ$90,CB176,GHA!$BK$51:$BK$90),CB176+1,CB176) -> 2 | CC177: 1335 | CD177: =SUMIF(GHA!$AQ$51:$AQ$90,CB177,GHA!$BJ$51:$BJ$90) -> 1265.362607
A178: 177 | B178: 2009-06-26 | C178: 5 | D178: Friday | E178: 941 | F178: 942 | G178: 912 | H178: 932 | I178: 968 | J178: 981 | K178: 1038 | L178: 963 | M178: 1012 | N178: 987 | O178: 995 | P178: 990 | Q178: 1044 | R178: 1005 | S178: 1008 | T178: 1036 | U178: 1023 | V178: 1040 | W178: 1193 | X178: 1176 | Y178: 1072 | Z178: 1057 | AA178: 983 | AB178: 940 | AC178: 24238 | AD178: 1210.164465 | AE178: s2 | AF178: d1 | AG178: s2d1 | BX178: 8 | BY178: 8 | BZ178: 176 | CA178: =OFFSET(GHA!$D$1,IF($CA$1,BX178,366-BX178),BY178) -> 1055.5 | CB178: =IF(BZ178=SUMIF(GHA!$AQ$51:$AQ$90,CB177,GHA!$BK$51:$BK$90),CB177+1,CB177) -> 2 | CC178: 1335 | CD178: =SUMIF(GHA!$AQ$51:$AQ$90,CB178,GHA!$BJ$51:$BJ$90) -> 1265.362607
A179: 178 | B179: 2009-06-27 | C179: 6 | D179: Saturday | E179: 909 | F179: 860 | G179: 871 | H179: 877 | I179: 885 | J179: 903 | K179: 867 | L179: 878 | M179: 895 | N179: 967 | O179: 980 | P179: 984 | Q179: 963 | R179: 934 | S179: 950 | T179: 956 | U179: 954 | V179: 1009 | W179: 1226 | X179: 1218 | Y179: 1210 | Z179: 1163 | AA179: 1090 | AB179: 1014 | AC179: 23563 | AD179: 1211.748018 | AE179: s2 | AF179: d1 | AG179: s2d1 | BX179: 8 | BY179: 9 | BZ179: 177 | CA179: =OFFSET(GHA!$D$1,IF($CA$1,BX179,366-BX179),BY179) -> 1106.5 | CB179: =IF(BZ179=SUMIF(GHA!$AQ$51:$AQ$90,CB178,GHA!$BK$51:$BK$90),CB178+1,CB178) -> 2 | CC179: 1335 | CD179: =SUMIF(GHA!$AQ$51:$AQ$90,CB179,GHA!$BJ$51:$BJ$90) -> 1265.362607
A180: 179 | B180: 2009-06-28 | C180: 7 | D180: Sunday | E180: 935 | F180: 922 | G180: 906 | H180: 892 | I180: 906 | J180: 928 | K180: 864 | L180: 925 | M180: 876 | N180: 818 | O180: 808 | P180: 811 | Q180: 804 | R180: 826 | S180: 819 | T180: 871 | U180: 883 | V180: 910 | W180: 1083 | X180: 1087 | Y180: 1077 | Z180: 1015 | AA180: 932 | AB180: 882 | AC180: 21780 | AD180: 1198.873217 | AE180: s2 | AF180: d1 | AG180: s2d1 | BX180: 8 | BY180: 10 | BZ180: 178 | CA180: =OFFSET(GHA!$D$1,IF($CA$1,BX180,366-BX180),BY180) -> 1115.5 | CB180: =IF(BZ180=SUMIF(GHA!$AQ$51:$AQ$90,CB179,GHA!$BK$51:$BK$90),CB179+1,CB179) -> 2 | CC180: 1334.3 | CD180: =SUMIF(GHA!$AQ$51:$AQ$90,CB180,GHA!$BJ$51:$BJ$90) -> 1265.362607
A181: 180 | B181: 2009-06-29 | C181: 1 | D181: Monday | E181: 831 | F181: 822 | G181: 816 | H181: 823 | I181: 874 | J181: 968 | K181: 939 | L181: 930 | M181: 975 | N181: 975 | O181: 1008 | P181: 1012 | Q181: 997 | R181: 1019 | S181: 1029 | T181: 1038 | U181: 1013 | V181: 1056 | W181: 1130.7 | X181: 1141.5 | Y181: 1143 | Z181: 1058 | AA181: 1061 | AB181: 1002 | AC181: 23661.2 | AD181: 1192.055895 | AE181: s2 | AF181: d1 | AG181: s2d1 | BX181: 8 | BY181: 11 | BZ181: 179 | CA181: =OFFSET(GHA!$D$1,IF($CA$1,BX181,366-BX181),BY181) -> 1153.5 | CB181: =IF(BZ181=SUMIF(GHA!$AQ$51:$AQ$90,CB180,GHA!$BK$51:$BK$90),CB180+1,CB180) -> 2 | CC181: 1334 | CD181: =SUMIF(GHA!$AQ$51:$AQ$90,CB181,GHA!$BJ$51:$BJ$90) -> 1265.362607
A182: 181 | B182: 2009-06-30 | C182: 2 | D182: Tuesday | E182: 955 | F182: 957 | G182: 925 | H182: 936 | I182: 971 | J182: 1015 | K182: 995 | L182: 978 | M182: 985 | N182: 1002 | O182: 950 | P182: 972 | Q182: 980 | R182: 989 | S182: 1022 | T182: 986 | U182: 978 | V182: 958 | W182: 1068 | X182: 1050 | Y182: 1074 | Z182: 1058 | AA182: 990 | AB182: 949 | AC182: 23743 | AD182: 1179.650305 | AE182: s2 | AF182: d1 | AG182: s2d1 | BX182: 8 | BY182: 12 | BZ182: 180 | CA182: =OFFSET(GHA!$D$1,IF($CA$1,BX182,366-BX182),BY182) -> 1159.5 | CB182: =IF(BZ182=SUMIF(GHA!$AQ$51:$AQ$90,CB181,GHA!$BK$51:$BK$90),CB181+1,CB181) -> 2 | CC182: 1334 | CD182: =SUMIF(GHA!$AQ$51:$AQ$90,CB182,GHA!$BJ$51:$BJ$90) -> 1265.362607
A183: 182 | B183: 2009-07-01 | C183: 3 | D183: Wednesday | E183: 907 | F183: 909 | G183: 900 | H183: 892 | I183: 907 | J183: 894 | K183: 856 | L183: 900 | M183: 915 | N183: 884 | O183: 894 | P183: 937 | Q183: 918 | R183: 946 | S183: 942 | T183: 951 | U183: 925 | V183: 918 | W183: 1121 | X183: 1176 | Y183: 1133 | Z183: 1095 | AA183: 1046 | AB183: 962 | AC183: 22928 | AD183: 1173.785275 | AE183: s2 | AF183: d1 | AG183: s2d1 | BX183: 8 | BY183: 13 | BZ183: 181 | CA183: =OFFSET(GHA!$D$1,IF($CA$1,BX183,366-BX183),BY183) -> 1151.5 | CB183: =IF(BZ183=SUMIF(GHA!$AQ$51:$AQ$90,CB182,GHA!$BK$51:$BK$90),CB182+1,CB182) -> 2 | CC183: 1333.9 | CD183: =SUMIF(GHA!$AQ$51:$AQ$90,CB183,GHA!$BJ$51:$BJ$90) -> 1265.362607
A184: 183 | B184: 2009-07-02 | C184: 4 | D184: Thursday | E184: 954 | F184: 923 | G184: 921 | H184: 900 | I184: 951 | J184: 890 | K184: 976 | L184: 990 | M184: 1063 | N184: 1071 | O184: 1077 | P184: 1050 | Q184: 1055 | R184: 1068 | S184: 1093 | T184: 1095 | U184: 1096 | V184: 1047 | W184: 1171 | X184: 1209 | Y184: 1201 | Z184: 1163 | AA184: 1119 | AB184: 1076 | AC184: 25159 | AD184: 1173.506747 | AE184: s2 | AF184: d1 | AG184: s2d1 | BX184: 8 | BY184: 14 | BZ184: 182 | CA184: =OFFSET(GHA!$D$1,IF($CA$1,BX184,366-BX184),BY184) -> 1146.5 | CB184: =IF(BZ184=SUMIF(GHA!$AQ$51:$AQ$90,CB183,GHA!$BK$51:$BK$90),CB183+1,CB183) -> 2 | CC184: 1333.4 | CD184: =SUMIF(GHA!$AQ$51:$AQ$90,CB184,GHA!$BJ$51:$BJ$90) -> 1265.362607
A185: 184 | B185: 2009-07-03 | C185: 5 | D185: Friday | E185: 1019 | F185: 1004 | G185: 989 | H185: 965 | I185: 1001 | J185: 1039 | K185: 990 | L185: 1015 | M185: 1052 | N185: 1052 | O185: 1076 | P185: 1094 | Q185: 1041 | R185: 1091 | S185: 1087 | T185: 1088 | U185: 1054 | V185: 1053 | W185: 1155 | X185: 1192 | Y185: 1221 | Z185: 1219 | AA185: 1201 | AB185: 1112 | AC185: 25810 | AD185: 1171.656073 | AE185: s2 | AF185: d1 | AG185: s2d1 | BX185: 8 | BY185: 15 | BZ185: 183 | CA185: =OFFSET(GHA!$D$1,IF($CA$1,BX185,366-BX185),BY185) -> 1159.5 | CB185: =IF(BZ185=SUMIF(GHA!$AQ$51:$AQ$90,CB184,GHA!$BK$51:$BK$90),CB184+1,CB184) -> 2 | CC185: 1333 | CD185: =SUMIF(GHA!$AQ$51:$AQ$90,CB185,GHA!$BJ$51:$BJ$90) -> 1265.362607
A186: 185 | B186: 2009-07-04 | C186: 6 | D186: Saturday | E186: 970 | F186: 1004 | G186: 969 | H186: 960 | I186: 972 | J186: 932 | K186: 876 | L186: 906 | M186: 940 | N186: 937 | O186: 956 | P186: 984 | Q186: 970 | R186: 975 | S186: 968 | T186: 969 | U186: 974 | V186: 1005 | W186: 1160 | X186: 1141 | Y186: 1155 | Z186: 1097 | AA186: 1097 | AB186: 1009 | AC186: 23926 | AD186: 1170.490465 | AE186: s2 | AF186: d1 | AG186: s2d1 | BX186: 8 | BY186: 16 | BZ186: 184 | CA186: =OFFSET(GHA!$D$1,IF($CA$1,BX186,366-BX186),BY186) -> 1154 | CB186: =IF(BZ186=SUMIF(GHA!$AQ$51:$AQ$90,CB185,GHA!$BK$51:$BK$90),CB185+1,CB185) -> 2 | CC186: 1333 | CD186: =SUMIF(GHA!$AQ$51:$AQ$90,CB186,GHA!$BJ$51:$BJ$90) -> 1265.362607
A187: 186 | B187: 2009-07-05 | C187: 7 | D187: Sunday | E187: 979 | F187: 942 | G187: 920 | H187: 932 | I187: 943 | J187: 956 | K187: 835 | L187: 934 | M187: 911 | N187: 857 | O187: 847 | P187: 864 | Q187: 870 | R187: 882 | S187: 881 | T187: 914 | U187: 914 | V187: 935 | W187: 1118 | X187: 1192 | Y187: 1191 | Z187: 1153 | AA187: 919 | AB187: 994 | AC187: 22883 | AD187: 1165.241419 | AE187: s2 | AF187: d1 | AG187: s2d1 | BX187: 8 | BY187: 17 | BZ187: 185 | CA187: =OFFSET(GHA!$D$1,IF($CA$1,BX187,366-BX187),BY187) -> 1125 | CB187: =IF(BZ187=SUMIF(GHA!$AQ$51:$AQ$90,CB186,GHA!$BK$51:$BK$90),CB186+1,CB186) -> 2 | CC187: 1333 | CD187: =SUMIF(GHA!$AQ$51:$AQ$90,CB187,GHA!$BJ$51:$BJ$90) -> 1265.362607
A188: 187 | B188: 2009-07-06 | C188: 1 | D188: Monday | E188: 934 | F188: 903 | G188: 890 | H188: 889 | I188: 930 | J188: 985 | K188: 963 | L188: 976 | M188: 1052 | N188: 1076 | O188: 1078 | P188: 1054 | Q188: 1029 | R188: 1064 | S188: 1076 | T188: 1093 | U188: 1083 | V188: 1072 | W188: 1213 | X188: 1229 | Y188: 1191 | Z188: 1152 | AA188: 1051 | AB188: 1026 | AC188: 25009 | AD188: 1170.017277 | AE188: s2 | AF188: d1 | AG188: s2d1 | BX188: 8 | BY188: 18 | BZ188: 186 | CA188: =OFFSET(GHA!$D$1,IF($CA$1,BX188,366-BX188),BY188) -> 1133 | CB188: =IF(BZ188=SUMIF(GHA!$AQ$51:$AQ$90,CB187,GHA!$BK$51:$BK$90),CB187+1,CB187) -> 2 | CC188: 1332.7 | CD188: =SUMIF(GHA!$AQ$51:$AQ$90,CB188,GHA!$BJ$51:$BJ$90) -> 1265.362607
A189: 188 | B189: 2009-07-07 | C189: 2 | D189: Tuesday | E189: 977 | F189: 956 | G189: 954 | H189: 918 | I189: 951 | J189: 1007 | K189: 986 | L189: 1004 | M189: 1027 | N189: 1055 | O189: 1078 | P189: 1089 | Q189: 1021 | R189: 1136 | S189: 1122 | T189: 1136 | U189: 1114 | V189: 1047 | W189: 1253 | X189: 1282 | Y189: 1259 | Z189: 1209 | AA189: 1070 | AB189: 1054 | AC189: 25705 | AD189: 1178.315549 | AE189: s2 | AF189: d1 | AG189: s2d1 | BX189: 8 | BY189: 19 | BZ189: 187 | CA189: =OFFSET(GHA!$D$1,IF($CA$1,BX189,366-BX189),BY189) -> 1305 | CB189: =IF(BZ189=SUMIF(GHA!$AQ$51:$AQ$90,CB188,GHA!$BK$51:$BK$90),CB188+1,CB188) -> 2 | CC189: 1332 | CD189: =SUMIF(GHA!$AQ$51:$AQ$90,CB189,GHA!$BJ$51:$BJ$90) -> 1265.362607
A190: 189 | B190: 2009-07-08 | C190: 3 | D190: Wednesday | E190: 1029 | F190: 963 | G190: 975 | H190: 963 | I190: 971 | J190: 1028 | K190: 969 | L190: 974 | M190: 1003 | N190: 1018 | O190: 1019 | P190: 987 | Q190: 934 | R190: 961 | S190: 974 | T190: 996 | U190: 984 | V190: 986 | W190: 1178 | X190: 1148 | Y190: 1160 | Z190: 1080 | AA190: 1020 | AB190: 969 | AC190: 24289 | AD190: 1178.283994 | AE190: s2 | AF190: d1 | AG190: s2d1 | BX190: 8 | BY190: 20 | BZ190: 188 | CA190: =OFFSET(GHA!$D$1,IF($CA$1,BX190,366-BX190),BY190) -> 1309 | CB190: =IF(BZ190=SUMIF(GHA!$AQ$51:$AQ$90,CB189,GHA!$BK$51:$BK$90),CB189+1,CB189) -> 2 | CC190: 1332 | CD190: =SUMIF(GHA!$AQ$51:$AQ$90,CB190,GHA!$BJ$51:$BJ$90) -> 1265.362607
